Workbook

Sheet INTRO
B2: PC Joint Reporting Form v.3
B4: The purpose of this template Joint Reporting Form (JRF) - available as an Excel file - is to provide national health authorities and data managers with a standardized tool to address these reporting challenges, facilitate integration and thereby further contribute to improving overall programme management. This template aims to standardize national reporting of programme implementation outcomes, improve availability and coordination of preventive chemotherapy data across the World Health Organization regions. National authorities are requested to complete this form for submission to the World Health Organization any time before 15 August of the current year for reporting data on PC interventions implemented during the previous year.
B6: Structure of the application (worksheets):
B8: INTRO | C8: This worksheet includes guides on how to complete the joint reporting form and information about status of PC for endemic diseases in the country
B9: COUNTRY_INFO | C9: This worksheet includes information about administrative structure of the country, population by age group, status of endemicity for each disease, population requiring PC, planned interventions and interventions implemented
B10: MDA1, MDA2, MDA3, T1, T2 and T3 | C10: These worksheets include information about endemic districts targeted for treatment with specified PC medicines, treatment plan, and number of people who received treatment by age group
B11: DISTRICT | C11: This worksheet includes summary of people treated by disease at the level of implementation. If data by gender is available, it requires to enter.
B12: SUMMARY | C12: This worksheet includes summary of people treated by disease and by PC intervention. Before generating the report (run macros) please select the disease for which you need the report. Follow the same rule to generate various reports. This worksheet should be printed and submitted as a Joint Report (see the instruction for submission in the SUMMARY worksheet).
B14: Instruction for data entry
B16: Most of the cells in the above-mentioned worksheets include formula that are calculated automatically according to the treatment policy recommended by WHO for each disease. See the link http://www.who.int/neglected_diseases/preventive_chemotherapy/pct_manual/en/index.html
B18: Please enter your data into the cells according to their colour code:
C20: White - cell is not protected. Please enter the value of the requested indicator.
C22: Yellow - cell is protected and includes name of indicator. No data entry required.
C24: Orange - cell is not protected and includes a drop-down menu. Please select the value from the drop-down list.
C27: Green - cell is not protected and includes formula. Please change the value only if your data are different from those that are calculated automatically.
C30: Blue - cell is protected and includes formula. No data entry required.
B32: Country data
B34: COUNTRY | E34: Burkina Faso
B36: Year of reporting data | E36: 2016
B38: Is country endemic for lymphatic filariasis (LF)? | E38: Endemic
B40: Is country endemic for onchocerciasis (ONCHO)? | E40: Endemic
B42: Is country endemic for soil-transmitted helminthiases (STH)? | E42: Endemic
B44: Is country endemic for schistosomiasis (SCH)? | E44: Endemic
B46: How many administrative units in the country? | E46: 70
B47: If demographical data at the second administrative level are not available by age group, please enter the proportion (%) of population by age group in the country. If data are available, please leave these cells blank.
B48: 1-4 years age | C48: Preschool-age children (PreSAC)
B49: 5-14 years age | C49: School-age children (SAC)
B50: 15 years + | C50: Adults

Sheet COUNTRY_INFO
A1: COUNTRY INFORMATION
A2: Administrative structure, population by age group, endemicity status, planned interventions and interventions implemented
A4: TOTAL | D4: =SUM(D$9:D$1000) -> 19034397 | E4: =SUM(E$9:E$1000) -> 2740103 | F4: =SUM(F$9:F$1000) -> 5559549 | G4: =SUM(G$9:G$1000) -> 10021642 | L4: =SUM(L$9:L$1000) -> 8582194 | M4: =SUM(M$9:M$1000) -> 255594 | N4: =SUM(N$9:N$1000) -> 0 | O4: =SUM(O$9:O$1000) -> 5300072.4
A6: Country administrative structure | D6: Population | H6: Endemicity | L6: Population requiring PC | P6: Number of treatment rounds planned for the year | T6: PC implemented | V6: Click to see the recommended strategy
A7: Country | B7: Province/State | C7: District | D7: Total | E7: PreSAC | F7: SAC | G7: Adults | H7: LF | I7: Oncho | J7: STH | K7: SCH | L7: LF | M7: Oncho | N7: STH | O7: SCH | P7: LF | Q7: Oncho | R7: STH | S7: SCH | T7: ROUND 1 | U7: ROUND2 | X7: IU_ID | Y7: IU_Name
A9: =IF(INTRO!$E$34<>0,INTRO!$E$34,"") -> Burkina Faso | B9: Boucle du Mouhoun | C9: Boromo | D9: 280481 | E9: 41593 | F9: 84143 | G9: 143197 | H9: 1 | I9: 0 | J9: 1 | K9: 2 | L9: =IF(INTRO!$E$38="Endemic", IF($H9>0, IF($H9=4,"Unknown", IF($H9=99,"Stopped", $D9)), 0),"Not required") -> 280481 | M9: 0 | N9: =IF(INTRO!$E$42="Endemic", IF(AND($J9>1,$J9<5), IF($J9=4, "Unknown", E9+F9), 0),"Not required") -> 0 | O9: =IF(INTRO!$E$44="Endemic", IF(AND($K9>0,$K9<5), IF($K9=4,"Unknown", IF($K9=1, $F9*0.33, IF($K9=2, $F9*0.5+$G9*0.2, SUM(F9:G9)))), 0),"Not required") -> 70710.9 | P9: 1 | Q9: 0 | R9: 1 | S9: 1 | T9: MDA1 (IVM+ALB) | U9: T2 (PZQ) | X9: 5312 | Y9: Boromo | Z9: =Y9=C9 -> TRUE
A10: =IF(INTRO!$E$34<>0,INTRO!$E$34,"") -> Burkina Faso | B10: Boucle du Mouhoun | C10: Dédougou | D10: 390047 | E10: 57840 | F10: 117004 | G10: 199145 | H10: 1 | I10: 0 | J10: 1 | K10: 2 | L10: =IF(INTRO!$E$38="Endemic", IF($H10>0, IF($H10=4,"Unknown", IF($H10=99,"Stopped", $D10)), 0),"Not required") -> 390047 | M10: 0 | N10: =IF(INTRO!$E$42="Endemic", IF(AND($J10>1,$J10<5), IF($J10=4, "Unknown", E10+F10), 0),"Not required") -> 0 | O10: =IF(INTRO!$E$44="Endemic", IF(AND($K10>0,$K10<5), IF($K10=4,"Unknown", IF($K10=1, $F10*0.33, IF($K10=2, $F10*0.5+$G10*0.2, SUM(F10:G10)))), 0),"Not required") -> 98331 | P10: 1 | Q10: 0 | R10: 1 | S10: 1 | T10: MDA1 (IVM+ALB) | U10: T2 (PZQ) | X10: 5313 | Y10: Dédougou | Z10: =Y10=C10 -> TRUE
A11: =IF(INTRO!$E$34<>0,INTRO!$E$34,"") -> Burkina Faso | B11: Boucle du Mouhoun | C11: Nouna | D11: 358695 | E11: 53190 | F11: 107605 | G11: 183132 | H11: 99 | I11: 0 | J11: 1 | K11: 2 | L11: =IF(INTRO!$E$38="Endemic", IF($H11>0, IF($H11=4,"Unknown", IF($H11=99,"Stopped", $D11)), 0),"Not required") -> Stopped | M11: 0 | N11: =IF(INTRO!$E$42="Endemic", IF(AND($J11>1,$J11<5), IF($J11=4, "Unknown", E11+F11), 0),"Not required") -> 0 | O11: =IF(INTRO!$E$44="Endemic", IF(AND($K11>0,$K11<5), IF($K11=4,"Unknown", IF($K11=1, $F11*0.33, IF($K11=2, $F11*0.5+$G11*0.2, SUM(F11:G11)))), 0),"Not required") -> 90428.9 | P11: 0 | Q11: 0 | R11: 1 | S11: 1 | T11: T1 (PZQ+ALB/MBD) | X11: 5314 | Y11: Nouna | Z11: TRUE
A12: =IF(INTRO!$E$34<>0,INTRO!$E$34,"") -> Burkina Faso | B12: Boucle du Mouhoun | C12: Solenzo | D12: 351969 | E12: 52191 | F12: 105585 | G12: 179702 | H12: 99 | I12: 0 | J12: 1 | K12: 2 | L12: =IF(INTRO!$E$38="Endemic", IF($H12>0, IF($H12=4,"Unknown", IF($H12=99,"Stopped", $D12)), 0),"Not required") -> Stopped | M12: 0 | N12: =IF(INTRO!$E$42="Endemic", IF(AND($J12>1,$J12<5), IF($J12=4, "Unknown", E12+F12), 0),"Not required") -> 0 | O12: =IF(INTRO!$E$44="Endemic", IF(AND($K12>0,$K12<5), IF($K12=4,"Unknown", IF($K12=1, $F12*0.33, IF($K12=2, $F12*0.5+$G12*0.2, SUM(F12:G12)))), 0),"Not required") -> 88732.9 | P12: 0 | Q12: 0 | R12: 1 | S12: 1 | T12: T1 (PZQ+ALB/MBD) | X12: 5315 | Y12: Solenzo | Z12: TRUE
A13: =IF(INTRO!$E$34<>0,INTRO!$E$34,"") -> Burkina Faso | B13: Boucle du Mouhoun | C13: Toma | D13: 209807 | E13: 31111 | F13: 62939 | G13: 107119 | H13: 99 | I13: 0 | J13: 1 | K13: 2 | L13: =IF(INTRO!$E$38="Endemic", IF($H13>0, IF($H13=4,"Unknown", IF($H13=99,"Stopped", $D13)), 0),"Not required") -> Stopped | M13: 0 | N13: =IF(INTRO!$E$42="Endemic", IF(AND($J13>1,$J13<5), IF($J13=4, "Unknown", E13+F13), 0),"Not required") -> 0 | O13: =IF(INTRO!$E$44="Endemic", IF(AND($K13>0,$K13<5), IF($K13=4,"Unknown", IF($K13=1, $F13*0.33, IF($K13=2, $F13*0.5+$G13*0.2, SUM(F13:G13)))), 0),"Not required") -> 52893.3 | P13: 0 | Q13: 0 | R13: 1 | S13: 1 | T13: T1 (PZQ+ALB/MBD) | X13: 5316 | Y13: Toma | Z13: TRUE
A14: =IF(INTRO!$E$34<>0,INTRO!$E$34,"") -> Burkina Faso | B14: Boucle du Mouhoun | C14: Tougan | D14: 280493 | E14: 41594 | F14: 84146 | G14: 143205 | H14: 99 | I14: 0 | J14: 1 | K14: 2 | L14: =IF(INTRO!$E$38="Endemic", IF($H14>0, IF($H14=4,"Unknown", IF($H14=99,"Stopped", $D14)), 0),"Not required") -> Stopped | M14: 0 | N14: =IF(INTRO!$E$42="Endemic", IF(AND($J14>1,$J14<5), IF($J14=4, "Unknown", E14+F14), 0),"Not required") -> 0 | O14: =IF(INTRO!$E$44="Endemic", IF(AND($K14>0,$K14<5), IF($K14=4,"Unknown", IF($K14=1, $F14*0.33, IF($K14=2, $F14*0.5+$G14*0.2, SUM(F14:G14)))), 0),"Not required") -> 70714 | P14: 0 | Q14: 0 | R14: 1 | S14: 1 | T14: T1 (PZQ+ALB/MBD) | X14: 5317 | Y14: Tougan | Z14: TRUE
A15: =IF(INTRO!$E$34<>0,INTRO!$E$34,"") -> Burkina Faso | B15: Cascades | C15: Banfora | D15: 378219 | E15: 49464 | F15: 109869 | G15: 205112 | H15: 99 | I15: 1 | J15: 1 | K15: 2 | L15: =IF(INTRO!$E$38="Endemic", IF($H15>0, IF($H15=4,"Unknown", IF($H15=99,"Stopped", $D15)), 0),"Not required") -> Stopped | M15: 51078 | N15: =IF(INTRO!$E$42="Endemic", IF(AND($J15>1,$J15<5), IF($J15=4, "Unknown", E15+F15), 0),"Not required") -> 0 | O15: =IF(INTRO!$E$44="Endemic", IF(AND($K15>0,$K15<5), IF($K15=4,"Unknown", IF($K15=1, $F15*0.33, IF($K15=2, $F15*0.5+$G15*0.2, SUM(F15:G15)))), 0),"Not required") -> 95956.9 | P15: 0 | Q15: 1 | R15: 1 | S15: 1 | T15: MDA3 (IVM) | U15: T1 (PZQ+ALB/MBD) | X15: 5318 | Y15: Banfora | Z15: TRUE
A16: =IF(INTRO!$E$34<>0,INTRO!$E$34,"") -> Burkina Faso | B16: Cascades | C16: Mangodara | D16: 221939 | E16: 34001 | F16: 67831 | G16: 111148 | H16: 99 | I16: 1 | J16: 1 | K16: 2 | L16: =IF(INTRO!$E$38="Endemic", IF($H16>0, IF($H16=4,"Unknown", IF($H16=99,"Stopped", $D16)), 0),"Not required") -> Stopped | M16: 7470 | N16: =IF(INTRO!$E$42="Endemic", IF(AND($J16>1,$J16<5), IF($J16=4, "Unknown", E16+F16), 0),"Not required") -> 0 | O16: =IF(INTRO!$E$44="Endemic", IF(AND($K16>0,$K16<5), IF($K16=4,"Unknown", IF($K16=1, $F16*0.33, IF($K16=2, $F16*0.5+$G16*0.2, SUM(F16:G16)))), 0),"Not required") -> 56145.1 | P16: 0 | Q16: 1 | R16: 1 | S16: 1 | T16: MDA3 (IVM) | U16: T1 (PZQ+ALB/MBD) | X16: 5319 | Y16: Mangodara | Z16: TRUE
A17: =IF(INTRO!$E$34<>0,INTRO!$E$34,"") -> Burkina Faso | B17: Cascades | C17: Sindou | D17: 166382 | E17: 23137 | F17: 49262 | G17: 87681 | H17: 99 | I17: 0 | J17: 1 | K17: 2 | L17: =IF(INTRO!$E$38="Endemic", IF($H17>0, IF($H17=4,"Unknown", IF($H17=99,"Stopped", $D17)), 0),"Not required") -> Stopped | M17: 0 | N17: =IF(INTRO!$E$42="Endemic", IF(AND($J17>1,$J17<5), IF($J17=4, "Unknown", E17+F17), 0),"Not required") -> 0 | O17: =IF(INTRO!$E$44="Endemic", IF(AND($K17>0,$K17<5), IF($K17=4,"Unknown", IF($K17=1, $F17*0.33, IF($K17=2, $F17*0.5+$G17*0.2, SUM(F17:G17)))), 0),"Not required") -> 42167.2 | P17: 0 | Q17: 0 | R17: 1 | S17: 1 | U17: T1 (PZQ+ALB/MBD) | X17: 5320 | Y17: Sindou | Z17: TRUE
A18: =IF(INTRO!$E$34<>0,INTRO!$E$34,"") -> Burkina Faso | B18: Centre | C18: Baskuy | D18: 299035 | E18: 25434 | F18: 59411 | G18: 207322 | H18: 99 | I18: 0 | J18: 1 | K18: 2 | L18: =IF(INTRO!$E$38="Endemic", IF($H18>0, IF($H18=4,"Unknown", IF($H18=99,"Stopped", $D18)), 0),"Not required") -> Stopped | M18: 0 | N18: =IF(INTRO!$E$42="Endemic", IF(AND($J18>1,$J18<5), IF($J18=4, "Unknown", E18+F18), 0),"Not required") -> 0 | O18: =IF(INTRO!$E$44="Endemic", IF(AND($K18>0,$K18<5), IF($K18=4,"Unknown", IF($K18=1, $F18*0.33, IF($K18=2, $F18*0.5+$G18*0.2, SUM(F18:G18)))), 0),"Not required") -> 71169.9 | P18: 0 | Q18: 0 | R18: 1 | S18: 1 | U18: T1 (PZQ+ALB/MBD) | X18: 5321 | Y18: Baskuy | Z18: TRUE
A19: =IF(INTRO!$E$34<>0,INTRO!$E$34,"") -> Burkina Faso | B19: Centre | C19: Bogodogo | D19: 795721 | E19: 86572 | F19: 199422 | G19: 488387 | H19: 1 | I19: 0 | J19: 1 | K19: 2 | L19: =IF(INTRO!$E$38="Endemic", IF($H19>0, IF($H19=4,"Unknown", IF($H19=99,"Stopped", $D19)), 0),"Not required") -> 795721 | M19: 0 | N19: =IF(INTRO!$E$42="Endemic", IF(AND($J19>1,$J19<5), IF($J19=4, "Unknown", E19+F19), 0),"Not required") -> 0 | O19: =IF(INTRO!$E$44="Endemic", IF(AND($K19>0,$K19<5), IF($K19=4,"Unknown", IF($K19=1, $F19*0.33, IF($K19=2, $F19*0.5+$G19*0.2, SUM(F19:G19)))), 0),"Not required") -> 197388.4 | P19: 1 | Q19: 0 | R19: 1 | S19: 1 | T19: MDA1 (IVM+ALB) | U19: T1 (PZQ+ALB/MBD) | X19: 5322 | Y19: Bogodogo | Z19: TRUE
A20: =IF(INTRO!$E$34<>0,INTRO!$E$34,"") -> Burkina Faso | B20: Centre | C20: Boulmiougou | D20: 883331 | E20: 102952 | F20: 241566 | G20: 511018 | H20: 1 | I20: 0 | J20: 1 | K20: 2 | L20: =IF(INTRO!$E$38="Endemic", IF($H20>0, IF($H20=4,"Unknown", IF($H20=99,"Stopped", $D20)), 0),"Not required") -> 883331 | M20: 0 | N20: =IF(INTRO!$E$42="Endemic", IF(AND($J20>1,$J20<5), IF($J20=4, "Unknown", E20+F20), 0),"Not required") -> 0 | O20: =IF(INTRO!$E$44="Endemic", IF(AND($K20>0,$K20<5), IF($K20=4,"Unknown", IF($K20=1, $F20*0.33, IF($K20=2, $F20*0.5+$G20*0.2, SUM(F20:G20)))), 0),"Not required") -> 222986.6 | P20: 1 | Q20: 0 | R20: 1 | S20: 1 | T20: MDA1 (IVM+ALB) | U20: T1 (PZQ+ALB/MBD) | X20: 5323 | Y20: Boulmiougou | Z20: TRUE
A21: =IF(INTRO!$E$34<>0,INTRO!$E$34,"") -> Burkina Faso | B21: Centre | C21: Nongre-Massom | D21: 337367 | E21: 34996 | F21: 85140 | G21: 207844 | H21: 1 | I21: 0 | J21: 1 | K21: 2 | L21: =IF(INTRO!$E$38="Endemic", IF($H21>0, IF($H21=4,"Unknown", IF($H21=99,"Stopped", $D21)), 0),"Not required") -> 337367 | M21: 0 | N21: =IF(INTRO!$E$42="Endemic", IF(AND($J21>1,$J21<5), IF($J21=4, "Unknown", E21+F21), 0),"Not required") -> 0 | O21: =IF(INTRO!$E$44="Endemic", IF(AND($K21>0,$K21<5), IF($K21=4,"Unknown", IF($K21=1, $F21*0.33, IF($K21=2, $F21*0.5+$G21*0.2, SUM(F21:G21)))), 0),"Not required") -> 84138.8 | P21: 1 | Q21: 0 | R21: 1 | S21: 1 | T21: MDA1 (IVM+ALB) | U21: T1 (PZQ+ALB/MBD) | X21: 5325 | Y21: Nongre-Massom | Z21: TRUE
A22: =IF(INTRO!$E$34<>0,INTRO!$E$34,"") -> Burkina Faso | B22: Centre | C22: Sig-Nonghin | D22: 321849 | E22: 37530 | F22: 85705 | G22: 188282 | H22: 1 | I22: 0 | J22: 1 | K22: 2 | L22: =IF(INTRO!$E$38="Endemic", IF($H22>0, IF($H22=4,"Unknown", IF($H22=99,"Stopped", $D22)), 0),"Not required") -> 321849 | M22: 0 | N22: =IF(INTRO!$E$42="Endemic", IF(AND($J22>1,$J22<5), IF($J22=4, "Unknown", E22+F22), 0),"Not required") -> 0 | O22: =IF(INTRO!$E$44="Endemic", IF(AND($K22>0,$K22<5), IF($K22=4,"Unknown", IF($K22=1, $F22*0.33, IF($K22=2, $F22*0.5+$G22*0.2, SUM(F22:G22)))), 0),"Not required") -> 80508.9 | P22: 1 | Q22: 0 | R22: 1 | S22: 1 | T22: MDA1 (IVM+ALB) | U22: T1 (PZQ+ALB/MBD) | X22: 5324 | Y22: Sig-Nonghin | Z22: TRUE
A23: =IF(INTRO!$E$34<>0,INTRO!$E$34,"") -> Burkina Faso | B23: Centre-Est | C23: Bittou | D23: 127431 | E23: 21102 | F23: 37590 | G23: 63019 | H23: 1 | I23: 0 | J23: 1 | K23: 3 | L23: =IF(INTRO!$E$38="Endemic", IF($H23>0, IF($H23=4,"Unknown", IF($H23=99,"Stopped", $D23)), 0),"Not required") -> 127431 | M23: 0 | N23: =IF(INTRO!$E$42="Endemic", IF(AND($J23>1,$J23<5), IF($J23=4, "Unknown", E23+F23), 0),"Not required") -> 0 | O23: =IF(INTRO!$E$44="Endemic", IF(AND($K23>0,$K23<5), IF($K23=4,"Unknown", IF($K23=1, $F23*0.33, IF($K23=2, $F23*0.5+$G23*0.2, SUM(F23:G23)))), 0),"Not required") -> 100609 | P23: 1 | Q23: 0 | R23: 1 | S23: 2 | T23: MDA1 (IVM+ALB) | U23: T2 (PZQ) | X23: 5326 | Y23: Bittou | Z23: TRUE
A24: =IF(INTRO!$E$34<>0,INTRO!$E$34,"") -> Burkina Faso | B24: Centre-Est | C24: Garango | D24: 211902 | E24: 29670 | F24: 62823 | G24: 110509 | H24: 1 | I24: 0 | J24: 1 | K24: 3 | L24: =IF(INTRO!$E$38="Endemic", IF($H24>0, IF($H24=4,"Unknown", IF($H24=99,"Stopped", $D24)), 0),"Not required") -> 211902 | M24: 0 | N24: =IF(INTRO!$E$42="Endemic", IF(AND($J24>1,$J24<5), IF($J24=4, "Unknown", E24+F24), 0),"Not required") -> 0 | O24: =IF(INTRO!$E$44="Endemic", IF(AND($K24>0,$K24<5), IF($K24=4,"Unknown", IF($K24=1, $F24*0.33, IF($K24=2, $F24*0.5+$G24*0.2, SUM(F24:G24)))), 0),"Not required") -> 173332 | P24: 1 | Q24: 0 | R24: 1 | S24: 2 | T24: MDA1 (IVM+ALB) | U24: T2 (PZQ) | X24: 5327 | Y24: Garango | Z24: TRUE
A25: =IF(INTRO!$E$34<>0,INTRO!$E$34,"") -> Burkina Faso | B25: Centre-Est | C25: Koupela | D25: 236371 | E25: 35057 | F25: 73082 | G25: 118704 | H25: 1 | I25: 0 | J25: 1 | K25: 3 | L25: =IF(INTRO!$E$38="Endemic", IF($H25>0, IF($H25=4,"Unknown", IF($H25=99,"Stopped", $D25)), 0),"Not required") -> 236371 | M25: 0 | N25: =IF(INTRO!$E$42="Endemic", IF(AND($J25>1,$J25<5), IF($J25=4, "Unknown", E25+F25), 0),"Not required") -> 0 | O25: =IF(INTRO!$E$44="Endemic", IF(AND($K25>0,$K25<5), IF($K25=4,"Unknown", IF($K25=1, $F25*0.33, IF($K25=2, $F25*0.5+$G25*0.2, SUM(F25:G25)))), 0),"Not required") -> 191786 | P25: 1 | Q25: 0 | R25: 1 | S25: 2 | T25: MDA1 (IVM+ALB) | U25: T2 (PZQ) | X25: 5328 | Y25: Koupela | Z25: TRUE
A26: =IF(INTRO!$E$34<>0,INTRO!$E$34,"") -> Burkina Faso | B26: Centre-Est | C26: Ouargaye | D26: 351870 | E26: 53181 | F26: 105404 | G26: 178418 | H26: 1 | I26: 0 | J26: 1 | K26: 3 | L26: =IF(INTRO!$E$38="Endemic", IF($H26>0, IF($H26=4,"Unknown", IF($H26=99,"Stopped", $D26)), 0),"Not required") -> 351870 | M26: 0 | N26: =IF(INTRO!$E$42="Endemic", IF(AND($J26>1,$J26<5), IF($J26=4, "Unknown", E26+F26), 0),"Not required") -> 0 | O26: =IF(INTRO!$E$44="Endemic", IF(AND($K26>0,$K26<5), IF($K26=4,"Unknown", IF($K26=1, $F26*0.33, IF($K26=2, $F26*0.5+$G26*0.2, SUM(F26:G26)))), 0),"Not required") -> 283822 | P26: 1 | Q26: 0 | R26: 1 | S26: 2 | T26: MDA1 (IVM+ALB) | U26: T2 (PZQ) | X26: 5329 | Y26: Ouargaye | Z26: TRUE
A27: =IF(INTRO!$E$34<>0,INTRO!$E$34,"") -> Burkina Faso | B27: Centre-Est | C27: Pouytenga | D27: 203925 | E27: 31491 | F27: 58807 | G27: 104551 | H27: 1 | I27: 0 | J27: 1 | K27: 2 | L27: =IF(INTRO!$E$38="Endemic", IF($H27>0, IF($H27=4,"Unknown", IF($H27=99,"Stopped", $D27)), 0),"Not required") -> 203925 | M27: 0 | N27: =IF(INTRO!$E$42="Endemic", IF(AND($J27>1,$J27<5), IF($J27=4, "Unknown", E27+F27), 0),"Not required") -> 0 | O27: =IF(INTRO!$E$44="Endemic", IF(AND($K27>0,$K27<5), IF($K27=4,"Unknown", IF($K27=1, $F27*0.33, IF($K27=2, $F27*0.5+$G27*0.2, SUM(F27:G27)))), 0),"Not required") -> 50313.7 | P27: 1 | Q27: 0 | R27: 1 | S27: 2 | T27: MDA1 (IVM+ALB) | U27: T2 (PZQ) | X27: 5330 | Y27: Pouytenga | Z27: TRUE
A28: =IF(INTRO!$E$34<>0,INTRO!$E$34,"") -> Burkina Faso | B28: Centre-Est | C28: Tenkodogo | D28: 233075 | E28: 34543 | F28: 68188 | G28: 120394 | H28: 1 | I28: 0 | J28: 1 | K28: 2 | L28: =IF(INTRO!$E$38="Endemic", IF($H28>0, IF($H28=4,"Unknown", IF($H28=99,"Stopped", $D28)), 0),"Not required") -> 233075 | M28: 0 | N28: =IF(INTRO!$E$42="Endemic", IF(AND($J28>1,$J28<5), IF($J28=4, "Unknown", E28+F28), 0),"Not required") -> 0 | O28: =IF(INTRO!$E$44="Endemic", IF(AND($K28>0,$K28<5), IF($K28=4,"Unknown", IF($K28=1, $F28*0.33, IF($K28=2, $F28*0.5+$G28*0.2, SUM(F28:G28)))), 0),"Not required") -> 58172.8 | P28: 1 | Q28: 0 | R28: 1 | S28: 2 | T28: MDA1 (IVM+ALB) | U28: T2 (PZQ) | X28: 5331 | Y28: Tenkodogo | Z28: TRUE
A29: =IF(INTRO!$E$34<>0,INTRO!$E$34,"") -> Burkina Faso | B29: Centre-Est | C29: Zabré | D29: 150944 | E29: 24014 | F29: 48081 | G29: 72856 | H29: 1 | I29: 0 | J29: 1 | K29: 2 | L29: =IF(INTRO!$E$38="Endemic", IF($H29>0, IF($H29=4,"Unknown", IF($H29=99,"Stopped", $D29)), 0),"Not required") -> 150944 | M29: 0 | N29: =IF(INTRO!$E$42="Endemic", IF(AND($J29>1,$J29<5), IF($J29=4, "Unknown", E29+F29), 0),"Not required") -> 0 | O29: =IF(INTRO!$E$44="Endemic", IF(AND($K29>0,$K29<5), IF($K29=4,"Unknown", IF($K29=1, $F29*0.33, IF($K29=2, $F29*0.5+$G29*0.2, SUM(F29:G29)))), 0),"Not required") -> 38611.7 | P29: 1 | Q29: 0 | R29: 1 | S29: 2 | T29: MDA1 (IVM+ALB) | U29: T2 (PZQ) | X29: 5332 | Y29: Zabré | Z29: TRUE
A30: =IF(INTRO!$E$34<>0,INTRO!$E$34,"") -> Burkina Faso | B30: Centre-Nord | C30: Barsalogo | D30: 192527 | E30: 32635 | F30: 60092 | G30: 90816 | H30: 99 | I30: 0 | J30: 1 | K30: 2 | L30: =IF(INTRO!$E$38="Endemic", IF($H30>0, IF($H30=4,"Unknown", IF($H30=99,"Stopped", $D30)), 0),"Not required") -> Stopped | M30: 0 | N30: =IF(INTRO!$E$42="Endemic", IF(AND($J30>1,$J30<5), IF($J30=4, "Unknown", E30+F30), 0),"Not required") -> 0 | O30: =IF(INTRO!$E$44="Endemic", IF(AND($K30>0,$K30<5), IF($K30=4,"Unknown", IF($K30=1, $F30*0.33, IF($K30=2, $F30*0.5+$G30*0.2, SUM(F30:G30)))), 0),"Not required") -> 48209.2 | P30: 0 | Q30: 0 | R30: 1 | S30: 1 | U30: T1 (PZQ+ALB/MBD) | X30: 5333 | Y30: Barsalogo | Z30: TRUE
A31: =IF(INTRO!$E$34<>0,INTRO!$E$34,"") -> Burkina Faso | B31: Centre-Nord | C31: Boulsa | D31: 209986 | E31: 31979 | F31: 64901 | G31: 104719 | H31: 99 | I31: 0 | J31: 1 | K31: 2 | L31: =IF(INTRO!$E$38="Endemic", IF($H31>0, IF($H31=4,"Unknown", IF($H31=99,"Stopped", $D31)), 0),"Not required") -> Stopped | M31: 0 | N31: =IF(INTRO!$E$42="Endemic", IF(AND($J31>1,$J31<5), IF($J31=4, "Unknown", E31+F31), 0),"Not required") -> 0 | O31: =IF(INTRO!$E$44="Endemic", IF(AND($K31>0,$K31<5), IF($K31=4,"Unknown", IF($K31=1, $F31*0.33, IF($K31=2, $F31*0.5+$G31*0.2, SUM(F31:G31)))), 0),"Not required") -> 53394.3 | P31: 0 | Q31: 0 | R31: 1 | S31: 1 | U31: T1 (PZQ+ALB/MBD) | X31: 5334 | Y31: Boulsa | Z31: TRUE
A32: =IF(INTRO!$E$34<>0,INTRO!$E$34,"") -> Burkina Faso | B32: Centre-Nord | C32: Boussouma | D32: 213986 | E32: 32015 | F32: 63840 | G32: 108980 | H32: 99 | I32: 0 | J32: 1 | K32: 2 | L32: =IF(INTRO!$E$38="Endemic", IF($H32>0, IF($H32=4,"Unknown", IF($H32=99,"Stopped", $D32)), 0),"Not required") -> Stopped | M32: 0 | N32: =IF(INTRO!$E$42="Endemic", IF(AND($J32>1,$J32<5), IF($J32=4, "Unknown", E32+F32), 0),"Not required") -> 0 | O32: =IF(INTRO!$E$44="Endemic", IF(AND($K32>0,$K32<5), IF($K32=4,"Unknown", IF($K32=1, $F32*0.33, IF($K32=2, $F32*0.5+$G32*0.2, SUM(F32:G32)))), 0),"Not required") -> 53716 | P32: 0 | Q32: 0 | R32: 1 | S32: 1 | U32: T1 (PZQ+ALB/MBD) | X32: 53001 | Y32: Boussouma | Z32: TRUE
A33: =IF(INTRO!$E$34<>0,INTRO!$E$34,"") -> Burkina Faso | B33: Centre-Nord | C33: Kaya | D33: 384585 | E33: 57051 | F33: 115919 | G33: 195669 | H33: 99 | I33: 0 | J33: 1 | K33: 2 | L33: =IF(INTRO!$E$38="Endemic", IF($H33>0, IF($H33=4,"Unknown", IF($H33=99,"Stopped", $D33)), 0),"Not required") -> Stopped | M33: 0 | N33: =IF(INTRO!$E$42="Endemic", IF(AND($J33>1,$J33<5), IF($J33=4, "Unknown", E33+F33), 0),"Not required") -> 0 | O33: =IF(INTRO!$E$44="Endemic", IF(AND($K33>0,$K33<5), IF($K33=4,"Unknown", IF($K33=1, $F33*0.33, IF($K33=2, $F33*0.5+$G33*0.2, SUM(F33:G33)))), 0),"Not required") -> 97093.3 | P33: 0 | Q33: 0 | R33: 1 | S33: 1 | U33: T1 (PZQ+ALB/MBD) | X33: 5335 | Y33: Kaya | Z33: TRUE
A34: =IF(INTRO!$E$34<>0,INTRO!$E$34,"") -> Burkina Faso | B34: Centre-Nord | C34: Kongoussi | D34: 365433 | E34: 56218 | F34: 110797 | G34: 182675 | H34: 99 | I34: 0 | J34: 1 | K34: 2 | L34: =IF(INTRO!$E$38="Endemic", IF($H34>0, IF($H34=4,"Unknown", IF($H34=99,"Stopped", $D34)), 0),"Not required") -> Stopped | M34: 0 | N34: =IF(INTRO!$E$42="Endemic", IF(AND($J34>1,$J34<5), IF($J34=4, "Unknown", E34+F34), 0),"Not required") -> 0 | O34: =IF(INTRO!$E$44="Endemic", IF(AND($K34>0,$K34<5), IF($K34=4,"Unknown", IF($K34=1, $F34*0.33, IF($K34=2, $F34*0.5+$G34*0.2, SUM(F34:G34)))), 0),"Not required") -> 91933.5 | P34: 0 | Q34: 0 | R34: 1 | S34: 1 | U34: T1 (PZQ+ALB/MBD) | X34: 5336 | Y34: Kongoussi | Z34: TRUE
A35: =IF(INTRO!$E$34<>0,INTRO!$E$34,"") -> Burkina Faso | B35: Centre-Nord | C35: Tougouri | D35: 226697 | E35: 35200 | F35: 67496 | G35: 113575 | H35: 99 | I35: 0 | J35: 1 | K35: 2 | L35: =IF(INTRO!$E$38="Endemic", IF($H35>0, IF($H35=4,"Unknown", IF($H35=99,"Stopped", $D35)), 0),"Not required") -> Stopped | M35: 0 | N35: =IF(INTRO!$E$42="Endemic", IF(AND($J35>1,$J35<5), IF($J35=4, "Unknown", E35+F35), 0),"Not required") -> 0 | O35: =IF(INTRO!$E$44="Endemic", IF(AND($K35>0,$K35<5), IF($K35=4,"Unknown", IF($K35=1, $F35*0.33, IF($K35=2, $F35*0.5+$G35*0.2, SUM(F35:G35)))), 0),"Not required") -> 56463 | P35: 0 | Q35: 0 | R35: 1 | S35: 1 | U35: T1 (PZQ+ALB/MBD) | X35: 53002 | Y35: Tougouri | Z35: TRUE
A36: =IF(INTRO!$E$34<>0,INTRO!$E$34,"") -> Burkina Faso | B36: Centre-Ouest | C36: Koudougou | D36: 374373 | E36: 52939 | F36: 106880 | G36: 199584 | H36: 99 | I36: 0 | J36: 1 | K36: 2 | L36: =IF(INTRO!$E$38="Endemic", IF($H36>0, IF($H36=4,"Unknown", IF($H36=99,"Stopped", $D36)), 0),"Not required") -> Stopped | M36: 0 | N36: =IF(INTRO!$E$42="Endemic", IF(AND($J36>1,$J36<5), IF($J36=4, "Unknown", E36+F36), 0),"Not required") -> 0 | O36: =IF(INTRO!$E$44="Endemic", IF(AND($K36>0,$K36<5), IF($K36=4,"Unknown", IF($K36=1, $F36*0.33, IF($K36=2, $F36*0.5+$G36*0.2, SUM(F36:G36)))), 0),"Not required") -> 93356.8 | P36: 0 | Q36: 0 | R36: 1 | S36: 1 | T36: T1 (PZQ+ALB/MBD) | X36: 5337 | Y36: Koudougou | Z36: TRUE
A37: =IF(INTRO!$E$34<>0,INTRO!$E$34,"") -> Burkina Faso | B37: Centre-Ouest | C37: Léo | D37: 281150 | E37: 41448 | F37: 83840 | G37: 144366 | H37: 1 | I37: 0 | J37: 1 | K37: 2 | L37: =IF(INTRO!$E$38="Endemic", IF($H37>0, IF($H37=4,"Unknown", IF($H37=99,"Stopped", $D37)), 0),"Not required") -> 281150 | M37: 0 | N37: =IF(INTRO!$E$42="Endemic", IF(AND($J37>1,$J37<5), IF($J37=4, "Unknown", E37+F37), 0),"Not required") -> 0 | O37: =IF(INTRO!$E$44="Endemic", IF(AND($K37>0,$K37<5), IF($K37=4,"Unknown", IF($K37=1, $F37*0.33, IF($K37=2, $F37*0.5+$G37*0.2, SUM(F37:G37)))), 0),"Not required") -> 70793.2 | P37: 1 | Q37: 0 | R37: 1 | S37: 1 | T37: MDA1 (IVM+ALB) | U37: T2 (PZQ) | X37: 5338 | Y37: Léo | Z37: TRUE
A38: =IF(INTRO!$E$34<>0,INTRO!$E$34,"") -> Burkina Faso | B38: Centre-Ouest | C38: Nanoro | D38: 166683 | E38: 26063 | F38: 52783 | G38: 81082 | H38: 99 | I38: 0 | J38: 1 | K38: 2 | L38: =IF(INTRO!$E$38="Endemic", IF($H38>0, IF($H38=4,"Unknown", IF($H38=99,"Stopped", $D38)), 0),"Not required") -> Stopped | M38: 0 | N38: =IF(INTRO!$E$42="Endemic", IF(AND($J38>1,$J38<5), IF($J38=4, "Unknown", E38+F38), 0),"Not required") -> 0 | O38: =IF(INTRO!$E$44="Endemic", IF(AND($K38>0,$K38<5), IF($K38=4,"Unknown", IF($K38=1, $F38*0.33, IF($K38=2, $F38*0.5+$G38*0.2, SUM(F38:G38)))), 0),"Not required") -> 42607.9 | P38: 0 | Q38: 0 | R38: 1 | S38: 1 | T38: T1 (PZQ+ALB/MBD) | X38: 5339 | Y38: Nanoro | Z38: TRUE
A39: =IF(INTRO!$E$34<>0,INTRO!$E$34,"") -> Burkina Faso | B39: Centre-Ouest | C39: Réo | D39: 198575 | E39: 28811 | F39: 59407 | G39: 102362 | H39: 99 | I39: 0 | J39: 1 | K39: 2 | L39: =IF(INTRO!$E$38="Endemic", IF($H39>0, IF($H39=4,"Unknown", IF($H39=99,"Stopped", $D39)), 0),"Not required") -> Stopped | M39: 0 | N39: =IF(INTRO!$E$42="Endemic", IF(AND($J39>1,$J39<5), IF($J39=4, "Unknown", E39+F39), 0),"Not required") -> 0 | O39: =IF(INTRO!$E$44="Endemic", IF(AND($K39>0,$K39<5), IF($K39=4,"Unknown", IF($K39=1, $F39*0.33, IF($K39=2, $F39*0.5+$G39*0.2, SUM(F39:G39)))), 0),"Not required") -> 50175.9 | P39: 0 | Q39: 0 | R39: 1 | S39: 1 | T39: T1 (PZQ+ALB/MBD) | X39: 5340 | Y39: Réo | Z39: TRUE
A40: =IF(INTRO!$E$34<>0,INTRO!$E$34,"") -> Burkina Faso | B40: Centre-Ouest | C40: Sabou | D40: 106728 | E40: 16496 | F40: 33500 | G40: 51972 | H40: 99 | I40: 0 | J40: 1 | K40: 2 | L40: =IF(INTRO!$E$38="Endemic", IF($H40>0, IF($H40=4,"Unknown", IF($H40=99,"Stopped", $D40)), 0),"Not required") -> Stopped | M40: 0 | N40: =IF(INTRO!$E$42="Endemic", IF(AND($J40>1,$J40<5), IF($J40=4, "Unknown", E40+F40), 0),"Not required") -> 0 | O40: =IF(INTRO!$E$44="Endemic", IF(AND($K40>0,$K40<5), IF($K40=4,"Unknown", IF($K40=1, $F40*0.33, IF($K40=2, $F40*0.5+$G40*0.2, SUM(F40:G40)))), 0),"Not required") -> 27144.4 | P40: 0 | Q40: 0 | R40: 1 | S40: 1 | T40: T1 (PZQ+ALB/MBD) | X40: 53003 | Y40: Sabou | Z40: TRUE
A41: =IF(INTRO!$E$34<>0,INTRO!$E$34,"") -> Burkina Faso | B41: Centre-Ouest | C41: Sapouy | D41: 245442 | E41: 36184 | F41: 73189 | G41: 126034 | H41: 1 | I41: 0 | J41: 1 | K41: 2 | L41: =IF(INTRO!$E$38="Endemic", IF($H41>0, IF($H41=4,"Unknown", IF($H41=99,"Stopped", $D41)), 0),"Not required") -> 245442 | M41: 0 | N41: =IF(INTRO!$E$42="Endemic", IF(AND($J41>1,$J41<5), IF($J41=4, "Unknown", E41+F41), 0),"Not required") -> 0 | O41: =IF(INTRO!$E$44="Endemic", IF(AND($K41>0,$K41<5), IF($K41=4,"Unknown", IF($K41=1, $F41*0.33, IF($K41=2, $F41*0.5+$G41*0.2, SUM(F41:G41)))), 0),"Not required") -> 61801.3 | P41: 0 | Q41: 0 | R41: 1 | S41: 1 | T41: MDA1 (IVM+ALB) | U41: T2 (PZQ) | X41: 5341 | Y41: Sapouy | Z41: TRUE
A42: =IF(INTRO!$E$34<>0,INTRO!$E$34,"") -> Burkina Faso | B42: Centre-Ouest | C42: Tenado | D42: 181089 | E42: 27161 | F42: 53808 | G42: 92592 | H42: 99 | I42: 0 | J42: 1 | K42: 2 | L42: =IF(INTRO!$E$38="Endemic", IF($H42>0, IF($H42=4,"Unknown", IF($H42=99,"Stopped", $D42)), 0),"Not required") -> Stopped | M42: 0 | N42: =IF(INTRO!$E$42="Endemic", IF(AND($J42>1,$J42<5), IF($J42=4, "Unknown", E42+F42), 0),"Not required") -> 0 | O42: =IF(INTRO!$E$44="Endemic", IF(AND($K42>0,$K42<5), IF($K42=4,"Unknown", IF($K42=1, $F42*0.33, IF($K42=2, $F42*0.5+$G42*0.2, SUM(F42:G42)))), 0),"Not required") -> 45422.4 | P42: 1 | Q42: 0 | R42: 1 | S42: 1 | T42: T1 (PZQ+ALB/MBD) | X42: 53004 | Y42: Tenado | Z42: TRUE
A43: =IF(INTRO!$E$34<>0,INTRO!$E$34,"") -> Burkina Faso | B43: Centre-Sud | C43: Kombissiri | D43: 190390 | E43: 28188 | F43: 53733 | G43: 100491 | H43: 1 | I43: 0 | J43: 1 | K43: 2 | L43: =IF(INTRO!$E$38="Endemic", IF($H43>0, IF($H43=4,"Unknown", IF($H43=99,"Stopped", $D43)), 0),"Not required") -> 190390 | M43: 0 | N43: =IF(INTRO!$E$42="Endemic", IF(AND($J43>1,$J43<5), IF($J43=4, "Unknown", E43+F43), 0),"Not required") -> 0 | O43: =IF(INTRO!$E$44="Endemic", IF(AND($K43>0,$K43<5), IF($K43=4,"Unknown", IF($K43=1, $F43*0.33, IF($K43=2, $F43*0.5+$G43*0.2, SUM(F43:G43)))), 0),"Not required") -> 46964.7 | P43: 1 | Q43: 0 | R43: 1 | S43: 1 | T43: MDA1 (IVM+ALB) | U43: T2 (PZQ) | X43: 5342 | Y43: Kombissiri | Z43: TRUE
A44: =IF(INTRO!$E$34<>0,INTRO!$E$34,"") -> Burkina Faso | B44: Centre-Sud | C44: Manga | D44: 320649 | E44: 46496 | F44: 92941 | G44: 168243 | H44: 1 | I44: 0 | J44: 1 | K44: 2 | L44: =IF(INTRO!$E$38="Endemic", IF($H44>0, IF($H44=4,"Unknown", IF($H44=99,"Stopped", $D44)), 0),"Not required") -> 320649 | M44: 0 | N44: =IF(INTRO!$E$42="Endemic", IF(AND($J44>1,$J44<5), IF($J44=4, "Unknown", E44+F44), 0),"Not required") -> 0 | O44: =IF(INTRO!$E$44="Endemic", IF(AND($K44>0,$K44<5), IF($K44=4,"Unknown", IF($K44=1, $F44*0.33, IF($K44=2, $F44*0.5+$G44*0.2, SUM(F44:G44)))), 0),"Not required") -> 80119.1 | P44: 1 | Q44: 0 | R44: 1 | S44: 1 | T44: MDA1 (IVM+ALB) | U44: T2 (PZQ) | X44: 5343 | Y44: Manga | Z44: TRUE
A45: =IF(INTRO!$E$34<>0,INTRO!$E$34,"") -> Burkina Faso | B45: Centre-Sud | C45: Pô | D45: 209007 | E45: 30308 | F45: 60578 | G45: 109667 | H45: 1 | I45: 0 | J45: 1 | K45: 2 | L45: =IF(INTRO!$E$38="Endemic", IF($H45>0, IF($H45=4,"Unknown", IF($H45=99,"Stopped", $D45)), 0),"Not required") -> 209007 | M45: 0 | N45: =IF(INTRO!$E$42="Endemic", IF(AND($J45>1,$J45<5), IF($J45=4, "Unknown", E45+F45), 0),"Not required") -> 0 | O45: =IF(INTRO!$E$44="Endemic", IF(AND($K45>0,$K45<5), IF($K45=4,"Unknown", IF($K45=1, $F45*0.33, IF($K45=2, $F45*0.5+$G45*0.2, SUM(F45:G45)))), 0),"Not required") -> 52222.4 | P45: 1 | Q45: 0 | R45: 1 | S45: 1 | T45: MDA1 (IVM+ALB) | U45: T2 (PZQ) | X45: 5344 | Y45: Pô | Z45: TRUE
A46: =IF(INTRO!$E$34<>0,INTRO!$E$34,"") -> Burkina Faso | B46: Centre-Sud | C46: Saponé | D46: 106502 | E46: 14863 | F46: 32320 | G46: 55288 | H46: 1 | I46: 0 | J46: 1 | K46: 2 | L46: =IF(INTRO!$E$38="Endemic", IF($H46>0, IF($H46=4,"Unknown", IF($H46=99,"Stopped", $D46)), 0),"Not required") -> 106502 | M46: 0 | N46: =IF(INTRO!$E$42="Endemic", IF(AND($J46>1,$J46<5), IF($J46=4, "Unknown", E46+F46), 0),"Not required") -> 0 | O46: =IF(INTRO!$E$44="Endemic", IF(AND($K46>0,$K46<5), IF($K46=4,"Unknown", IF($K46=1, $F46*0.33, IF($K46=2, $F46*0.5+$G46*0.2, SUM(F46:G46)))), 0),"Not required") -> 27217.6 | P46: 1 | Q46: 0 | R46: 1 | S46: 1 | T46: MDA1 (IVM+ALB) | U46: T2 (PZQ) | X46: 5345 | Y46: Saponé | Z46: TRUE
A47: =IF(INTRO!$E$34<>0,INTRO!$E$34,"") -> Burkina Faso | B47: Est | C47: Bogandé | D47: 367142 | E47: 57982 | F47: 116448 | G47: 176231 | H47: 1 | I47: 0 | J47: 1 | K47: 2 | L47: =IF(INTRO!$E$38="Endemic", IF($H47>0, IF($H47=4,"Unknown", IF($H47=99,"Stopped", $D47)), 0),"Not required") -> 367142 | M47: 0 | N47: =IF(INTRO!$E$42="Endemic", IF(AND($J47>1,$J47<5), IF($J47=4, "Unknown", E47+F47), 0),"Not required") -> 0 | O47: =IF(INTRO!$E$44="Endemic", IF(AND($K47>0,$K47<5), IF($K47=4,"Unknown", IF($K47=1, $F47*0.33, IF($K47=2, $F47*0.5+$G47*0.2, SUM(F47:G47)))), 0),"Not required") -> 93470.2 | P47: 1 | Q47: 0 | R47: 1 | S47: 1 | T47: MDA1 (IVM+ALB) | U47: T2 (PZQ) | X47: 5346 | Y47: Bogandé | Z47: TRUE
A48: =IF(INTRO!$E$34<>0,INTRO!$E$34,"") -> Burkina Faso | B48: Est | C48: Diapaga | D48: 475170 | E48: 76036 | F48: 148236 | G48: 229481 | H48: 1 | I48: 0 | J48: 1 | K48: 2 | L48: =IF(INTRO!$E$38="Endemic", IF($H48>0, IF($H48=4,"Unknown", IF($H48=99,"Stopped", $D48)), 0),"Not required") -> 475170 | M48: 0 | N48: =IF(INTRO!$E$42="Endemic", IF(AND($J48>1,$J48<5), IF($J48=4, "Unknown", E48+F48), 0),"Not required") -> 0 | O48: =IF(INTRO!$E$44="Endemic", IF(AND($K48>0,$K48<5), IF($K48=4,"Unknown", IF($K48=1, $F48*0.33, IF($K48=2, $F48*0.5+$G48*0.2, SUM(F48:G48)))), 0),"Not required") -> 120014.2 | P48: 1 | Q48: 0 | R48: 1 | S48: 1 | T48: MDA1 (IVM+ALB) | U48: T2 (PZQ) | X48: 5347 | Y48: Diapaga | Z48: TRUE
A49: =IF(INTRO!$E$34<>0,INTRO!$E$34,"") -> Burkina Faso | B49: Est | C49: Fada N'gourma | D49: 416603 | E49: 66664 | F49: 129967 | G49: 201194 | H49: 1 | I49: 0 | J49: 1 | K49: 2 | L49: =IF(INTRO!$E$38="Endemic", IF($H49>0, IF($H49=4,"Unknown", IF($H49=99,"Stopped", $D49)), 0),"Not required") -> 416603 | M49: 0 | N49: =IF(INTRO!$E$42="Endemic", IF(AND($J49>1,$J49<5), IF($J49=4, "Unknown", E49+F49), 0),"Not required") -> 0 | O49: =IF(INTRO!$E$44="Endemic", IF(AND($K49>0,$K49<5), IF($K49=4,"Unknown", IF($K49=1, $F49*0.33, IF($K49=2, $F49*0.5+$G49*0.2, SUM(F49:G49)))), 0),"Not required") -> 105222.3 | P49: 1 | Q49: 0 | R49: 1 | S49: 1 | T49: MDA1 (IVM+ALB) | U49: T2 (PZQ) | X49: 5348 | Y49: Fada N'gourma | Z49: TRUE
A50: =IF(INTRO!$E$34<>0,INTRO!$E$34,"") -> Burkina Faso | B50: Est | C50: Gayeri | D50: 113927 | E50: 18231 | F50: 35542 | G50: 55019 | H50: 1 | I50: 0 | J50: 1 | K50: 2 | L50: =IF(INTRO!$E$38="Endemic", IF($H50>0, IF($H50=4,"Unknown", IF($H50=99,"Stopped", $D50)), 0),"Not required") -> 113927 | M50: 0 | N50: =IF(INTRO!$E$42="Endemic", IF(AND($J50>1,$J50<5), IF($J50=4, "Unknown", E50+F50), 0),"Not required") -> 0 | O50: =IF(INTRO!$E$44="Endemic", IF(AND($K50>0,$K50<5), IF($K50=4,"Unknown", IF($K50=1, $F50*0.33, IF($K50=2, $F50*0.5+$G50*0.2, SUM(F50:G50)))), 0),"Not required") -> 28774.8 | P50: 1 | Q50: 0 | R50: 1 | S50: 1 | T50: MDA1 (IVM+ALB) | U50: T2 (PZQ) | X50: 5349 | Y50: Gayeri | Z50: TRUE
A51: =IF(INTRO!$E$34<>0,INTRO!$E$34,"") -> Burkina Faso | B51: Est | C51: Manni | D51: 179361 | E51: 29466 | F51: 54038 | G51: 87708 | H51: 1 | I51: 0 | J51: 1 | K51: 2 | L51: =IF(INTRO!$E$38="Endemic", IF($H51>0, IF($H51=4,"Unknown", IF($H51=99,"Stopped", $D51)), 0),"Not required") -> 179361 | M51: 0 | N51: =IF(INTRO!$E$42="Endemic", IF(AND($J51>1,$J51<5), IF($J51=4, "Unknown", E51+F51), 0),"Not required") -> 0 | O51: =IF(INTRO!$E$44="Endemic", IF(AND($K51>0,$K51<5), IF($K51=4,"Unknown", IF($K51=1, $F51*0.33, IF($K51=2, $F51*0.5+$G51*0.2, SUM(F51:G51)))), 0),"Not required") -> 44560.6 | P51: 1 | Q51: 0 | R51: 1 | S51: 1 | T51: MDA1 (IVM+ALB) | U51: T2 (PZQ) | X51: 5350 | Y51: Manni | Z51: TRUE
A52: =IF(INTRO!$E$34<>0,INTRO!$E$34,"") -> Burkina Faso | B52: Est | C52: Pama | D52: 116317 | E52: 18614 | F52: 36286 | G52: 56174 | H52: 1 | I52: 0 | J52: 1 | K52: 2 | L52: =IF(INTRO!$E$38="Endemic", IF($H52>0, IF($H52=4,"Unknown", IF($H52=99,"Stopped", $D52)), 0),"Not required") -> 116317 | M52: 0 | N52: =IF(INTRO!$E$42="Endemic", IF(AND($J52>1,$J52<5), IF($J52=4, "Unknown", E52+F52), 0),"Not required") -> 0 | O52: =IF(INTRO!$E$44="Endemic", IF(AND($K52>0,$K52<5), IF($K52=4,"Unknown", IF($K52=1, $F52*0.33, IF($K52=2, $F52*0.5+$G52*0.2, SUM(F52:G52)))), 0),"Not required") -> 29377.8 | P52: 1 | Q52: 0 | R52: 1 | S52: 1 | T52: MDA1 (IVM+ALB) | U52: T2 (PZQ) | X52: 5351 | Y52: Pama | Z52: TRUE
A53: =IF(INTRO!$E$34<>0,INTRO!$E$34,"") -> Burkina Faso | B53: Hauts-Bassins | C53: Dafra | D53: 337112 | E53: 37180 | F53: 91680 | G53: 198230 | H53: 99 | I53: 0 | J53: 1 | K53: 2 | L53: =IF(INTRO!$E$38="Endemic", IF($H53>0, IF($H53=4,"Unknown", IF($H53=99,"Stopped", $D53)), 0),"Not required") -> Stopped | M53: 0 | N53: =IF(INTRO!$E$42="Endemic", IF(AND($J53>1,$J53<5), IF($J53=4, "Unknown", E53+F53), 0),"Not required") -> 0 | O53: =IF(INTRO!$E$44="Endemic", IF(AND($K53>0,$K53<5), IF($K53=4,"Unknown", IF($K53=1, $F53*0.33, IF($K53=2, $F53*0.5+$G53*0.2, SUM(F53:G53)))), 0),"Not required") -> 85486 | P53: 0 | Q53: 0 | R53: 1 | S53: 1 | U53: T1 (PZQ+ALB/MBD) | X53: 5352 | Y53: Dafra | Z53: TRUE
A54: =IF(INTRO!$E$34<>0,INTRO!$E$34,"") -> Burkina Faso | B54: Hauts-Bassins | C54: Dandé | D54: 269101 | E54: 41631 | F54: 83684 | G54: 132963 | H54: 99 | I54: 0 | J54: 1 | K54: 2 | L54: =IF(INTRO!$E$38="Endemic", IF($H54>0, IF($H54=4,"Unknown", IF($H54=99,"Stopped", $D54)), 0),"Not required") -> Stopped | M54: 0 | N54: =IF(INTRO!$E$42="Endemic", IF(AND($J54>1,$J54<5), IF($J54=4, "Unknown", E54+F54), 0),"Not required") -> 0 | O54: =IF(INTRO!$E$44="Endemic", IF(AND($K54>0,$K54<5), IF($K54=4,"Unknown", IF($K54=1, $F54*0.33, IF($K54=2, $F54*0.5+$G54*0.2, SUM(F54:G54)))), 0),"Not required") -> 68434.6 | P54: 0 | Q54: 0 | R54: 1 | S54: 1 | U54: T1 (PZQ+ALB/MBD) | X54: 5353 | Y54: Dandé | Z54: TRUE
A55: =IF(INTRO!$E$34<>0,INTRO!$E$34,"") -> Burkina Faso | B55: Hauts-Bassins | C55: Dô | D55: 530850 | E55: 61648 | F55: 144957 | G55: 307373 | H55: 99 | I55: 0 | J55: 1 | K55: 2 | L55: =IF(INTRO!$E$38="Endemic", IF($H55>0, IF($H55=4,"Unknown", IF($H55=99,"Stopped", $D55)), 0),"Not required") -> Stopped | M55: 0 | N55: =IF(INTRO!$E$42="Endemic", IF(AND($J55>1,$J55<5), IF($J55=4, "Unknown", E55+F55), 0),"Not required") -> 0 | O55: =IF(INTRO!$E$44="Endemic", IF(AND($K55>0,$K55<5), IF($K55=4,"Unknown", IF($K55=1, $F55*0.33, IF($K55=2, $F55*0.5+$G55*0.2, SUM(F55:G55)))), 0),"Not required") -> 133953.1 | P55: 0 | Q55: 0 | R55: 1 | S55: 1 | U55: T1 (PZQ+ALB/MBD) | X55: 5354 | Y55: Dô | Z55: TRUE
A56: =IF(INTRO!$E$34<>0,INTRO!$E$34,"") -> Burkina Faso | B56: Hauts-Bassins | C56: Houndé | D56: 314556 | E56: 40046 | F56: 89877 | G56: 173977 | H56: 99 | I56: 0 | J56: 1 | K56: 2 | L56: =IF(INTRO!$E$38="Endemic", IF($H56>0, IF($H56=4,"Unknown", IF($H56=99,"Stopped", $D56)), 0),"Not required") -> Stopped | M56: 0 | N56: =IF(INTRO!$E$42="Endemic", IF(AND($J56>1,$J56<5), IF($J56=4, "Unknown", E56+F56), 0),"Not required") -> 0 | O56: =IF(INTRO!$E$44="Endemic", IF(AND($K56>0,$K56<5), IF($K56=4,"Unknown", IF($K56=1, $F56*0.33, IF($K56=2, $F56*0.5+$G56*0.2, SUM(F56:G56)))), 0),"Not required") -> 79733.9 | P56: 0 | Q56: 0 | R56: 1 | S56: 1 | U56: T1 (PZQ+ALB/MBD) | X56: 5355 | Y56: Houndé | Z56: TRUE
A57: =IF(INTRO!$E$34<>0,INTRO!$E$34,"") -> Burkina Faso | B57: Hauts-Bassins | C57: Karangasso-Vigué | D57: 103934 | E57: 15831 | F57: 31335 | G57: 52645 | H57: 99 | I57: 0 | J57: 1 | K57: 2 | L57: =IF(INTRO!$E$38="Endemic", IF($H57>0, IF($H57=4,"Unknown", IF($H57=99,"Stopped", $D57)), 0),"Not required") -> Stopped | M57: 0 | N57: =IF(INTRO!$E$42="Endemic", IF(AND($J57>1,$J57<5), IF($J57=4, "Unknown", E57+F57), 0),"Not required") -> 0 | O57: =IF(INTRO!$E$44="Endemic", IF(AND($K57>0,$K57<5), IF($K57=4,"Unknown", IF($K57=1, $F57*0.33, IF($K57=2, $F57*0.5+$G57*0.2, SUM(F57:G57)))), 0),"Not required") -> 26196.5 | P57: 0 | Q57: 0 | R57: 1 | S57: 1 | U57: T1 (PZQ+ALB/MBD) | X57: 5356 | Y57: Karangasso-Vigué | Z57: TRUE
A58: =IF(INTRO!$E$34<>0,INTRO!$E$34,"") -> Burkina Faso | B58: Hauts-Bassins | C58: Lena | D58: 74613 | E58: 11200 | F58: 24241 | G58: 36444 | H58: 99 | I58: 0 | J58: 1 | K58: 2 | L58: =IF(INTRO!$E$38="Endemic", IF($H58>0, IF($H58=4,"Unknown", IF($H58=99,"Stopped", $D58)), 0),"Not required") -> Stopped | M58: 0 | N58: =IF(INTRO!$E$42="Endemic", IF(AND($J58>1,$J58<5), IF($J58=4, "Unknown", E58+F58), 0),"Not required") -> 0 | O58: =IF(INTRO!$E$44="Endemic", IF(AND($K58>0,$K58<5), IF($K58=4,"Unknown", IF($K58=1, $F58*0.33, IF($K58=2, $F58*0.5+$G58*0.2, SUM(F58:G58)))), 0),"Not required") -> 19409.3 | P58: 0 | Q58: 0 | R58: 1 | S58: 1 | U58: T1 (PZQ+ALB/MBD) | X58: 5357 | Y58: Lena | Z58: TRUE
A59: =IF(INTRO!$E$34<>0,INTRO!$E$34,"") -> Burkina Faso | B59: Hauts-Bassins | C59: N'Dorola | D59: 146256 | E59: 29492 | F59: 42585 | G59: 79070 | H59: 99 | I59: 0 | J59: 1 | K59: 2 | L59: =IF(INTRO!$E$38="Endemic", IF($H59>0, IF($H59=4,"Unknown", IF($H59=99,"Stopped", $D59)), 0),"Not required") -> Stopped | M59: 0 | N59: =IF(INTRO!$E$42="Endemic", IF(AND($J59>1,$J59<5), IF($J59=4, "Unknown", E59+F59), 0),"Not required") -> 0 | O59: =IF(INTRO!$E$44="Endemic", IF(AND($K59>0,$K59<5), IF($K59=4,"Unknown", IF($K59=1, $F59*0.33, IF($K59=2, $F59*0.5+$G59*0.2, SUM(F59:G59)))), 0),"Not required") -> 37106.5 | P59: 0 | Q59: 0 | R59: 1 | S59: 1 | U59: T1 (PZQ+ALB/MBD) | X59: 53005 | Y59: N'Dorola | Z59: TRUE
A60: =IF(INTRO!$E$34<>0,INTRO!$E$34,"") -> Burkina Faso | B60: Hauts-Bassins | C60: Orodara | D60: 249091 | E60: 20839 | F60: 70373 | G60: 139956 | H60: 99 | I60: 0 | J60: 1 | K60: 2 | L60: =IF(INTRO!$E$38="Endemic", IF($H60>0, IF($H60=4,"Unknown", IF($H60=99,"Stopped", $D60)), 0),"Not required") -> Stopped | M60: 0 | N60: =IF(INTRO!$E$42="Endemic", IF(AND($J60>1,$J60<5), IF($J60=4, "Unknown", E60+F60), 0),"Not required") -> 0 | O60: =IF(INTRO!$E$44="Endemic", IF(AND($K60>0,$K60<5), IF($K60=4,"Unknown", IF($K60=1, $F60*0.33, IF($K60=2, $F60*0.5+$G60*0.2, SUM(F60:G60)))), 0),"Not required") -> 63177.7 | P60: 0 | Q60: 0 | R60: 1 | S60: 1 | U60: T1 (PZQ+ALB/MBD) | X60: 5358 | Y60: Orodara | Z60: TRUE
A61: =IF(INTRO!$E$34<>0,INTRO!$E$34,"") -> Burkina Faso | B61: Nord | C61: Gourcy | D61: 221372 | E61: 33841 | F61: 66933 | G61: 111138 | H61: 99 | I61: 0 | J61: 1 | K61: 2 | L61: =IF(INTRO!$E$38="Endemic", IF($H61>0, IF($H61=4,"Unknown", IF($H61=99,"Stopped", $D61)), 0),"Not required") -> Stopped | M61: 0 | N61: =IF(INTRO!$E$42="Endemic", IF(AND($J61>1,$J61<5), IF($J61=4, "Unknown", E61+F61), 0),"Not required") -> 0 | O61: =IF(INTRO!$E$44="Endemic", IF(AND($K61>0,$K61<5), IF($K61=4,"Unknown", IF($K61=1, $F61*0.33, IF($K61=2, $F61*0.5+$G61*0.2, SUM(F61:G61)))), 0),"Not required") -> 55694.1 | P61: 0 | Q61: 0 | R61: 0 | S61: 0 | X61: 5359 | Y61: Gourcy | Z61: TRUE
A62: =IF(INTRO!$E$34<>0,INTRO!$E$34,"") -> Burkina Faso | B62: Nord | C62: Ouahigouya | D62: 333244 | E62: 47227 | F62: 99236 | G62: 173563 | H62: 99 | I62: 0 | J62: 1 | K62: 2 | L62: =IF(INTRO!$E$38="Endemic", IF($H62>0, IF($H62=4,"Unknown", IF($H62=99,"Stopped", $D62)), 0),"Not required") -> Stopped | M62: 0 | N62: =IF(INTRO!$E$42="Endemic", IF(AND($J62>1,$J62<5), IF($J62=4, "Unknown", E62+F62), 0),"Not required") -> 0 | O62: =IF(INTRO!$E$44="Endemic", IF(AND($K62>0,$K62<5), IF($K62=4,"Unknown", IF($K62=1, $F62*0.33, IF($K62=2, $F62*0.5+$G62*0.2, SUM(F62:G62)))), 0),"Not required") -> 84330.6 | P62: 0 | Q62: 0 | R62: 0 | S62: 0 | X62: 5360 | Y62: Ouahigouya | Z62: TRUE
A63: =IF(INTRO!$E$34<>0,INTRO!$E$34,"") -> Burkina Faso | B63: Nord | C63: Seguenega | D63: 212629 | E63: 34006 | F63: 65395 | G63: 103081 | H63: 99 | I63: 0 | J63: 1 | K63: 2 | L63: =IF(INTRO!$E$38="Endemic", IF($H63>0, IF($H63=4,"Unknown", IF($H63=99,"Stopped", $D63)), 0),"Not required") -> Stopped | M63: 0 | N63: =IF(INTRO!$E$42="Endemic", IF(AND($J63>1,$J63<5), IF($J63=4, "Unknown", E63+F63), 0),"Not required") -> 0 | O63: =IF(INTRO!$E$44="Endemic", IF(AND($K63>0,$K63<5), IF($K63=4,"Unknown", IF($K63=1, $F63*0.33, IF($K63=2, $F63*0.5+$G63*0.2, SUM(F63:G63)))), 0),"Not required") -> 53313.7 | P63: 0 | Q63: 0 | R63: 0 | S63: 0 | X63: 5361 | Y63: Seguenega | Z63: TRUE
A64: =IF(INTRO!$E$34<>0,INTRO!$E$34,"") -> Burkina Faso | B64: Nord | C64: Thiou | D64: 175263 | E64: 29008 | F64: 53410 | G64: 85393 | H64: 99 | I64: 0 | J64: 1 | K64: 2 | L64: =IF(INTRO!$E$38="Endemic", IF($H64>0, IF($H64=4,"Unknown", IF($H64=99,"Stopped", $D64)), 0),"Not required") -> Stopped | M64: 0 | N64: =IF(INTRO!$E$42="Endemic", IF(AND($J64>1,$J64<5), IF($J64=4, "Unknown", E64+F64), 0),"Not required") -> 0 | O64: =IF(INTRO!$E$44="Endemic", IF(AND($K64>0,$K64<5), IF($K64=4,"Unknown", IF($K64=1, $F64*0.33, IF($K64=2, $F64*0.5+$G64*0.2, SUM(F64:G64)))), 0),"Not required") -> 43783.6 | P64: 0 | Q64: 0 | R64: 0 | S64: 0 | X64: 53006 | Y64: Thiou | Z64: TRUE
A65: =IF(INTRO!$E$34<>0,INTRO!$E$34,"") -> Burkina Faso | B65: Nord | C65: Titao | D65: 188573 | E65: 28826 | F65: 57017 | G65: 94671 | H65: 99 | I65: 0 | J65: 1 | K65: 2 | L65: =IF(INTRO!$E$38="Endemic", IF($H65>0, IF($H65=4,"Unknown", IF($H65=99,"Stopped", $D65)), 0),"Not required") -> Stopped | M65: 0 | N65: =IF(INTRO!$E$42="Endemic", IF(AND($J65>1,$J65<5), IF($J65=4, "Unknown", E65+F65), 0),"Not required") -> 0 | O65: =IF(INTRO!$E$44="Endemic", IF(AND($K65>0,$K65<5), IF($K65=4,"Unknown", IF($K65=1, $F65*0.33, IF($K65=2, $F65*0.5+$G65*0.2, SUM(F65:G65)))), 0),"Not required") -> 47442.7 | P65: 0 | Q65: 0 | R65: 0 | S65: 0 | X65: 5362 | Y65: Titao | Z65: TRUE
A66: =IF(INTRO!$E$34<>0,INTRO!$E$34,"") -> Burkina Faso | B66: Nord | C66: Yako | D66: 413596 | E66: 63226 | F66: 125058 | G66: 207637 | H66: 99 | I66: 0 | J66: 1 | K66: 2 | L66: =IF(INTRO!$E$38="Endemic", IF($H66>0, IF($H66=4,"Unknown", IF($H66=99,"Stopped", $D66)), 0),"Not required") -> Stopped | M66: 0 | N66: =IF(INTRO!$E$42="Endemic", IF(AND($J66>1,$J66<5), IF($J66=4, "Unknown", E66+F66), 0),"Not required") -> 0 | O66: =IF(INTRO!$E$44="Endemic", IF(AND($K66>0,$K66<5), IF($K66=4,"Unknown", IF($K66=1, $F66*0.33, IF($K66=2, $F66*0.5+$G66*0.2, SUM(F66:G66)))), 0),"Not required") -> 104056.4 | P66: 0 | Q66: 0 | R66: 0 | S66: 0 | X66: 5363 | Y66: Yako | Z66: TRUE
A67: =IF(INTRO!$E$34<>0,INTRO!$E$34,"") -> Burkina Faso | B67: Plateau Central | C67: Boussé | D67: 175818 | E67: 26412 | F67: 52306 | G67: 89713 | H67: 99 | I67: 0 | J67: 1 | K67: 2 | L67: =IF(INTRO!$E$38="Endemic", IF($H67>0, IF($H67=4,"Unknown", IF($H67=99,"Stopped", $D67)), 0),"Not required") -> Stopped | M67: 0 | N67: =IF(INTRO!$E$42="Endemic", IF(AND($J67>1,$J67<5), IF($J67=4, "Unknown", E67+F67), 0),"Not required") -> 0 | O67: =IF(INTRO!$E$44="Endemic", IF(AND($K67>0,$K67<5), IF($K67=4,"Unknown", IF($K67=1, $F67*0.33, IF($K67=2, $F67*0.5+$G67*0.2, SUM(F67:G67)))), 0),"Not required") -> 44095.6 | P67: 0 | Q67: 0 | R67: 1 | S67: 1 | U67: T1 (PZQ+ALB/MBD) | X67: 5364 | Y67: Boussé | Z67: TRUE
A68: =IF(INTRO!$E$34<>0,INTRO!$E$34,"") -> Burkina Faso | B68: Plateau Central | C68: Ziniaré | D68: 307846 | E68: 46246 | F68: 91588 | G68: 157078 | H68: 99 | I68: 0 | J68: 1 | K68: 2 | L68: =IF(INTRO!$E$38="Endemic", IF($H68>0, IF($H68=4,"Unknown", IF($H68=99,"Stopped", $D68)), 0),"Not required") -> Stopped | M68: 0 | N68: =IF(INTRO!$E$42="Endemic", IF(AND($J68>1,$J68<5), IF($J68=4, "Unknown", E68+F68), 0),"Not required") -> 0 | O68: =IF(INTRO!$E$44="Endemic", IF(AND($K68>0,$K68<5), IF($K68=4,"Unknown", IF($K68=1, $F68*0.33, IF($K68=2, $F68*0.5+$G68*0.2, SUM(F68:G68)))), 0),"Not required") -> 77209.6 | P68: 0 | Q68: 0 | R68: 1 | S68: 1 | U68: T1 (PZQ+ALB/MBD) | X68: 5365 | Y68: Ziniaré | Z68: TRUE
A69: =IF(INTRO!$E$34<>0,INTRO!$E$34,"") -> Burkina Faso | B69: Plateau Central | C69: Zorgho | D69: 416220 | E69: 62529 | F69: 123831 | G69: 212374 | H69: 99 | I69: 0 | J69: 1 | K69: 2 | L69: =IF(INTRO!$E$38="Endemic", IF($H69>0, IF($H69=4,"Unknown", IF($H69=99,"Stopped", $D69)), 0),"Not required") -> Stopped | M69: 0 | N69: =IF(INTRO!$E$42="Endemic", IF(AND($J69>1,$J69<5), IF($J69=4, "Unknown", E69+F69), 0),"Not required") -> 0 | O69: =IF(INTRO!$E$44="Endemic", IF(AND($K69>0,$K69<5), IF($K69=4,"Unknown", IF($K69=1, $F69*0.33, IF($K69=2, $F69*0.5+$G69*0.2, SUM(F69:G69)))), 0),"Not required") -> 104390.3 | P69: 0 | Q69: 0 | R69: 1 | S69: 1 | U69: T1 (PZQ+ALB/MBD) | X69: 5366 | Y69: Zorgho | Z69: TRUE
A70: =IF(INTRO!$E$34<>0,INTRO!$E$34,"") -> Burkina Faso | B70: Sahel | C70: Djibo | D70: 471417 | E70: 69937 | F70: 139573 | G70: 242374 | H70: 99 | I70: 0 | J70: 1 | K70: 2 | L70: =IF(INTRO!$E$38="Endemic", IF($H70>0, IF($H70=4,"Unknown", IF($H70=99,"Stopped", $D70)), 0),"Not required") -> Stopped | M70: 0 | N70: =IF(INTRO!$E$42="Endemic", IF(AND($J70>1,$J70<5), IF($J70=4, "Unknown", E70+F70), 0),"Not required") -> 0 | O70: =IF(INTRO!$E$44="Endemic", IF(AND($K70>0,$K70<5), IF($K70=4,"Unknown", IF($K70=1, $F70*0.33, IF($K70=2, $F70*0.5+$G70*0.2, SUM(F70:G70)))), 0),"Not required") -> 118261.3 | P70: 0 | Q70: 0 | R70: 1 | S70: 1 | T70: T1 (PZQ+ALB/MBD) | X70: 5367 | Y70: Djibo | Z70: TRUE
A71: =IF(INTRO!$E$34<>0,INTRO!$E$34,"") -> Burkina Faso | B71: Sahel | C71: Dori | D71: 353194 | E71: 52392 | F71: 104557 | G71: 181617 | H71: 99 | I71: 0 | J71: 1 | K71: 2 | L71: =IF(INTRO!$E$38="Endemic", IF($H71>0, IF($H71=4,"Unknown", IF($H71=99,"Stopped", $D71)), 0),"Not required") -> Stopped | M71: 0 | N71: =IF(INTRO!$E$42="Endemic", IF(AND($J71>1,$J71<5), IF($J71=4, "Unknown", E71+F71), 0),"Not required") -> 0 | O71: =IF(INTRO!$E$44="Endemic", IF(AND($K71>0,$K71<5), IF($K71=4,"Unknown", IF($K71=1, $F71*0.33, IF($K71=2, $F71*0.5+$G71*0.2, SUM(F71:G71)))), 0),"Not required") -> 88601.9 | P71: 0 | Q71: 0 | R71: 1 | S71: 1 | T71: T1 (PZQ+ALB/MBD) | X71: 5368 | Y71: Dori | Z71: TRUE
A72: =IF(INTRO!$E$34<>0,INTRO!$E$34,"") -> Burkina Faso | B72: Sahel | C72: Gorom-Gorom | D72: 270317 | E72: 40105 | F72: 80036 | G72: 138975 | H72: 99 | I72: 0 | J72: 1 | K72: 2 | L72: =IF(INTRO!$E$38="Endemic", IF($H72>0, IF($H72=4,"Unknown", IF($H72=99,"Stopped", $D72)), 0),"Not required") -> Stopped | M72: 0 | N72: =IF(INTRO!$E$42="Endemic", IF(AND($J72>1,$J72<5), IF($J72=4, "Unknown", E72+F72), 0),"Not required") -> 0 | O72: =IF(INTRO!$E$44="Endemic", IF(AND($K72>0,$K72<5), IF($K72=4,"Unknown", IF($K72=1, $F72*0.33, IF($K72=2, $F72*0.5+$G72*0.2, SUM(F72:G72)))), 0),"Not required") -> 67813 | P72: 0 | Q72: 0 | R72: 1 | S72: 1 | T72: T1 (PZQ+ALB/MBD) | X72: 5369 | Y72: Gorom-Gorom | Z72: TRUE
A73: =IF(INTRO!$E$34<>0,INTRO!$E$34,"") -> Burkina Faso | B73: Sahel | C73: Sebba | D73: 217535 | E73: 32276 | F73: 64409 | G73: 111836 | H73: 1 | I73: 0 | J73: 1 | K73: 2 | L73: =IF(INTRO!$E$38="Endemic", IF($H73>0, IF($H73=4,"Unknown", IF($H73=99,"Stopped", $D73)), 0),"Not required") -> 217535 | M73: 0 | N73: =IF(INTRO!$E$42="Endemic", IF(AND($J73>1,$J73<5), IF($J73=4, "Unknown", E73+F73), 0),"Not required") -> 0 | O73: =IF(INTRO!$E$44="Endemic", IF(AND($K73>0,$K73<5), IF($K73=4,"Unknown", IF($K73=1, $F73*0.33, IF($K73=2, $F73*0.5+$G73*0.2, SUM(F73:G73)))), 0),"Not required") -> 54571.7 | P73: 1 | Q73: 0 | R73: 1 | S73: 1 | T73: MDA1 (IVM+ALB) | U73: T2 (PZQ) | X73: 5370 | Y73: Sebba | Z73: TRUE
A74: =IF(INTRO!$E$34<>0,INTRO!$E$34,"") -> Burkina Faso | B74: Sud-Ouest | C74: Batié | D74: 94691 | E74: 17870 | F74: 27447 | G74: 49374 | H74: 1 | I74: 1 | J74: 1 | K74: 2 | L74: =IF(INTRO!$E$38="Endemic", IF($H74>0, IF($H74=4,"Unknown", IF($H74=99,"Stopped", $D74)), 0),"Not required") -> 94691 | M74: 36496 | N74: =IF(INTRO!$E$42="Endemic", IF(AND($J74>1,$J74<5), IF($J74=4, "Unknown", E74+F74), 0),"Not required") -> 0 | O74: =IF(INTRO!$E$44="Endemic", IF(AND($K74>0,$K74<5), IF($K74=4,"Unknown", IF($K74=1, $F74*0.33, IF($K74=2, $F74*0.5+$G74*0.2, SUM(F74:G74)))), 0),"Not required") -> 23598.3 | P74: 2 | Q74: 2 | R74: 2 | S74: 0 | T74: MDA1 (IVM+ALB) | X74: 5371 | Y74: Batié | Z74: =Y74=C74 -> TRUE
A75: =IF(INTRO!$E$34<>0,INTRO!$E$34,"") -> Burkina Faso | B75: Sud-Ouest | C75: Dano | D75: 246165 | E75: 46453 | F75: 71360 | G75: 128352 | H75: 1 | I75: 1 | J75: 1 | K75: 2 | L75: =IF(INTRO!$E$38="Endemic", IF($H75>0, IF($H75=4,"Unknown", IF($H75=99,"Stopped", $D75)), 0),"Not required") -> 246165 | M75: 87144 | N75: =IF(INTRO!$E$42="Endemic", IF(AND($J75>1,$J75<5), IF($J75=4, "Unknown", E75+F75), 0),"Not required") -> 0 | O75: =IF(INTRO!$E$44="Endemic", IF(AND($K75>0,$K75<5), IF($K75=4,"Unknown", IF($K75=1, $F75*0.33, IF($K75=2, $F75*0.5+$G75*0.2, SUM(F75:G75)))), 0),"Not required") -> 61350.4 | P75: 2 | Q75: 2 | R75: 2 | S75: 0 | T75: MDA1 (IVM+ALB) | X75: 5372 | Y75: Dano | Z75: TRUE
A76: =IF(INTRO!$E$34<>0,INTRO!$E$34,"") -> Burkina Faso | B76: Sud-Ouest | C76: Diébougou | D76: 135740 | E76: 25617 | F76: 39351 | G76: 70772 | H76: 1 | I76: 1 | J76: 1 | K76: 2 | L76: =IF(INTRO!$E$38="Endemic", IF($H76>0, IF($H76=4,"Unknown", IF($H76=99,"Stopped", $D76)), 0),"Not required") -> 135740 | M76: 33002 | N76: =IF(INTRO!$E$42="Endemic", IF(AND($J76>1,$J76<5), IF($J76=4, "Unknown", E76+F76), 0),"Not required") -> 0 | O76: =IF(INTRO!$E$44="Endemic", IF(AND($K76>0,$K76<5), IF($K76=4,"Unknown", IF($K76=1, $F76*0.33, IF($K76=2, $F76*0.5+$G76*0.2, SUM(F76:G76)))), 0),"Not required") -> 33829.9 | P76: 2 | Q76: 2 | R76: 2 | S76: 0 | T76: MDA1 (IVM+ALB) | X76: 5373 | Y76: Diébougou | Z76: TRUE
A77: =IF(INTRO!$E$34<>0,INTRO!$E$34,"") -> Burkina Faso | B77: Sud-Ouest | C77: Gaoua | D77: 245115 | E77: 46254 | F77: 71054 | G77: 127805 | H77: 1 | I77: 1 | J77: 1 | K77: 2 | L77: =IF(INTRO!$E$38="Endemic", IF($H77>0, IF($H77=4,"Unknown", IF($H77=99,"Stopped", $D77)), 0),"Not required") -> 245115 | M77: 40404 | N77: =IF(INTRO!$E$42="Endemic", IF(AND($J77>1,$J77<5), IF($J77=4, "Unknown", E77+F77), 0),"Not required") -> 0 | O77: =IF(INTRO!$E$44="Endemic", IF(AND($K77>0,$K77<5), IF($K77=4,"Unknown", IF($K77=1, $F77*0.33, IF($K77=2, $F77*0.5+$G77*0.2, SUM(F77:G77)))), 0),"Not required") -> 61088 | P77: 2 | Q77: 2 | R77: 2 | S77: 0 | T77: MDA1 (IVM+ALB) | X77: 5374 | Y77: Gaoua | Z77: TRUE
A78: =IF(INTRO!$E$34<>0,INTRO!$E$34,"") -> Burkina Faso | B78: Sud-Ouest | C78: Kampti | D78: 96974 | E78: 18300 | F78: 28112 | G78: 50564 | H78: 1 | I78: 0 | J78: 1 | K78: 2 | L78: =IF(INTRO!$E$38="Endemic", IF($H78>0, IF($H78=4,"Unknown", IF($H78=99,"Stopped", $D78)), 0),"Not required") -> 96974 | M78: 0 | N78: =IF(INTRO!$E$42="Endemic", IF(AND($J78>1,$J78<5), IF($J78=4, "Unknown", E78+F78), 0),"Not required") -> 0 | O78: =IF(INTRO!$E$44="Endemic", IF(AND($K78>0,$K78<5), IF($K78=4,"Unknown", IF($K78=1, $F78*0.33, IF($K78=2, $F78*0.5+$G78*0.2, SUM(F78:G78)))), 0),"Not required") -> 24168.8 | P78: 2 | Q78: 0 | R78: 2 | S78: 0 | T78: MDA1 (IVM+ALB) | X78: 53007 | Y78: Kampti | Z78: TRUE

Sheet MDA1
A1: MDA 1 - Ivermectin (IVM) and Albendazole (ALB)
A2: Administrative structure, population requiring PC by age group, population treated by age group and coverage
A4: TOTAL | G4: =SUM(G$9:G$1000) -> 2012518 | H4: =SUM(H$9:H$1000) -> 3526999 | I4: =SUM(I$9:I$1000) -> 5539517 | K4: =SUM(K$9:K$1000) -> 2034677 | L4: =SUM(L$9:L$1000) -> 3450733 | M4: =SUM(M$9:M$1000) -> 5485410 | O4: =IF(G4<>0, IF(K4/G4*100=0, "-", K4/G4*100), " ") -> 101.1010585 | P4: =IF(H4<>0, IF(L4/H4*100=0, "-", L4/H4*100), " ") -> 97.83765178 | Q4: =IF(I4<>0, IF(M4/I4*100=0, "-", M4/I4*100), " ") -> 99.02325419
D6: PC implemented | E6: Date | F6: Population targeted for MDA 1 | J6: Population treated | N6: Programme coverage (%)
A7: Country | B7: Province/State | C7: District | F7: PreSAC | G7: SAC | H7: Adults | I7: Total | J7: PreSAC | K7: SAC | L7: Adults | M7: Total | N7: PreSAC | O7: SAC | P7: Adults | Q7: Total
A9: =IF(COUNTRY_INFO!A9=0," ",COUNTRY_INFO!A9) -> Burkina Faso | B9: =IF(COUNTRY_INFO!B9=0," ",COUNTRY_INFO!B9) -> Boucle du Mouhoun | C9: =IF(COUNTRY_INFO!C9=0," ",COUNTRY_INFO!C9) -> Boromo | D9: =IF(COUNTRY_INFO!$T$9:$T$1000="MDA1 (IVM+ALB)", COUNTRY_INFO!$T$9:$T$1000, " ") -> MDA1 (IVM+ALB) | E9: 13 au17/09/16 | G9: 84143 | H9: 140242 | I9: =SUM(F9:H9) -> 224385 | K9: 85474 | L9: 142453 | M9: =SUM(J9:L9) -> 227927 | O9: =IF(G9<>0, IF(K9/G9*100=0, "-", K9/G9*100), " ") -> 101.5818309 | P9: =IF(H9<>0, IF(L9/H9*100=0, "-", L9/H9*100), " ") -> 101.5765605 | Q9: 101.5785369
A10: =IF(COUNTRY_INFO!A10=0," ",COUNTRY_INFO!A10) -> Burkina Faso | B10: =IF(COUNTRY_INFO!B10=0," ",COUNTRY_INFO!B10) -> Boucle du Mouhoun | C10: =IF(COUNTRY_INFO!C10=0," ",COUNTRY_INFO!C10) -> Dédougou | D10: =IF(COUNTRY_INFO!$T$9:$T$1000="MDA1 (IVM+ALB)", COUNTRY_INFO!$T$9:$T$1000, " ") -> MDA1 (IVM+ALB) | E10: 13 au17/09/16 | G10: 117004 | H10: 195034 | I10: =SUM(F10:H10) -> 312038 | K10: 92035 | L10: 194235 | M10: =SUM(J10:L10) -> 286270 | O10: =IF(G10<>0, IF(K10/G10*100=0, "-", K10/G10*100), " ") -> 78.65970394 | P10: =IF(H10<>0, IF(L10/H10*100=0, "-", L10/H10*100), " ") -> 99.59032784 | Q10: =IF(I10<>0, IF(M10/I10*100=0, "-", M10/I10*100), " ") -> 91.74203142
A11: =IF(COUNTRY_INFO!A11=0," ",COUNTRY_INFO!A11) -> Burkina Faso | B11: =IF(COUNTRY_INFO!B11=0," ",COUNTRY_INFO!B11) -> Boucle du Mouhoun | C11: =IF(COUNTRY_INFO!C11=0," ",COUNTRY_INFO!C11) -> Nouna | D11: =IF(COUNTRY_INFO!$T$9:$T$1000="MDA1 (IVM+ALB)", COUNTRY_INFO!$T$9:$T$1000, " ") ->  | I11: 0 | M11: 0
A12: =IF(COUNTRY_INFO!A12=0," ",COUNTRY_INFO!A12) -> Burkina Faso | B12: =IF(COUNTRY_INFO!B12=0," ",COUNTRY_INFO!B12) -> Boucle du Mouhoun | C12: =IF(COUNTRY_INFO!C12=0," ",COUNTRY_INFO!C12) -> Solenzo | D12: =IF(COUNTRY_INFO!$T$9:$T$1000="MDA1 (IVM+ALB)", COUNTRY_INFO!$T$9:$T$1000, " ") ->  | I12: 0 | M12: 0
A13: =IF(COUNTRY_INFO!A13=0," ",COUNTRY_INFO!A13) -> Burkina Faso | B13: =IF(COUNTRY_INFO!B13=0," ",COUNTRY_INFO!B13) -> Boucle du Mouhoun | C13: =IF(COUNTRY_INFO!C13=0," ",COUNTRY_INFO!C13) -> Toma | D13: =IF(COUNTRY_INFO!$T$9:$T$1000="MDA1 (IVM+ALB)", COUNTRY_INFO!$T$9:$T$1000, " ") ->  | I13: 0 | M13: 0
A14: =IF(COUNTRY_INFO!A14=0," ",COUNTRY_INFO!A14) -> Burkina Faso | B14: =IF(COUNTRY_INFO!B14=0," ",COUNTRY_INFO!B14) -> Boucle du Mouhoun | C14: =IF(COUNTRY_INFO!C14=0," ",COUNTRY_INFO!C14) -> Tougan | D14: =IF(COUNTRY_INFO!$T$9:$T$1000="MDA1 (IVM+ALB)", COUNTRY_INFO!$T$9:$T$1000, " ") ->  | I14: 0 | M14: 0
A15: =IF(COUNTRY_INFO!A15=0," ",COUNTRY_INFO!A15) -> Burkina Faso | B15: =IF(COUNTRY_INFO!B15=0," ",COUNTRY_INFO!B15) -> Cascades | C15: =IF(COUNTRY_INFO!C15=0," ",COUNTRY_INFO!C15) -> Banfora | D15: =IF(COUNTRY_INFO!$T$9:$T$1000="MDA1 (IVM+ALB)", COUNTRY_INFO!$T$9:$T$1000, " ") ->  | I15: 0 | M15: 0
A16: =IF(COUNTRY_INFO!A16=0," ",COUNTRY_INFO!A16) -> Burkina Faso | B16: =IF(COUNTRY_INFO!B16=0," ",COUNTRY_INFO!B16) -> Cascades | C16: =IF(COUNTRY_INFO!C16=0," ",COUNTRY_INFO!C16) -> Mangodara | D16: =IF(COUNTRY_INFO!$T$9:$T$1000="MDA1 (IVM+ALB)", COUNTRY_INFO!$T$9:$T$1000, " ") ->  | I16: 0 | M16: 0
A17: =IF(COUNTRY_INFO!A17=0," ",COUNTRY_INFO!A17) -> Burkina Faso | B17: =IF(COUNTRY_INFO!B17=0," ",COUNTRY_INFO!B17) -> Cascades | C17: =IF(COUNTRY_INFO!C17=0," ",COUNTRY_INFO!C17) -> Sindou | D17: =IF(COUNTRY_INFO!$T$9:$T$1000="MDA1 (IVM+ALB)", COUNTRY_INFO!$T$9:$T$1000, " ") ->  | I17: 0 | M17: 0
A18: =IF(COUNTRY_INFO!A18=0," ",COUNTRY_INFO!A18) -> Burkina Faso | B18: =IF(COUNTRY_INFO!B18=0," ",COUNTRY_INFO!B18) -> Centre | C18: =IF(COUNTRY_INFO!C18=0," ",COUNTRY_INFO!C18) -> Baskuy | D18: =IF(COUNTRY_INFO!$T$9:$T$1000="MDA1 (IVM+ALB)", COUNTRY_INFO!$T$9:$T$1000, " ") ->  | I18: 0 | M18: 0
A19: =IF(COUNTRY_INFO!A19=0," ",COUNTRY_INFO!A19) -> Burkina Faso | B19: =IF(COUNTRY_INFO!B19=0," ",COUNTRY_INFO!B19) -> Centre | C19: =IF(COUNTRY_INFO!C19=0," ",COUNTRY_INFO!C19) -> Bogodogo | D19: =IF(COUNTRY_INFO!$T$9:$T$1000="MDA1 (IVM+ALB)", COUNTRY_INFO!$T$9:$T$1000, " ") -> MDA1 (IVM+ALB) | E19: 22 au 26/07/16 | G19: 40703 | H19: 119229 | I19: 159932 | K19: 50086 | L19: 107370 | M19: 157456 | O19: 123.0523549 | P19: 90.05359434 | Q19: 98.45184203
A20: =IF(COUNTRY_INFO!A20=0," ",COUNTRY_INFO!A20) -> Burkina Faso | B20: =IF(COUNTRY_INFO!B20=0," ",COUNTRY_INFO!B20) -> Centre | C20: =IF(COUNTRY_INFO!C20=0," ",COUNTRY_INFO!C20) -> Boulmiougou | D20: =IF(COUNTRY_INFO!$T$9:$T$1000="MDA1 (IVM+ALB)", COUNTRY_INFO!$T$9:$T$1000, " ") -> MDA1 (IVM+ALB) | E20: 22 au 26/07/16 | G20: 69371 | H20: 203203 | I20: 272574 | K20: 92021 | L20: 197261 | M20: 289282 | O20: 132.6505312 | P20: 97.07583057 | Q20: 106.1297116
A21: =IF(COUNTRY_INFO!A21=0," ",COUNTRY_INFO!A21) -> Burkina Faso | B21: =IF(COUNTRY_INFO!B21=0," ",COUNTRY_INFO!B21) -> Centre | C21: =IF(COUNTRY_INFO!C21=0," ",COUNTRY_INFO!C21) -> Nongre-Massom | D21: =IF(COUNTRY_INFO!$T$9:$T$1000="MDA1 (IVM+ALB)", COUNTRY_INFO!$T$9:$T$1000, " ") -> MDA1 (IVM+ALB) | E21: 22 au 26/07/16 | G21: 3283 | H21: 9614 | I21: 12897 | K21: 4214 | L21: 9030 | M21: 13244 | O21: 128.358209 | P21: 93.92552528 | Q21: 102.6905482
A22: =IF(COUNTRY_INFO!A22=0," ",COUNTRY_INFO!A22) -> Burkina Faso | B22: =IF(COUNTRY_INFO!B22=0," ",COUNTRY_INFO!B22) -> Centre | C22: =IF(COUNTRY_INFO!C22=0," ",COUNTRY_INFO!C22) -> Sig-Nonghin | D22: =IF(COUNTRY_INFO!$T$9:$T$1000="MDA1 (IVM+ALB)", COUNTRY_INFO!$T$9:$T$1000, " ") -> MDA1 (IVM+ALB) | E22: 22 au 26/07/16 | G22: 25188 | H22: 73782 | I22: 98970 | K22: 32652 | L22: 69978 | M22: 102630 | O22: 129.6331586 | P22: 94.84427096 | Q22: 103.6980903
A23: =IF(COUNTRY_INFO!A23=0," ",COUNTRY_INFO!A23) -> Burkina Faso | B23: =IF(COUNTRY_INFO!B23=0," ",COUNTRY_INFO!B23) -> Centre-Est | C23: =IF(COUNTRY_INFO!C23=0," ",COUNTRY_INFO!C23) -> Bittou | D23: =IF(COUNTRY_INFO!$T$9:$T$1000="MDA1 (IVM+ALB)", COUNTRY_INFO!$T$9:$T$1000, " ") -> MDA1 (IVM+ALB) | E23: 28/07au 01/08/16 | G23: 37590 | H23: 64355 | I23: 101945 | K23: 38765 | L23: 64763 | M23: 103528 | O23: 103.1258313 | P23: 100.6339834 | Q23: 101.5527981
A24: =IF(COUNTRY_INFO!A24=0," ",COUNTRY_INFO!A24) -> Burkina Faso | B24: =IF(COUNTRY_INFO!B24=0," ",COUNTRY_INFO!B24) -> Centre-Est | C24: =IF(COUNTRY_INFO!C24=0," ",COUNTRY_INFO!C24) -> Garango | D24: =IF(COUNTRY_INFO!$T$9:$T$1000="MDA1 (IVM+ALB)", COUNTRY_INFO!$T$9:$T$1000, " ") -> MDA1 (IVM+ALB) | E24: 28/07au 01/08/16 | G24: 62823 | H24: 106699 | I24: 169522 | K24: 61141 | L24: 102147 | M24: 163288 | O24: 97.32263661 | P24: 95.73379319 | Q24: 96.3226012
A25: =IF(COUNTRY_INFO!A25=0," ",COUNTRY_INFO!A25) -> Burkina Faso | B25: =IF(COUNTRY_INFO!B25=0," ",COUNTRY_INFO!B25) -> Centre-Est | C25: =IF(COUNTRY_INFO!C25=0," ",COUNTRY_INFO!C25) -> Koupela | D25: =IF(COUNTRY_INFO!$T$9:$T$1000="MDA1 (IVM+ALB)", COUNTRY_INFO!$T$9:$T$1000, " ") -> MDA1 (IVM+ALB) | E25: 28/07au 01/08/16 | G25: 73082 | H25: 116015 | I25: 189097 | K25: 63440 | L25: 105987 | M25: 169427 | O25: 86.8066008 | P25: 91.35629013 | Q25: 89.59793122
A26: =IF(COUNTRY_INFO!A26=0," ",COUNTRY_INFO!A26) -> Burkina Faso | B26: =IF(COUNTRY_INFO!B26=0," ",COUNTRY_INFO!B26) -> Centre-Est | C26: =IF(COUNTRY_INFO!C26=0," ",COUNTRY_INFO!C26) -> Ouargaye | D26: =IF(COUNTRY_INFO!$T$9:$T$1000="MDA1 (IVM+ALB)", COUNTRY_INFO!$T$9:$T$1000, " ") -> MDA1 (IVM+ALB) | E26: 28/07au 01/08/16 | G26: 105404 | H26: 176092 | I26: 281496 | K26: 102307 | L26: 170921 | M26: 273228 | O26: 97.06178134 | P26: 97.06346682 | Q26: 97.06283571
A27: =IF(COUNTRY_INFO!A27=0," ",COUNTRY_INFO!A27) -> Burkina Faso | B27: =IF(COUNTRY_INFO!B27=0," ",COUNTRY_INFO!B27) -> Centre-Est | C27: =IF(COUNTRY_INFO!C27=0," ",COUNTRY_INFO!C27) -> Pouytenga | D27: =IF(COUNTRY_INFO!$T$9:$T$1000="MDA1 (IVM+ALB)", COUNTRY_INFO!$T$9:$T$1000, " ") -> MDA1 (IVM+ALB) | E27: 28/07au 01/08/16 | G27: 58807 | H27: 104333 | I27: 163140 | K27: 69196 | L27: 94896 | M27: 164092 | O27: 117.6662642 | P27: 90.95492318 | Q27: 100.5835479
A28: =IF(COUNTRY_INFO!A28=0," ",COUNTRY_INFO!A28) -> Burkina Faso | B28: =IF(COUNTRY_INFO!B28=0," ",COUNTRY_INFO!B28) -> Centre-Est | C28: =IF(COUNTRY_INFO!C28=0," ",COUNTRY_INFO!C28) -> Tenkodogo | D28: =IF(COUNTRY_INFO!$T$9:$T$1000="MDA1 (IVM+ALB)", COUNTRY_INFO!$T$9:$T$1000, " ") -> MDA1 (IVM+ALB) | E28: 28/07au 01/08/16 | G28: 68188 | H28: 118272 | I28: 186460 | K28: 75344 | L28: 101224 | M28: 176568 | O28: 110.4945152 | P28: 85.5857684 | Q28: 94.69484072
A29: =IF(COUNTRY_INFO!A29=0," ",COUNTRY_INFO!A29) -> Burkina Faso | B29: =IF(COUNTRY_INFO!B29=0," ",COUNTRY_INFO!B29) -> Centre-Est | C29: =IF(COUNTRY_INFO!C29=0," ",COUNTRY_INFO!C29) -> Zabré | D29: =IF(COUNTRY_INFO!$T$9:$T$1000="MDA1 (IVM+ALB)", COUNTRY_INFO!$T$9:$T$1000, " ") -> MDA1 (IVM+ALB) | E29: 20 au 24/12/16 | G29: 48081 | H29: 72674 | I29: 120755 | K29: 46117 | L29: 77026 | M29: 123143 | O29: 95.91522639 | P29: 105.9883865 | Q29: 101.9775579
A30: =IF(COUNTRY_INFO!A30=0," ",COUNTRY_INFO!A30) -> Burkina Faso | B30: =IF(COUNTRY_INFO!B30=0," ",COUNTRY_INFO!B30) -> Centre-Nord | C30: =IF(COUNTRY_INFO!C30=0," ",COUNTRY_INFO!C30) -> Barsalogo | D30: =IF(COUNTRY_INFO!$T$9:$T$1000="MDA1 (IVM+ALB)", COUNTRY_INFO!$T$9:$T$1000, " ") ->  | I30: 0 | M30: 0
A31: =IF(COUNTRY_INFO!A31=0," ",COUNTRY_INFO!A31) -> Burkina Faso | B31: =IF(COUNTRY_INFO!B31=0," ",COUNTRY_INFO!B31) -> Centre-Nord | C31: =IF(COUNTRY_INFO!C31=0," ",COUNTRY_INFO!C31) -> Boulsa | D31: =IF(COUNTRY_INFO!$T$9:$T$1000="MDA1 (IVM+ALB)", COUNTRY_INFO!$T$9:$T$1000, " ") ->  | I31: 0 | M31: 0
A32: =IF(COUNTRY_INFO!A32=0," ",COUNTRY_INFO!A32) -> Burkina Faso | B32: =IF(COUNTRY_INFO!B32=0," ",COUNTRY_INFO!B32) -> Centre-Nord | C32: =IF(COUNTRY_INFO!C32=0," ",COUNTRY_INFO!C32) -> Boussouma | D32: =IF(COUNTRY_INFO!$T$9:$T$1000="MDA1 (IVM+ALB)", COUNTRY_INFO!$T$9:$T$1000, " ") ->  | I32: 0 | M32: 0
A33: =IF(COUNTRY_INFO!A33=0," ",COUNTRY_INFO!A33) -> Burkina Faso | B33: =IF(COUNTRY_INFO!B33=0," ",COUNTRY_INFO!B33) -> Centre-Nord | C33: =IF(COUNTRY_INFO!C33=0," ",COUNTRY_INFO!C33) -> Kaya | D33: =IF(COUNTRY_INFO!$T$9:$T$1000="MDA1 (IVM+ALB)", COUNTRY_INFO!$T$9:$T$1000, " ") ->  | I33: 0 | M33: 0
A34: =IF(COUNTRY_INFO!A34=0," ",COUNTRY_INFO!A34) -> Burkina Faso | B34: =IF(COUNTRY_INFO!B34=0," ",COUNTRY_INFO!B34) -> Centre-Nord | C34: =IF(COUNTRY_INFO!C34=0," ",COUNTRY_INFO!C34) -> Kongoussi | D34: =IF(COUNTRY_INFO!$T$9:$T$1000="MDA1 (IVM+ALB)", COUNTRY_INFO!$T$9:$T$1000, " ") ->  | I34: 0 | M34: 0
A35: =IF(COUNTRY_INFO!A35=0," ",COUNTRY_INFO!A35) -> Burkina Faso | B35: =IF(COUNTRY_INFO!B35=0," ",COUNTRY_INFO!B35) -> Centre-Nord | C35: =IF(COUNTRY_INFO!C35=0," ",COUNTRY_INFO!C35) -> Tougouri | D35: =IF(COUNTRY_INFO!$T$9:$T$1000="MDA1 (IVM+ALB)", COUNTRY_INFO!$T$9:$T$1000, " ") ->  | I35: 0 | M35: 0
A36: =IF(COUNTRY_INFO!A36=0," ",COUNTRY_INFO!A36) -> Burkina Faso | B36: =IF(COUNTRY_INFO!B36=0," ",COUNTRY_INFO!B36) -> Centre-Ouest | C36: =IF(COUNTRY_INFO!C36=0," ",COUNTRY_INFO!C36) -> Koudougou | D36: =IF(COUNTRY_INFO!$T$9:$T$1000="MDA1 (IVM+ALB)", COUNTRY_INFO!$T$9:$T$1000, " ") ->  | I36: 0 | M36: 0
A37: =IF(COUNTRY_INFO!A37=0," ",COUNTRY_INFO!A37) -> Burkina Faso | B37: =IF(COUNTRY_INFO!B37=0," ",COUNTRY_INFO!B37) -> Centre-Ouest | C37: =IF(COUNTRY_INFO!C37=0," ",COUNTRY_INFO!C37) -> Léo | D37: =IF(COUNTRY_INFO!$T$9:$T$1000="MDA1 (IVM+ALB)", COUNTRY_INFO!$T$9:$T$1000, " ") -> MDA1 (IVM+ALB) | E37: 9 au 14 /09/16 | G37: 83840 | H37: 141080 | I37: 224920 | K37: 84029 | L37: 141430 | M37: 225459 | O37: 100.2254294 | P37: 100.2480862 | Q37: 100.2396408
A38: =IF(COUNTRY_INFO!A38=0," ",COUNTRY_INFO!A38) -> Burkina Faso | B38: =IF(COUNTRY_INFO!B38=0," ",COUNTRY_INFO!B38) -> Centre-Ouest | C38: =IF(COUNTRY_INFO!C38=0," ",COUNTRY_INFO!C38) -> Nanoro | D38: =IF(COUNTRY_INFO!$T$9:$T$1000="MDA1 (IVM+ALB)", COUNTRY_INFO!$T$9:$T$1000, " ") ->  | I38: 0 | M38: 0
A39: =IF(COUNTRY_INFO!A39=0," ",COUNTRY_INFO!A39) -> Burkina Faso | B39: =IF(COUNTRY_INFO!B39=0," ",COUNTRY_INFO!B39) -> Centre-Ouest | C39: =IF(COUNTRY_INFO!C39=0," ",COUNTRY_INFO!C39) -> Réo | D39: =IF(COUNTRY_INFO!$T$9:$T$1000="MDA1 (IVM+ALB)", COUNTRY_INFO!$T$9:$T$1000, " ") ->  | I39: 0 | M39: 0
A40: =IF(COUNTRY_INFO!A40=0," ",COUNTRY_INFO!A40) -> Burkina Faso | B40: =IF(COUNTRY_INFO!B40=0," ",COUNTRY_INFO!B40) -> Centre-Ouest | C40: =IF(COUNTRY_INFO!C40=0," ",COUNTRY_INFO!C40) -> Sabou | D40: =IF(COUNTRY_INFO!$T$9:$T$1000="MDA1 (IVM+ALB)", COUNTRY_INFO!$T$9:$T$1000, " ") ->  | I40: 0 | M40: 0
A41: =IF(COUNTRY_INFO!A41=0," ",COUNTRY_INFO!A41) -> Burkina Faso | B41: =IF(COUNTRY_INFO!B41=0," ",COUNTRY_INFO!B41) -> Centre-Ouest | C41: =IF(COUNTRY_INFO!C41=0," ",COUNTRY_INFO!C41) -> Sapouy | D41: =IF(COUNTRY_INFO!$T$9:$T$1000="MDA1 (IVM+ALB)", COUNTRY_INFO!$T$9:$T$1000, " ") -> MDA1 (IVM+ALB) | E41: 9 au 14 /09/16 | G41: 73189 | H41: 123165 | I41: 196354 | K41: 71661 | L41: 120615 | M41: 192276 | O41: 97.91225457 | P41: 97.92960663 | Q41: 97.92313882
A42: =IF(COUNTRY_INFO!A42=0," ",COUNTRY_INFO!A42) -> Burkina Faso | B42: =IF(COUNTRY_INFO!B42=0," ",COUNTRY_INFO!B42) -> Centre-Ouest | C42: =IF(COUNTRY_INFO!C42=0," ",COUNTRY_INFO!C42) -> Tenado | D42: =IF(COUNTRY_INFO!$T$9:$T$1000="MDA1 (IVM+ALB)", COUNTRY_INFO!$T$9:$T$1000, " ") ->  | I42: 0 | M42: 0
A43: =IF(COUNTRY_INFO!A43=0," ",COUNTRY_INFO!A43) -> Burkina Faso | B43: =IF(COUNTRY_INFO!B43=0," ",COUNTRY_INFO!B43) -> Centre-Sud | C43: =IF(COUNTRY_INFO!C43=0," ",COUNTRY_INFO!C43) -> Kombissiri | D43: =IF(COUNTRY_INFO!$T$9:$T$1000="MDA1 (IVM+ALB)", COUNTRY_INFO!$T$9:$T$1000, " ") -> MDA1 (IVM+ALB) | E43: 08 au 12/12/16 | G43: 53733 | H43: 98579 | I43: 152312 | K43: 54975 | L43: 96765 | M43: 151740 | O43: 102.3114287 | P43: 98.15985149 | Q43: 99.62445507
A44: =IF(COUNTRY_INFO!A44=0," ",COUNTRY_INFO!A44) -> Burkina Faso | B44: =IF(COUNTRY_INFO!B44=0," ",COUNTRY_INFO!B44) -> Centre-Sud | C44: =IF(COUNTRY_INFO!C44=0," ",COUNTRY_INFO!C44) -> Manga | D44: =IF(COUNTRY_INFO!$T$9:$T$1000="MDA1 (IVM+ALB)", COUNTRY_INFO!$T$9:$T$1000, " ") -> MDA1 (IVM+ALB) | E44: 08 au 12/12/16 | G44: 92941 | H44: 163578 | I44: 256519 | K44: 91126 | L44: 160394 | M44: 251520 | O44: 98.04714819 | P44: 98.05352798 | Q44: 98.05121648
A45: =IF(COUNTRY_INFO!A45=0," ",COUNTRY_INFO!A45) -> Burkina Faso | B45: =IF(COUNTRY_INFO!B45=0," ",COUNTRY_INFO!B45) -> Centre-Sud | C45: =IF(COUNTRY_INFO!C45=0," ",COUNTRY_INFO!C45) -> Pô | D45: =IF(COUNTRY_INFO!$T$9:$T$1000="MDA1 (IVM+ALB)", COUNTRY_INFO!$T$9:$T$1000, " ") -> MDA1 (IVM+ALB) | E45: 08 au 12/12/16 | G45: 60578 | H45: 106628 | I45: 167206 | K45: 61473 | L45: 108200 | M45: 169673 | O45: 101.4774341 | P45: 101.4742844 | Q45: 101.4754255
A46: =IF(COUNTRY_INFO!A46=0," ",COUNTRY_INFO!A46) -> Burkina Faso | B46: =IF(COUNTRY_INFO!B46=0," ",COUNTRY_INFO!B46) -> Centre-Sud | C46: =IF(COUNTRY_INFO!C46=0," ",COUNTRY_INFO!C46) -> Saponé | D46: =IF(COUNTRY_INFO!$T$9:$T$1000="MDA1 (IVM+ALB)", COUNTRY_INFO!$T$9:$T$1000, " ") -> MDA1 (IVM+ALB) | E46: 08 au 12/12/16 | G46: 32320 | H46: 52882 | I46: 85202 | K46: 30661 | L46: 53967 | M46: 84628 | O46: 94.86695545 | P46: 102.0517378 | Q46: 99.32630689
A47: =IF(COUNTRY_INFO!A47=0," ",COUNTRY_INFO!A47) -> Burkina Faso | B47: =IF(COUNTRY_INFO!B47=0," ",COUNTRY_INFO!B47) -> Est | C47: =IF(COUNTRY_INFO!C47=0," ",COUNTRY_INFO!C47) -> Bogandé | D47: =IF(COUNTRY_INFO!$T$9:$T$1000="MDA1 (IVM+ALB)", COUNTRY_INFO!$T$9:$T$1000, " ") -> MDA1 (IVM+ALB) | E47: 28/07au 01/08/16 | G47: 116448 | H47: 177266 | I47: 293714 | K47: 114889 | L47: 179548 | M47: 294437 | O47: 98.661205 | P47: 101.2873309 | Q47: 100.2461578
A48: =IF(COUNTRY_INFO!A48=0," ",COUNTRY_INFO!A48) -> Burkina Faso | B48: =IF(COUNTRY_INFO!B48=0," ",COUNTRY_INFO!B48) -> Est | C48: =IF(COUNTRY_INFO!C48=0," ",COUNTRY_INFO!C48) -> Diapaga | D48: =IF(COUNTRY_INFO!$T$9:$T$1000="MDA1 (IVM+ALB)", COUNTRY_INFO!$T$9:$T$1000, " ") -> MDA1 (IVM+ALB) | E48: 28/07au 01/08/16 | G48: 148236 | H48: 231900 | I48: 380136 | K48: 144788 | L48: 226464 | M48: 371252 | O48: 97.67397933 | P48: 97.65588616 | Q48: 97.66294168
A49: =IF(COUNTRY_INFO!A49=0," ",COUNTRY_INFO!A49) -> Burkina Faso | B49: =IF(COUNTRY_INFO!B49=0," ",COUNTRY_INFO!B49) -> Est | C49: =IF(COUNTRY_INFO!C49=0," ",COUNTRY_INFO!C49) -> Fada N'gourma | D49: =IF(COUNTRY_INFO!$T$9:$T$1000="MDA1 (IVM+ALB)", COUNTRY_INFO!$T$9:$T$1000, " ") -> MDA1 (IVM+ALB) | E49: 28/07au 01/08/16 | G49: 129967 | H49: 203315 | I49: 333282 | K49: 127932 | L49: 202554 | M49: 330486 | O49: 98.43421792 | P49: 99.62570396 | Q49: 99.1610708
A50: =IF(COUNTRY_INFO!A50=0," ",COUNTRY_INFO!A50) -> Burkina Faso | B50: =IF(COUNTRY_INFO!B50=0," ",COUNTRY_INFO!B50) -> Est | C50: =IF(COUNTRY_INFO!C50=0," ",COUNTRY_INFO!C50) -> Gayeri | D50: =IF(COUNTRY_INFO!$T$9:$T$1000="MDA1 (IVM+ALB)", COUNTRY_INFO!$T$9:$T$1000, " ") -> MDA1 (IVM+ALB) | E50: 28/07au 01/08/16 | G50: 35542 | H50: 55600 | I50: 91142 | K50: 35117 | L50: 55654 | M50: 90771 | O50: 98.80423161 | P50: 100.0971223 | Q50: 99.59294288
A51: =IF(COUNTRY_INFO!A51=0," ",COUNTRY_INFO!A51) -> Burkina Faso | B51: =IF(COUNTRY_INFO!B51=0," ",COUNTRY_INFO!B51) -> Est | C51: =IF(COUNTRY_INFO!C51=0," ",COUNTRY_INFO!C51) -> Manni | D51: =IF(COUNTRY_INFO!$T$9:$T$1000="MDA1 (IVM+ALB)", COUNTRY_INFO!$T$9:$T$1000, " ") -> MDA1 (IVM+ALB) | E51: 28/07au 01/08/16 | G51: 54038 | H51: 89451 | I51: 143489 | K51: 63095 | L51: 74791 | M51: 137886 | O51: 116.7604278 | P51: 83.61113906 | Q51: 96.09517106
A52: =IF(COUNTRY_INFO!A52=0," ",COUNTRY_INFO!A52) -> Burkina Faso | B52: =IF(COUNTRY_INFO!B52=0," ",COUNTRY_INFO!B52) -> Est | C52: =IF(COUNTRY_INFO!C52=0," ",COUNTRY_INFO!C52) -> Pama | D52: =IF(COUNTRY_INFO!$T$9:$T$1000="MDA1 (IVM+ALB)", COUNTRY_INFO!$T$9:$T$1000, " ") -> MDA1 (IVM+ALB) | E52: 28/07au 01/08/16 | G52: 36286 | H52: 56768 | I52: 93054 | K52: 36535 | L52: 57144 | M52: 93679 | O52: 100.6862151 | P52: 100.662345 | Q52: 100.671653
A53: =IF(COUNTRY_INFO!A53=0," ",COUNTRY_INFO!A53) -> Burkina Faso | B53: =IF(COUNTRY_INFO!B53=0," ",COUNTRY_INFO!B53) -> Hauts-Bassins | C53: =IF(COUNTRY_INFO!C53=0," ",COUNTRY_INFO!C53) -> Dafra | D53: =IF(COUNTRY_INFO!$T$9:$T$1000="MDA1 (IVM+ALB)", COUNTRY_INFO!$T$9:$T$1000, " ") ->  | I53: 0 | M53: 0
A54: =IF(COUNTRY_INFO!A54=0," ",COUNTRY_INFO!A54) -> Burkina Faso | B54: =IF(COUNTRY_INFO!B54=0," ",COUNTRY_INFO!B54) -> Hauts-Bassins | C54: =IF(COUNTRY_INFO!C54=0," ",COUNTRY_INFO!C54) -> Dandé | D54: =IF(COUNTRY_INFO!$T$9:$T$1000="MDA1 (IVM+ALB)", COUNTRY_INFO!$T$9:$T$1000, " ") ->  | I54: 0 | M54: 0
A55: =IF(COUNTRY_INFO!A55=0," ",COUNTRY_INFO!A55) -> Burkina Faso | B55: =IF(COUNTRY_INFO!B55=0," ",COUNTRY_INFO!B55) -> Hauts-Bassins | C55: =IF(COUNTRY_INFO!C55=0," ",COUNTRY_INFO!C55) -> Dô | D55: =IF(COUNTRY_INFO!$T$9:$T$1000="MDA1 (IVM+ALB)", COUNTRY_INFO!$T$9:$T$1000, " ") ->  | I55: 0 | M55: 0
A56: =IF(COUNTRY_INFO!A56=0," ",COUNTRY_INFO!A56) -> Burkina Faso | B56: =IF(COUNTRY_INFO!B56=0," ",COUNTRY_INFO!B56) -> Hauts-Bassins | C56: =IF(COUNTRY_INFO!C56=0," ",COUNTRY_INFO!C56) -> Houndé | D56: =IF(COUNTRY_INFO!$T$9:$T$1000="MDA1 (IVM+ALB)", COUNTRY_INFO!$T$9:$T$1000, " ") ->  | I56: 0 | M56: 0
A57: =IF(COUNTRY_INFO!A57=0," ",COUNTRY_INFO!A57) -> Burkina Faso | B57: =IF(COUNTRY_INFO!B57=0," ",COUNTRY_INFO!B57) -> Hauts-Bassins | C57: =IF(COUNTRY_INFO!C57=0," ",COUNTRY_INFO!C57) -> Karangasso-Vigué | D57: =IF(COUNTRY_INFO!$T$9:$T$1000="MDA1 (IVM+ALB)", COUNTRY_INFO!$T$9:$T$1000, " ") ->  | I57: 0 | M57: 0
A58: =IF(COUNTRY_INFO!A58=0," ",COUNTRY_INFO!A58) -> Burkina Faso | B58: =IF(COUNTRY_INFO!B58=0," ",COUNTRY_INFO!B58) -> Hauts-Bassins | C58: =IF(COUNTRY_INFO!C58=0," ",COUNTRY_INFO!C58) -> Lena | D58: =IF(COUNTRY_INFO!$T$9:$T$1000="MDA1 (IVM+ALB)", COUNTRY_INFO!$T$9:$T$1000, " ") ->  | I58: 0 | M58: 0
A59: =IF(COUNTRY_INFO!A59=0," ",COUNTRY_INFO!A59) -> Burkina Faso | B59: =IF(COUNTRY_INFO!B59=0," ",COUNTRY_INFO!B59) -> Hauts-Bassins | C59: =IF(COUNTRY_INFO!C59=0," ",COUNTRY_INFO!C59) -> N'Dorola | D59: =IF(COUNTRY_INFO!$T$9:$T$1000="MDA1 (IVM+ALB)", COUNTRY_INFO!$T$9:$T$1000, " ") ->  | I59: 0 | M59: 0
A60: =IF(COUNTRY_INFO!A60=0," ",COUNTRY_INFO!A60) -> Burkina Faso | B60: =IF(COUNTRY_INFO!B60=0," ",COUNTRY_INFO!B60) -> Hauts-Bassins | C60: =IF(COUNTRY_INFO!C60=0," ",COUNTRY_INFO!C60) -> Orodara | D60: =IF(COUNTRY_INFO!$T$9:$T$1000="MDA1 (IVM+ALB)", COUNTRY_INFO!$T$9:$T$1000, " ") ->  | I60: 0 | M60: 0
A61: =IF(COUNTRY_INFO!A61=0," ",COUNTRY_INFO!A61) -> Burkina Faso | B61: =IF(COUNTRY_INFO!B61=0," ",COUNTRY_INFO!B61) -> Nord | C61: =IF(COUNTRY_INFO!C61=0," ",COUNTRY_INFO!C61) -> Gourcy | D61: =IF(COUNTRY_INFO!$T$9:$T$1000="MDA1 (IVM+ALB)", COUNTRY_INFO!$T$9:$T$1000, " ") ->  | I61: 0 | M61: 0
A62: =IF(COUNTRY_INFO!A62=0," ",COUNTRY_INFO!A62) -> Burkina Faso | B62: =IF(COUNTRY_INFO!B62=0," ",COUNTRY_INFO!B62) -> Nord | C62: =IF(COUNTRY_INFO!C62=0," ",COUNTRY_INFO!C62) -> Ouahigouya | D62: =IF(COUNTRY_INFO!$T$9:$T$1000="MDA1 (IVM+ALB)", COUNTRY_INFO!$T$9:$T$1000, " ") ->  | I62: 0 | M62: 0
A63: =IF(COUNTRY_INFO!A63=0," ",COUNTRY_INFO!A63) -> Burkina Faso | B63: =IF(COUNTRY_INFO!B63=0," ",COUNTRY_INFO!B63) -> Nord | C63: =IF(COUNTRY_INFO!C63=0," ",COUNTRY_INFO!C63) -> Seguenega | D63: =IF(COUNTRY_INFO!$T$9:$T$1000="MDA1 (IVM+ALB)", COUNTRY_INFO!$T$9:$T$1000, " ") ->  | I63: 0 | M63: 0
A64: =IF(COUNTRY_INFO!A64=0," ",COUNTRY_INFO!A64) -> Burkina Faso | B64: =IF(COUNTRY_INFO!B64=0," ",COUNTRY_INFO!B64) -> Nord | C64: =IF(COUNTRY_INFO!C64=0," ",COUNTRY_INFO!C64) -> Thiou | D64: =IF(COUNTRY_INFO!$T$9:$T$1000="MDA1 (IVM+ALB)", COUNTRY_INFO!$T$9:$T$1000, " ") ->  | I64: 0 | M64: 0
A65: =IF(COUNTRY_INFO!A65=0," ",COUNTRY_INFO!A65) -> Burkina Faso | B65: =IF(COUNTRY_INFO!B65=0," ",COUNTRY_INFO!B65) -> Nord | C65: =IF(COUNTRY_INFO!C65=0," ",COUNTRY_INFO!C65) -> Titao | D65: =IF(COUNTRY_INFO!$T$9:$T$1000="MDA1 (IVM+ALB)", COUNTRY_INFO!$T$9:$T$1000, " ") ->  | I65: 0 | M65: 0
A66: =IF(COUNTRY_INFO!A66=0," ",COUNTRY_INFO!A66) -> Burkina Faso | B66: =IF(COUNTRY_INFO!B66=0," ",COUNTRY_INFO!B66) -> Nord | C66: =IF(COUNTRY_INFO!C66=0," ",COUNTRY_INFO!C66) -> Yako | D66: =IF(COUNTRY_INFO!$T$9:$T$1000="MDA1 (IVM+ALB)", COUNTRY_INFO!$T$9:$T$1000, " ") ->  | I66: 0 | M66: 0
A67: =IF(COUNTRY_INFO!A67=0," ",COUNTRY_INFO!A67) -> Burkina Faso | B67: =IF(COUNTRY_INFO!B67=0," ",COUNTRY_INFO!B67) -> Plateau Central | C67: =IF(COUNTRY_INFO!C67=0," ",COUNTRY_INFO!C67) -> Boussé | D67: =IF(COUNTRY_INFO!$T$9:$T$1000="MDA1 (IVM+ALB)", COUNTRY_INFO!$T$9:$T$1000, " ") ->  | I67: 0 | M67: 0
A68: =IF(COUNTRY_INFO!A68=0," ",COUNTRY_INFO!A68) -> Burkina Faso | B68: =IF(COUNTRY_INFO!B68=0," ",COUNTRY_INFO!B68) -> Plateau Central | C68: =IF(COUNTRY_INFO!C68=0," ",COUNTRY_INFO!C68) -> Ziniaré | D68: =IF(COUNTRY_INFO!$T$9:$T$1000="MDA1 (IVM+ALB)", COUNTRY_INFO!$T$9:$T$1000, " ") ->  | I68: 0 | M68: 0
A69: =IF(COUNTRY_INFO!A69=0," ",COUNTRY_INFO!A69) -> Burkina Faso | B69: =IF(COUNTRY_INFO!B69=0," ",COUNTRY_INFO!B69) -> Plateau Central | C69: =IF(COUNTRY_INFO!C69=0," ",COUNTRY_INFO!C69) -> Zorgho | D69: =IF(COUNTRY_INFO!$T$9:$T$1000="MDA1 (IVM+ALB)", COUNTRY_INFO!$T$9:$T$1000, " ") ->  | I69: 0 | M69: 0
A70: =IF(COUNTRY_INFO!A70=0," ",COUNTRY_INFO!A70) -> Burkina Faso | B70: =IF(COUNTRY_INFO!B70=0," ",COUNTRY_INFO!B70) -> Sahel | C70: =IF(COUNTRY_INFO!C70=0," ",COUNTRY_INFO!C70) -> Djibo | D70: =IF(COUNTRY_INFO!$T$9:$T$1000="MDA1 (IVM+ALB)", COUNTRY_INFO!$T$9:$T$1000, " ") ->  | I70: 0 | M70: 0
A71: =IF(COUNTRY_INFO!A71=0," ",COUNTRY_INFO!A71) -> Burkina Faso | B71: =IF(COUNTRY_INFO!B71=0," ",COUNTRY_INFO!B71) -> Sahel | C71: =IF(COUNTRY_INFO!C71=0," ",COUNTRY_INFO!C71) -> Dori | D71: =IF(COUNTRY_INFO!$T$9:$T$1000="MDA1 (IVM+ALB)", COUNTRY_INFO!$T$9:$T$1000, " ") ->  | I71: 0 | M71: 0
A72: =IF(COUNTRY_INFO!A72=0," ",COUNTRY_INFO!A72) -> Burkina Faso | B72: =IF(COUNTRY_INFO!B72=0," ",COUNTRY_INFO!B72) -> Sahel | C72: =IF(COUNTRY_INFO!C72=0," ",COUNTRY_INFO!C72) -> Gorom-Gorom | D72: =IF(COUNTRY_INFO!$T$9:$T$1000="MDA1 (IVM+ALB)", COUNTRY_INFO!$T$9:$T$1000, " ") ->  | I72: 0 | M72: 0
A73: =IF(COUNTRY_INFO!A73=0," ",COUNTRY_INFO!A73) -> Burkina Faso | B73: =IF(COUNTRY_INFO!B73=0," ",COUNTRY_INFO!B73) -> Sahel | C73: =IF(COUNTRY_INFO!C73=0," ",COUNTRY_INFO!C73) -> Sebba | D73: =IF(COUNTRY_INFO!$T$9:$T$1000="MDA1 (IVM+ALB)", COUNTRY_INFO!$T$9:$T$1000, " ") -> MDA1 (IVM+ALB) | E73: 28/07au 01/08/16 | G73: 64409 | H73: 109619 | I73: 174028 | K73: 63394 | L73: 107990 | M73: 171384 | O73: 98.42413327 | P73: 98.51394375 | Q73: 98.48070425
A74: =IF(COUNTRY_INFO!A74=0," ",COUNTRY_INFO!A74) -> Burkina Faso | B74: =IF(COUNTRY_INFO!B74=0," ",COUNTRY_INFO!B74) -> Sud-Ouest | C74: =IF(COUNTRY_INFO!C74=0," ",COUNTRY_INFO!C74) -> Batié | D74: =IF(COUNTRY_INFO!$T$9:$T$1000="MDA1 (IVM+ALB)", COUNTRY_INFO!$T$9:$T$1000, " ") -> MDA1 (IVM+ALB) | E74: 02 au07/05/2016 | G74: 27447 | H74: 48306 | I74: =SUM(F74:H74) -> 75753 | K74: 26730 | L74: 48815 | M74: =SUM(J74:L74) -> 75545 | O74: =IF(G74<>0, IF(K74/G74*100=0, "-", K74/G74*100), " ") -> 97.38769264 | P74: =IF(H74<>0, IF(L74/H74*100=0, "-", L74/H74*100), " ") -> 101.0536993 | Q74: =IF(I74<>0, IF(M74/I74*100=0, "-", M74/I74*100), " ") -> 99.72542342
A75: =IF(COUNTRY_INFO!A75=0," ",COUNTRY_INFO!A75) -> Burkina Faso | B75: =IF(COUNTRY_INFO!B75=0," ",COUNTRY_INFO!B75) -> Sud-Ouest | C75: =IF(COUNTRY_INFO!C75=0," ",COUNTRY_INFO!C75) -> Dano | D75: =IF(COUNTRY_INFO!$T$9:$T$1000="MDA1 (IVM+ALB)", COUNTRY_INFO!$T$9:$T$1000, " ") -> MDA1 (IVM+ALB) | E75: 02 au07/05/2016 | G75: 71360 | H75: 125572 | I75: 196932 | K75: 73857 | L75: 129944 | M75: 203801 | O75: 103.4991592 | P75: 103.4816679 | Q75: 103.488006
A76: =IF(COUNTRY_INFO!A76=0," ",COUNTRY_INFO!A76) -> Burkina Faso | B76: =IF(COUNTRY_INFO!B76=0," ",COUNTRY_INFO!B76) -> Sud-Ouest | C76: =IF(COUNTRY_INFO!C76=0," ",COUNTRY_INFO!C76) -> Diébougou | D76: =IF(COUNTRY_INFO!$T$9:$T$1000="MDA1 (IVM+ALB)", COUNTRY_INFO!$T$9:$T$1000, " ") -> MDA1 (IVM+ALB) | E76: 02 au07/05/2016 | G76: 39351 | H76: 69241 | I76: 108592 | K76: 41153 | L76: 72403 | M76: 113556 | O76: 104.5792991 | P76: 104.5666585 | Q76: 104.5712391
A77: =IF(COUNTRY_INFO!A77=0," ",COUNTRY_INFO!A77) -> Burkina Faso | B77: =IF(COUNTRY_INFO!B77=0," ",COUNTRY_INFO!B77) -> Sud-Ouest | C77: =IF(COUNTRY_INFO!C77=0," ",COUNTRY_INFO!C77) -> Gaoua | D77: =IF(COUNTRY_INFO!$T$9:$T$1000="MDA1 (IVM+ALB)", COUNTRY_INFO!$T$9:$T$1000, " ") -> MDA1 (IVM+ALB) | E77: 02 au07/05/2016 | G77: 71054 | H77: 125038 | I77: 196092 | K77: 71702 | L77: 126150 | M77: 197852 | O77: 100.9119824 | P77: 100.8893296 | Q77: 100.8975379
A78: =IF(COUNTRY_INFO!A78=0," ",COUNTRY_INFO!A78) -> Burkina Faso | B78: =IF(COUNTRY_INFO!B78=0," ",COUNTRY_INFO!B78) -> Sud-Ouest | C78: =IF(COUNTRY_INFO!C78=0," ",COUNTRY_INFO!C78) -> Kampti | D78: =IF(COUNTRY_INFO!$T$9:$T$1000="MDA1 (IVM+ALB)", COUNTRY_INFO!$T$9:$T$1000, " ") -> MDA1 (IVM+ALB) | E78: 02 au07/05/2016 | G78: 28112 | H78: 49467 | I78: 77579 | K78: 28768 | L78: 50614 | M78: 79382 | O78: 102.3335231 | P78: 102.3187175 | Q78: 102.3240825

Sheet MDA2 (hidden)
A1: MDA 2 - Diethylcarbamazine citrate (DEC) + Albendazole (ALB)
A2: Administrative structure, population requiring PC by age group, population treated by age group and coverage
A4: TOTAL | F4: =SUM(F$9:F$1000) -> 0 | G4: =SUM(G$9:G$1000) -> 0 | H4: 0 | I4: 0 | J4: 0 | K4: 0 | L4: 0 | M4: 0 | N4: =IF(F4<>0, IF(J4/F4*100=0, "-", J4/F4*100), " ") ->  | O4: =IF(G4<>0, IF(K4/G4*100=0, "-", K4/G4*100), " ") ->  | P4: =IF(H4<>0, IF(L4/H4*100=0, "-", L4/H4*100), " ") ->  | Q4: =IF(I4<>0, IF(M4/I4*100=0, "-", M4/I4*100), " ") -> 
D6: PC implemented | E6: Date | F6: Population targeted for MDA 2 | J6: Population treated | N6: Programme coverage (%)
A7: Country | B7: Province/State | C7: District | F7: PreSAC | G7: SAC | H7: Adults | I7: Total | J7: PreSAC | K7: SAC | L7: Adults | M7: Total | N7: PreSAC | O7: SAC | P7: Adults | Q7: Total
A9: =IF(COUNTRY_INFO!A9=0," ",COUNTRY_INFO!A9) -> Burkina Faso | B9: =IF(COUNTRY_INFO!B9=0," ",COUNTRY_INFO!B9) -> Boucle du Mouhoun | C9: =IF(COUNTRY_INFO!C9=0," ",COUNTRY_INFO!C9) -> Boromo | D9: =IF(COUNTRY_INFO!$T$9:$T$1000="MDA2 (DEC+ALB)", COUNTRY_INFO!$T$9:$T$1000, " ") ->  | I9: =SUM(F9:H9) -> 0 | M9: =SUM(J9:L9) -> 0 | N9: =IF(F9<>0, IF(J9/F9*100=0, "-", J9/F9*100), " ") -> 
A10: =IF(COUNTRY_INFO!A10=0," ",COUNTRY_INFO!A10) -> Burkina Faso | B10: =IF(COUNTRY_INFO!B10=0," ",COUNTRY_INFO!B10) -> Boucle du Mouhoun | C10: =IF(COUNTRY_INFO!C10=0," ",COUNTRY_INFO!C10) -> Dédougou | D10: =IF(COUNTRY_INFO!$T$9:$T$1000="MDA2 (DEC+ALB)", COUNTRY_INFO!$T$9:$T$1000, " ") ->  | I10: =SUM(F10:H10) -> 0 | M10: =SUM(J10:L10) -> 0 | N10: =IF(F10<>0, IF(J10/F10*100=0, "-", J10/F10*100), " ") ->  | O10: =IF(G10<>0, IF(K10/G10*100=0, "-", K10/G10*100), " ") ->  | P10: =IF(H10<>0, IF(L10/H10*100=0, "-", L10/H10*100), " ") ->  | Q10: =IF(I10<>0, IF(M10/I10*100=0, "-", M10/I10*100), " ") -> 
A11: =IF(COUNTRY_INFO!A11=0," ",COUNTRY_INFO!A11) -> Burkina Faso | B11: =IF(COUNTRY_INFO!B11=0," ",COUNTRY_INFO!B11) -> Boucle du Mouhoun | C11: =IF(COUNTRY_INFO!C11=0," ",COUNTRY_INFO!C11) -> Nouna | D11: =IF(COUNTRY_INFO!$T$9:$T$1000="MDA2 (DEC+ALB)", COUNTRY_INFO!$T$9:$T$1000, " ") ->  | I11: 0 | M11: 0
A12: =IF(COUNTRY_INFO!A12=0," ",COUNTRY_INFO!A12) -> Burkina Faso | B12: =IF(COUNTRY_INFO!B12=0," ",COUNTRY_INFO!B12) -> Boucle du Mouhoun | C12: =IF(COUNTRY_INFO!C12=0," ",COUNTRY_INFO!C12) -> Solenzo | D12: =IF(COUNTRY_INFO!$T$9:$T$1000="MDA2 (DEC+ALB)", COUNTRY_INFO!$T$9:$T$1000, " ") ->  | I12: 0 | M12: 0
A13: =IF(COUNTRY_INFO!A13=0," ",COUNTRY_INFO!A13) -> Burkina Faso | B13: =IF(COUNTRY_INFO!B13=0," ",COUNTRY_INFO!B13) -> Boucle du Mouhoun | C13: =IF(COUNTRY_INFO!C13=0," ",COUNTRY_INFO!C13) -> Toma | D13: =IF(COUNTRY_INFO!$T$9:$T$1000="MDA2 (DEC+ALB)", COUNTRY_INFO!$T$9:$T$1000, " ") ->  | I13: 0 | M13: 0
A14: =IF(COUNTRY_INFO!A14=0," ",COUNTRY_INFO!A14) -> Burkina Faso | B14: =IF(COUNTRY_INFO!B14=0," ",COUNTRY_INFO!B14) -> Boucle du Mouhoun | C14: =IF(COUNTRY_INFO!C14=0," ",COUNTRY_INFO!C14) -> Tougan | D14: =IF(COUNTRY_INFO!$T$9:$T$1000="MDA2 (DEC+ALB)", COUNTRY_INFO!$T$9:$T$1000, " ") ->  | I14: 0 | M14: 0
A15: =IF(COUNTRY_INFO!A15=0," ",COUNTRY_INFO!A15) -> Burkina Faso | B15: =IF(COUNTRY_INFO!B15=0," ",COUNTRY_INFO!B15) -> Cascades | C15: =IF(COUNTRY_INFO!C15=0," ",COUNTRY_INFO!C15) -> Banfora | D15: =IF(COUNTRY_INFO!$T$9:$T$1000="MDA2 (DEC+ALB)", COUNTRY_INFO!$T$9:$T$1000, " ") ->  | I15: 0 | M15: 0
A16: =IF(COUNTRY_INFO!A16=0," ",COUNTRY_INFO!A16) -> Burkina Faso | B16: =IF(COUNTRY_INFO!B16=0," ",COUNTRY_INFO!B16) -> Cascades | C16: =IF(COUNTRY_INFO!C16=0," ",COUNTRY_INFO!C16) -> Mangodara | D16: =IF(COUNTRY_INFO!$T$9:$T$1000="MDA2 (DEC+ALB)", COUNTRY_INFO!$T$9:$T$1000, " ") ->  | I16: 0 | M16: 0
A17: =IF(COUNTRY_INFO!A17=0," ",COUNTRY_INFO!A17) -> Burkina Faso | B17: =IF(COUNTRY_INFO!B17=0," ",COUNTRY_INFO!B17) -> Cascades | C17: =IF(COUNTRY_INFO!C17=0," ",COUNTRY_INFO!C17) -> Sindou | D17: =IF(COUNTRY_INFO!$T$9:$T$1000="MDA2 (DEC+ALB)", COUNTRY_INFO!$T$9:$T$1000, " ") ->  | I17: 0 | M17: 0
A18: =IF(COUNTRY_INFO!A18=0," ",COUNTRY_INFO!A18) -> Burkina Faso | B18: =IF(COUNTRY_INFO!B18=0," ",COUNTRY_INFO!B18) -> Centre | C18: =IF(COUNTRY_INFO!C18=0," ",COUNTRY_INFO!C18) -> Baskuy | D18: =IF(COUNTRY_INFO!$T$9:$T$1000="MDA2 (DEC+ALB)", COUNTRY_INFO!$T$9:$T$1000, " ") ->  | I18: 0 | M18: 0
A19: =IF(COUNTRY_INFO!A19=0," ",COUNTRY_INFO!A19) -> Burkina Faso | B19: =IF(COUNTRY_INFO!B19=0," ",COUNTRY_INFO!B19) -> Centre | C19: =IF(COUNTRY_INFO!C19=0," ",COUNTRY_INFO!C19) -> Bogodogo | D19: =IF(COUNTRY_INFO!$T$9:$T$1000="MDA2 (DEC+ALB)", COUNTRY_INFO!$T$9:$T$1000, " ") ->  | I19: 0 | M19: 0
A20: =IF(COUNTRY_INFO!A20=0," ",COUNTRY_INFO!A20) -> Burkina Faso | B20: =IF(COUNTRY_INFO!B20=0," ",COUNTRY_INFO!B20) -> Centre | C20: =IF(COUNTRY_INFO!C20=0," ",COUNTRY_INFO!C20) -> Boulmiougou | D20: =IF(COUNTRY_INFO!$T$9:$T$1000="MDA2 (DEC+ALB)", COUNTRY_INFO!$T$9:$T$1000, " ") ->  | I20: 0 | M20: 0
A21: =IF(COUNTRY_INFO!A21=0," ",COUNTRY_INFO!A21) -> Burkina Faso | B21: =IF(COUNTRY_INFO!B21=0," ",COUNTRY_INFO!B21) -> Centre | C21: =IF(COUNTRY_INFO!C21=0," ",COUNTRY_INFO!C21) -> Nongre-Massom | D21: =IF(COUNTRY_INFO!$T$9:$T$1000="MDA2 (DEC+ALB)", COUNTRY_INFO!$T$9:$T$1000, " ") ->  | I21: 0 | M21: 0
A22: =IF(COUNTRY_INFO!A22=0," ",COUNTRY_INFO!A22) -> Burkina Faso | B22: =IF(COUNTRY_INFO!B22=0," ",COUNTRY_INFO!B22) -> Centre | C22: =IF(COUNTRY_INFO!C22=0," ",COUNTRY_INFO!C22) -> Sig-Nonghin | D22: =IF(COUNTRY_INFO!$T$9:$T$1000="MDA2 (DEC+ALB)", COUNTRY_INFO!$T$9:$T$1000, " ") ->  | I22: 0 | M22: 0
A23: =IF(COUNTRY_INFO!A23=0," ",COUNTRY_INFO!A23) -> Burkina Faso | B23: =IF(COUNTRY_INFO!B23=0," ",COUNTRY_INFO!B23) -> Centre-Est | C23: =IF(COUNTRY_INFO!C23=0," ",COUNTRY_INFO!C23) -> Bittou | D23: =IF(COUNTRY_INFO!$T$9:$T$1000="MDA2 (DEC+ALB)", COUNTRY_INFO!$T$9:$T$1000, " ") ->  | I23: 0 | M23: 0
A24: =IF(COUNTRY_INFO!A24=0," ",COUNTRY_INFO!A24) -> Burkina Faso | B24: =IF(COUNTRY_INFO!B24=0," ",COUNTRY_INFO!B24) -> Centre-Est | C24: =IF(COUNTRY_INFO!C24=0," ",COUNTRY_INFO!C24) -> Garango | D24: =IF(COUNTRY_INFO!$T$9:$T$1000="MDA2 (DEC+ALB)", COUNTRY_INFO!$T$9:$T$1000, " ") ->  | I24: 0 | M24: 0
A25: =IF(COUNTRY_INFO!A25=0," ",COUNTRY_INFO!A25) -> Burkina Faso | B25: =IF(COUNTRY_INFO!B25=0," ",COUNTRY_INFO!B25) -> Centre-Est | C25: =IF(COUNTRY_INFO!C25=0," ",COUNTRY_INFO!C25) -> Koupela | D25: =IF(COUNTRY_INFO!$T$9:$T$1000="MDA2 (DEC+ALB)", COUNTRY_INFO!$T$9:$T$1000, " ") ->  | I25: 0 | M25: 0
A26: =IF(COUNTRY_INFO!A26=0," ",COUNTRY_INFO!A26) -> Burkina Faso | B26: =IF(COUNTRY_INFO!B26=0," ",COUNTRY_INFO!B26) -> Centre-Est | C26: =IF(COUNTRY_INFO!C26=0," ",COUNTRY_INFO!C26) -> Ouargaye | D26: =IF(COUNTRY_INFO!$T$9:$T$1000="MDA2 (DEC+ALB)", COUNTRY_INFO!$T$9:$T$1000, " ") ->  | I26: 0 | M26: 0
A27: =IF(COUNTRY_INFO!A27=0," ",COUNTRY_INFO!A27) -> Burkina Faso | B27: =IF(COUNTRY_INFO!B27=0," ",COUNTRY_INFO!B27) -> Centre-Est | C27: =IF(COUNTRY_INFO!C27=0," ",COUNTRY_INFO!C27) -> Pouytenga | D27: =IF(COUNTRY_INFO!$T$9:$T$1000="MDA2 (DEC+ALB)", COUNTRY_INFO!$T$9:$T$1000, " ") ->  | I27: 0 | M27: 0
A28: =IF(COUNTRY_INFO!A28=0," ",COUNTRY_INFO!A28) -> Burkina Faso | B28: =IF(COUNTRY_INFO!B28=0," ",COUNTRY_INFO!B28) -> Centre-Est | C28: =IF(COUNTRY_INFO!C28=0," ",COUNTRY_INFO!C28) -> Tenkodogo | D28: =IF(COUNTRY_INFO!$T$9:$T$1000="MDA2 (DEC+ALB)", COUNTRY_INFO!$T$9:$T$1000, " ") ->  | I28: 0 | M28: 0
A29: =IF(COUNTRY_INFO!A29=0," ",COUNTRY_INFO!A29) -> Burkina Faso | B29: =IF(COUNTRY_INFO!B29=0," ",COUNTRY_INFO!B29) -> Centre-Est | C29: =IF(COUNTRY_INFO!C29=0," ",COUNTRY_INFO!C29) -> Zabré | D29: =IF(COUNTRY_INFO!$T$9:$T$1000="MDA2 (DEC+ALB)", COUNTRY_INFO!$T$9:$T$1000, " ") ->  | I29: 0 | M29: 0
A30: =IF(COUNTRY_INFO!A30=0," ",COUNTRY_INFO!A30) -> Burkina Faso | B30: =IF(COUNTRY_INFO!B30=0," ",COUNTRY_INFO!B30) -> Centre-Nord | C30: =IF(COUNTRY_INFO!C30=0," ",COUNTRY_INFO!C30) -> Barsalogo | D30: =IF(COUNTRY_INFO!$T$9:$T$1000="MDA2 (DEC+ALB)", COUNTRY_INFO!$T$9:$T$1000, " ") ->  | I30: 0 | M30: 0
A31: =IF(COUNTRY_INFO!A31=0," ",COUNTRY_INFO!A31) -> Burkina Faso | B31: =IF(COUNTRY_INFO!B31=0," ",COUNTRY_INFO!B31) -> Centre-Nord | C31: =IF(COUNTRY_INFO!C31=0," ",COUNTRY_INFO!C31) -> Boulsa | D31: =IF(COUNTRY_INFO!$T$9:$T$1000="MDA2 (DEC+ALB)", COUNTRY_INFO!$T$9:$T$1000, " ") ->  | I31: 0 | M31: 0
A32: =IF(COUNTRY_INFO!A32=0," ",COUNTRY_INFO!A32) -> Burkina Faso | B32: =IF(COUNTRY_INFO!B32=0," ",COUNTRY_INFO!B32) -> Centre-Nord | C32: =IF(COUNTRY_INFO!C32=0," ",COUNTRY_INFO!C32) -> Boussouma | D32: =IF(COUNTRY_INFO!$T$9:$T$1000="MDA2 (DEC+ALB)", COUNTRY_INFO!$T$9:$T$1000, " ") ->  | I32: 0 | M32: 0
A33: =IF(COUNTRY_INFO!A33=0," ",COUNTRY_INFO!A33) -> Burkina Faso | B33: =IF(COUNTRY_INFO!B33=0," ",COUNTRY_INFO!B33) -> Centre-Nord | C33: =IF(COUNTRY_INFO!C33=0," ",COUNTRY_INFO!C33) -> Kaya | D33: =IF(COUNTRY_INFO!$T$9:$T$1000="MDA2 (DEC+ALB)", COUNTRY_INFO!$T$9:$T$1000, " ") ->  | I33: 0 | M33: 0
A34: =IF(COUNTRY_INFO!A34=0," ",COUNTRY_INFO!A34) -> Burkina Faso | B34: =IF(COUNTRY_INFO!B34=0," ",COUNTRY_INFO!B34) -> Centre-Nord | C34: =IF(COUNTRY_INFO!C34=0," ",COUNTRY_INFO!C34) -> Kongoussi | D34: =IF(COUNTRY_INFO!$T$9:$T$1000="MDA2 (DEC+ALB)", COUNTRY_INFO!$T$9:$T$1000, " ") ->  | I34: 0 | M34: 0
A35: =IF(COUNTRY_INFO!A35=0," ",COUNTRY_INFO!A35) -> Burkina Faso | B35: =IF(COUNTRY_INFO!B35=0," ",COUNTRY_INFO!B35) -> Centre-Nord | C35: =IF(COUNTRY_INFO!C35=0," ",COUNTRY_INFO!C35) -> Tougouri | D35: =IF(COUNTRY_INFO!$T$9:$T$1000="MDA2 (DEC+ALB)", COUNTRY_INFO!$T$9:$T$1000, " ") ->  | I35: 0 | M35: 0
A36: =IF(COUNTRY_INFO!A36=0," ",COUNTRY_INFO!A36) -> Burkina Faso | B36: =IF(COUNTRY_INFO!B36=0," ",COUNTRY_INFO!B36) -> Centre-Ouest | C36: =IF(COUNTRY_INFO!C36=0," ",COUNTRY_INFO!C36) -> Koudougou | D36: =IF(COUNTRY_INFO!$T$9:$T$1000="MDA2 (DEC+ALB)", COUNTRY_INFO!$T$9:$T$1000, " ") ->  | I36: 0 | M36: 0
A37: =IF(COUNTRY_INFO!A37=0," ",COUNTRY_INFO!A37) -> Burkina Faso | B37: =IF(COUNTRY_INFO!B37=0," ",COUNTRY_INFO!B37) -> Centre-Ouest | C37: =IF(COUNTRY_INFO!C37=0," ",COUNTRY_INFO!C37) -> Léo | D37: =IF(COUNTRY_INFO!$T$9:$T$1000="MDA2 (DEC+ALB)", COUNTRY_INFO!$T$9:$T$1000, " ") ->  | I37: 0 | M37: 0
A38: =IF(COUNTRY_INFO!A38=0," ",COUNTRY_INFO!A38) -> Burkina Faso | B38: =IF(COUNTRY_INFO!B38=0," ",COUNTRY_INFO!B38) -> Centre-Ouest | C38: =IF(COUNTRY_INFO!C38=0," ",COUNTRY_INFO!C38) -> Nanoro | D38: =IF(COUNTRY_INFO!$T$9:$T$1000="MDA2 (DEC+ALB)", COUNTRY_INFO!$T$9:$T$1000, " ") ->  | I38: 0 | M38: 0
A39: =IF(COUNTRY_INFO!A39=0," ",COUNTRY_INFO!A39) -> Burkina Faso | B39: =IF(COUNTRY_INFO!B39=0," ",COUNTRY_INFO!B39) -> Centre-Ouest | C39: =IF(COUNTRY_INFO!C39=0," ",COUNTRY_INFO!C39) -> Réo | D39: =IF(COUNTRY_INFO!$T$9:$T$1000="MDA2 (DEC+ALB)", COUNTRY_INFO!$T$9:$T$1000, " ") ->  | I39: 0 | M39: 0
A40: =IF(COUNTRY_INFO!A40=0," ",COUNTRY_INFO!A40) -> Burkina Faso | B40: =IF(COUNTRY_INFO!B40=0," ",COUNTRY_INFO!B40) -> Centre-Ouest | C40: =IF(COUNTRY_INFO!C40=0," ",COUNTRY_INFO!C40) -> Sabou | D40: =IF(COUNTRY_INFO!$T$9:$T$1000="MDA2 (DEC+ALB)", COUNTRY_INFO!$T$9:$T$1000, " ") ->  | I40: 0 | M40: 0
A41: =IF(COUNTRY_INFO!A41=0," ",COUNTRY_INFO!A41) -> Burkina Faso | B41: =IF(COUNTRY_INFO!B41=0," ",COUNTRY_INFO!B41) -> Centre-Ouest | C41: =IF(COUNTRY_INFO!C41=0," ",COUNTRY_INFO!C41) -> Sapouy | D41: =IF(COUNTRY_INFO!$T$9:$T$1000="MDA2 (DEC+ALB)", COUNTRY_INFO!$T$9:$T$1000, " ") ->  | I41: 0 | M41: 0
A42: =IF(COUNTRY_INFO!A42=0," ",COUNTRY_INFO!A42) -> Burkina Faso | B42: =IF(COUNTRY_INFO!B42=0," ",COUNTRY_INFO!B42) -> Centre-Ouest | C42: =IF(COUNTRY_INFO!C42=0," ",COUNTRY_INFO!C42) -> Tenado | D42: =IF(COUNTRY_INFO!$T$9:$T$1000="MDA2 (DEC+ALB)", COUNTRY_INFO!$T$9:$T$1000, " ") ->  | I42: 0 | M42: 0
A43: =IF(COUNTRY_INFO!A43=0," ",COUNTRY_INFO!A43) -> Burkina Faso | B43: =IF(COUNTRY_INFO!B43=0," ",COUNTRY_INFO!B43) -> Centre-Sud | C43: =IF(COUNTRY_INFO!C43=0," ",COUNTRY_INFO!C43) -> Kombissiri | D43: =IF(COUNTRY_INFO!$T$9:$T$1000="MDA2 (DEC+ALB)", COUNTRY_INFO!$T$9:$T$1000, " ") ->  | I43: 0 | M43: 0
A44: =IF(COUNTRY_INFO!A44=0," ",COUNTRY_INFO!A44) -> Burkina Faso | B44: =IF(COUNTRY_INFO!B44=0," ",COUNTRY_INFO!B44) -> Centre-Sud | C44: =IF(COUNTRY_INFO!C44=0," ",COUNTRY_INFO!C44) -> Manga | D44: =IF(COUNTRY_INFO!$T$9:$T$1000="MDA2 (DEC+ALB)", COUNTRY_INFO!$T$9:$T$1000, " ") ->  | I44: 0 | M44: 0
A45: =IF(COUNTRY_INFO!A45=0," ",COUNTRY_INFO!A45) -> Burkina Faso | B45: =IF(COUNTRY_INFO!B45=0," ",COUNTRY_INFO!B45) -> Centre-Sud | C45: =IF(COUNTRY_INFO!C45=0," ",COUNTRY_INFO!C45) -> Pô | D45: =IF(COUNTRY_INFO!$T$9:$T$1000="MDA2 (DEC+ALB)", COUNTRY_INFO!$T$9:$T$1000, " ") ->  | I45: 0 | M45: 0
A46: =IF(COUNTRY_INFO!A46=0," ",COUNTRY_INFO!A46) -> Burkina Faso | B46: =IF(COUNTRY_INFO!B46=0," ",COUNTRY_INFO!B46) -> Centre-Sud | C46: =IF(COUNTRY_INFO!C46=0," ",COUNTRY_INFO!C46) -> Saponé | D46: =IF(COUNTRY_INFO!$T$9:$T$1000="MDA2 (DEC+ALB)", COUNTRY_INFO!$T$9:$T$1000, " ") ->  | I46: 0 | M46: 0
A47: =IF(COUNTRY_INFO!A47=0," ",COUNTRY_INFO!A47) -> Burkina Faso | B47: =IF(COUNTRY_INFO!B47=0," ",COUNTRY_INFO!B47) -> Est | C47: =IF(COUNTRY_INFO!C47=0," ",COUNTRY_INFO!C47) -> Bogandé | D47: =IF(COUNTRY_INFO!$T$9:$T$1000="MDA2 (DEC+ALB)", COUNTRY_INFO!$T$9:$T$1000, " ") ->  | I47: 0 | M47: 0
A48: =IF(COUNTRY_INFO!A48=0," ",COUNTRY_INFO!A48) -> Burkina Faso | B48: =IF(COUNTRY_INFO!B48=0," ",COUNTRY_INFO!B48) -> Est | C48: =IF(COUNTRY_INFO!C48=0," ",COUNTRY_INFO!C48) -> Diapaga | D48: =IF(COUNTRY_INFO!$T$9:$T$1000="MDA2 (DEC+ALB)", COUNTRY_INFO!$T$9:$T$1000, " ") ->  | I48: 0 | M48: 0
A49: =IF(COUNTRY_INFO!A49=0," ",COUNTRY_INFO!A49) -> Burkina Faso | B49: =IF(COUNTRY_INFO!B49=0," ",COUNTRY_INFO!B49) -> Est | C49: =IF(COUNTRY_INFO!C49=0," ",COUNTRY_INFO!C49) -> Fada N'gourma | D49: =IF(COUNTRY_INFO!$T$9:$T$1000="MDA2 (DEC+ALB)", COUNTRY_INFO!$T$9:$T$1000, " ") ->  | I49: 0 | M49: 0
A50: =IF(COUNTRY_INFO!A50=0," ",COUNTRY_INFO!A50) -> Burkina Faso | B50: =IF(COUNTRY_INFO!B50=0," ",COUNTRY_INFO!B50) -> Est | C50: =IF(COUNTRY_INFO!C50=0," ",COUNTRY_INFO!C50) -> Gayeri | D50: =IF(COUNTRY_INFO!$T$9:$T$1000="MDA2 (DEC+ALB)", COUNTRY_INFO!$T$9:$T$1000, " ") ->  | I50: 0 | M50: 0
A51: =IF(COUNTRY_INFO!A51=0," ",COUNTRY_INFO!A51) -> Burkina Faso | B51: =IF(COUNTRY_INFO!B51=0," ",COUNTRY_INFO!B51) -> Est | C51: =IF(COUNTRY_INFO!C51=0," ",COUNTRY_INFO!C51) -> Manni | D51: =IF(COUNTRY_INFO!$T$9:$T$1000="MDA2 (DEC+ALB)", COUNTRY_INFO!$T$9:$T$1000, " ") ->  | I51: 0 | M51: 0
A52: =IF(COUNTRY_INFO!A52=0," ",COUNTRY_INFO!A52) -> Burkina Faso | B52: =IF(COUNTRY_INFO!B52=0," ",COUNTRY_INFO!B52) -> Est | C52: =IF(COUNTRY_INFO!C52=0," ",COUNTRY_INFO!C52) -> Pama | D52: =IF(COUNTRY_INFO!$T$9:$T$1000="MDA2 (DEC+ALB)", COUNTRY_INFO!$T$9:$T$1000, " ") ->  | I52: 0 | M52: 0
A53: =IF(COUNTRY_INFO!A53=0," ",COUNTRY_INFO!A53) -> Burkina Faso | B53: =IF(COUNTRY_INFO!B53=0," ",COUNTRY_INFO!B53) -> Hauts-Bassins | C53: =IF(COUNTRY_INFO!C53=0," ",COUNTRY_INFO!C53) -> Dafra | D53: =IF(COUNTRY_INFO!$T$9:$T$1000="MDA2 (DEC+ALB)", COUNTRY_INFO!$T$9:$T$1000, " ") ->  | I53: 0 | M53: 0
A54: =IF(COUNTRY_INFO!A54=0," ",COUNTRY_INFO!A54) -> Burkina Faso | B54: =IF(COUNTRY_INFO!B54=0," ",COUNTRY_INFO!B54) -> Hauts-Bassins | C54: =IF(COUNTRY_INFO!C54=0," ",COUNTRY_INFO!C54) -> Dandé | D54: =IF(COUNTRY_INFO!$T$9:$T$1000="MDA2 (DEC+ALB)", COUNTRY_INFO!$T$9:$T$1000, " ") ->  | I54: 0 | M54: 0
A55: =IF(COUNTRY_INFO!A55=0," ",COUNTRY_INFO!A55) -> Burkina Faso | B55: =IF(COUNTRY_INFO!B55=0," ",COUNTRY_INFO!B55) -> Hauts-Bassins | C55: =IF(COUNTRY_INFO!C55=0," ",COUNTRY_INFO!C55) -> Dô | D55: =IF(COUNTRY_INFO!$T$9:$T$1000="MDA2 (DEC+ALB)", COUNTRY_INFO!$T$9:$T$1000, " ") ->  | I55: 0 | M55: 0
A56: =IF(COUNTRY_INFO!A56=0," ",COUNTRY_INFO!A56) -> Burkina Faso | B56: =IF(COUNTRY_INFO!B56=0," ",COUNTRY_INFO!B56) -> Hauts-Bassins | C56: =IF(COUNTRY_INFO!C56=0," ",COUNTRY_INFO!C56) -> Houndé | D56: =IF(COUNTRY_INFO!$T$9:$T$1000="MDA2 (DEC+ALB)", COUNTRY_INFO!$T$9:$T$1000, " ") ->  | I56: 0 | M56: 0
A57: =IF(COUNTRY_INFO!A57=0," ",COUNTRY_INFO!A57) -> Burkina Faso | B57: =IF(COUNTRY_INFO!B57=0," ",COUNTRY_INFO!B57) -> Hauts-Bassins | C57: =IF(COUNTRY_INFO!C57=0," ",COUNTRY_INFO!C57) -> Karangasso-Vigué | D57: =IF(COUNTRY_INFO!$T$9:$T$1000="MDA2 (DEC+ALB)", COUNTRY_INFO!$T$9:$T$1000, " ") ->  | I57: 0 | M57: 0
A58: =IF(COUNTRY_INFO!A58=0," ",COUNTRY_INFO!A58) -> Burkina Faso | B58: =IF(COUNTRY_INFO!B58=0," ",COUNTRY_INFO!B58) -> Hauts-Bassins | C58: =IF(COUNTRY_INFO!C58=0," ",COUNTRY_INFO!C58) -> Lena | D58: =IF(COUNTRY_INFO!$T$9:$T$1000="MDA2 (DEC+ALB)", COUNTRY_INFO!$T$9:$T$1000, " ") ->  | I58: 0 | M58: 0
A59: =IF(COUNTRY_INFO!A59=0," ",COUNTRY_INFO!A59) -> Burkina Faso | B59: =IF(COUNTRY_INFO!B59=0," ",COUNTRY_INFO!B59) -> Hauts-Bassins | C59: =IF(COUNTRY_INFO!C59=0," ",COUNTRY_INFO!C59) -> N'Dorola | D59: =IF(COUNTRY_INFO!$T$9:$T$1000="MDA2 (DEC+ALB)", COUNTRY_INFO!$T$9:$T$1000, " ") ->  | I59: 0 | M59: 0
A60: =IF(COUNTRY_INFO!A60=0," ",COUNTRY_INFO!A60) -> Burkina Faso | B60: =IF(COUNTRY_INFO!B60=0," ",COUNTRY_INFO!B60) -> Hauts-Bassins | C60: =IF(COUNTRY_INFO!C60=0," ",COUNTRY_INFO!C60) -> Orodara | D60: =IF(COUNTRY_INFO!$T$9:$T$1000="MDA2 (DEC+ALB)", COUNTRY_INFO!$T$9:$T$1000, " ") ->  | I60: 0 | M60: 0
A61: =IF(COUNTRY_INFO!A61=0," ",COUNTRY_INFO!A61) -> Burkina Faso | B61: =IF(COUNTRY_INFO!B61=0," ",COUNTRY_INFO!B61) -> Nord | C61: =IF(COUNTRY_INFO!C61=0," ",COUNTRY_INFO!C61) -> Gourcy | D61: =IF(COUNTRY_INFO!$T$9:$T$1000="MDA2 (DEC+ALB)", COUNTRY_INFO!$T$9:$T$1000, " ") ->  | I61: 0 | M61: 0
A62: =IF(COUNTRY_INFO!A62=0," ",COUNTRY_INFO!A62) -> Burkina Faso | B62: =IF(COUNTRY_INFO!B62=0," ",COUNTRY_INFO!B62) -> Nord | C62: =IF(COUNTRY_INFO!C62=0," ",COUNTRY_INFO!C62) -> Ouahigouya | D62: =IF(COUNTRY_INFO!$T$9:$T$1000="MDA2 (DEC+ALB)", COUNTRY_INFO!$T$9:$T$1000, " ") ->  | I62: 0 | M62: 0
A63: =IF(COUNTRY_INFO!A63=0," ",COUNTRY_INFO!A63) -> Burkina Faso | B63: =IF(COUNTRY_INFO!B63=0," ",COUNTRY_INFO!B63) -> Nord | C63: =IF(COUNTRY_INFO!C63=0," ",COUNTRY_INFO!C63) -> Seguenega | D63: =IF(COUNTRY_INFO!$T$9:$T$1000="MDA2 (DEC+ALB)", COUNTRY_INFO!$T$9:$T$1000, " ") ->  | I63: 0 | M63: 0
A64: =IF(COUNTRY_INFO!A64=0," ",COUNTRY_INFO!A64) -> Burkina Faso | B64: =IF(COUNTRY_INFO!B64=0," ",COUNTRY_INFO!B64) -> Nord | C64: =IF(COUNTRY_INFO!C64=0," ",COUNTRY_INFO!C64) -> Thiou | D64: =IF(COUNTRY_INFO!$T$9:$T$1000="MDA2 (DEC+ALB)", COUNTRY_INFO!$T$9:$T$1000, " ") ->  | I64: 0 | M64: 0
A65: =IF(COUNTRY_INFO!A65=0," ",COUNTRY_INFO!A65) -> Burkina Faso | B65: =IF(COUNTRY_INFO!B65=0," ",COUNTRY_INFO!B65) -> Nord | C65: =IF(COUNTRY_INFO!C65=0," ",COUNTRY_INFO!C65) -> Titao | D65: =IF(COUNTRY_INFO!$T$9:$T$1000="MDA2 (DEC+ALB)", COUNTRY_INFO!$T$9:$T$1000, " ") ->  | I65: 0 | M65: 0
A66: =IF(COUNTRY_INFO!A66=0," ",COUNTRY_INFO!A66) -> Burkina Faso | B66: =IF(COUNTRY_INFO!B66=0," ",COUNTRY_INFO!B66) -> Nord | C66: =IF(COUNTRY_INFO!C66=0," ",COUNTRY_INFO!C66) -> Yako | D66: =IF(COUNTRY_INFO!$T$9:$T$1000="MDA2 (DEC+ALB)", COUNTRY_INFO!$T$9:$T$1000, " ") ->  | I66: 0 | M66: 0
A67: =IF(COUNTRY_INFO!A67=0," ",COUNTRY_INFO!A67) -> Burkina Faso | B67: =IF(COUNTRY_INFO!B67=0," ",COUNTRY_INFO!B67) -> Plateau Central | C67: =IF(COUNTRY_INFO!C67=0," ",COUNTRY_INFO!C67) -> Boussé | D67: =IF(COUNTRY_INFO!$T$9:$T$1000="MDA2 (DEC+ALB)", COUNTRY_INFO!$T$9:$T$1000, " ") ->  | I67: 0 | M67: 0
A68: =IF(COUNTRY_INFO!A68=0," ",COUNTRY_INFO!A68) -> Burkina Faso | B68: =IF(COUNTRY_INFO!B68=0," ",COUNTRY_INFO!B68) -> Plateau Central | C68: =IF(COUNTRY_INFO!C68=0," ",COUNTRY_INFO!C68) -> Ziniaré | D68: =IF(COUNTRY_INFO!$T$9:$T$1000="MDA2 (DEC+ALB)", COUNTRY_INFO!$T$9:$T$1000, " ") ->  | I68: 0 | M68: 0
A69: =IF(COUNTRY_INFO!A69=0," ",COUNTRY_INFO!A69) -> Burkina Faso | B69: =IF(COUNTRY_INFO!B69=0," ",COUNTRY_INFO!B69) -> Plateau Central | C69: =IF(COUNTRY_INFO!C69=0," ",COUNTRY_INFO!C69) -> Zorgho | D69: =IF(COUNTRY_INFO!$T$9:$T$1000="MDA2 (DEC+ALB)", COUNTRY_INFO!$T$9:$T$1000, " ") ->  | I69: 0 | M69: 0
A70: =IF(COUNTRY_INFO!A70=0," ",COUNTRY_INFO!A70) -> Burkina Faso | B70: =IF(COUNTRY_INFO!B70=0," ",COUNTRY_INFO!B70) -> Sahel | C70: =IF(COUNTRY_INFO!C70=0," ",COUNTRY_INFO!C70) -> Djibo | D70: =IF(COUNTRY_INFO!$T$9:$T$1000="MDA2 (DEC+ALB)", COUNTRY_INFO!$T$9:$T$1000, " ") ->  | I70: 0 | M70: 0
A71: =IF(COUNTRY_INFO!A71=0," ",COUNTRY_INFO!A71) -> Burkina Faso | B71: =IF(COUNTRY_INFO!B71=0," ",COUNTRY_INFO!B71) -> Sahel | C71: =IF(COUNTRY_INFO!C71=0," ",COUNTRY_INFO!C71) -> Dori | D71: =IF(COUNTRY_INFO!$T$9:$T$1000="MDA2 (DEC+ALB)", COUNTRY_INFO!$T$9:$T$1000, " ") ->  | I71: 0 | M71: 0
A72: =IF(COUNTRY_INFO!A72=0," ",COUNTRY_INFO!A72) -> Burkina Faso | B72: =IF(COUNTRY_INFO!B72=0," ",COUNTRY_INFO!B72) -> Sahel | C72: =IF(COUNTRY_INFO!C72=0," ",COUNTRY_INFO!C72) -> Gorom-Gorom | D72: =IF(COUNTRY_INFO!$T$9:$T$1000="MDA2 (DEC+ALB)", COUNTRY_INFO!$T$9:$T$1000, " ") ->  | I72: 0 | M72: 0
A73: =IF(COUNTRY_INFO!A73=0," ",COUNTRY_INFO!A73) -> Burkina Faso | B73: =IF(COUNTRY_INFO!B73=0," ",COUNTRY_INFO!B73) -> Sahel | C73: =IF(COUNTRY_INFO!C73=0," ",COUNTRY_INFO!C73) -> Sebba | D73: =IF(COUNTRY_INFO!$T$9:$T$1000="MDA2 (DEC+ALB)", COUNTRY_INFO!$T$9:$T$1000, " ") ->  | I73: 0 | M73: 0
A74: =IF(COUNTRY_INFO!A74=0," ",COUNTRY_INFO!A74) -> Burkina Faso | B74: =IF(COUNTRY_INFO!B74=0," ",COUNTRY_INFO!B74) -> Sud-Ouest | C74: =IF(COUNTRY_INFO!C74=0," ",COUNTRY_INFO!C74) -> Batié | D74: =IF(COUNTRY_INFO!$T$9:$T$1000="MDA2 (DEC+ALB)", COUNTRY_INFO!$T$9:$T$1000, " ") ->  | I74: =SUM(F74:H74) -> 0 | M74: =SUM(J74:L74) -> 0 | N74: =IF(F74<>0, IF(J74/F74*100=0, "-", J74/F74*100), " ") ->  | O74: =IF(G74<>0, IF(K74/G74*100=0, "-", K74/G74*100), " ") ->  | P74: =IF(H74<>0, IF(L74/H74*100=0, "-", L74/H74*100), " ") ->  | Q74: =IF(I74<>0, IF(M74/I74*100=0, "-", M74/I74*100), " ") -> 
A75: =IF(COUNTRY_INFO!A75=0," ",COUNTRY_INFO!A75) -> Burkina Faso | B75: =IF(COUNTRY_INFO!B75=0," ",COUNTRY_INFO!B75) -> Sud-Ouest | C75: =IF(COUNTRY_INFO!C75=0," ",COUNTRY_INFO!C75) -> Dano | D75: =IF(COUNTRY_INFO!$T$9:$T$1000="MDA2 (DEC+ALB)", COUNTRY_INFO!$T$9:$T$1000, " ") ->  | I75: 0 | M75: 0
A76: =IF(COUNTRY_INFO!A76=0," ",COUNTRY_INFO!A76) -> Burkina Faso | B76: =IF(COUNTRY_INFO!B76=0," ",COUNTRY_INFO!B76) -> Sud-Ouest | C76: =IF(COUNTRY_INFO!C76=0," ",COUNTRY_INFO!C76) -> Diébougou | D76: =IF(COUNTRY_INFO!$T$9:$T$1000="MDA2 (DEC+ALB)", COUNTRY_INFO!$T$9:$T$1000, " ") ->  | I76: 0 | M76: 0
A77: =IF(COUNTRY_INFO!A77=0," ",COUNTRY_INFO!A77) -> Burkina Faso | B77: =IF(COUNTRY_INFO!B77=0," ",COUNTRY_INFO!B77) -> Sud-Ouest | C77: =IF(COUNTRY_INFO!C77=0," ",COUNTRY_INFO!C77) -> Gaoua | D77: =IF(COUNTRY_INFO!$T$9:$T$1000="MDA2 (DEC+ALB)", COUNTRY_INFO!$T$9:$T$1000, " ") ->  | I77: 0 | M77: 0
A78: =IF(COUNTRY_INFO!A78=0," ",COUNTRY_INFO!A78) -> Burkina Faso | B78: =IF(COUNTRY_INFO!B78=0," ",COUNTRY_INFO!B78) -> Sud-Ouest | C78: =IF(COUNTRY_INFO!C78=0," ",COUNTRY_INFO!C78) -> Kampti | D78: =IF(COUNTRY_INFO!$T$9:$T$1000="MDA2 (DEC+ALB)", COUNTRY_INFO!$T$9:$T$1000, " ") ->  | I78: 0 | M78: 0

Sheet MDA3
A1: MDA 3 - Ivermectin (IVM)
A2: Administrative structure, population requiring PC by age group, population treated by age group and coverage
A4: TOTAL | F4: =SUM(F$9:F$1000) -> 75702 | G4: 179892 | H4: 255594 | I4: 75467.6104 | J4: 127793.3896 | K4: 203261 | L4: 0 | M4: 0 | N4: 0 | O4: 75467.6104 | P4: 127793.3896 | Q4: 203261 | R4: =IF(F4<>0, IF(O4/F4*100=0, "-", O4/F4*100), " ") -> 99.69037859 | S4: =IF(G4<>0, IF(P4/G4*100=0, "-", P4/G4*100), " ") -> 71.03895093 | T4: =IF(H4<>0, IF(Q4/H4*100=0, "-", Q4/H4*100), " ") -> 79.52494972
D6: PC implemented | E6: Date | F6: Population targeted for MDA 3 | I6: Population treated - 1st round | L6: Population treated - 2nd round | O6: Population treated | R6: Programme coverage (%)
A7: Country | B7: Province/State | C7: District | F7: SAC | G7: Adults | H7: Total | I7: SAC | J7: Adults | K7: Total | L7: SAC | M7: Adults | N7: Total | O7: SAC | P7: Adults | Q7: Total | R7: SAC | S7: Adults | T7: Total
A9: =IF(COUNTRY_INFO!A9=0," ",COUNTRY_INFO!A9) -> Burkina Faso | B9: =IF(COUNTRY_INFO!B9=0," ",COUNTRY_INFO!B9) -> Boucle du Mouhoun | C9: =IF(COUNTRY_INFO!C9=0," ",COUNTRY_INFO!C9) -> Boromo | D9: =IF(COUNTRY_INFO!$T$9:$T$1000="MDA3 (IVM)", COUNTRY_INFO!$T$9:$T$1000, " ") ->  | H9: =SUM(F9:G9) -> 0 | K9: =SUM(I9:J9) -> 0 | N9: =SUM(L9:M9) -> 0 | O9: =MAX(I9,L9) -> 0 | P9: 0 | Q9: =SUM(O9:P9) -> 0 | R9: =IF(F9<>0, IF(MAX(I9,L9)/F9*100=0, "-", MAX(I9,L9)/F9*100), " ") ->  | T9: =IF(H9<>0, IF((MAX(I9,L9)+MAX(J9,M9))/H9*100=0, "-",(MAX(I9,L9)+MAX(J9,M9))/H9*100), " ") -> 
A10: =IF(COUNTRY_INFO!A10=0," ",COUNTRY_INFO!A10) -> Burkina Faso | B10: =IF(COUNTRY_INFO!B10=0," ",COUNTRY_INFO!B10) -> Boucle du Mouhoun | C10: =IF(COUNTRY_INFO!C10=0," ",COUNTRY_INFO!C10) -> Dédougou | D10: =IF(COUNTRY_INFO!$T$9:$T$1000="MDA3 (IVM)", COUNTRY_INFO!$T$9:$T$1000, " ") ->  | H10: =SUM(F10:G10) -> 0 | K10: =SUM(I10:J10) -> 0 | N10: =SUM(L10:M10) -> 0 | O10: =MAX(I10,L10) -> 0 | P10: =MAX(J10,M10) -> 0 | Q10: =SUM(O10:P10) -> 0 | R10: =IF(F10<>0, IF(MAX(I10,L10)/F10*100=0, "-", MAX(I10,L10)/F10*100), " ") ->  | S10: =IF(G10<>0, IF(MAX(J10,M10)/G10*100=0, "-", MAX(J10,M10)/G10*100), " ") ->  | T10: =IF(H10<>0, IF((MAX(I10,L10)+MAX(J10,M10))/H10*100=0, "-",(MAX(I10,L10)+MAX(J10,M10))/H10*100), " ") -> 
A11: =IF(COUNTRY_INFO!A11=0," ",COUNTRY_INFO!A11) -> Burkina Faso | B11: =IF(COUNTRY_INFO!B11=0," ",COUNTRY_INFO!B11) -> Boucle du Mouhoun | C11: =IF(COUNTRY_INFO!C11=0," ",COUNTRY_INFO!C11) -> Nouna | D11: =IF(COUNTRY_INFO!$T$9:$T$1000="MDA3 (IVM)", COUNTRY_INFO!$T$9:$T$1000, " ") ->  | H11: 0 | K11: 0 | N11: 0 | O11: 0 | P11: 0 | Q11: 0
A12: =IF(COUNTRY_INFO!A12=0," ",COUNTRY_INFO!A12) -> Burkina Faso | B12: =IF(COUNTRY_INFO!B12=0," ",COUNTRY_INFO!B12) -> Boucle du Mouhoun | C12: =IF(COUNTRY_INFO!C12=0," ",COUNTRY_INFO!C12) -> Solenzo | D12: =IF(COUNTRY_INFO!$T$9:$T$1000="MDA3 (IVM)", COUNTRY_INFO!$T$9:$T$1000, " ") ->  | H12: 0 | K12: 0 | N12: 0 | O12: 0 | P12: 0 | Q12: 0
A13: =IF(COUNTRY_INFO!A13=0," ",COUNTRY_INFO!A13) -> Burkina Faso | B13: =IF(COUNTRY_INFO!B13=0," ",COUNTRY_INFO!B13) -> Boucle du Mouhoun | C13: =IF(COUNTRY_INFO!C13=0," ",COUNTRY_INFO!C13) -> Toma | D13: =IF(COUNTRY_INFO!$T$9:$T$1000="MDA3 (IVM)", COUNTRY_INFO!$T$9:$T$1000, " ") ->  | H13: 0 | K13: 0 | N13: 0 | O13: 0 | P13: 0 | Q13: 0
A14: =IF(COUNTRY_INFO!A14=0," ",COUNTRY_INFO!A14) -> Burkina Faso | B14: =IF(COUNTRY_INFO!B14=0," ",COUNTRY_INFO!B14) -> Boucle du Mouhoun | C14: =IF(COUNTRY_INFO!C14=0," ",COUNTRY_INFO!C14) -> Tougan | D14: =IF(COUNTRY_INFO!$T$9:$T$1000="MDA3 (IVM)", COUNTRY_INFO!$T$9:$T$1000, " ") ->  | H14: 0 | K14: 0 | N14: 0 | O14: 0 | P14: 0 | Q14: 0
A15: =IF(COUNTRY_INFO!A15=0," ",COUNTRY_INFO!A15) -> Burkina Faso | B15: =IF(COUNTRY_INFO!B15=0," ",COUNTRY_INFO!B15) -> Cascades | C15: =IF(COUNTRY_INFO!C15=0," ",COUNTRY_INFO!C15) -> Banfora | D15: =IF(COUNTRY_INFO!$T$9:$T$1000="MDA3 (IVM)", COUNTRY_INFO!$T$9:$T$1000, " ") -> MDA3 (IVM) | E15: 2 au 11 déc16 | F15: 15140 | G15: 35938 | H15: 51078 | I15: 15913 | J15: 23915 | K15: 39828 | N15: 0 | O15: 15913 | P15: 23915 | Q15: 39828 | R15: 105.1056803 | S15: 66.54516111 | T15: 77.97486198
A16: =IF(COUNTRY_INFO!A16=0," ",COUNTRY_INFO!A16) -> Burkina Faso | B16: =IF(COUNTRY_INFO!B16=0," ",COUNTRY_INFO!B16) -> Cascades | C16: =IF(COUNTRY_INFO!C16=0," ",COUNTRY_INFO!C16) -> Mangodara | D16: =IF(COUNTRY_INFO!$T$9:$T$1000="MDA3 (IVM)", COUNTRY_INFO!$T$9:$T$1000, " ") -> MDA3 (IVM) | E16: 2 au 11 déc16 | F16: 2215 | G16: 5255 | H16: 7470 | I16: 2469 | J16: 3443 | K16: 5912 | N16: 0 | O16: 2469 | P16: 3443 | Q16: 5912 | R16: 111.4672686 | S16: 65.51855376 | T16: 79.14323963
A17: =IF(COUNTRY_INFO!A17=0," ",COUNTRY_INFO!A17) -> Burkina Faso | B17: =IF(COUNTRY_INFO!B17=0," ",COUNTRY_INFO!B17) -> Cascades | C17: =IF(COUNTRY_INFO!C17=0," ",COUNTRY_INFO!C17) -> Sindou | D17: =IF(COUNTRY_INFO!$T$9:$T$1000="MDA3 (IVM)", COUNTRY_INFO!$T$9:$T$1000, " ") ->  | H17: 0 | K17: 0 | N17: 0 | O17: 0 | P17: 0 | Q17: 0
A18: =IF(COUNTRY_INFO!A18=0," ",COUNTRY_INFO!A18) -> Burkina Faso | B18: =IF(COUNTRY_INFO!B18=0," ",COUNTRY_INFO!B18) -> Centre | C18: =IF(COUNTRY_INFO!C18=0," ",COUNTRY_INFO!C18) -> Baskuy | D18: =IF(COUNTRY_INFO!$T$9:$T$1000="MDA3 (IVM)", COUNTRY_INFO!$T$9:$T$1000, " ") ->  | H18: 0 | K18: 0 | N18: 0 | O18: 0 | P18: 0 | Q18: 0
A19: =IF(COUNTRY_INFO!A19=0," ",COUNTRY_INFO!A19) -> Burkina Faso | B19: =IF(COUNTRY_INFO!B19=0," ",COUNTRY_INFO!B19) -> Centre | C19: =IF(COUNTRY_INFO!C19=0," ",COUNTRY_INFO!C19) -> Bogodogo | D19: =IF(COUNTRY_INFO!$T$9:$T$1000="MDA3 (IVM)", COUNTRY_INFO!$T$9:$T$1000, " ") ->  | H19: 0 | K19: 0 | N19: 0 | O19: 0 | P19: 0 | Q19: 0
A20: =IF(COUNTRY_INFO!A20=0," ",COUNTRY_INFO!A20) -> Burkina Faso | B20: =IF(COUNTRY_INFO!B20=0," ",COUNTRY_INFO!B20) -> Centre | C20: =IF(COUNTRY_INFO!C20=0," ",COUNTRY_INFO!C20) -> Boulmiougou | D20: =IF(COUNTRY_INFO!$T$9:$T$1000="MDA3 (IVM)", COUNTRY_INFO!$T$9:$T$1000, " ") ->  | H20: 0 | K20: 0 | N20: 0 | O20: 0 | P20: 0 | Q20: 0
A21: =IF(COUNTRY_INFO!A21=0," ",COUNTRY_INFO!A21) -> Burkina Faso | B21: =IF(COUNTRY_INFO!B21=0," ",COUNTRY_INFO!B21) -> Centre | C21: =IF(COUNTRY_INFO!C21=0," ",COUNTRY_INFO!C21) -> Nongre-Massom | D21: =IF(COUNTRY_INFO!$T$9:$T$1000="MDA3 (IVM)", COUNTRY_INFO!$T$9:$T$1000, " ") ->  | H21: 0 | K21: 0 | N21: 0 | O21: 0 | P21: 0 | Q21: 0
A22: =IF(COUNTRY_INFO!A22=0," ",COUNTRY_INFO!A22) -> Burkina Faso | B22: =IF(COUNTRY_INFO!B22=0," ",COUNTRY_INFO!B22) -> Centre | C22: =IF(COUNTRY_INFO!C22=0," ",COUNTRY_INFO!C22) -> Sig-Nonghin | D22: =IF(COUNTRY_INFO!$T$9:$T$1000="MDA3 (IVM)", COUNTRY_INFO!$T$9:$T$1000, " ") ->  | H22: 0 | K22: 0 | N22: 0 | O22: 0 | P22: 0 | Q22: 0
A23: =IF(COUNTRY_INFO!A23=0," ",COUNTRY_INFO!A23) -> Burkina Faso | B23: =IF(COUNTRY_INFO!B23=0," ",COUNTRY_INFO!B23) -> Centre-Est | C23: =IF(COUNTRY_INFO!C23=0," ",COUNTRY_INFO!C23) -> Bittou | D23: =IF(COUNTRY_INFO!$T$9:$T$1000="MDA3 (IVM)", COUNTRY_INFO!$T$9:$T$1000, " ") ->  | H23: 0 | K23: 0 | N23: 0 | O23: 0 | P23: 0 | Q23: 0
A24: =IF(COUNTRY_INFO!A24=0," ",COUNTRY_INFO!A24) -> Burkina Faso | B24: =IF(COUNTRY_INFO!B24=0," ",COUNTRY_INFO!B24) -> Centre-Est | C24: =IF(COUNTRY_INFO!C24=0," ",COUNTRY_INFO!C24) -> Garango | D24: =IF(COUNTRY_INFO!$T$9:$T$1000="MDA3 (IVM)", COUNTRY_INFO!$T$9:$T$1000, " ") ->  | H24: 0 | K24: 0 | N24: 0 | O24: 0 | P24: 0 | Q24: 0
A25: =IF(COUNTRY_INFO!A25=0," ",COUNTRY_INFO!A25) -> Burkina Faso | B25: =IF(COUNTRY_INFO!B25=0," ",COUNTRY_INFO!B25) -> Centre-Est | C25: =IF(COUNTRY_INFO!C25=0," ",COUNTRY_INFO!C25) -> Koupela | D25: =IF(COUNTRY_INFO!$T$9:$T$1000="MDA3 (IVM)", COUNTRY_INFO!$T$9:$T$1000, " ") ->  | H25: 0 | K25: 0 | N25: 0 | O25: 0 | P25: 0 | Q25: 0
A26: =IF(COUNTRY_INFO!A26=0," ",COUNTRY_INFO!A26) -> Burkina Faso | B26: =IF(COUNTRY_INFO!B26=0," ",COUNTRY_INFO!B26) -> Centre-Est | C26: =IF(COUNTRY_INFO!C26=0," ",COUNTRY_INFO!C26) -> Ouargaye | D26: =IF(COUNTRY_INFO!$T$9:$T$1000="MDA3 (IVM)", COUNTRY_INFO!$T$9:$T$1000, " ") ->  | H26: 0 | K26: 0 | N26: 0 | O26: 0 | P26: 0 | Q26: 0
A27: =IF(COUNTRY_INFO!A27=0," ",COUNTRY_INFO!A27) -> Burkina Faso | B27: =IF(COUNTRY_INFO!B27=0," ",COUNTRY_INFO!B27) -> Centre-Est | C27: =IF(COUNTRY_INFO!C27=0," ",COUNTRY_INFO!C27) -> Pouytenga | D27: =IF(COUNTRY_INFO!$T$9:$T$1000="MDA3 (IVM)", COUNTRY_INFO!$T$9:$T$1000, " ") ->  | H27: 0 | K27: 0 | N27: 0 | O27: 0 | P27: 0 | Q27: 0
A28: =IF(COUNTRY_INFO!A28=0," ",COUNTRY_INFO!A28) -> Burkina Faso | B28: =IF(COUNTRY_INFO!B28=0," ",COUNTRY_INFO!B28) -> Centre-Est | C28: =IF(COUNTRY_INFO!C28=0," ",COUNTRY_INFO!C28) -> Tenkodogo | D28: =IF(COUNTRY_INFO!$T$9:$T$1000="MDA3 (IVM)", COUNTRY_INFO!$T$9:$T$1000, " ") ->  | H28: 0 | K28: 0 | N28: 0 | O28: 0 | P28: 0 | Q28: 0
A29: =IF(COUNTRY_INFO!A29=0," ",COUNTRY_INFO!A29) -> Burkina Faso | B29: =IF(COUNTRY_INFO!B29=0," ",COUNTRY_INFO!B29) -> Centre-Est | C29: =IF(COUNTRY_INFO!C29=0," ",COUNTRY_INFO!C29) -> Zabré | D29: =IF(COUNTRY_INFO!$T$9:$T$1000="MDA3 (IVM)", COUNTRY_INFO!$T$9:$T$1000, " ") ->  | H29: 0 | K29: 0 | N29: 0 | O29: 0 | P29: 0 | Q29: 0
A30: =IF(COUNTRY_INFO!A30=0," ",COUNTRY_INFO!A30) -> Burkina Faso | B30: =IF(COUNTRY_INFO!B30=0," ",COUNTRY_INFO!B30) -> Centre-Nord | C30: =IF(COUNTRY_INFO!C30=0," ",COUNTRY_INFO!C30) -> Barsalogo | D30: =IF(COUNTRY_INFO!$T$9:$T$1000="MDA3 (IVM)", COUNTRY_INFO!$T$9:$T$1000, " ") ->  | H30: 0 | K30: 0 | N30: 0 | O30: 0 | P30: 0 | Q30: 0
A31: =IF(COUNTRY_INFO!A31=0," ",COUNTRY_INFO!A31) -> Burkina Faso | B31: =IF(COUNTRY_INFO!B31=0," ",COUNTRY_INFO!B31) -> Centre-Nord | C31: =IF(COUNTRY_INFO!C31=0," ",COUNTRY_INFO!C31) -> Boulsa | D31: =IF(COUNTRY_INFO!$T$9:$T$1000="MDA3 (IVM)", COUNTRY_INFO!$T$9:$T$1000, " ") ->  | H31: 0 | K31: 0 | N31: 0 | O31: 0 | P31: 0 | Q31: 0
A32: =IF(COUNTRY_INFO!A32=0," ",COUNTRY_INFO!A32) -> Burkina Faso | B32: =IF(COUNTRY_INFO!B32=0," ",COUNTRY_INFO!B32) -> Centre-Nord | C32: =IF(COUNTRY_INFO!C32=0," ",COUNTRY_INFO!C32) -> Boussouma | D32: =IF(COUNTRY_INFO!$T$9:$T$1000="MDA3 (IVM)", COUNTRY_INFO!$T$9:$T$1000, " ") ->  | H32: 0 | K32: 0 | N32: 0 | O32: 0 | P32: 0 | Q32: 0
A33: =IF(COUNTRY_INFO!A33=0," ",COUNTRY_INFO!A33) -> Burkina Faso | B33: =IF(COUNTRY_INFO!B33=0," ",COUNTRY_INFO!B33) -> Centre-Nord | C33: =IF(COUNTRY_INFO!C33=0," ",COUNTRY_INFO!C33) -> Kaya | D33: =IF(COUNTRY_INFO!$T$9:$T$1000="MDA3 (IVM)", COUNTRY_INFO!$T$9:$T$1000, " ") ->  | H33: 0 | K33: 0 | N33: 0 | O33: 0 | P33: 0 | Q33: 0
A34: =IF(COUNTRY_INFO!A34=0," ",COUNTRY_INFO!A34) -> Burkina Faso | B34: =IF(COUNTRY_INFO!B34=0," ",COUNTRY_INFO!B34) -> Centre-Nord | C34: =IF(COUNTRY_INFO!C34=0," ",COUNTRY_INFO!C34) -> Kongoussi | D34: =IF(COUNTRY_INFO!$T$9:$T$1000="MDA3 (IVM)", COUNTRY_INFO!$T$9:$T$1000, " ") ->  | H34: 0 | K34: 0 | N34: 0 | O34: 0 | P34: 0 | Q34: 0
A35: =IF(COUNTRY_INFO!A35=0," ",COUNTRY_INFO!A35) -> Burkina Faso | B35: =IF(COUNTRY_INFO!B35=0," ",COUNTRY_INFO!B35) -> Centre-Nord | C35: =IF(COUNTRY_INFO!C35=0," ",COUNTRY_INFO!C35) -> Tougouri | D35: =IF(COUNTRY_INFO!$T$9:$T$1000="MDA3 (IVM)", COUNTRY_INFO!$T$9:$T$1000, " ") ->  | H35: 0 | K35: 0 | N35: 0 | O35: 0 | P35: 0 | Q35: 0
A36: =IF(COUNTRY_INFO!A36=0," ",COUNTRY_INFO!A36) -> Burkina Faso | B36: =IF(COUNTRY_INFO!B36=0," ",COUNTRY_INFO!B36) -> Centre-Ouest | C36: =IF(COUNTRY_INFO!C36=0," ",COUNTRY_INFO!C36) -> Koudougou | D36: =IF(COUNTRY_INFO!$T$9:$T$1000="MDA3 (IVM)", COUNTRY_INFO!$T$9:$T$1000, " ") ->  | H36: 0 | K36: 0 | N36: 0 | O36: 0 | P36: 0 | Q36: 0
A37: =IF(COUNTRY_INFO!A37=0," ",COUNTRY_INFO!A37) -> Burkina Faso | B37: =IF(COUNTRY_INFO!B37=0," ",COUNTRY_INFO!B37) -> Centre-Ouest | C37: =IF(COUNTRY_INFO!C37=0," ",COUNTRY_INFO!C37) -> Léo | D37: =IF(COUNTRY_INFO!$T$9:$T$1000="MDA3 (IVM)", COUNTRY_INFO!$T$9:$T$1000, " ") ->  | H37: 0 | K37: 0 | N37: 0 | O37: 0 | P37: 0 | Q37: 0
A38: =IF(COUNTRY_INFO!A38=0," ",COUNTRY_INFO!A38) -> Burkina Faso | B38: =IF(COUNTRY_INFO!B38=0," ",COUNTRY_INFO!B38) -> Centre-Ouest | C38: =IF(COUNTRY_INFO!C38=0," ",COUNTRY_INFO!C38) -> Nanoro | D38: =IF(COUNTRY_INFO!$T$9:$T$1000="MDA3 (IVM)", COUNTRY_INFO!$T$9:$T$1000, " ") ->  | H38: 0 | K38: 0 | N38: 0 | O38: 0 | P38: 0 | Q38: 0
A39: =IF(COUNTRY_INFO!A39=0," ",COUNTRY_INFO!A39) -> Burkina Faso | B39: =IF(COUNTRY_INFO!B39=0," ",COUNTRY_INFO!B39) -> Centre-Ouest | C39: =IF(COUNTRY_INFO!C39=0," ",COUNTRY_INFO!C39) -> Réo | D39: =IF(COUNTRY_INFO!$T$9:$T$1000="MDA3 (IVM)", COUNTRY_INFO!$T$9:$T$1000, " ") ->  | H39: 0 | K39: 0 | N39: 0 | O39: 0 | P39: 0 | Q39: 0
A40: =IF(COUNTRY_INFO!A40=0," ",COUNTRY_INFO!A40) -> Burkina Faso | B40: =IF(COUNTRY_INFO!B40=0," ",COUNTRY_INFO!B40) -> Centre-Ouest | C40: =IF(COUNTRY_INFO!C40=0," ",COUNTRY_INFO!C40) -> Sabou | D40: =IF(COUNTRY_INFO!$T$9:$T$1000="MDA3 (IVM)", COUNTRY_INFO!$T$9:$T$1000, " ") ->  | H40: 0 | K40: 0 | N40: 0 | O40: 0 | P40: 0 | Q40: 0
A41: =IF(COUNTRY_INFO!A41=0," ",COUNTRY_INFO!A41) -> Burkina Faso | B41: =IF(COUNTRY_INFO!B41=0," ",COUNTRY_INFO!B41) -> Centre-Ouest | C41: =IF(COUNTRY_INFO!C41=0," ",COUNTRY_INFO!C41) -> Sapouy | D41: =IF(COUNTRY_INFO!$T$9:$T$1000="MDA3 (IVM)", COUNTRY_INFO!$T$9:$T$1000, " ") ->  | H41: 0 | K41: 0 | N41: 0 | O41: 0 | P41: 0 | Q41: 0
A42: =IF(COUNTRY_INFO!A42=0," ",COUNTRY_INFO!A42) -> Burkina Faso | B42: =IF(COUNTRY_INFO!B42=0," ",COUNTRY_INFO!B42) -> Centre-Ouest | C42: =IF(COUNTRY_INFO!C42=0," ",COUNTRY_INFO!C42) -> Tenado | D42: =IF(COUNTRY_INFO!$T$9:$T$1000="MDA3 (IVM)", COUNTRY_INFO!$T$9:$T$1000, " ") ->  | H42: 0 | K42: 0 | N42: 0 | O42: 0 | P42: 0 | Q42: 0
A43: =IF(COUNTRY_INFO!A43=0," ",COUNTRY_INFO!A43) -> Burkina Faso | B43: =IF(COUNTRY_INFO!B43=0," ",COUNTRY_INFO!B43) -> Centre-Sud | C43: =IF(COUNTRY_INFO!C43=0," ",COUNTRY_INFO!C43) -> Kombissiri | D43: =IF(COUNTRY_INFO!$T$9:$T$1000="MDA3 (IVM)", COUNTRY_INFO!$T$9:$T$1000, " ") ->  | H43: 0 | K43: 0 | N43: 0 | O43: 0 | P43: 0 | Q43: 0
A44: =IF(COUNTRY_INFO!A44=0," ",COUNTRY_INFO!A44) -> Burkina Faso | B44: =IF(COUNTRY_INFO!B44=0," ",COUNTRY_INFO!B44) -> Centre-Sud | C44: =IF(COUNTRY_INFO!C44=0," ",COUNTRY_INFO!C44) -> Manga | D44: =IF(COUNTRY_INFO!$T$9:$T$1000="MDA3 (IVM)", COUNTRY_INFO!$T$9:$T$1000, " ") ->  | H44: 0 | K44: 0 | N44: 0 | O44: 0 | P44: 0 | Q44: 0
A45: =IF(COUNTRY_INFO!A45=0," ",COUNTRY_INFO!A45) -> Burkina Faso | B45: =IF(COUNTRY_INFO!B45=0," ",COUNTRY_INFO!B45) -> Centre-Sud | C45: =IF(COUNTRY_INFO!C45=0," ",COUNTRY_INFO!C45) -> Pô | D45: =IF(COUNTRY_INFO!$T$9:$T$1000="MDA3 (IVM)", COUNTRY_INFO!$T$9:$T$1000, " ") ->  | H45: 0 | K45: 0 | N45: 0 | O45: 0 | P45: 0 | Q45: 0
A46: =IF(COUNTRY_INFO!A46=0," ",COUNTRY_INFO!A46) -> Burkina Faso | B46: =IF(COUNTRY_INFO!B46=0," ",COUNTRY_INFO!B46) -> Centre-Sud | C46: =IF(COUNTRY_INFO!C46=0," ",COUNTRY_INFO!C46) -> Saponé | D46: =IF(COUNTRY_INFO!$T$9:$T$1000="MDA3 (IVM)", COUNTRY_INFO!$T$9:$T$1000, " ") ->  | H46: 0 | K46: 0 | N46: 0 | O46: 0 | P46: 0 | Q46: 0
A47: =IF(COUNTRY_INFO!A47=0," ",COUNTRY_INFO!A47) -> Burkina Faso | B47: =IF(COUNTRY_INFO!B47=0," ",COUNTRY_INFO!B47) -> Est | C47: =IF(COUNTRY_INFO!C47=0," ",COUNTRY_INFO!C47) -> Bogandé | D47: =IF(COUNTRY_INFO!$T$9:$T$1000="MDA3 (IVM)", COUNTRY_INFO!$T$9:$T$1000, " ") ->  | H47: 0 | K47: 0 | N47: 0 | O47: 0 | P47: 0 | Q47: 0
A48: =IF(COUNTRY_INFO!A48=0," ",COUNTRY_INFO!A48) -> Burkina Faso | B48: =IF(COUNTRY_INFO!B48=0," ",COUNTRY_INFO!B48) -> Est | C48: =IF(COUNTRY_INFO!C48=0," ",COUNTRY_INFO!C48) -> Diapaga | D48: =IF(COUNTRY_INFO!$T$9:$T$1000="MDA3 (IVM)", COUNTRY_INFO!$T$9:$T$1000, " ") ->  | H48: 0 | K48: 0 | N48: 0 | O48: 0 | P48: 0 | Q48: 0
A49: =IF(COUNTRY_INFO!A49=0," ",COUNTRY_INFO!A49) -> Burkina Faso | B49: =IF(COUNTRY_INFO!B49=0," ",COUNTRY_INFO!B49) -> Est | C49: =IF(COUNTRY_INFO!C49=0," ",COUNTRY_INFO!C49) -> Fada N'gourma | D49: =IF(COUNTRY_INFO!$T$9:$T$1000="MDA3 (IVM)", COUNTRY_INFO!$T$9:$T$1000, " ") ->  | H49: 0 | K49: 0 | N49: 0 | O49: 0 | P49: 0 | Q49: 0
A50: =IF(COUNTRY_INFO!A50=0," ",COUNTRY_INFO!A50) -> Burkina Faso | B50: =IF(COUNTRY_INFO!B50=0," ",COUNTRY_INFO!B50) -> Est | C50: =IF(COUNTRY_INFO!C50=0," ",COUNTRY_INFO!C50) -> Gayeri | D50: =IF(COUNTRY_INFO!$T$9:$T$1000="MDA3 (IVM)", COUNTRY_INFO!$T$9:$T$1000, " ") ->  | H50: 0 | K50: 0 | N50: 0 | O50: 0 | P50: 0 | Q50: 0
A51: =IF(COUNTRY_INFO!A51=0," ",COUNTRY_INFO!A51) -> Burkina Faso | B51: =IF(COUNTRY_INFO!B51=0," ",COUNTRY_INFO!B51) -> Est | C51: =IF(COUNTRY_INFO!C51=0," ",COUNTRY_INFO!C51) -> Manni | D51: =IF(COUNTRY_INFO!$T$9:$T$1000="MDA3 (IVM)", COUNTRY_INFO!$T$9:$T$1000, " ") ->  | H51: 0 | K51: 0 | N51: 0 | O51: 0 | P51: 0 | Q51: 0
A52: =IF(COUNTRY_INFO!A52=0," ",COUNTRY_INFO!A52) -> Burkina Faso | B52: =IF(COUNTRY_INFO!B52=0," ",COUNTRY_INFO!B52) -> Est | C52: =IF(COUNTRY_INFO!C52=0," ",COUNTRY_INFO!C52) -> Pama | D52: =IF(COUNTRY_INFO!$T$9:$T$1000="MDA3 (IVM)", COUNTRY_INFO!$T$9:$T$1000, " ") ->  | H52: 0 | K52: 0 | N52: 0 | O52: 0 | P52: 0 | Q52: 0
A53: =IF(COUNTRY_INFO!A53=0," ",COUNTRY_INFO!A53) -> Burkina Faso | B53: =IF(COUNTRY_INFO!B53=0," ",COUNTRY_INFO!B53) -> Hauts-Bassins | C53: =IF(COUNTRY_INFO!C53=0," ",COUNTRY_INFO!C53) -> Dafra | D53: =IF(COUNTRY_INFO!$T$9:$T$1000="MDA3 (IVM)", COUNTRY_INFO!$T$9:$T$1000, " ") ->  | H53: 0 | K53: 0 | N53: 0 | O53: 0 | P53: 0 | Q53: 0
A54: =IF(COUNTRY_INFO!A54=0," ",COUNTRY_INFO!A54) -> Burkina Faso | B54: =IF(COUNTRY_INFO!B54=0," ",COUNTRY_INFO!B54) -> Hauts-Bassins | C54: =IF(COUNTRY_INFO!C54=0," ",COUNTRY_INFO!C54) -> Dandé | D54: =IF(COUNTRY_INFO!$T$9:$T$1000="MDA3 (IVM)", COUNTRY_INFO!$T$9:$T$1000, " ") ->  | H54: 0 | K54: 0 | N54: 0 | O54: 0 | P54: 0 | Q54: 0
A55: =IF(COUNTRY_INFO!A55=0," ",COUNTRY_INFO!A55) -> Burkina Faso | B55: =IF(COUNTRY_INFO!B55=0," ",COUNTRY_INFO!B55) -> Hauts-Bassins | C55: =IF(COUNTRY_INFO!C55=0," ",COUNTRY_INFO!C55) -> Dô | D55: =IF(COUNTRY_INFO!$T$9:$T$1000="MDA3 (IVM)", COUNTRY_INFO!$T$9:$T$1000, " ") ->  | H55: 0 | K55: 0 | N55: 0 | O55: 0 | P55: 0 | Q55: 0
A56: =IF(COUNTRY_INFO!A56=0," ",COUNTRY_INFO!A56) -> Burkina Faso | B56: =IF(COUNTRY_INFO!B56=0," ",COUNTRY_INFO!B56) -> Hauts-Bassins | C56: =IF(COUNTRY_INFO!C56=0," ",COUNTRY_INFO!C56) -> Houndé | D56: =IF(COUNTRY_INFO!$T$9:$T$1000="MDA3 (IVM)", COUNTRY_INFO!$T$9:$T$1000, " ") ->  | H56: 0 | K56: 0 | N56: 0 | O56: 0 | P56: 0 | Q56: 0
A57: =IF(COUNTRY_INFO!A57=0," ",COUNTRY_INFO!A57) -> Burkina Faso | B57: =IF(COUNTRY_INFO!B57=0," ",COUNTRY_INFO!B57) -> Hauts-Bassins | C57: =IF(COUNTRY_INFO!C57=0," ",COUNTRY_INFO!C57) -> Karangasso-Vigué | D57: =IF(COUNTRY_INFO!$T$9:$T$1000="MDA3 (IVM)", COUNTRY_INFO!$T$9:$T$1000, " ") ->  | H57: 0 | K57: 0 | N57: 0 | O57: 0 | P57: 0 | Q57: 0
A58: =IF(COUNTRY_INFO!A58=0," ",COUNTRY_INFO!A58) -> Burkina Faso | B58: =IF(COUNTRY_INFO!B58=0," ",COUNTRY_INFO!B58) -> Hauts-Bassins | C58: =IF(COUNTRY_INFO!C58=0," ",COUNTRY_INFO!C58) -> Lena | D58: =IF(COUNTRY_INFO!$T$9:$T$1000="MDA3 (IVM)", COUNTRY_INFO!$T$9:$T$1000, " ") ->  | H58: 0 | K58: 0 | N58: 0 | O58: 0 | P58: 0 | Q58: 0
A59: =IF(COUNTRY_INFO!A59=0," ",COUNTRY_INFO!A59) -> Burkina Faso | B59: =IF(COUNTRY_INFO!B59=0," ",COUNTRY_INFO!B59) -> Hauts-Bassins | C59: =IF(COUNTRY_INFO!C59=0," ",COUNTRY_INFO!C59) -> N'Dorola | D59: =IF(COUNTRY_INFO!$T$9:$T$1000="MDA3 (IVM)", COUNTRY_INFO!$T$9:$T$1000, " ") ->  | H59: 0 | K59: 0 | N59: 0 | O59: 0 | P59: 0 | Q59: 0
A60: =IF(COUNTRY_INFO!A60=0," ",COUNTRY_INFO!A60) -> Burkina Faso | B60: =IF(COUNTRY_INFO!B60=0," ",COUNTRY_INFO!B60) -> Hauts-Bassins | C60: =IF(COUNTRY_INFO!C60=0," ",COUNTRY_INFO!C60) -> Orodara | D60: =IF(COUNTRY_INFO!$T$9:$T$1000="MDA3 (IVM)", COUNTRY_INFO!$T$9:$T$1000, " ") ->  | H60: 0 | K60: 0 | N60: 0 | O60: 0 | P60: 0 | Q60: 0
A61: =IF(COUNTRY_INFO!A61=0," ",COUNTRY_INFO!A61) -> Burkina Faso | B61: =IF(COUNTRY_INFO!B61=0," ",COUNTRY_INFO!B61) -> Nord | C61: =IF(COUNTRY_INFO!C61=0," ",COUNTRY_INFO!C61) -> Gourcy | D61: =IF(COUNTRY_INFO!$T$9:$T$1000="MDA3 (IVM)", COUNTRY_INFO!$T$9:$T$1000, " ") ->  | H61: 0 | K61: 0 | N61: 0 | O61: 0 | P61: 0 | Q61: 0
A62: =IF(COUNTRY_INFO!A62=0," ",COUNTRY_INFO!A62) -> Burkina Faso | B62: =IF(COUNTRY_INFO!B62=0," ",COUNTRY_INFO!B62) -> Nord | C62: =IF(COUNTRY_INFO!C62=0," ",COUNTRY_INFO!C62) -> Ouahigouya | D62: =IF(COUNTRY_INFO!$T$9:$T$1000="MDA3 (IVM)", COUNTRY_INFO!$T$9:$T$1000, " ") ->  | H62: 0 | K62: 0 | N62: 0 | O62: 0 | P62: 0 | Q62: 0
A63: =IF(COUNTRY_INFO!A63=0," ",COUNTRY_INFO!A63) -> Burkina Faso | B63: =IF(COUNTRY_INFO!B63=0," ",COUNTRY_INFO!B63) -> Nord | C63: =IF(COUNTRY_INFO!C63=0," ",COUNTRY_INFO!C63) -> Seguenega | D63: =IF(COUNTRY_INFO!$T$9:$T$1000="MDA3 (IVM)", COUNTRY_INFO!$T$9:$T$1000, " ") ->  | H63: 0 | K63: 0 | N63: 0 | O63: 0 | P63: 0 | Q63: 0
A64: =IF(COUNTRY_INFO!A64=0," ",COUNTRY_INFO!A64) -> Burkina Faso | B64: =IF(COUNTRY_INFO!B64=0," ",COUNTRY_INFO!B64) -> Nord | C64: =IF(COUNTRY_INFO!C64=0," ",COUNTRY_INFO!C64) -> Thiou | D64: =IF(COUNTRY_INFO!$T$9:$T$1000="MDA3 (IVM)", COUNTRY_INFO!$T$9:$T$1000, " ") ->  | H64: 0 | K64: 0 | N64: 0 | O64: 0 | P64: 0 | Q64: 0
A65: =IF(COUNTRY_INFO!A65=0," ",COUNTRY_INFO!A65) -> Burkina Faso | B65: =IF(COUNTRY_INFO!B65=0," ",COUNTRY_INFO!B65) -> Nord | C65: =IF(COUNTRY_INFO!C65=0," ",COUNTRY_INFO!C65) -> Titao | D65: =IF(COUNTRY_INFO!$T$9:$T$1000="MDA3 (IVM)", COUNTRY_INFO!$T$9:$T$1000, " ") ->  | H65: 0 | K65: 0 | N65: 0 | O65: 0 | P65: 0 | Q65: 0
A66: =IF(COUNTRY_INFO!A66=0," ",COUNTRY_INFO!A66) -> Burkina Faso | B66: =IF(COUNTRY_INFO!B66=0," ",COUNTRY_INFO!B66) -> Nord | C66: =IF(COUNTRY_INFO!C66=0," ",COUNTRY_INFO!C66) -> Yako | D66: =IF(COUNTRY_INFO!$T$9:$T$1000="MDA3 (IVM)", COUNTRY_INFO!$T$9:$T$1000, " ") ->  | H66: 0 | K66: 0 | N66: 0 | O66: 0 | P66: 0 | Q66: 0
A67: =IF(COUNTRY_INFO!A67=0," ",COUNTRY_INFO!A67) -> Burkina Faso | B67: =IF(COUNTRY_INFO!B67=0," ",COUNTRY_INFO!B67) -> Plateau Central | C67: =IF(COUNTRY_INFO!C67=0," ",COUNTRY_INFO!C67) -> Boussé | D67: =IF(COUNTRY_INFO!$T$9:$T$1000="MDA3 (IVM)", COUNTRY_INFO!$T$9:$T$1000, " ") ->  | H67: 0 | K67: 0 | N67: 0 | O67: 0 | P67: 0 | Q67: 0
A68: =IF(COUNTRY_INFO!A68=0," ",COUNTRY_INFO!A68) -> Burkina Faso | B68: =IF(COUNTRY_INFO!B68=0," ",COUNTRY_INFO!B68) -> Plateau Central | C68: =IF(COUNTRY_INFO!C68=0," ",COUNTRY_INFO!C68) -> Ziniaré | D68: =IF(COUNTRY_INFO!$T$9:$T$1000="MDA3 (IVM)", COUNTRY_INFO!$T$9:$T$1000, " ") ->  | H68: 0 | K68: 0 | N68: 0 | O68: 0 | P68: 0 | Q68: 0
A69: =IF(COUNTRY_INFO!A69=0," ",COUNTRY_INFO!A69) -> Burkina Faso | B69: =IF(COUNTRY_INFO!B69=0," ",COUNTRY_INFO!B69) -> Plateau Central | C69: =IF(COUNTRY_INFO!C69=0," ",COUNTRY_INFO!C69) -> Zorgho | D69: =IF(COUNTRY_INFO!$T$9:$T$1000="MDA3 (IVM)", COUNTRY_INFO!$T$9:$T$1000, " ") ->  | H69: 0 | K69: 0 | N69: 0 | O69: 0 | P69: 0 | Q69: 0
A70: =IF(COUNTRY_INFO!A70=0," ",COUNTRY_INFO!A70) -> Burkina Faso | B70: =IF(COUNTRY_INFO!B70=0," ",COUNTRY_INFO!B70) -> Sahel | C70: =IF(COUNTRY_INFO!C70=0," ",COUNTRY_INFO!C70) -> Djibo | D70: =IF(COUNTRY_INFO!$T$9:$T$1000="MDA3 (IVM)", COUNTRY_INFO!$T$9:$T$1000, " ") ->  | H70: 0 | K70: 0 | N70: 0 | O70: 0 | P70: 0 | Q70: 0
A71: =IF(COUNTRY_INFO!A71=0," ",COUNTRY_INFO!A71) -> Burkina Faso | B71: =IF(COUNTRY_INFO!B71=0," ",COUNTRY_INFO!B71) -> Sahel | C71: =IF(COUNTRY_INFO!C71=0," ",COUNTRY_INFO!C71) -> Dori | D71: =IF(COUNTRY_INFO!$T$9:$T$1000="MDA3 (IVM)", COUNTRY_INFO!$T$9:$T$1000, " ") ->  | H71: 0 | K71: 0 | N71: 0 | O71: 0 | P71: 0 | Q71: 0
A72: =IF(COUNTRY_INFO!A72=0," ",COUNTRY_INFO!A72) -> Burkina Faso | B72: =IF(COUNTRY_INFO!B72=0," ",COUNTRY_INFO!B72) -> Sahel | C72: =IF(COUNTRY_INFO!C72=0," ",COUNTRY_INFO!C72) -> Gorom-Gorom | D72: =IF(COUNTRY_INFO!$T$9:$T$1000="MDA3 (IVM)", COUNTRY_INFO!$T$9:$T$1000, " ") ->  | H72: 0 | K72: 0 | N72: 0 | O72: 0 | P72: 0 | Q72: 0
A73: =IF(COUNTRY_INFO!A73=0," ",COUNTRY_INFO!A73) -> Burkina Faso | B73: =IF(COUNTRY_INFO!B73=0," ",COUNTRY_INFO!B73) -> Sahel | C73: =IF(COUNTRY_INFO!C73=0," ",COUNTRY_INFO!C73) -> Sebba | D73: =IF(COUNTRY_INFO!$T$9:$T$1000="MDA3 (IVM)", COUNTRY_INFO!$T$9:$T$1000, " ") ->  | H73: 0 | K73: 0 | N73: 0 | O73: 0 | P73: 0 | Q73: 0
A74: =IF(COUNTRY_INFO!A74=0," ",COUNTRY_INFO!A74) -> Burkina Faso | B74: =IF(COUNTRY_INFO!B74=0," ",COUNTRY_INFO!B74) -> Sud-Ouest | C74: =IF(COUNTRY_INFO!C74=0," ",COUNTRY_INFO!C74) -> Batié | D74: =IF(COUNTRY_INFO!$T$9:$T$1000="MDA3 (IVM)", COUNTRY_INFO!$T$9:$T$1000, " ") ->  | E74: 02au07Mai16 | F74: 10807 | G74: 25689 | H74: =SUM(F74:G74) -> 36496 | I74: 10554.9 | J74: 18570.1 | K74: =SUM(I74:J74) -> 29125 | N74: =SUM(L74:M74) -> 0 | O74: =MAX(I74,L74) -> 10554.9 | P74: =MAX(J74,M74) -> 18570.1 | Q74: =SUM(O74:P74) -> 29125 | R74: =IF(F74<>0, IF(MAX(I74,L74)/F74*100=0, "-", MAX(I74,L74)/F74*100), " ") -> 97.66725271 | S74: =IF(G74<>0, IF(MAX(J74,M74)/G74*100=0, "-", MAX(J74,M74)/G74*100), " ") -> 72.28813889 | T74: =IF(H74<>0, IF((MAX(I74,L74)+MAX(J74,M74))/H74*100=0, "-",(MAX(I74,L74)+MAX(J74,M74))/H74*100), " ") -> 79.80326611
A75: =IF(COUNTRY_INFO!A75=0," ",COUNTRY_INFO!A75) -> Burkina Faso | B75: =IF(COUNTRY_INFO!B75=0," ",COUNTRY_INFO!B75) -> Sud-Ouest | C75: =IF(COUNTRY_INFO!C75=0," ",COUNTRY_INFO!C75) -> Dano | D75: =IF(COUNTRY_INFO!$T$9:$T$1000="MDA3 (IVM)", COUNTRY_INFO!$T$9:$T$1000, " ") ->  | E75: 02au07Mai16 | F75: 25804 | G75: 61340 | H75: 87144 | I75: 25171.5792 | J75: 44286.4208 | K75: 69458 | N75: 0 | O75: 25171.5792 | P75: 44286.4208 | Q75: 69458 | R75: 97.54913657 | S75: 72.19827323 | T75: 79.70485633
A76: =IF(COUNTRY_INFO!A76=0," ",COUNTRY_INFO!A76) -> Burkina Faso | B76: =IF(COUNTRY_INFO!B76=0," ",COUNTRY_INFO!B76) -> Sud-Ouest | C76: =IF(COUNTRY_INFO!C76=0," ",COUNTRY_INFO!C76) -> Diébougou | D76: =IF(COUNTRY_INFO!$T$9:$T$1000="MDA3 (IVM)", COUNTRY_INFO!$T$9:$T$1000, " ") ->  | E76: 02au07Mai16 | F76: 9772 | G76: 23230 | H76: 33002 | I76: 9840.6096 | J76: 17313.3904 | K76: 27154 | N76: 0 | O76: 9840.6096 | P76: 17313.3904 | Q76: 27154 | R76: 100.702104 | S76: 74.53030736 | T76: 82.27986183
A77: =IF(COUNTRY_INFO!A77=0," ",COUNTRY_INFO!A77) -> Burkina Faso | B77: =IF(COUNTRY_INFO!B77=0," ",COUNTRY_INFO!B77) -> Sud-Ouest | C77: =IF(COUNTRY_INFO!C77=0," ",COUNTRY_INFO!C77) -> Gaoua | D77: =IF(COUNTRY_INFO!$T$9:$T$1000="MDA3 (IVM)", COUNTRY_INFO!$T$9:$T$1000, " ") ->  | E77: 02au07Mai16 | F77: 11964 | G77: 28440 | H77: 40404 | I77: 11518.5216 | J77: 20265.4784 | K77: 31784 | N77: 0 | O77: 11518.5216 | P77: 20265.4784 | Q77: 31784 | R77: 96.27650953 | S77: 71.2569564 | T77: 78.66547867
A78: =IF(COUNTRY_INFO!A78=0," ",COUNTRY_INFO!A78) -> Burkina Faso | B78: =IF(COUNTRY_INFO!B78=0," ",COUNTRY_INFO!B78) -> Sud-Ouest | C78: =IF(COUNTRY_INFO!C78=0," ",COUNTRY_INFO!C78) -> Kampti | D78: =IF(COUNTRY_INFO!$T$9:$T$1000="MDA3 (IVM)", COUNTRY_INFO!$T$9:$T$1000, " ") ->  | H78: 0 | K78: 0 | N78: 0 | O78: 0 | P78: 0 | Q78: 0

Sheet T1
A1: T 1 - Praziquantel (PZQ) and Albendazole (ALB) or Mebendazole (MBD)
A2: Administrative structure, population requiring PC by age group, population treated by age group and coverage
A4: TOTAL | G4: =SUM(G$9:G$1000) -> 0 | H4: 3218527 | I4: 3218527 | J4: 2296422 | K4: =SUM(K$9:K$1000) -> 5514949 | L4: 0 | M4: 3278797 | N4: 2079489 | O4: 5358286 | P4: =IF(G4<>0, IF(L4/G4*100=0, "-", L4/G4*100), " ") ->  | Q4: =IF(OR(I4<>0,H4<>0), IF(M4/MAX(H4,I4)*100=0, "-", M4/MAX(H4,I4)*100), " ") -> 101.8725958 | R4: =IF(J4<>0, IF(N4/J4*100=0, "-", N4/J4*100), " ") -> 90.55343487 | S4: =IF(K4<>0, IF(O4/K4*100=0, "-", O4/K4*100), " ") -> 97.15930283
D6: PC implemented | E6: Medicine | F6: Date | G6: Population targeted for T1 | L6: Population treated | P6: Programme coverage (%)
A7: Country | B7: Province/State | C7: District | G7: PreSAC (ALB) | H7: SAC (ALB) | I7: SAC (PZQ) | J7: Adults (PZQ) | K7: Total | L7: PreSAC | M7: SAC | N7: Adults | O7: Total | P7: PreSAC | Q7: SAC | R7: Adults | S7: Total
A9: =IF(COUNTRY_INFO!A9=0," ",COUNTRY_INFO!A9) -> Burkina Faso | B9: =IF(COUNTRY_INFO!B9=0," ",COUNTRY_INFO!B9) -> Boucle du Mouhoun | C9: =IF(COUNTRY_INFO!C9=0," ",COUNTRY_INFO!C9) -> Boromo | D9: =IF(OR(COUNTRY_INFO!$T$9:$T$1000="T1 (PZQ+ALB/MBD)",COUNTRY_INFO!$U$9:$U$1000="T1 (PZQ+ALB/MBD)"), "T1 (PZQ+ALB/MBD)", " ") ->  | K9: =MAX(H9:I9)+G9+J9 -> 0 | O9: =SUM(L9:N9) -> 0 | P9: =IF(G9<>0, IF(L9/G9*100=0, "-", L9/G9*100), " ") ->  | Q9: =IF(OR(I9<>0,H9<>0), IF(M9/MAX(H9,I9)*100=0, "-", M9/MAX(H9,I9)*100), " ") ->  | R9: =IF(J9<>0, IF(N9/J9*100=0, "-", N9/J9*100), " ") -> 
A10: =IF(COUNTRY_INFO!A10=0," ",COUNTRY_INFO!A10) -> Burkina Faso | B10: =IF(COUNTRY_INFO!B10=0," ",COUNTRY_INFO!B10) -> Boucle du Mouhoun | C10: =IF(COUNTRY_INFO!C10=0," ",COUNTRY_INFO!C10) -> Dédougou | D10: =IF(OR(COUNTRY_INFO!$T$9:$T$1000="T1 (PZQ+ALB/MBD)",COUNTRY_INFO!$U$9:$U$1000="T1 (PZQ+ALB/MBD)"), "T1 (PZQ+ALB/MBD)", " ") ->  | K10: =MAX(H10:I10)+G10+J10 -> 0 | O10: =SUM(L10:N10) -> 0 | P10: =IF(G10<>0, IF(L10/G10*100=0, "-", L10/G10*100), " ") ->  | Q10: =IF(OR(I10<>0,H10<>0), IF(M10/MAX(H10,I10)*100=0, "-", M10/MAX(H10,I10)*100), " ") ->  | R10: =IF(J10<>0, IF(N10/J10*100=0, "-", N10/J10*100), " ") ->  | S10: =IF(K10<>0, IF(O10/K10*100=0, "-", O10/K10*100), " ") -> 
A11: =IF(COUNTRY_INFO!A11=0," ",COUNTRY_INFO!A11) -> Burkina Faso | B11: =IF(COUNTRY_INFO!B11=0," ",COUNTRY_INFO!B11) -> Boucle du Mouhoun | C11: =IF(COUNTRY_INFO!C11=0," ",COUNTRY_INFO!C11) -> Nouna | D11: =IF(OR(COUNTRY_INFO!$T$9:$T$1000="T1 (PZQ+ALB/MBD)",COUNTRY_INFO!$U$9:$U$1000="T1 (PZQ+ALB/MBD)"), "T1 (PZQ+ALB/MBD)", " ") -> T1 (PZQ+ALB/MBD) | E11: PZQ+ALB | F11: 08 au 12/07/16 | H11: 107605 | I11: 107605 | J11: 183132 | K11: 290737 | M11: 108018 | N11: 167886 | O11: 275904 | Q11: 100.3838112 | R11: 91.67485748 | S11: 94.89813818
A12: =IF(COUNTRY_INFO!A12=0," ",COUNTRY_INFO!A12) -> Burkina Faso | B12: =IF(COUNTRY_INFO!B12=0," ",COUNTRY_INFO!B12) -> Boucle du Mouhoun | C12: =IF(COUNTRY_INFO!C12=0," ",COUNTRY_INFO!C12) -> Solenzo | D12: =IF(OR(COUNTRY_INFO!$T$9:$T$1000="T1 (PZQ+ALB/MBD)",COUNTRY_INFO!$U$9:$U$1000="T1 (PZQ+ALB/MBD)"), "T1 (PZQ+ALB/MBD)", " ") -> T1 (PZQ+ALB/MBD) | E12: PZQ+ALB | F12: 08 au 12/07/16 | H12: 105585 | I12: 105585 | J12: 179702 | K12: 285287 | M12: 103648 | N12: 160859 | O12: 264507 | Q12: 98.16545911 | R12: 89.51430702 | S12: 92.71610694
A13: =IF(COUNTRY_INFO!A13=0," ",COUNTRY_INFO!A13) -> Burkina Faso | B13: =IF(COUNTRY_INFO!B13=0," ",COUNTRY_INFO!B13) -> Boucle du Mouhoun | C13: =IF(COUNTRY_INFO!C13=0," ",COUNTRY_INFO!C13) -> Toma | D13: =IF(OR(COUNTRY_INFO!$T$9:$T$1000="T1 (PZQ+ALB/MBD)",COUNTRY_INFO!$U$9:$U$1000="T1 (PZQ+ALB/MBD)"), "T1 (PZQ+ALB/MBD)", " ") -> T1 (PZQ+ALB/MBD) | E13: PZQ+ALB | F13: 08 au 12/07/16 | H13: 62939 | I13: 62939 | J13: 107119 | K13: 170058 | M13: 63790 | N13: 103857 | O13: 167647 | Q13: 101.3521028 | R13: 96.9547886 | S13: 98.58224841
A14: =IF(COUNTRY_INFO!A14=0," ",COUNTRY_INFO!A14) -> Burkina Faso | B14: =IF(COUNTRY_INFO!B14=0," ",COUNTRY_INFO!B14) -> Boucle du Mouhoun | C14: =IF(COUNTRY_INFO!C14=0," ",COUNTRY_INFO!C14) -> Tougan | D14: =IF(OR(COUNTRY_INFO!$T$9:$T$1000="T1 (PZQ+ALB/MBD)",COUNTRY_INFO!$U$9:$U$1000="T1 (PZQ+ALB/MBD)"), "T1 (PZQ+ALB/MBD)", " ") -> T1 (PZQ+ALB/MBD) | E14: PZQ+ALB | F14: 08 au 12/07/16 | H14: 84146 | I14: 84146 | J14: 143205 | K14: 227351 | M14: 85031 | N14: 119090 | O14: 204121 | Q14: 101.0517434 | R14: 83.16050417 | S14: 89.78231897
A15: =IF(COUNTRY_INFO!A15=0," ",COUNTRY_INFO!A15) -> Burkina Faso | B15: =IF(COUNTRY_INFO!B15=0," ",COUNTRY_INFO!B15) -> Cascades | C15: =IF(COUNTRY_INFO!C15=0," ",COUNTRY_INFO!C15) -> Banfora | D15: =IF(OR(COUNTRY_INFO!$T$9:$T$1000="T1 (PZQ+ALB/MBD)",COUNTRY_INFO!$U$9:$U$1000="T1 (PZQ+ALB/MBD)"), "T1 (PZQ+ALB/MBD)", " ") -> T1 (PZQ+ALB/MBD) | E15: PZQ+ALB | F15: 08 au 12/07/16 | H15: 109869 | I15: 109869 | K15: 109869 | M15: 106926 | O15: 106926 | Q15: 97.32135543 | S15: 97.32135543
A16: =IF(COUNTRY_INFO!A16=0," ",COUNTRY_INFO!A16) -> Burkina Faso | B16: =IF(COUNTRY_INFO!B16=0," ",COUNTRY_INFO!B16) -> Cascades | C16: =IF(COUNTRY_INFO!C16=0," ",COUNTRY_INFO!C16) -> Mangodara | D16: =IF(OR(COUNTRY_INFO!$T$9:$T$1000="T1 (PZQ+ALB/MBD)",COUNTRY_INFO!$U$9:$U$1000="T1 (PZQ+ALB/MBD)"), "T1 (PZQ+ALB/MBD)", " ") -> T1 (PZQ+ALB/MBD) | E16: PZQ+ALB | F16: 08 au 12/07/16 | H16: 67831 | I16: 67831 | K16: 67831 | M16: 70710 | O16: 70710 | Q16: 104.244372 | S16: 104.244372
A17: =IF(COUNTRY_INFO!A17=0," ",COUNTRY_INFO!A17) -> Burkina Faso | B17: =IF(COUNTRY_INFO!B17=0," ",COUNTRY_INFO!B17) -> Cascades | C17: =IF(COUNTRY_INFO!C17=0," ",COUNTRY_INFO!C17) -> Sindou | D17: =IF(OR(COUNTRY_INFO!$T$9:$T$1000="T1 (PZQ+ALB/MBD)",COUNTRY_INFO!$U$9:$U$1000="T1 (PZQ+ALB/MBD)"), "T1 (PZQ+ALB/MBD)", " ") -> T1 (PZQ+ALB/MBD) | E17: PZQ+ALB | F17: 08 au 12/07/16 | H17: 49262 | I17: 49262 | J17: 0 | K17: 49262 | M17: 48967 | O17: 48967 | Q17: 99.40116114 | S17: 99.40116114
A18: =IF(COUNTRY_INFO!A18=0," ",COUNTRY_INFO!A18) -> Burkina Faso | B18: =IF(COUNTRY_INFO!B18=0," ",COUNTRY_INFO!B18) -> Centre | C18: =IF(COUNTRY_INFO!C18=0," ",COUNTRY_INFO!C18) -> Baskuy | D18: =IF(OR(COUNTRY_INFO!$T$9:$T$1000="T1 (PZQ+ALB/MBD)",COUNTRY_INFO!$U$9:$U$1000="T1 (PZQ+ALB/MBD)"), "T1 (PZQ+ALB/MBD)", " ") -> T1 (PZQ+ALB/MBD) | E18: PZQ+ALB | F18: 08 au 12/07/16 | H18: 59411 | I18: 59411 | J18: 0 | K18: 59411 | M18: 58512 | O18: 58512 | Q18: 98.48681221 | S18: 98.48681221
A19: =IF(COUNTRY_INFO!A19=0," ",COUNTRY_INFO!A19) -> Burkina Faso | B19: =IF(COUNTRY_INFO!B19=0," ",COUNTRY_INFO!B19) -> Centre | C19: =IF(COUNTRY_INFO!C19=0," ",COUNTRY_INFO!C19) -> Bogodogo | D19: =IF(OR(COUNTRY_INFO!$T$9:$T$1000="T1 (PZQ+ALB/MBD)",COUNTRY_INFO!$U$9:$U$1000="T1 (PZQ+ALB/MBD)"), "T1 (PZQ+ALB/MBD)", " ") -> T1 (PZQ+ALB/MBD) | E19: PZQ+ALB | F19: 08 au 12/07/16 | H19: 199422 | I19: 199422 | K19: 199422 | M19: 192194 | O19: 192194 | Q19: 96.37552527 | S19: 96.37552527
A20: =IF(COUNTRY_INFO!A20=0," ",COUNTRY_INFO!A20) -> Burkina Faso | B20: =IF(COUNTRY_INFO!B20=0," ",COUNTRY_INFO!B20) -> Centre | C20: =IF(COUNTRY_INFO!C20=0," ",COUNTRY_INFO!C20) -> Boulmiougou | D20: =IF(OR(COUNTRY_INFO!$T$9:$T$1000="T1 (PZQ+ALB/MBD)",COUNTRY_INFO!$U$9:$U$1000="T1 (PZQ+ALB/MBD)"), "T1 (PZQ+ALB/MBD)", " ") -> T1 (PZQ+ALB/MBD) | E20: PZQ+ALB | F20: 08 au 12/07/16 | H20: 241566 | I20: 241566 | K20: 241566 | M20: 265983 | O20: 265983 | Q20: 110.1077966 | S20: 110.1077966
A21: =IF(COUNTRY_INFO!A21=0," ",COUNTRY_INFO!A21) -> Burkina Faso | B21: =IF(COUNTRY_INFO!B21=0," ",COUNTRY_INFO!B21) -> Centre | C21: =IF(COUNTRY_INFO!C21=0," ",COUNTRY_INFO!C21) -> Nongre-Massom | D21: =IF(OR(COUNTRY_INFO!$T$9:$T$1000="T1 (PZQ+ALB/MBD)",COUNTRY_INFO!$U$9:$U$1000="T1 (PZQ+ALB/MBD)"), "T1 (PZQ+ALB/MBD)", " ") -> T1 (PZQ+ALB/MBD) | E21: PZQ+ALB | F21: 08 au 12/07/16 | H21: 85140 | I21: 85140 | K21: 85140 | M21: 79986 | O21: 79986 | Q21: 93.94644116 | S21: 93.94644116
A22: =IF(COUNTRY_INFO!A22=0," ",COUNTRY_INFO!A22) -> Burkina Faso | B22: =IF(COUNTRY_INFO!B22=0," ",COUNTRY_INFO!B22) -> Centre | C22: =IF(COUNTRY_INFO!C22=0," ",COUNTRY_INFO!C22) -> Sig-Nonghin | D22: =IF(OR(COUNTRY_INFO!$T$9:$T$1000="T1 (PZQ+ALB/MBD)",COUNTRY_INFO!$U$9:$U$1000="T1 (PZQ+ALB/MBD)"), "T1 (PZQ+ALB/MBD)", " ") -> T1 (PZQ+ALB/MBD) | E22: PZQ+ALB | F22: 08 au 12/07/16 | H22: 85705 | I22: 85705 | K22: 85705 | M22: 97372 | O22: 97372 | Q22: 113.6129747 | S22: 113.6129747
A23: =IF(COUNTRY_INFO!A23=0," ",COUNTRY_INFO!A23) -> Burkina Faso | B23: =IF(COUNTRY_INFO!B23=0," ",COUNTRY_INFO!B23) -> Centre-Est | C23: =IF(COUNTRY_INFO!C23=0," ",COUNTRY_INFO!C23) -> Bittou | D23: =IF(OR(COUNTRY_INFO!$T$9:$T$1000="T1 (PZQ+ALB/MBD)",COUNTRY_INFO!$U$9:$U$1000="T1 (PZQ+ALB/MBD)"), "T1 (PZQ+ALB/MBD)", " ") ->  | K23: 0 | O23: 0
A24: =IF(COUNTRY_INFO!A24=0," ",COUNTRY_INFO!A24) -> Burkina Faso | B24: =IF(COUNTRY_INFO!B24=0," ",COUNTRY_INFO!B24) -> Centre-Est | C24: =IF(COUNTRY_INFO!C24=0," ",COUNTRY_INFO!C24) -> Garango | D24: =IF(OR(COUNTRY_INFO!$T$9:$T$1000="T1 (PZQ+ALB/MBD)",COUNTRY_INFO!$U$9:$U$1000="T1 (PZQ+ALB/MBD)"), "T1 (PZQ+ALB/MBD)", " ") ->  | K24: 0 | O24: 0
A25: =IF(COUNTRY_INFO!A25=0," ",COUNTRY_INFO!A25) -> Burkina Faso | B25: =IF(COUNTRY_INFO!B25=0," ",COUNTRY_INFO!B25) -> Centre-Est | C25: =IF(COUNTRY_INFO!C25=0," ",COUNTRY_INFO!C25) -> Koupela | D25: =IF(OR(COUNTRY_INFO!$T$9:$T$1000="T1 (PZQ+ALB/MBD)",COUNTRY_INFO!$U$9:$U$1000="T1 (PZQ+ALB/MBD)"), "T1 (PZQ+ALB/MBD)", " ") ->  | K25: 0 | O25: 0
A26: =IF(COUNTRY_INFO!A26=0," ",COUNTRY_INFO!A26) -> Burkina Faso | B26: =IF(COUNTRY_INFO!B26=0," ",COUNTRY_INFO!B26) -> Centre-Est | C26: =IF(COUNTRY_INFO!C26=0," ",COUNTRY_INFO!C26) -> Ouargaye | D26: =IF(OR(COUNTRY_INFO!$T$9:$T$1000="T1 (PZQ+ALB/MBD)",COUNTRY_INFO!$U$9:$U$1000="T1 (PZQ+ALB/MBD)"), "T1 (PZQ+ALB/MBD)", " ") ->  | K26: 0 | O26: 0
A27: =IF(COUNTRY_INFO!A27=0," ",COUNTRY_INFO!A27) -> Burkina Faso | B27: =IF(COUNTRY_INFO!B27=0," ",COUNTRY_INFO!B27) -> Centre-Est | C27: =IF(COUNTRY_INFO!C27=0," ",COUNTRY_INFO!C27) -> Pouytenga | D27: =IF(OR(COUNTRY_INFO!$T$9:$T$1000="T1 (PZQ+ALB/MBD)",COUNTRY_INFO!$U$9:$U$1000="T1 (PZQ+ALB/MBD)"), "T1 (PZQ+ALB/MBD)", " ") ->  | K27: 0 | O27: 0
A28: =IF(COUNTRY_INFO!A28=0," ",COUNTRY_INFO!A28) -> Burkina Faso | B28: =IF(COUNTRY_INFO!B28=0," ",COUNTRY_INFO!B28) -> Centre-Est | C28: =IF(COUNTRY_INFO!C28=0," ",COUNTRY_INFO!C28) -> Tenkodogo | D28: =IF(OR(COUNTRY_INFO!$T$9:$T$1000="T1 (PZQ+ALB/MBD)",COUNTRY_INFO!$U$9:$U$1000="T1 (PZQ+ALB/MBD)"), "T1 (PZQ+ALB/MBD)", " ") ->  | K28: 0 | O28: 0
A29: =IF(COUNTRY_INFO!A29=0," ",COUNTRY_INFO!A29) -> Burkina Faso | B29: =IF(COUNTRY_INFO!B29=0," ",COUNTRY_INFO!B29) -> Centre-Est | C29: =IF(COUNTRY_INFO!C29=0," ",COUNTRY_INFO!C29) -> Zabré | D29: =IF(OR(COUNTRY_INFO!$T$9:$T$1000="T1 (PZQ+ALB/MBD)",COUNTRY_INFO!$U$9:$U$1000="T1 (PZQ+ALB/MBD)"), "T1 (PZQ+ALB/MBD)", " ") ->  | K29: 0 | O29: 0
A30: =IF(COUNTRY_INFO!A30=0," ",COUNTRY_INFO!A30) -> Burkina Faso | B30: =IF(COUNTRY_INFO!B30=0," ",COUNTRY_INFO!B30) -> Centre-Nord | C30: =IF(COUNTRY_INFO!C30=0," ",COUNTRY_INFO!C30) -> Barsalogo | D30: =IF(OR(COUNTRY_INFO!$T$9:$T$1000="T1 (PZQ+ALB/MBD)",COUNTRY_INFO!$U$9:$U$1000="T1 (PZQ+ALB/MBD)"), "T1 (PZQ+ALB/MBD)", " ") -> T1 (PZQ+ALB/MBD) | E30: PZQ+ALB | F30: 05 au 10/08/16 | H30: 60092 | I30: 60092 | K30: 60092 | M30: 59677 | O30: 59677 | Q30: 99.30939227 | S30: 99.30939227
A31: =IF(COUNTRY_INFO!A31=0," ",COUNTRY_INFO!A31) -> Burkina Faso | B31: =IF(COUNTRY_INFO!B31=0," ",COUNTRY_INFO!B31) -> Centre-Nord | C31: =IF(COUNTRY_INFO!C31=0," ",COUNTRY_INFO!C31) -> Boulsa | D31: =IF(OR(COUNTRY_INFO!$T$9:$T$1000="T1 (PZQ+ALB/MBD)",COUNTRY_INFO!$U$9:$U$1000="T1 (PZQ+ALB/MBD)"), "T1 (PZQ+ALB/MBD)", " ") -> T1 (PZQ+ALB/MBD) | E31: PZQ+ALB | F31: 05 au 10/08/16 | H31: 64901 | I31: 64901 | K31: 64901 | M31: 67507 | O31: 67507 | Q31: 104.0153465 | S31: 104.0153465
A32: =IF(COUNTRY_INFO!A32=0," ",COUNTRY_INFO!A32) -> Burkina Faso | B32: =IF(COUNTRY_INFO!B32=0," ",COUNTRY_INFO!B32) -> Centre-Nord | C32: =IF(COUNTRY_INFO!C32=0," ",COUNTRY_INFO!C32) -> Boussouma | D32: =IF(OR(COUNTRY_INFO!$T$9:$T$1000="T1 (PZQ+ALB/MBD)",COUNTRY_INFO!$U$9:$U$1000="T1 (PZQ+ALB/MBD)"), "T1 (PZQ+ALB/MBD)", " ") -> T1 (PZQ+ALB/MBD) | E32: PZQ+ALB | F32: 05 au 10/08/16 | H32: 63840 | I32: 63840 | K32: 63840 | M32: 63381 | O32: 63381 | Q32: 99.28101504 | S32: 99.28101504
A33: =IF(COUNTRY_INFO!A33=0," ",COUNTRY_INFO!A33) -> Burkina Faso | B33: =IF(COUNTRY_INFO!B33=0," ",COUNTRY_INFO!B33) -> Centre-Nord | C33: =IF(COUNTRY_INFO!C33=0," ",COUNTRY_INFO!C33) -> Kaya | D33: =IF(OR(COUNTRY_INFO!$T$9:$T$1000="T1 (PZQ+ALB/MBD)",COUNTRY_INFO!$U$9:$U$1000="T1 (PZQ+ALB/MBD)"), "T1 (PZQ+ALB/MBD)", " ") -> T1 (PZQ+ALB/MBD) | E33: PZQ+ALB | F33: 05 au 10/08/16 | H33: 115919 | I33: 115919 | K33: 115919 | M33: 116313 | O33: 116313 | Q33: 100.3398925 | S33: 100.3398925
A34: =IF(COUNTRY_INFO!A34=0," ",COUNTRY_INFO!A34) -> Burkina Faso | B34: =IF(COUNTRY_INFO!B34=0," ",COUNTRY_INFO!B34) -> Centre-Nord | C34: =IF(COUNTRY_INFO!C34=0," ",COUNTRY_INFO!C34) -> Kongoussi | D34: =IF(OR(COUNTRY_INFO!$T$9:$T$1000="T1 (PZQ+ALB/MBD)",COUNTRY_INFO!$U$9:$U$1000="T1 (PZQ+ALB/MBD)"), "T1 (PZQ+ALB/MBD)", " ") -> T1 (PZQ+ALB/MBD) | E34: PZQ+ALB | F34: 05 au 10/08/16 | H34: 110797 | I34: 110797 | K34: 110797 | M34: 110691 | O34: 110691 | Q34: 99.90432954 | S34: 99.90432954
A35: =IF(COUNTRY_INFO!A35=0," ",COUNTRY_INFO!A35) -> Burkina Faso | B35: =IF(COUNTRY_INFO!B35=0," ",COUNTRY_INFO!B35) -> Centre-Nord | C35: =IF(COUNTRY_INFO!C35=0," ",COUNTRY_INFO!C35) -> Tougouri | D35: =IF(OR(COUNTRY_INFO!$T$9:$T$1000="T1 (PZQ+ALB/MBD)",COUNTRY_INFO!$U$9:$U$1000="T1 (PZQ+ALB/MBD)"), "T1 (PZQ+ALB/MBD)", " ") -> T1 (PZQ+ALB/MBD) | E35: PZQ+ALB | F35: 05 au 10/08/16 | H35: 67496 | I35: 67496 | K35: 67496 | M35: 68872 | O35: 68872 | Q35: 102.0386393 | S35: 102.0386393
A36: =IF(COUNTRY_INFO!A36=0," ",COUNTRY_INFO!A36) -> Burkina Faso | B36: =IF(COUNTRY_INFO!B36=0," ",COUNTRY_INFO!B36) -> Centre-Ouest | C36: =IF(COUNTRY_INFO!C36=0," ",COUNTRY_INFO!C36) -> Koudougou | D36: =IF(OR(COUNTRY_INFO!$T$9:$T$1000="T1 (PZQ+ALB/MBD)",COUNTRY_INFO!$U$9:$U$1000="T1 (PZQ+ALB/MBD)"), "T1 (PZQ+ALB/MBD)", " ") -> T1 (PZQ+ALB/MBD) | E36: PZQ+ALB | H36: 106880 | I36: 106880 | J36: 0 | K36: 106880 | M36: 110596 | O36: 110596 | Q36: 103.4767964 | S36: 103.4767964
A37: =IF(COUNTRY_INFO!A37=0," ",COUNTRY_INFO!A37) -> Burkina Faso | B37: =IF(COUNTRY_INFO!B37=0," ",COUNTRY_INFO!B37) -> Centre-Ouest | C37: =IF(COUNTRY_INFO!C37=0," ",COUNTRY_INFO!C37) -> Léo | D37: =IF(OR(COUNTRY_INFO!$T$9:$T$1000="T1 (PZQ+ALB/MBD)",COUNTRY_INFO!$U$9:$U$1000="T1 (PZQ+ALB/MBD)"), "T1 (PZQ+ALB/MBD)", " ") ->  | J37: 0 | K37: 0 | O37: 0
A38: =IF(COUNTRY_INFO!A38=0," ",COUNTRY_INFO!A38) -> Burkina Faso | B38: =IF(COUNTRY_INFO!B38=0," ",COUNTRY_INFO!B38) -> Centre-Ouest | C38: =IF(COUNTRY_INFO!C38=0," ",COUNTRY_INFO!C38) -> Nanoro | D38: =IF(OR(COUNTRY_INFO!$T$9:$T$1000="T1 (PZQ+ALB/MBD)",COUNTRY_INFO!$U$9:$U$1000="T1 (PZQ+ALB/MBD)"), "T1 (PZQ+ALB/MBD)", " ") -> T1 (PZQ+ALB/MBD) | E38: PZQ+ALB | F38: 08 au 12/07/16 | H38: 52783 | I38: 52783 | J38: 0 | K38: 52783 | M38: 50096 | O38: 50096 | Q38: 94.90934581 | S38: 94.90934581
A39: =IF(COUNTRY_INFO!A39=0," ",COUNTRY_INFO!A39) -> Burkina Faso | B39: =IF(COUNTRY_INFO!B39=0," ",COUNTRY_INFO!B39) -> Centre-Ouest | C39: =IF(COUNTRY_INFO!C39=0," ",COUNTRY_INFO!C39) -> Réo | D39: =IF(OR(COUNTRY_INFO!$T$9:$T$1000="T1 (PZQ+ALB/MBD)",COUNTRY_INFO!$U$9:$U$1000="T1 (PZQ+ALB/MBD)"), "T1 (PZQ+ALB/MBD)", " ") -> T1 (PZQ+ALB/MBD) | E39: PZQ+ALB | F39: 08 au 12/07/16 | H39: 59407 | I39: 59407 | J39: 0 | K39: 59407 | M39: 59417 | O39: 59417 | Q39: 100.016833 | S39: 100.016833
A40: =IF(COUNTRY_INFO!A40=0," ",COUNTRY_INFO!A40) -> Burkina Faso | B40: =IF(COUNTRY_INFO!B40=0," ",COUNTRY_INFO!B40) -> Centre-Ouest | C40: =IF(COUNTRY_INFO!C40=0," ",COUNTRY_INFO!C40) -> Sabou | D40: =IF(OR(COUNTRY_INFO!$T$9:$T$1000="T1 (PZQ+ALB/MBD)",COUNTRY_INFO!$U$9:$U$1000="T1 (PZQ+ALB/MBD)"), "T1 (PZQ+ALB/MBD)", " ") -> T1 (PZQ+ALB/MBD) | E40: PZQ+ALB | F40: 08 au 12/07/16 | H40: 33500 | I40: 33500 | J40: 0 | K40: 33500 | M40: 32586 | O40: 32586 | Q40: 97.27164179 | S40: 97.27164179
A41: =IF(COUNTRY_INFO!A41=0," ",COUNTRY_INFO!A41) -> Burkina Faso | B41: =IF(COUNTRY_INFO!B41=0," ",COUNTRY_INFO!B41) -> Centre-Ouest | C41: =IF(COUNTRY_INFO!C41=0," ",COUNTRY_INFO!C41) -> Sapouy | D41: =IF(OR(COUNTRY_INFO!$T$9:$T$1000="T1 (PZQ+ALB/MBD)",COUNTRY_INFO!$U$9:$U$1000="T1 (PZQ+ALB/MBD)"), "T1 (PZQ+ALB/MBD)", " ") ->  | J41: 0 | K41: 0 | O41: 0
A42: =IF(COUNTRY_INFO!A42=0," ",COUNTRY_INFO!A42) -> Burkina Faso | B42: =IF(COUNTRY_INFO!B42=0," ",COUNTRY_INFO!B42) -> Centre-Ouest | C42: =IF(COUNTRY_INFO!C42=0," ",COUNTRY_INFO!C42) -> Tenado | D42: =IF(OR(COUNTRY_INFO!$T$9:$T$1000="T1 (PZQ+ALB/MBD)",COUNTRY_INFO!$U$9:$U$1000="T1 (PZQ+ALB/MBD)"), "T1 (PZQ+ALB/MBD)", " ") -> T1 (PZQ+ALB/MBD) | E42: PZQ+ALB | F42: 08 au 12/07/16 | H42: 53808 | I42: 53808 | J42: 0 | K42: 53808 | M42: 54285 | O42: 54285 | Q42: 100.8864853 | S42: 100.8864853
A43: =IF(COUNTRY_INFO!A43=0," ",COUNTRY_INFO!A43) -> Burkina Faso | B43: =IF(COUNTRY_INFO!B43=0," ",COUNTRY_INFO!B43) -> Centre-Sud | C43: =IF(COUNTRY_INFO!C43=0," ",COUNTRY_INFO!C43) -> Kombissiri | D43: =IF(OR(COUNTRY_INFO!$T$9:$T$1000="T1 (PZQ+ALB/MBD)",COUNTRY_INFO!$U$9:$U$1000="T1 (PZQ+ALB/MBD)"), "T1 (PZQ+ALB/MBD)", " ") ->  | K43: 0 | O43: 0
A44: =IF(COUNTRY_INFO!A44=0," ",COUNTRY_INFO!A44) -> Burkina Faso | B44: =IF(COUNTRY_INFO!B44=0," ",COUNTRY_INFO!B44) -> Centre-Sud | C44: =IF(COUNTRY_INFO!C44=0," ",COUNTRY_INFO!C44) -> Manga | D44: =IF(OR(COUNTRY_INFO!$T$9:$T$1000="T1 (PZQ+ALB/MBD)",COUNTRY_INFO!$U$9:$U$1000="T1 (PZQ+ALB/MBD)"), "T1 (PZQ+ALB/MBD)", " ") ->  | K44: 0 | O44: 0
A45: =IF(COUNTRY_INFO!A45=0," ",COUNTRY_INFO!A45) -> Burkina Faso | B45: =IF(COUNTRY_INFO!B45=0," ",COUNTRY_INFO!B45) -> Centre-Sud | C45: =IF(COUNTRY_INFO!C45=0," ",COUNTRY_INFO!C45) -> Pô | D45: =IF(OR(COUNTRY_INFO!$T$9:$T$1000="T1 (PZQ+ALB/MBD)",COUNTRY_INFO!$U$9:$U$1000="T1 (PZQ+ALB/MBD)"), "T1 (PZQ+ALB/MBD)", " ") ->  | K45: 0 | O45: 0
A46: =IF(COUNTRY_INFO!A46=0," ",COUNTRY_INFO!A46) -> Burkina Faso | B46: =IF(COUNTRY_INFO!B46=0," ",COUNTRY_INFO!B46) -> Centre-Sud | C46: =IF(COUNTRY_INFO!C46=0," ",COUNTRY_INFO!C46) -> Saponé | D46: =IF(OR(COUNTRY_INFO!$T$9:$T$1000="T1 (PZQ+ALB/MBD)",COUNTRY_INFO!$U$9:$U$1000="T1 (PZQ+ALB/MBD)"), "T1 (PZQ+ALB/MBD)", " ") ->  | K46: 0 | O46: 0
A47: =IF(COUNTRY_INFO!A47=0," ",COUNTRY_INFO!A47) -> Burkina Faso | B47: =IF(COUNTRY_INFO!B47=0," ",COUNTRY_INFO!B47) -> Est | C47: =IF(COUNTRY_INFO!C47=0," ",COUNTRY_INFO!C47) -> Bogandé | D47: =IF(OR(COUNTRY_INFO!$T$9:$T$1000="T1 (PZQ+ALB/MBD)",COUNTRY_INFO!$U$9:$U$1000="T1 (PZQ+ALB/MBD)"), "T1 (PZQ+ALB/MBD)", " ") ->  | K47: 0 | O47: 0
A48: =IF(COUNTRY_INFO!A48=0," ",COUNTRY_INFO!A48) -> Burkina Faso | B48: =IF(COUNTRY_INFO!B48=0," ",COUNTRY_INFO!B48) -> Est | C48: =IF(COUNTRY_INFO!C48=0," ",COUNTRY_INFO!C48) -> Diapaga | D48: =IF(OR(COUNTRY_INFO!$T$9:$T$1000="T1 (PZQ+ALB/MBD)",COUNTRY_INFO!$U$9:$U$1000="T1 (PZQ+ALB/MBD)"), "T1 (PZQ+ALB/MBD)", " ") ->  | K48: 0 | O48: 0
A49: =IF(COUNTRY_INFO!A49=0," ",COUNTRY_INFO!A49) -> Burkina Faso | B49: =IF(COUNTRY_INFO!B49=0," ",COUNTRY_INFO!B49) -> Est | C49: =IF(COUNTRY_INFO!C49=0," ",COUNTRY_INFO!C49) -> Fada N'gourma | D49: =IF(OR(COUNTRY_INFO!$T$9:$T$1000="T1 (PZQ+ALB/MBD)",COUNTRY_INFO!$U$9:$U$1000="T1 (PZQ+ALB/MBD)"), "T1 (PZQ+ALB/MBD)", " ") ->  | K49: 0 | O49: 0
A50: =IF(COUNTRY_INFO!A50=0," ",COUNTRY_INFO!A50) -> Burkina Faso | B50: =IF(COUNTRY_INFO!B50=0," ",COUNTRY_INFO!B50) -> Est | C50: =IF(COUNTRY_INFO!C50=0," ",COUNTRY_INFO!C50) -> Gayeri | D50: =IF(OR(COUNTRY_INFO!$T$9:$T$1000="T1 (PZQ+ALB/MBD)",COUNTRY_INFO!$U$9:$U$1000="T1 (PZQ+ALB/MBD)"), "T1 (PZQ+ALB/MBD)", " ") ->  | K50: 0 | O50: 0
A51: =IF(COUNTRY_INFO!A51=0," ",COUNTRY_INFO!A51) -> Burkina Faso | B51: =IF(COUNTRY_INFO!B51=0," ",COUNTRY_INFO!B51) -> Est | C51: =IF(COUNTRY_INFO!C51=0," ",COUNTRY_INFO!C51) -> Manni | D51: =IF(OR(COUNTRY_INFO!$T$9:$T$1000="T1 (PZQ+ALB/MBD)",COUNTRY_INFO!$U$9:$U$1000="T1 (PZQ+ALB/MBD)"), "T1 (PZQ+ALB/MBD)", " ") ->  | K51: 0 | O51: 0
A52: =IF(COUNTRY_INFO!A52=0," ",COUNTRY_INFO!A52) -> Burkina Faso | B52: =IF(COUNTRY_INFO!B52=0," ",COUNTRY_INFO!B52) -> Est | C52: =IF(COUNTRY_INFO!C52=0," ",COUNTRY_INFO!C52) -> Pama | D52: =IF(OR(COUNTRY_INFO!$T$9:$T$1000="T1 (PZQ+ALB/MBD)",COUNTRY_INFO!$U$9:$U$1000="T1 (PZQ+ALB/MBD)"), "T1 (PZQ+ALB/MBD)", " ") ->  | K52: 0 | O52: 0
A53: =IF(COUNTRY_INFO!A53=0," ",COUNTRY_INFO!A53) -> Burkina Faso | B53: =IF(COUNTRY_INFO!B53=0," ",COUNTRY_INFO!B53) -> Hauts-Bassins | C53: =IF(COUNTRY_INFO!C53=0," ",COUNTRY_INFO!C53) -> Dafra | D53: =IF(OR(COUNTRY_INFO!$T$9:$T$1000="T1 (PZQ+ALB/MBD)",COUNTRY_INFO!$U$9:$U$1000="T1 (PZQ+ALB/MBD)"), "T1 (PZQ+ALB/MBD)", " ") -> T1 (PZQ+ALB/MBD) | E53: PZQ+ALB | F53: 08 au 12/07/16 | H53: 91680 | I53: 91680 | J53: 198230 | K53: 289910 | M53: 98765 | N53: 162543 | O53: 261308 | Q53: 107.7279668 | R53: 81.997175 | S53: 90.13417957
A54: =IF(COUNTRY_INFO!A54=0," ",COUNTRY_INFO!A54) -> Burkina Faso | B54: =IF(COUNTRY_INFO!B54=0," ",COUNTRY_INFO!B54) -> Hauts-Bassins | C54: =IF(COUNTRY_INFO!C54=0," ",COUNTRY_INFO!C54) -> Dandé | D54: =IF(OR(COUNTRY_INFO!$T$9:$T$1000="T1 (PZQ+ALB/MBD)",COUNTRY_INFO!$U$9:$U$1000="T1 (PZQ+ALB/MBD)"), "T1 (PZQ+ALB/MBD)", " ") -> T1 (PZQ+ALB/MBD) | E54: PZQ+ALB | F54: 08 au 12/07/16 | H54: 83684 | I54: 83684 | J54: 132963 | K54: 216647 | M54: 86477 | N54: 119714 | O54: 206191 | Q54: 103.3375556 | R54: 90.03557381 | S54: 95.17371577
A55: =IF(COUNTRY_INFO!A55=0," ",COUNTRY_INFO!A55) -> Burkina Faso | B55: =IF(COUNTRY_INFO!B55=0," ",COUNTRY_INFO!B55) -> Hauts-Bassins | C55: =IF(COUNTRY_INFO!C55=0," ",COUNTRY_INFO!C55) -> Dô | D55: =IF(OR(COUNTRY_INFO!$T$9:$T$1000="T1 (PZQ+ALB/MBD)",COUNTRY_INFO!$U$9:$U$1000="T1 (PZQ+ALB/MBD)"), "T1 (PZQ+ALB/MBD)", " ") -> T1 (PZQ+ALB/MBD) | E55: PZQ+ALB | F55: 08 au 12/07/16 | H55: 144957 | I55: 144957 | J55: 307373 | K55: 452330 | M55: 168954 | N55: 262769 | O55: 431723 | Q55: 116.5545645 | R55: 85.48864084 | S55: 95.4442553
A56: =IF(COUNTRY_INFO!A56=0," ",COUNTRY_INFO!A56) -> Burkina Faso | B56: =IF(COUNTRY_INFO!B56=0," ",COUNTRY_INFO!B56) -> Hauts-Bassins | C56: =IF(COUNTRY_INFO!C56=0," ",COUNTRY_INFO!C56) -> Houndé | D56: =IF(OR(COUNTRY_INFO!$T$9:$T$1000="T1 (PZQ+ALB/MBD)",COUNTRY_INFO!$U$9:$U$1000="T1 (PZQ+ALB/MBD)"), "T1 (PZQ+ALB/MBD)", " ") -> T1 (PZQ+ALB/MBD) | E56: PZQ+ALB | F56: 08 au 12/07/16 | H56: 89877 | I56: 89877 | J56: 173977 | K56: 263854 | M56: 87904 | N56: 155298 | O56: 243202 | Q56: 97.80477764 | R56: 89.26352334 | S56: 92.17294413
A57: =IF(COUNTRY_INFO!A57=0," ",COUNTRY_INFO!A57) -> Burkina Faso | B57: =IF(COUNTRY_INFO!B57=0," ",COUNTRY_INFO!B57) -> Hauts-Bassins | C57: =IF(COUNTRY_INFO!C57=0," ",COUNTRY_INFO!C57) -> Karangasso-Vigué | D57: =IF(OR(COUNTRY_INFO!$T$9:$T$1000="T1 (PZQ+ALB/MBD)",COUNTRY_INFO!$U$9:$U$1000="T1 (PZQ+ALB/MBD)"), "T1 (PZQ+ALB/MBD)", " ") -> T1 (PZQ+ALB/MBD) | E57: PZQ+ALB | F57: 08 au 12/07/16 | H57: 31335 | I57: 31335 | J57: 52645 | K57: 83980 | M57: 32389 | N57: 50538 | O57: 82927 | Q57: 103.3636509 | R57: 95.99772058 | S57: 98.74613003
A58: =IF(COUNTRY_INFO!A58=0," ",COUNTRY_INFO!A58) -> Burkina Faso | B58: =IF(COUNTRY_INFO!B58=0," ",COUNTRY_INFO!B58) -> Hauts-Bassins | C58: =IF(COUNTRY_INFO!C58=0," ",COUNTRY_INFO!C58) -> Lena | D58: =IF(OR(COUNTRY_INFO!$T$9:$T$1000="T1 (PZQ+ALB/MBD)",COUNTRY_INFO!$U$9:$U$1000="T1 (PZQ+ALB/MBD)"), "T1 (PZQ+ALB/MBD)", " ") -> T1 (PZQ+ALB/MBD) | E58: PZQ+ALB | F58: 08 au 12/07/16 | H58: 24241 | I58: 24241 | J58: 36444 | K58: 60685 | M58: 23615 | N58: 31210 | O58: 54825 | Q58: 97.41759828 | R58: 85.63823949 | S58: 90.34357749
A59: =IF(COUNTRY_INFO!A59=0," ",COUNTRY_INFO!A59) -> Burkina Faso | B59: =IF(COUNTRY_INFO!B59=0," ",COUNTRY_INFO!B59) -> Hauts-Bassins | C59: =IF(COUNTRY_INFO!C59=0," ",COUNTRY_INFO!C59) -> N'Dorola | D59: =IF(OR(COUNTRY_INFO!$T$9:$T$1000="T1 (PZQ+ALB/MBD)",COUNTRY_INFO!$U$9:$U$1000="T1 (PZQ+ALB/MBD)"), "T1 (PZQ+ALB/MBD)", " ") -> T1 (PZQ+ALB/MBD) | E59: PZQ+ALB | F59: 08 au 12/07/16 | H59: 42585 | I59: 42585 | J59: 79070 | K59: 121655 | M59: 42793 | N59: 67497 | O59: 110290 | Q59: 100.4884349 | R59: 85.36360187 | S59: 90.6580083
A60: =IF(COUNTRY_INFO!A60=0," ",COUNTRY_INFO!A60) -> Burkina Faso | B60: =IF(COUNTRY_INFO!B60=0," ",COUNTRY_INFO!B60) -> Hauts-Bassins | C60: =IF(COUNTRY_INFO!C60=0," ",COUNTRY_INFO!C60) -> Orodara | D60: =IF(OR(COUNTRY_INFO!$T$9:$T$1000="T1 (PZQ+ALB/MBD)",COUNTRY_INFO!$U$9:$U$1000="T1 (PZQ+ALB/MBD)"), "T1 (PZQ+ALB/MBD)", " ") -> T1 (PZQ+ALB/MBD) | E60: PZQ+ALB | F60: 08 au 12/07/16 | H60: 70373 | I60: 70373 | J60: 139596 | K60: 209969 | M60: 75249 | N60: 122995 | O60: 198244 | Q60: 106.9287937 | R60: 88.10782544 | S60: 94.41584234
A61: =IF(COUNTRY_INFO!A61=0," ",COUNTRY_INFO!A61) -> Burkina Faso | B61: =IF(COUNTRY_INFO!B61=0," ",COUNTRY_INFO!B61) -> Nord | C61: =IF(COUNTRY_INFO!C61=0," ",COUNTRY_INFO!C61) -> Gourcy | D61: =IF(OR(COUNTRY_INFO!$T$9:$T$1000="T1 (PZQ+ALB/MBD)",COUNTRY_INFO!$U$9:$U$1000="T1 (PZQ+ALB/MBD)"), "T1 (PZQ+ALB/MBD)", " ") ->  | J61: 0 | K61: 0 | O61: 0
A62: =IF(COUNTRY_INFO!A62=0," ",COUNTRY_INFO!A62) -> Burkina Faso | B62: =IF(COUNTRY_INFO!B62=0," ",COUNTRY_INFO!B62) -> Nord | C62: =IF(COUNTRY_INFO!C62=0," ",COUNTRY_INFO!C62) -> Ouahigouya | D62: =IF(OR(COUNTRY_INFO!$T$9:$T$1000="T1 (PZQ+ALB/MBD)",COUNTRY_INFO!$U$9:$U$1000="T1 (PZQ+ALB/MBD)"), "T1 (PZQ+ALB/MBD)", " ") ->  | J62: 0 | K62: 0 | O62: 0
A63: =IF(COUNTRY_INFO!A63=0," ",COUNTRY_INFO!A63) -> Burkina Faso | B63: =IF(COUNTRY_INFO!B63=0," ",COUNTRY_INFO!B63) -> Nord | C63: =IF(COUNTRY_INFO!C63=0," ",COUNTRY_INFO!C63) -> Seguenega | D63: =IF(OR(COUNTRY_INFO!$T$9:$T$1000="T1 (PZQ+ALB/MBD)",COUNTRY_INFO!$U$9:$U$1000="T1 (PZQ+ALB/MBD)"), "T1 (PZQ+ALB/MBD)", " ") ->  | J63: 0 | K63: 0 | O63: 0
A64: =IF(COUNTRY_INFO!A64=0," ",COUNTRY_INFO!A64) -> Burkina Faso | B64: =IF(COUNTRY_INFO!B64=0," ",COUNTRY_INFO!B64) -> Nord | C64: =IF(COUNTRY_INFO!C64=0," ",COUNTRY_INFO!C64) -> Thiou | D64: =IF(OR(COUNTRY_INFO!$T$9:$T$1000="T1 (PZQ+ALB/MBD)",COUNTRY_INFO!$U$9:$U$1000="T1 (PZQ+ALB/MBD)"), "T1 (PZQ+ALB/MBD)", " ") ->  | J64: 0 | K64: 0 | O64: 0
A65: =IF(COUNTRY_INFO!A65=0," ",COUNTRY_INFO!A65) -> Burkina Faso | B65: =IF(COUNTRY_INFO!B65=0," ",COUNTRY_INFO!B65) -> Nord | C65: =IF(COUNTRY_INFO!C65=0," ",COUNTRY_INFO!C65) -> Titao | D65: =IF(OR(COUNTRY_INFO!$T$9:$T$1000="T1 (PZQ+ALB/MBD)",COUNTRY_INFO!$U$9:$U$1000="T1 (PZQ+ALB/MBD)"), "T1 (PZQ+ALB/MBD)", " ") ->  | J65: 0 | K65: 0 | O65: 0
A66: =IF(COUNTRY_INFO!A66=0," ",COUNTRY_INFO!A66) -> Burkina Faso | B66: =IF(COUNTRY_INFO!B66=0," ",COUNTRY_INFO!B66) -> Nord | C66: =IF(COUNTRY_INFO!C66=0," ",COUNTRY_INFO!C66) -> Yako | D66: =IF(OR(COUNTRY_INFO!$T$9:$T$1000="T1 (PZQ+ALB/MBD)",COUNTRY_INFO!$U$9:$U$1000="T1 (PZQ+ALB/MBD)"), "T1 (PZQ+ALB/MBD)", " ") ->  | J66: 0 | K66: 0 | O66: 0
A67: =IF(COUNTRY_INFO!A67=0," ",COUNTRY_INFO!A67) -> Burkina Faso | B67: =IF(COUNTRY_INFO!B67=0," ",COUNTRY_INFO!B67) -> Plateau Central | C67: =IF(COUNTRY_INFO!C67=0," ",COUNTRY_INFO!C67) -> Boussé | D67: =IF(OR(COUNTRY_INFO!$T$9:$T$1000="T1 (PZQ+ALB/MBD)",COUNTRY_INFO!$U$9:$U$1000="T1 (PZQ+ALB/MBD)"), "T1 (PZQ+ALB/MBD)", " ") -> T1 (PZQ+ALB/MBD) | E67: PZQ+ALB | F67: 08 au 12/07/16 | H67: 52306 | I67: 52306 | J67: 0 | K67: 52306 | M67: 52024 | O67: 52024 | Q67: 99.46086491 | S67: 99.46086491
A68: =IF(COUNTRY_INFO!A68=0," ",COUNTRY_INFO!A68) -> Burkina Faso | B68: =IF(COUNTRY_INFO!B68=0," ",COUNTRY_INFO!B68) -> Plateau Central | C68: =IF(COUNTRY_INFO!C68=0," ",COUNTRY_INFO!C68) -> Ziniaré | D68: =IF(OR(COUNTRY_INFO!$T$9:$T$1000="T1 (PZQ+ALB/MBD)",COUNTRY_INFO!$U$9:$U$1000="T1 (PZQ+ALB/MBD)"), "T1 (PZQ+ALB/MBD)", " ") -> T1 (PZQ+ALB/MBD) | E68: PZQ+ALB | F68: 08 au 12/07/16 | H68: 91588 | I68: 91588 | J68: 0 | K68: 91588 | M68: 91251 | O68: 91251 | Q68: 99.63204787 | S68: 99.63204787
A69: =IF(COUNTRY_INFO!A69=0," ",COUNTRY_INFO!A69) -> Burkina Faso | B69: =IF(COUNTRY_INFO!B69=0," ",COUNTRY_INFO!B69) -> Plateau Central | C69: =IF(COUNTRY_INFO!C69=0," ",COUNTRY_INFO!C69) -> Zorgho | D69: =IF(OR(COUNTRY_INFO!$T$9:$T$1000="T1 (PZQ+ALB/MBD)",COUNTRY_INFO!$U$9:$U$1000="T1 (PZQ+ALB/MBD)"), "T1 (PZQ+ALB/MBD)", " ") -> T1 (PZQ+ALB/MBD) | E69: PZQ+ALB | F69: 08 au 12/07/16 | H69: 123831 | I69: 123831 | J69: 0 | K69: 123831 | M69: 119832 | O69: 119832 | Q69: 96.77059864 | S69: 96.77059864
A70: =IF(COUNTRY_INFO!A70=0," ",COUNTRY_INFO!A70) -> Burkina Faso | B70: =IF(COUNTRY_INFO!B70=0," ",COUNTRY_INFO!B70) -> Sahel | C70: =IF(COUNTRY_INFO!C70=0," ",COUNTRY_INFO!C70) -> Djibo | D70: =IF(OR(COUNTRY_INFO!$T$9:$T$1000="T1 (PZQ+ALB/MBD)",COUNTRY_INFO!$U$9:$U$1000="T1 (PZQ+ALB/MBD)"), "T1 (PZQ+ALB/MBD)", " ") -> T1 (PZQ+ALB/MBD) | E70: PZQ+ALB | F70: 08 au 12/07/16 | H70: 139573 | I70: 139573 | J70: 242374 | K70: 381947 | M70: 136990 | N70: 249220 | O70: 386210 | Q70: 98.14935553 | R70: 102.8245604 | S70: 101.1161234
A71: =IF(COUNTRY_INFO!A71=0," ",COUNTRY_INFO!A71) -> Burkina Faso | B71: =IF(COUNTRY_INFO!B71=0," ",COUNTRY_INFO!B71) -> Sahel | C71: =IF(COUNTRY_INFO!C71=0," ",COUNTRY_INFO!C71) -> Dori | D71: =IF(OR(COUNTRY_INFO!$T$9:$T$1000="T1 (PZQ+ALB/MBD)",COUNTRY_INFO!$U$9:$U$1000="T1 (PZQ+ALB/MBD)"), "T1 (PZQ+ALB/MBD)", " ") -> T1 (PZQ+ALB/MBD) | E71: PZQ+ALB | F71: 08 au 12/07/16 | H71: 104557 | I71: 104557 | J71: 181617 | K71: 286174 | M71: 106848 | N71: 173664 | O71: 280512 | Q71: 102.1911493 | R71: 95.62100464 | S71: 98.02148343
A72: =IF(COUNTRY_INFO!A72=0," ",COUNTRY_INFO!A72) -> Burkina Faso | B72: =IF(COUNTRY_INFO!B72=0," ",COUNTRY_INFO!B72) -> Sahel | C72: =IF(COUNTRY_INFO!C72=0," ",COUNTRY_INFO!C72) -> Gorom-Gorom | D72: =IF(OR(COUNTRY_INFO!$T$9:$T$1000="T1 (PZQ+ALB/MBD)",COUNTRY_INFO!$U$9:$U$1000="T1 (PZQ+ALB/MBD)"), "T1 (PZQ+ALB/MBD)", " ") -> T1 (PZQ+ALB/MBD) | E72: PZQ+ALB | F72: 08 au 12/07/16 | H72: 80036 | I72: 80036 | J72: 138975 | K72: 219011 | M72: 81148 | N72: 132349 | O72: 213497 | Q72: 101.3893748 | R72: 95.23223601 | S72: 97.48231824
A73: =IF(COUNTRY_INFO!A73=0," ",COUNTRY_INFO!A73) -> Burkina Faso | B73: =IF(COUNTRY_INFO!B73=0," ",COUNTRY_INFO!B73) -> Sahel | C73: =IF(COUNTRY_INFO!C73=0," ",COUNTRY_INFO!C73) -> Sebba | D73: =IF(OR(COUNTRY_INFO!$T$9:$T$1000="T1 (PZQ+ALB/MBD)",COUNTRY_INFO!$U$9:$U$1000="T1 (PZQ+ALB/MBD)"), "T1 (PZQ+ALB/MBD)", " ") ->  | K73: 0 | O73: 0
A74: =IF(COUNTRY_INFO!A74=0," ",COUNTRY_INFO!A74) -> Burkina Faso | B74: =IF(COUNTRY_INFO!B74=0," ",COUNTRY_INFO!B74) -> Sud-Ouest | C74: =IF(COUNTRY_INFO!C74=0," ",COUNTRY_INFO!C74) -> Batié | D74: =IF(OR(COUNTRY_INFO!$T$9:$T$1000="T1 (PZQ+ALB/MBD)",COUNTRY_INFO!$U$9:$U$1000="T1 (PZQ+ALB/MBD)"), "T1 (PZQ+ALB/MBD)", " ") ->  | J74: 0 | K74: =MAX(H74:I74)+G74+J74 -> 0 | O74: =SUM(L74:N74) -> 0 | P74: =IF(G74<>0, IF(L74/G74*100=0, "-", L74/G74*100), " ") ->  | Q74: =IF(OR(I74<>0,H74<>0), IF(M74/MAX(H74,I74)*100=0, "-", M74/MAX(H74,I74)*100), " ") ->  | R74: =IF(J74<>0, IF(N74/J74*100=0, "-", N74/J74*100), " ") ->  | S74: =IF(K74<>0, IF(O74/K74*100=0, "-", O74/K74*100), " ") -> 
A75: =IF(COUNTRY_INFO!A75=0," ",COUNTRY_INFO!A75) -> Burkina Faso | B75: =IF(COUNTRY_INFO!B75=0," ",COUNTRY_INFO!B75) -> Sud-Ouest | C75: =IF(COUNTRY_INFO!C75=0," ",COUNTRY_INFO!C75) -> Dano | D75: =IF(OR(COUNTRY_INFO!$T$9:$T$1000="T1 (PZQ+ALB/MBD)",COUNTRY_INFO!$U$9:$U$1000="T1 (PZQ+ALB/MBD)"), "T1 (PZQ+ALB/MBD)", " ") ->  | J75: 0 | K75: 0 | O75: 0
A76: =IF(COUNTRY_INFO!A76=0," ",COUNTRY_INFO!A76) -> Burkina Faso | B76: =IF(COUNTRY_INFO!B76=0," ",COUNTRY_INFO!B76) -> Sud-Ouest | C76: =IF(COUNTRY_INFO!C76=0," ",COUNTRY_INFO!C76) -> Diébougou | D76: =IF(OR(COUNTRY_INFO!$T$9:$T$1000="T1 (PZQ+ALB/MBD)",COUNTRY_INFO!$U$9:$U$1000="T1 (PZQ+ALB/MBD)"), "T1 (PZQ+ALB/MBD)", " ") ->  | J76: 0 | K76: 0 | O76: 0
A77: =IF(COUNTRY_INFO!A77=0," ",COUNTRY_INFO!A77) -> Burkina Faso | B77: =IF(COUNTRY_INFO!B77=0," ",COUNTRY_INFO!B77) -> Sud-Ouest | C77: =IF(COUNTRY_INFO!C77=0," ",COUNTRY_INFO!C77) -> Gaoua | D77: =IF(OR(COUNTRY_INFO!$T$9:$T$1000="T1 (PZQ+ALB/MBD)",COUNTRY_INFO!$U$9:$U$1000="T1 (PZQ+ALB/MBD)"), "T1 (PZQ+ALB/MBD)", " ") ->  | J77: 0 | K77: 0 | O77: 0
A78: =IF(COUNTRY_INFO!A78=0," ",COUNTRY_INFO!A78) -> Burkina Faso | B78: =IF(COUNTRY_INFO!B78=0," ",COUNTRY_INFO!B78) -> Sud-Ouest | C78: =IF(COUNTRY_INFO!C78=0," ",COUNTRY_INFO!C78) -> Kampti | D78: =IF(OR(COUNTRY_INFO!$T$9:$T$1000="T1 (PZQ+ALB/MBD)",COUNTRY_INFO!$U$9:$U$1000="T1 (PZQ+ALB/MBD)"), "T1 (PZQ+ALB/MBD)", " ") ->  | J78: 0 | K78: 0 | O78: 0

Sheet T2
A1: T 2 - Praziquantel (PZQ)
A2: Administrative structure, population requiring PC by age group, population treated by age group and coverage
A4: TOTAL | F4: =SUM(F$9:F$1000) -> 0 | G4: 1636649 | H4: 2028436 | I4: 3665085 | J4: 0 | K4: 1732470 | L4: 1799127 | M4: 3531597 | N4: =IF(F4<>0, IF(J4/F4*100=0, "-", J4/F4*100), " ") ->  | O4: =IF(G4<>0, IF(K4/G4*100=0, "-", K4/G4*100), " ") -> 105.8547068 | P4: =IF(H4<>0, IF(L4/H4*100=0, "-", L4/H4*100), " ") -> 88.6952805 | Q4: =IF(I4<>0, IF(M4/I4*100=0, "-", M4/I4*100), " ") -> 96.35784709
D6: PC implemented | E6: Date | F6: Population targeted for T2 | J6: Population treated | N6: Programme coverage (%)
A7: Country | B7: Province/State | C7: District | F7: PreSAC | G7: SAC | H7: Adults | I7: Total | J7: PreSAC | K7: SAC | L7: Adults | M7: Total | N7: PreSAC | O7: SAC | P7: Adults | Q7: Total
A9: =IF(COUNTRY_INFO!A9=0," ",COUNTRY_INFO!A9) -> Burkina Faso | B9: =IF(COUNTRY_INFO!B9=0," ",COUNTRY_INFO!B9) -> Boucle du Mouhoun | C9: =IF(COUNTRY_INFO!C9=0," ",COUNTRY_INFO!C9) -> Boromo | D9: =IF(COUNTRY_INFO!$U$9:$U$1000="T2 (PZQ)", COUNTRY_INFO!$U$9:$U$1000, " ") -> T2 (PZQ) | E9: 08 au 12/07/16 | G9: 84143 | H9: 143197 | I9: =SUM(F9:H9) -> 227340 | K9: 88079 | L9: 131339 | M9: =SUM(J9:L9) -> 219418 | N9: =IF(F9<>0, IF(J9/F9*100=0, "-", J9/F9*100), " ") ->  | O9: 104.677751 | P9: 91.71910026 | Q9: 96.51535146
A10: =IF(COUNTRY_INFO!A10=0," ",COUNTRY_INFO!A10) -> Burkina Faso | B10: =IF(COUNTRY_INFO!B10=0," ",COUNTRY_INFO!B10) -> Boucle du Mouhoun | C10: =IF(COUNTRY_INFO!C10=0," ",COUNTRY_INFO!C10) -> Dédougou | D10: =IF(COUNTRY_INFO!$U$9:$U$1000="T2 (PZQ)", COUNTRY_INFO!$U$9:$U$1000, " ") -> T2 (PZQ) | E10: 08 au 12/07/16 | G10: 117004 | H10: 199145 | I10: =SUM(F10:H10) -> 316149 | K10: 116486 | L10: 148985 | M10: =SUM(J10:L10) -> 265471 | N10: =IF(F10<>0, IF(J10/F10*100=0, "-", J10/F10*100), " ") ->  | O10: =IF(G10<>0, IF(K10/G10*100=0, "-", K10/G10*100), " ") -> 99.55728009 | P10: =IF(H10<>0, IF(L10/H10*100=0, "-", L10/H10*100), " ") -> 74.81232268 | Q10: =IF(I10<>0, IF(M10/I10*100=0, "-", M10/I10*100), " ") -> 83.97021658
A11: =IF(COUNTRY_INFO!A11=0," ",COUNTRY_INFO!A11) -> Burkina Faso | B11: =IF(COUNTRY_INFO!B11=0," ",COUNTRY_INFO!B11) -> Boucle du Mouhoun | C11: =IF(COUNTRY_INFO!C11=0," ",COUNTRY_INFO!C11) -> Nouna | D11: =IF(COUNTRY_INFO!$U$9:$U$1000="T2 (PZQ)", COUNTRY_INFO!$U$9:$U$1000, " ") ->  | I11: 0 | M11: 0
A12: =IF(COUNTRY_INFO!A12=0," ",COUNTRY_INFO!A12) -> Burkina Faso | B12: =IF(COUNTRY_INFO!B12=0," ",COUNTRY_INFO!B12) -> Boucle du Mouhoun | C12: =IF(COUNTRY_INFO!C12=0," ",COUNTRY_INFO!C12) -> Solenzo | D12: =IF(COUNTRY_INFO!$U$9:$U$1000="T2 (PZQ)", COUNTRY_INFO!$U$9:$U$1000, " ") ->  | I12: 0 | M12: 0
A13: =IF(COUNTRY_INFO!A13=0," ",COUNTRY_INFO!A13) -> Burkina Faso | B13: =IF(COUNTRY_INFO!B13=0," ",COUNTRY_INFO!B13) -> Boucle du Mouhoun | C13: =IF(COUNTRY_INFO!C13=0," ",COUNTRY_INFO!C13) -> Toma | D13: =IF(COUNTRY_INFO!$U$9:$U$1000="T2 (PZQ)", COUNTRY_INFO!$U$9:$U$1000, " ") ->  | I13: 0 | M13: 0
A14: =IF(COUNTRY_INFO!A14=0," ",COUNTRY_INFO!A14) -> Burkina Faso | B14: =IF(COUNTRY_INFO!B14=0," ",COUNTRY_INFO!B14) -> Boucle du Mouhoun | C14: =IF(COUNTRY_INFO!C14=0," ",COUNTRY_INFO!C14) -> Tougan | D14: =IF(COUNTRY_INFO!$U$9:$U$1000="T2 (PZQ)", COUNTRY_INFO!$U$9:$U$1000, " ") ->  | I14: 0 | M14: 0
A15: =IF(COUNTRY_INFO!A15=0," ",COUNTRY_INFO!A15) -> Burkina Faso | B15: =IF(COUNTRY_INFO!B15=0," ",COUNTRY_INFO!B15) -> Cascades | C15: =IF(COUNTRY_INFO!C15=0," ",COUNTRY_INFO!C15) -> Banfora | D15: =IF(COUNTRY_INFO!$U$9:$U$1000="T2 (PZQ)", COUNTRY_INFO!$U$9:$U$1000, " ") ->  | I15: 0 | M15: 0
A16: =IF(COUNTRY_INFO!A16=0," ",COUNTRY_INFO!A16) -> Burkina Faso | B16: =IF(COUNTRY_INFO!B16=0," ",COUNTRY_INFO!B16) -> Cascades | C16: =IF(COUNTRY_INFO!C16=0," ",COUNTRY_INFO!C16) -> Mangodara | D16: =IF(COUNTRY_INFO!$U$9:$U$1000="T2 (PZQ)", COUNTRY_INFO!$U$9:$U$1000, " ") ->  | I16: 0 | M16: 0
A17: =IF(COUNTRY_INFO!A17=0," ",COUNTRY_INFO!A17) -> Burkina Faso | B17: =IF(COUNTRY_INFO!B17=0," ",COUNTRY_INFO!B17) -> Cascades | C17: =IF(COUNTRY_INFO!C17=0," ",COUNTRY_INFO!C17) -> Sindou | D17: =IF(COUNTRY_INFO!$U$9:$U$1000="T2 (PZQ)", COUNTRY_INFO!$U$9:$U$1000, " ") ->  | I17: 0 | M17: 0
A18: =IF(COUNTRY_INFO!A18=0," ",COUNTRY_INFO!A18) -> Burkina Faso | B18: =IF(COUNTRY_INFO!B18=0," ",COUNTRY_INFO!B18) -> Centre | C18: =IF(COUNTRY_INFO!C18=0," ",COUNTRY_INFO!C18) -> Baskuy | D18: =IF(COUNTRY_INFO!$U$9:$U$1000="T2 (PZQ)", COUNTRY_INFO!$U$9:$U$1000, " ") ->  | I18: 0 | M18: 0
A19: =IF(COUNTRY_INFO!A19=0," ",COUNTRY_INFO!A19) -> Burkina Faso | B19: =IF(COUNTRY_INFO!B19=0," ",COUNTRY_INFO!B19) -> Centre | C19: =IF(COUNTRY_INFO!C19=0," ",COUNTRY_INFO!C19) -> Bogodogo | D19: =IF(COUNTRY_INFO!$U$9:$U$1000="T2 (PZQ)", COUNTRY_INFO!$U$9:$U$1000, " ") ->  | I19: 0 | M19: 0
A20: =IF(COUNTRY_INFO!A20=0," ",COUNTRY_INFO!A20) -> Burkina Faso | B20: =IF(COUNTRY_INFO!B20=0," ",COUNTRY_INFO!B20) -> Centre | C20: =IF(COUNTRY_INFO!C20=0," ",COUNTRY_INFO!C20) -> Boulmiougou | D20: =IF(COUNTRY_INFO!$U$9:$U$1000="T2 (PZQ)", COUNTRY_INFO!$U$9:$U$1000, " ") ->  | I20: 0 | M20: 0
A21: =IF(COUNTRY_INFO!A21=0," ",COUNTRY_INFO!A21) -> Burkina Faso | B21: =IF(COUNTRY_INFO!B21=0," ",COUNTRY_INFO!B21) -> Centre | C21: =IF(COUNTRY_INFO!C21=0," ",COUNTRY_INFO!C21) -> Nongre-Massom | D21: =IF(COUNTRY_INFO!$U$9:$U$1000="T2 (PZQ)", COUNTRY_INFO!$U$9:$U$1000, " ") ->  | I21: 0 | M21: 0
A22: =IF(COUNTRY_INFO!A22=0," ",COUNTRY_INFO!A22) -> Burkina Faso | B22: =IF(COUNTRY_INFO!B22=0," ",COUNTRY_INFO!B22) -> Centre | C22: =IF(COUNTRY_INFO!C22=0," ",COUNTRY_INFO!C22) -> Sig-Nonghin | D22: =IF(COUNTRY_INFO!$U$9:$U$1000="T2 (PZQ)", COUNTRY_INFO!$U$9:$U$1000, " ") ->  | I22: 0 | M22: 0
A23: =IF(COUNTRY_INFO!A23=0," ",COUNTRY_INFO!A23) -> Burkina Faso | B23: =IF(COUNTRY_INFO!B23=0," ",COUNTRY_INFO!B23) -> Centre-Est | C23: =IF(COUNTRY_INFO!C23=0," ",COUNTRY_INFO!C23) -> Bittou | D23: =IF(COUNTRY_INFO!$U$9:$U$1000="T2 (PZQ)", COUNTRY_INFO!$U$9:$U$1000, " ") -> T2 (PZQ) | E23: 9 au13/07/16 | G23: 37590 | H23: 63019 | I23: 100609 | K23: 40766 | L23: 61782 | M23: 102548 | O23: 108.4490556 | P23: 98.03709992 | Q23: 101.927263
A24: =IF(COUNTRY_INFO!A24=0," ",COUNTRY_INFO!A24) -> Burkina Faso | B24: =IF(COUNTRY_INFO!B24=0," ",COUNTRY_INFO!B24) -> Centre-Est | C24: =IF(COUNTRY_INFO!C24=0," ",COUNTRY_INFO!C24) -> Garango | D24: =IF(COUNTRY_INFO!$U$9:$U$1000="T2 (PZQ)", COUNTRY_INFO!$U$9:$U$1000, " ") -> T2 (PZQ) | E24: 9 au13/07/16 | G24: 62823 | H24: 110509 | I24: 173332 | K24: 73899 | L24: 94962 | M24: 168861 | O24: 117.6304857 | P24: 85.9314626 | Q24: 97.42055708
A25: =IF(COUNTRY_INFO!A25=0," ",COUNTRY_INFO!A25) -> Burkina Faso | B25: =IF(COUNTRY_INFO!B25=0," ",COUNTRY_INFO!B25) -> Centre-Est | C25: =IF(COUNTRY_INFO!C25=0," ",COUNTRY_INFO!C25) -> Koupela | D25: =IF(COUNTRY_INFO!$U$9:$U$1000="T2 (PZQ)", COUNTRY_INFO!$U$9:$U$1000, " ") -> T2 (PZQ) | E25: 9 au13/07/16 | G25: 73082 | H25: 118704 | I25: 191786 | K25: 79630 | L25: 92552 | M25: 172182 | O25: 108.9597986 | P25: 77.96872894 | Q25: 89.77819027
A26: =IF(COUNTRY_INFO!A26=0," ",COUNTRY_INFO!A26) -> Burkina Faso | B26: =IF(COUNTRY_INFO!B26=0," ",COUNTRY_INFO!B26) -> Centre-Est | C26: =IF(COUNTRY_INFO!C26=0," ",COUNTRY_INFO!C26) -> Ouargaye | D26: =IF(COUNTRY_INFO!$U$9:$U$1000="T2 (PZQ)", COUNTRY_INFO!$U$9:$U$1000, " ") -> T2 (PZQ) | E26: 9 au13/07/16 | G26: 105404 | H26: 178418 | I26: 283822 | K26: 149555 | L26: 153172 | M26: 302727 | O26: 141.8874047 | P26: 85.85008239 | Q26: 106.6608649
A27: =IF(COUNTRY_INFO!A27=0," ",COUNTRY_INFO!A27) -> Burkina Faso | B27: =IF(COUNTRY_INFO!B27=0," ",COUNTRY_INFO!B27) -> Centre-Est | C27: =IF(COUNTRY_INFO!C27=0," ",COUNTRY_INFO!C27) -> Pouytenga | D27: =IF(COUNTRY_INFO!$U$9:$U$1000="T2 (PZQ)", COUNTRY_INFO!$U$9:$U$1000, " ") -> T2 (PZQ) | E27: 9 au13/07/16 | G27: 58807 | H27: 104551 | I27: 163358 | K27: 65155 | L27: 91020 | M27: 156175 | O27: 110.7946333 | P27: 87.05799084 | Q27: 95.60290895
A28: =IF(COUNTRY_INFO!A28=0," ",COUNTRY_INFO!A28) -> Burkina Faso | B28: =IF(COUNTRY_INFO!B28=0," ",COUNTRY_INFO!B28) -> Centre-Est | C28: =IF(COUNTRY_INFO!C28=0," ",COUNTRY_INFO!C28) -> Tenkodogo | D28: =IF(COUNTRY_INFO!$U$9:$U$1000="T2 (PZQ)", COUNTRY_INFO!$U$9:$U$1000, " ") -> T2 (PZQ) | E28: 9 au13/07/16 | G28: 68188 | H28: 120394 | I28: 188582 | K28: 75344 | L28: 106225 | M28: 181569 | O28: 110.4945152 | P28: 88.23114109 | Q28: 96.28119333
A29: =IF(COUNTRY_INFO!A29=0," ",COUNTRY_INFO!A29) -> Burkina Faso | B29: =IF(COUNTRY_INFO!B29=0," ",COUNTRY_INFO!B29) -> Centre-Est | C29: =IF(COUNTRY_INFO!C29=0," ",COUNTRY_INFO!C29) -> Zabré | D29: =IF(COUNTRY_INFO!$U$9:$U$1000="T2 (PZQ)", COUNTRY_INFO!$U$9:$U$1000, " ") -> T2 (PZQ) | E29: 9 au13/07/16 | G29: 48081 | H29: 72856 | I29: 120937 | K29: 55399 | L29: 63478 | M29: 118877 | O29: 115.2201493 | P29: 87.12803338 | Q29: 98.29663378
A30: =IF(COUNTRY_INFO!A30=0," ",COUNTRY_INFO!A30) -> Burkina Faso | B30: =IF(COUNTRY_INFO!B30=0," ",COUNTRY_INFO!B30) -> Centre-Nord | C30: =IF(COUNTRY_INFO!C30=0," ",COUNTRY_INFO!C30) -> Barsalogo | D30: =IF(COUNTRY_INFO!$U$9:$U$1000="T2 (PZQ)", COUNTRY_INFO!$U$9:$U$1000, " ") ->  | I30: 0 | M30: 0
A31: =IF(COUNTRY_INFO!A31=0," ",COUNTRY_INFO!A31) -> Burkina Faso | B31: =IF(COUNTRY_INFO!B31=0," ",COUNTRY_INFO!B31) -> Centre-Nord | C31: =IF(COUNTRY_INFO!C31=0," ",COUNTRY_INFO!C31) -> Boulsa | D31: =IF(COUNTRY_INFO!$U$9:$U$1000="T2 (PZQ)", COUNTRY_INFO!$U$9:$U$1000, " ") ->  | I31: 0 | M31: 0
A32: =IF(COUNTRY_INFO!A32=0," ",COUNTRY_INFO!A32) -> Burkina Faso | B32: =IF(COUNTRY_INFO!B32=0," ",COUNTRY_INFO!B32) -> Centre-Nord | C32: =IF(COUNTRY_INFO!C32=0," ",COUNTRY_INFO!C32) -> Boussouma | D32: =IF(COUNTRY_INFO!$U$9:$U$1000="T2 (PZQ)", COUNTRY_INFO!$U$9:$U$1000, " ") ->  | I32: 0 | M32: 0
A33: =IF(COUNTRY_INFO!A33=0," ",COUNTRY_INFO!A33) -> Burkina Faso | B33: =IF(COUNTRY_INFO!B33=0," ",COUNTRY_INFO!B33) -> Centre-Nord | C33: =IF(COUNTRY_INFO!C33=0," ",COUNTRY_INFO!C33) -> Kaya | D33: =IF(COUNTRY_INFO!$U$9:$U$1000="T2 (PZQ)", COUNTRY_INFO!$U$9:$U$1000, " ") ->  | I33: 0 | M33: 0
A34: =IF(COUNTRY_INFO!A34=0," ",COUNTRY_INFO!A34) -> Burkina Faso | B34: =IF(COUNTRY_INFO!B34=0," ",COUNTRY_INFO!B34) -> Centre-Nord | C34: =IF(COUNTRY_INFO!C34=0," ",COUNTRY_INFO!C34) -> Kongoussi | D34: =IF(COUNTRY_INFO!$U$9:$U$1000="T2 (PZQ)", COUNTRY_INFO!$U$9:$U$1000, " ") ->  | I34: 0 | M34: 0
A35: =IF(COUNTRY_INFO!A35=0," ",COUNTRY_INFO!A35) -> Burkina Faso | B35: =IF(COUNTRY_INFO!B35=0," ",COUNTRY_INFO!B35) -> Centre-Nord | C35: =IF(COUNTRY_INFO!C35=0," ",COUNTRY_INFO!C35) -> Tougouri | D35: =IF(COUNTRY_INFO!$U$9:$U$1000="T2 (PZQ)", COUNTRY_INFO!$U$9:$U$1000, " ") ->  | I35: 0 | M35: 0
A36: =IF(COUNTRY_INFO!A36=0," ",COUNTRY_INFO!A36) -> Burkina Faso | B36: =IF(COUNTRY_INFO!B36=0," ",COUNTRY_INFO!B36) -> Centre-Ouest | C36: =IF(COUNTRY_INFO!C36=0," ",COUNTRY_INFO!C36) -> Koudougou | D36: =IF(COUNTRY_INFO!$U$9:$U$1000="T2 (PZQ)", COUNTRY_INFO!$U$9:$U$1000, " ") ->  | I36: 0 | M36: 0
A37: =IF(COUNTRY_INFO!A37=0," ",COUNTRY_INFO!A37) -> Burkina Faso | B37: =IF(COUNTRY_INFO!B37=0," ",COUNTRY_INFO!B37) -> Centre-Ouest | C37: =IF(COUNTRY_INFO!C37=0," ",COUNTRY_INFO!C37) -> Léo | D37: =IF(COUNTRY_INFO!$U$9:$U$1000="T2 (PZQ)", COUNTRY_INFO!$U$9:$U$1000, " ") -> T2 (PZQ) | E37: 08 au 12/07/16 | G37: 83840 | I37: 83840 | K37: 81274 | M37: 81274 | O37: 96.9394084 | Q37: 96.9394084
A38: =IF(COUNTRY_INFO!A38=0," ",COUNTRY_INFO!A38) -> Burkina Faso | B38: =IF(COUNTRY_INFO!B38=0," ",COUNTRY_INFO!B38) -> Centre-Ouest | C38: =IF(COUNTRY_INFO!C38=0," ",COUNTRY_INFO!C38) -> Nanoro | D38: =IF(COUNTRY_INFO!$U$9:$U$1000="T2 (PZQ)", COUNTRY_INFO!$U$9:$U$1000, " ") ->  | I38: 0 | M38: 0
A39: =IF(COUNTRY_INFO!A39=0," ",COUNTRY_INFO!A39) -> Burkina Faso | B39: =IF(COUNTRY_INFO!B39=0," ",COUNTRY_INFO!B39) -> Centre-Ouest | C39: =IF(COUNTRY_INFO!C39=0," ",COUNTRY_INFO!C39) -> Réo | D39: =IF(COUNTRY_INFO!$U$9:$U$1000="T2 (PZQ)", COUNTRY_INFO!$U$9:$U$1000, " ") ->  | I39: 0 | M39: 0
A40: =IF(COUNTRY_INFO!A40=0," ",COUNTRY_INFO!A40) -> Burkina Faso | B40: =IF(COUNTRY_INFO!B40=0," ",COUNTRY_INFO!B40) -> Centre-Ouest | C40: =IF(COUNTRY_INFO!C40=0," ",COUNTRY_INFO!C40) -> Sabou | D40: =IF(COUNTRY_INFO!$U$9:$U$1000="T2 (PZQ)", COUNTRY_INFO!$U$9:$U$1000, " ") ->  | I40: 0 | M40: 0
A41: =IF(COUNTRY_INFO!A41=0," ",COUNTRY_INFO!A41) -> Burkina Faso | B41: =IF(COUNTRY_INFO!B41=0," ",COUNTRY_INFO!B41) -> Centre-Ouest | C41: =IF(COUNTRY_INFO!C41=0," ",COUNTRY_INFO!C41) -> Sapouy | D41: =IF(COUNTRY_INFO!$U$9:$U$1000="T2 (PZQ)", COUNTRY_INFO!$U$9:$U$1000, " ") -> T2 (PZQ) | E41: 08 au 12/07/16 | G41: 73189 | I41: 73189 | K41: 74890 | M41: 74890 | O41: 102.3241197 | Q41: 102.3241197
A42: =IF(COUNTRY_INFO!A42=0," ",COUNTRY_INFO!A42) -> Burkina Faso | B42: =IF(COUNTRY_INFO!B42=0," ",COUNTRY_INFO!B42) -> Centre-Ouest | C42: =IF(COUNTRY_INFO!C42=0," ",COUNTRY_INFO!C42) -> Tenado | D42: =IF(COUNTRY_INFO!$U$9:$U$1000="T2 (PZQ)", COUNTRY_INFO!$U$9:$U$1000, " ") ->  | I42: 0 | M42: 0
A43: =IF(COUNTRY_INFO!A43=0," ",COUNTRY_INFO!A43) -> Burkina Faso | B43: =IF(COUNTRY_INFO!B43=0," ",COUNTRY_INFO!B43) -> Centre-Sud | C43: =IF(COUNTRY_INFO!C43=0," ",COUNTRY_INFO!C43) -> Kombissiri | D43: =IF(COUNTRY_INFO!$U$9:$U$1000="T2 (PZQ)", COUNTRY_INFO!$U$9:$U$1000, " ") -> T2 (PZQ) | E43: 08 au 12/07/16 | G43: 53733 | I43: 53733 | K43: 57458 | M43: 57458 | O43: 106.9324251 | Q43: 106.9324251
A44: =IF(COUNTRY_INFO!A44=0," ",COUNTRY_INFO!A44) -> Burkina Faso | B44: =IF(COUNTRY_INFO!B44=0," ",COUNTRY_INFO!B44) -> Centre-Sud | C44: =IF(COUNTRY_INFO!C44=0," ",COUNTRY_INFO!C44) -> Manga | D44: =IF(COUNTRY_INFO!$U$9:$U$1000="T2 (PZQ)", COUNTRY_INFO!$U$9:$U$1000, " ") -> T2 (PZQ) | E44: 08 au 12/07/16 | G44: 92941 | I44: 92941 | K44: 96426 | M44: 96426 | O44: 103.7496907 | Q44: 103.7496907
A45: =IF(COUNTRY_INFO!A45=0," ",COUNTRY_INFO!A45) -> Burkina Faso | B45: =IF(COUNTRY_INFO!B45=0," ",COUNTRY_INFO!B45) -> Centre-Sud | C45: =IF(COUNTRY_INFO!C45=0," ",COUNTRY_INFO!C45) -> Pô | D45: =IF(COUNTRY_INFO!$U$9:$U$1000="T2 (PZQ)", COUNTRY_INFO!$U$9:$U$1000, " ") -> T2 (PZQ) | E45: 08 au 12/07/16 | G45: 60578 | I45: 60578 | K45: 62145 | M45: 62145 | O45: 102.5867477 | Q45: 102.5867477
A46: =IF(COUNTRY_INFO!A46=0," ",COUNTRY_INFO!A46) -> Burkina Faso | B46: =IF(COUNTRY_INFO!B46=0," ",COUNTRY_INFO!B46) -> Centre-Sud | C46: =IF(COUNTRY_INFO!C46=0," ",COUNTRY_INFO!C46) -> Saponé | D46: =IF(COUNTRY_INFO!$U$9:$U$1000="T2 (PZQ)", COUNTRY_INFO!$U$9:$U$1000, " ") -> T2 (PZQ) | E46: 08 au 12/07/16 | G46: 32320 | I46: 32320 | K46: 33057 | M46: 33057 | O46: 102.2803218 | Q46: 102.2803218
A47: =IF(COUNTRY_INFO!A47=0," ",COUNTRY_INFO!A47) -> Burkina Faso | B47: =IF(COUNTRY_INFO!B47=0," ",COUNTRY_INFO!B47) -> Est | C47: =IF(COUNTRY_INFO!C47=0," ",COUNTRY_INFO!C47) -> Bogandé | D47: =IF(COUNTRY_INFO!$U$9:$U$1000="T2 (PZQ)", COUNTRY_INFO!$U$9:$U$1000, " ") -> T2 (PZQ) | G47: 116448 | H47: 176231 | I47: 292679 | K47: 116088 | L47: 172423 | M47: 288511 | O47: 99.69084913 | P47: 97.83919969 | Q47: 98.57591423
A48: =IF(COUNTRY_INFO!A48=0," ",COUNTRY_INFO!A48) -> Burkina Faso | B48: =IF(COUNTRY_INFO!B48=0," ",COUNTRY_INFO!B48) -> Est | C48: =IF(COUNTRY_INFO!C48=0," ",COUNTRY_INFO!C48) -> Diapaga | D48: =IF(COUNTRY_INFO!$U$9:$U$1000="T2 (PZQ)", COUNTRY_INFO!$U$9:$U$1000, " ") -> T2 (PZQ) | E48: 08 au 12/07/16 | G48: 148236 | H48: 229481 | I48: 377717 | K48: 149283 | L48: 217417 | M48: 366700 | O48: 100.7063062 | P48: 94.74291989 | Q48: 97.08326604
A49: =IF(COUNTRY_INFO!A49=0," ",COUNTRY_INFO!A49) -> Burkina Faso | B49: =IF(COUNTRY_INFO!B49=0," ",COUNTRY_INFO!B49) -> Est | C49: =IF(COUNTRY_INFO!C49=0," ",COUNTRY_INFO!C49) -> Fada N'gourma | D49: =IF(COUNTRY_INFO!$U$9:$U$1000="T2 (PZQ)", COUNTRY_INFO!$U$9:$U$1000, " ") -> T2 (PZQ) | E49: 08 au 12/07/16 | G49: 129967 | H49: 201194 | I49: 331161 | K49: 120745 | L49: 162602 | M49: 283347 | O49: 92.90435264 | P49: 80.81851347 | Q49: 85.56170564
A50: =IF(COUNTRY_INFO!A50=0," ",COUNTRY_INFO!A50) -> Burkina Faso | B50: =IF(COUNTRY_INFO!B50=0," ",COUNTRY_INFO!B50) -> Est | C50: =IF(COUNTRY_INFO!C50=0," ",COUNTRY_INFO!C50) -> Gayeri | D50: =IF(COUNTRY_INFO!$U$9:$U$1000="T2 (PZQ)", COUNTRY_INFO!$U$9:$U$1000, " ") -> T2 (PZQ) | E50: 08 au 12/07/16 | G50: 35542 | H50: 55019 | I50: 90561 | K50: 36221 | L50: 54865 | M50: 91086 | O50: 101.9104158 | P50: 99.72009669 | Q50: 100.5797197
A51: =IF(COUNTRY_INFO!A51=0," ",COUNTRY_INFO!A51) -> Burkina Faso | B51: =IF(COUNTRY_INFO!B51=0," ",COUNTRY_INFO!B51) -> Est | C51: =IF(COUNTRY_INFO!C51=0," ",COUNTRY_INFO!C51) -> Manni | D51: =IF(COUNTRY_INFO!$U$9:$U$1000="T2 (PZQ)", COUNTRY_INFO!$U$9:$U$1000, " ") -> T2 (PZQ) | E51: 08 au 12/07/16 | G51: 54038 | H51: 87708 | I51: 141746 | K51: 55242 | L51: 82598 | M51: 137840 | O51: 102.2280617 | P51: 94.17384959 | Q51: 97.24436668
A52: =IF(COUNTRY_INFO!A52=0," ",COUNTRY_INFO!A52) -> Burkina Faso | B52: =IF(COUNTRY_INFO!B52=0," ",COUNTRY_INFO!B52) -> Est | C52: =IF(COUNTRY_INFO!C52=0," ",COUNTRY_INFO!C52) -> Pama | D52: =IF(COUNTRY_INFO!$U$9:$U$1000="T2 (PZQ)", COUNTRY_INFO!$U$9:$U$1000, " ") -> T2 (PZQ) | E52: 08 au 12/07/16 | G52: 36286 | H52: 56174 | I52: 92460 | K52: 38292 | L52: 56293 | M52: 94585 | O52: 105.5283029 | P52: 100.2118418 | Q52: 102.2982912
A53: =IF(COUNTRY_INFO!A53=0," ",COUNTRY_INFO!A53) -> Burkina Faso | B53: =IF(COUNTRY_INFO!B53=0," ",COUNTRY_INFO!B53) -> Hauts-Bassins | C53: =IF(COUNTRY_INFO!C53=0," ",COUNTRY_INFO!C53) -> Dafra | D53: =IF(COUNTRY_INFO!$U$9:$U$1000="T2 (PZQ)", COUNTRY_INFO!$U$9:$U$1000, " ") ->  | I53: 0 | M53: 0
A54: =IF(COUNTRY_INFO!A54=0," ",COUNTRY_INFO!A54) -> Burkina Faso | B54: =IF(COUNTRY_INFO!B54=0," ",COUNTRY_INFO!B54) -> Hauts-Bassins | C54: =IF(COUNTRY_INFO!C54=0," ",COUNTRY_INFO!C54) -> Dandé | D54: =IF(COUNTRY_INFO!$U$9:$U$1000="T2 (PZQ)", COUNTRY_INFO!$U$9:$U$1000, " ") ->  | I54: 0 | M54: 0
A55: =IF(COUNTRY_INFO!A55=0," ",COUNTRY_INFO!A55) -> Burkina Faso | B55: =IF(COUNTRY_INFO!B55=0," ",COUNTRY_INFO!B55) -> Hauts-Bassins | C55: =IF(COUNTRY_INFO!C55=0," ",COUNTRY_INFO!C55) -> Dô | D55: =IF(COUNTRY_INFO!$U$9:$U$1000="T2 (PZQ)", COUNTRY_INFO!$U$9:$U$1000, " ") ->  | I55: 0 | M55: 0
A56: =IF(COUNTRY_INFO!A56=0," ",COUNTRY_INFO!A56) -> Burkina Faso | B56: =IF(COUNTRY_INFO!B56=0," ",COUNTRY_INFO!B56) -> Hauts-Bassins | C56: =IF(COUNTRY_INFO!C56=0," ",COUNTRY_INFO!C56) -> Houndé | D56: =IF(COUNTRY_INFO!$U$9:$U$1000="T2 (PZQ)", COUNTRY_INFO!$U$9:$U$1000, " ") ->  | I56: 0 | M56: 0
A57: =IF(COUNTRY_INFO!A57=0," ",COUNTRY_INFO!A57) -> Burkina Faso | B57: =IF(COUNTRY_INFO!B57=0," ",COUNTRY_INFO!B57) -> Hauts-Bassins | C57: =IF(COUNTRY_INFO!C57=0," ",COUNTRY_INFO!C57) -> Karangasso-Vigué | D57: =IF(COUNTRY_INFO!$U$9:$U$1000="T2 (PZQ)", COUNTRY_INFO!$U$9:$U$1000, " ") ->  | I57: 0 | M57: 0
A58: =IF(COUNTRY_INFO!A58=0," ",COUNTRY_INFO!A58) -> Burkina Faso | B58: =IF(COUNTRY_INFO!B58=0," ",COUNTRY_INFO!B58) -> Hauts-Bassins | C58: =IF(COUNTRY_INFO!C58=0," ",COUNTRY_INFO!C58) -> Lena | D58: =IF(COUNTRY_INFO!$U$9:$U$1000="T2 (PZQ)", COUNTRY_INFO!$U$9:$U$1000, " ") ->  | I58: 0 | M58: 0
A59: =IF(COUNTRY_INFO!A59=0," ",COUNTRY_INFO!A59) -> Burkina Faso | B59: =IF(COUNTRY_INFO!B59=0," ",COUNTRY_INFO!B59) -> Hauts-Bassins | C59: =IF(COUNTRY_INFO!C59=0," ",COUNTRY_INFO!C59) -> N'Dorola | D59: =IF(COUNTRY_INFO!$U$9:$U$1000="T2 (PZQ)", COUNTRY_INFO!$U$9:$U$1000, " ") ->  | I59: 0 | M59: 0
A60: =IF(COUNTRY_INFO!A60=0," ",COUNTRY_INFO!A60) -> Burkina Faso | B60: =IF(COUNTRY_INFO!B60=0," ",COUNTRY_INFO!B60) -> Hauts-Bassins | C60: =IF(COUNTRY_INFO!C60=0," ",COUNTRY_INFO!C60) -> Orodara | D60: =IF(COUNTRY_INFO!$U$9:$U$1000="T2 (PZQ)", COUNTRY_INFO!$U$9:$U$1000, " ") ->  | I60: 0 | M60: 0
A61: =IF(COUNTRY_INFO!A61=0," ",COUNTRY_INFO!A61) -> Burkina Faso | B61: =IF(COUNTRY_INFO!B61=0," ",COUNTRY_INFO!B61) -> Nord | C61: =IF(COUNTRY_INFO!C61=0," ",COUNTRY_INFO!C61) -> Gourcy | D61: =IF(COUNTRY_INFO!$U$9:$U$1000="T2 (PZQ)", COUNTRY_INFO!$U$9:$U$1000, " ") ->  | I61: 0 | M61: 0
A62: =IF(COUNTRY_INFO!A62=0," ",COUNTRY_INFO!A62) -> Burkina Faso | B62: =IF(COUNTRY_INFO!B62=0," ",COUNTRY_INFO!B62) -> Nord | C62: =IF(COUNTRY_INFO!C62=0," ",COUNTRY_INFO!C62) -> Ouahigouya | D62: =IF(COUNTRY_INFO!$U$9:$U$1000="T2 (PZQ)", COUNTRY_INFO!$U$9:$U$1000, " ") ->  | I62: 0 | M62: 0
A63: =IF(COUNTRY_INFO!A63=0," ",COUNTRY_INFO!A63) -> Burkina Faso | B63: =IF(COUNTRY_INFO!B63=0," ",COUNTRY_INFO!B63) -> Nord | C63: =IF(COUNTRY_INFO!C63=0," ",COUNTRY_INFO!C63) -> Seguenega | D63: =IF(COUNTRY_INFO!$U$9:$U$1000="T2 (PZQ)", COUNTRY_INFO!$U$9:$U$1000, " ") ->  | I63: 0 | M63: 0
A64: =IF(COUNTRY_INFO!A64=0," ",COUNTRY_INFO!A64) -> Burkina Faso | B64: =IF(COUNTRY_INFO!B64=0," ",COUNTRY_INFO!B64) -> Nord | C64: =IF(COUNTRY_INFO!C64=0," ",COUNTRY_INFO!C64) -> Thiou | D64: =IF(COUNTRY_INFO!$U$9:$U$1000="T2 (PZQ)", COUNTRY_INFO!$U$9:$U$1000, " ") ->  | I64: 0 | M64: 0
A65: =IF(COUNTRY_INFO!A65=0," ",COUNTRY_INFO!A65) -> Burkina Faso | B65: =IF(COUNTRY_INFO!B65=0," ",COUNTRY_INFO!B65) -> Nord | C65: =IF(COUNTRY_INFO!C65=0," ",COUNTRY_INFO!C65) -> Titao | D65: =IF(COUNTRY_INFO!$U$9:$U$1000="T2 (PZQ)", COUNTRY_INFO!$U$9:$U$1000, " ") ->  | I65: 0 | M65: 0
A66: =IF(COUNTRY_INFO!A66=0," ",COUNTRY_INFO!A66) -> Burkina Faso | B66: =IF(COUNTRY_INFO!B66=0," ",COUNTRY_INFO!B66) -> Nord | C66: =IF(COUNTRY_INFO!C66=0," ",COUNTRY_INFO!C66) -> Yako | D66: =IF(COUNTRY_INFO!$U$9:$U$1000="T2 (PZQ)", COUNTRY_INFO!$U$9:$U$1000, " ") ->  | I66: 0 | M66: 0
A67: =IF(COUNTRY_INFO!A67=0," ",COUNTRY_INFO!A67) -> Burkina Faso | B67: =IF(COUNTRY_INFO!B67=0," ",COUNTRY_INFO!B67) -> Plateau Central | C67: =IF(COUNTRY_INFO!C67=0," ",COUNTRY_INFO!C67) -> Boussé | D67: =IF(COUNTRY_INFO!$U$9:$U$1000="T2 (PZQ)", COUNTRY_INFO!$U$9:$U$1000, " ") ->  | I67: 0 | M67: 0
A68: =IF(COUNTRY_INFO!A68=0," ",COUNTRY_INFO!A68) -> Burkina Faso | B68: =IF(COUNTRY_INFO!B68=0," ",COUNTRY_INFO!B68) -> Plateau Central | C68: =IF(COUNTRY_INFO!C68=0," ",COUNTRY_INFO!C68) -> Ziniaré | D68: =IF(COUNTRY_INFO!$U$9:$U$1000="T2 (PZQ)", COUNTRY_INFO!$U$9:$U$1000, " ") ->  | I68: 0 | M68: 0
A69: =IF(COUNTRY_INFO!A69=0," ",COUNTRY_INFO!A69) -> Burkina Faso | B69: =IF(COUNTRY_INFO!B69=0," ",COUNTRY_INFO!B69) -> Plateau Central | C69: =IF(COUNTRY_INFO!C69=0," ",COUNTRY_INFO!C69) -> Zorgho | D69: =IF(COUNTRY_INFO!$U$9:$U$1000="T2 (PZQ)", COUNTRY_INFO!$U$9:$U$1000, " ") ->  | I69: 0 | M69: 0
A70: =IF(COUNTRY_INFO!A70=0," ",COUNTRY_INFO!A70) -> Burkina Faso | B70: =IF(COUNTRY_INFO!B70=0," ",COUNTRY_INFO!B70) -> Sahel | C70: =IF(COUNTRY_INFO!C70=0," ",COUNTRY_INFO!C70) -> Djibo | D70: =IF(COUNTRY_INFO!$U$9:$U$1000="T2 (PZQ)", COUNTRY_INFO!$U$9:$U$1000, " ") ->  | I70: 0 | M70: 0
A71: =IF(COUNTRY_INFO!A71=0," ",COUNTRY_INFO!A71) -> Burkina Faso | B71: =IF(COUNTRY_INFO!B71=0," ",COUNTRY_INFO!B71) -> Sahel | C71: =IF(COUNTRY_INFO!C71=0," ",COUNTRY_INFO!C71) -> Dori | D71: =IF(COUNTRY_INFO!$U$9:$U$1000="T2 (PZQ)", COUNTRY_INFO!$U$9:$U$1000, " ") ->  | I71: 0 | M71: 0
A72: =IF(COUNTRY_INFO!A72=0," ",COUNTRY_INFO!A72) -> Burkina Faso | B72: =IF(COUNTRY_INFO!B72=0," ",COUNTRY_INFO!B72) -> Sahel | C72: =IF(COUNTRY_INFO!C72=0," ",COUNTRY_INFO!C72) -> Gorom-Gorom | D72: =IF(COUNTRY_INFO!$U$9:$U$1000="T2 (PZQ)", COUNTRY_INFO!$U$9:$U$1000, " ") ->  | I72: 0 | M72: 0
A73: =IF(COUNTRY_INFO!A73=0," ",COUNTRY_INFO!A73) -> Burkina Faso | B73: =IF(COUNTRY_INFO!B73=0," ",COUNTRY_INFO!B73) -> Sahel | C73: =IF(COUNTRY_INFO!C73=0," ",COUNTRY_INFO!C73) -> Sebba | D73: =IF(COUNTRY_INFO!$U$9:$U$1000="T2 (PZQ)", COUNTRY_INFO!$U$9:$U$1000, " ") -> T2 (PZQ) | E73: 08 au 12/07/16 | G73: 64409 | H73: 111836 | I73: 176245 | K73: 67036 | L73: 109414 | M73: 176450 | O73: 104.0786226 | P73: 97.83432884 | Q73: 100.1163154
A74: =IF(COUNTRY_INFO!A74=0," ",COUNTRY_INFO!A74) -> Burkina Faso | B74: =IF(COUNTRY_INFO!B74=0," ",COUNTRY_INFO!B74) -> Sud-Ouest | C74: =IF(COUNTRY_INFO!C74=0," ",COUNTRY_INFO!C74) -> Batié | D74: =IF(COUNTRY_INFO!$U$9:$U$1000="T2 (PZQ)", COUNTRY_INFO!$U$9:$U$1000, " ") ->  | I74: =SUM(F74:H74) -> 0 | M74: =SUM(J74:L74) -> 0 | N74: =IF(F74<>0, IF(J74/F74*100=0, "-", J74/F74*100), " ") ->  | O74: =IF(G74<>0, IF(K74/G74*100=0, "-", K74/G74*100), " ") ->  | P74: =IF(H74<>0, IF(L74/H74*100=0, "-", L74/H74*100), " ") ->  | Q74: =IF(I74<>0, IF(M74/I74*100=0, "-", M74/I74*100), " ") -> 
A75: =IF(COUNTRY_INFO!A75=0," ",COUNTRY_INFO!A75) -> Burkina Faso | B75: =IF(COUNTRY_INFO!B75=0," ",COUNTRY_INFO!B75) -> Sud-Ouest | C75: =IF(COUNTRY_INFO!C75=0," ",COUNTRY_INFO!C75) -> Dano | D75: =IF(COUNTRY_INFO!$U$9:$U$1000="T2 (PZQ)", COUNTRY_INFO!$U$9:$U$1000, " ") ->  | I75: 0 | M75: 0
A76: =IF(COUNTRY_INFO!A76=0," ",COUNTRY_INFO!A76) -> Burkina Faso | B76: =IF(COUNTRY_INFO!B76=0," ",COUNTRY_INFO!B76) -> Sud-Ouest | C76: =IF(COUNTRY_INFO!C76=0," ",COUNTRY_INFO!C76) -> Diébougou | D76: =IF(COUNTRY_INFO!$U$9:$U$1000="T2 (PZQ)", COUNTRY_INFO!$U$9:$U$1000, " ") ->  | I76: 0 | M76: 0
A77: =IF(COUNTRY_INFO!A77=0," ",COUNTRY_INFO!A77) -> Burkina Faso | B77: =IF(COUNTRY_INFO!B77=0," ",COUNTRY_INFO!B77) -> Sud-Ouest | C77: =IF(COUNTRY_INFO!C77=0," ",COUNTRY_INFO!C77) -> Gaoua | D77: =IF(COUNTRY_INFO!$U$9:$U$1000="T2 (PZQ)", COUNTRY_INFO!$U$9:$U$1000, " ") ->  | I77: 0 | M77: 0
A78: =IF(COUNTRY_INFO!A78=0," ",COUNTRY_INFO!A78) -> Burkina Faso | B78: =IF(COUNTRY_INFO!B78=0," ",COUNTRY_INFO!B78) -> Sud-Ouest | C78: =IF(COUNTRY_INFO!C78=0," ",COUNTRY_INFO!C78) -> Kampti | D78: =IF(COUNTRY_INFO!$U$9:$U$1000="T2 (PZQ)", COUNTRY_INFO!$U$9:$U$1000, " ") ->  | I78: 0 | M78: 0

Sheet T3_R1
A1: T 3 - Albendazole (ALB) or Mebendazole (MBD) - Round 1
A2: Administrative structure, population requiring PC by age group, population treated by age group and coverage
A4: TOTAL | G4: =SUM(G$9:G$1000) -> 0 | H4: 0 | I4: 0 | J4: 0 | K4: 0 | L4: 0 | M4: 0 | N4: 0 | O4: =IF(G4<>0, IF(K4/G4*100=0, "-", K4/G4*100), " ") ->  | P4: =IF(H4<>0, IF(L4/H4*100=0, "-", L4/H4*100), " ") ->  | Q4: =IF(I4<>0, IF(M4/I4*100=0, "-", M4/I4*100), " ") ->  | R4: =IF(J4<>0, IF(N4/J4*100=0, "-", N4/J4*100), " ") -> 
D6: PC implemented | E6: Medicine | F6: Date | G6: Population targeted for T3 | K6: Population treated | O6: Programme coverage (%)
A7: Country | B7: Province/State | C7: District | G7: PreSAC | H7: SAC | I7: Adults | J7: Total | K7: PreSAC | L7: SAC | M7: Adults | N7: Total | O7: PreSAC | P7: SAC | Q7: Adults | R7: Total
A9: =IF(COUNTRY_INFO!A9=0," ",COUNTRY_INFO!A9) -> Burkina Faso | B9: =IF(COUNTRY_INFO!B9=0," ",COUNTRY_INFO!B9) -> Boucle du Mouhoun | C9: =IF(COUNTRY_INFO!C9=0," ",COUNTRY_INFO!C9) -> Boromo | D9: =IF(OR(COUNTRY_INFO!$T$9:$T$1000="T3 (ALB/MBD)",COUNTRY_INFO!$U$9:$U$1000="T3 (ALB/MBD)"), "T3 (ALB/MBD)", " ") ->  | J9: =SUM(G9:I9) -> 0 | N9: =SUM(K9:M9) -> 0 | O9: =IF(G9<>0, IF(K9/G9*100=0, "-", K9/G9*100), " ") -> 
A10: =IF(COUNTRY_INFO!A10=0," ",COUNTRY_INFO!A10) -> Burkina Faso | B10: =IF(COUNTRY_INFO!B10=0," ",COUNTRY_INFO!B10) -> Boucle du Mouhoun | C10: =IF(COUNTRY_INFO!C10=0," ",COUNTRY_INFO!C10) -> Dédougou | D10: =IF(OR(COUNTRY_INFO!$T$9:$T$1000="T3 (ALB/MBD)",COUNTRY_INFO!$U$9:$U$1000="T3 (ALB/MBD)"), "T3 (ALB/MBD)", " ") ->  | J10: =SUM(G10:I10) -> 0 | N10: =SUM(K10:M10) -> 0 | O10: =IF(G10<>0, IF(K10/G10*100=0, "-", K10/G10*100), " ") ->  | P10: =IF(H10<>0, IF(L10/H10*100=0, "-", L10/H10*100), " ") ->  | Q10: =IF(I10<>0, IF(M10/I10*100=0, "-", M10/I10*100), " ") ->  | R10: =IF(J10<>0, IF(N10/J10*100=0, "-", N10/J10*100), " ") -> 
A11: =IF(COUNTRY_INFO!A11=0," ",COUNTRY_INFO!A11) -> Burkina Faso | B11: =IF(COUNTRY_INFO!B11=0," ",COUNTRY_INFO!B11) -> Boucle du Mouhoun | C11: =IF(COUNTRY_INFO!C11=0," ",COUNTRY_INFO!C11) -> Nouna | D11: =IF(OR(COUNTRY_INFO!$T$9:$T$1000="T3 (ALB/MBD)",COUNTRY_INFO!$U$9:$U$1000="T3 (ALB/MBD)"), "T3 (ALB/MBD)", " ") ->  | J11: 0 | N11: 0
A12: =IF(COUNTRY_INFO!A12=0," ",COUNTRY_INFO!A12) -> Burkina Faso | B12: =IF(COUNTRY_INFO!B12=0," ",COUNTRY_INFO!B12) -> Boucle du Mouhoun | C12: =IF(COUNTRY_INFO!C12=0," ",COUNTRY_INFO!C12) -> Solenzo | D12: =IF(OR(COUNTRY_INFO!$T$9:$T$1000="T3 (ALB/MBD)",COUNTRY_INFO!$U$9:$U$1000="T3 (ALB/MBD)"), "T3 (ALB/MBD)", " ") ->  | J12: 0 | N12: 0
A13: =IF(COUNTRY_INFO!A13=0," ",COUNTRY_INFO!A13) -> Burkina Faso | B13: =IF(COUNTRY_INFO!B13=0," ",COUNTRY_INFO!B13) -> Boucle du Mouhoun | C13: =IF(COUNTRY_INFO!C13=0," ",COUNTRY_INFO!C13) -> Toma | D13: =IF(OR(COUNTRY_INFO!$T$9:$T$1000="T3 (ALB/MBD)",COUNTRY_INFO!$U$9:$U$1000="T3 (ALB/MBD)"), "T3 (ALB/MBD)", " ") ->  | J13: 0 | N13: 0
A14: =IF(COUNTRY_INFO!A14=0," ",COUNTRY_INFO!A14) -> Burkina Faso | B14: =IF(COUNTRY_INFO!B14=0," ",COUNTRY_INFO!B14) -> Boucle du Mouhoun | C14: =IF(COUNTRY_INFO!C14=0," ",COUNTRY_INFO!C14) -> Tougan | D14: =IF(OR(COUNTRY_INFO!$T$9:$T$1000="T3 (ALB/MBD)",COUNTRY_INFO!$U$9:$U$1000="T3 (ALB/MBD)"), "T3 (ALB/MBD)", " ") ->  | J14: 0 | N14: 0
A15: =IF(COUNTRY_INFO!A15=0," ",COUNTRY_INFO!A15) -> Burkina Faso | B15: =IF(COUNTRY_INFO!B15=0," ",COUNTRY_INFO!B15) -> Cascades | C15: =IF(COUNTRY_INFO!C15=0," ",COUNTRY_INFO!C15) -> Banfora | D15: =IF(OR(COUNTRY_INFO!$T$9:$T$1000="T3 (ALB/MBD)",COUNTRY_INFO!$U$9:$U$1000="T3 (ALB/MBD)"), "T3 (ALB/MBD)", " ") ->  | J15: 0 | N15: 0
A16: =IF(COUNTRY_INFO!A16=0," ",COUNTRY_INFO!A16) -> Burkina Faso | B16: =IF(COUNTRY_INFO!B16=0," ",COUNTRY_INFO!B16) -> Cascades | C16: =IF(COUNTRY_INFO!C16=0," ",COUNTRY_INFO!C16) -> Mangodara | D16: =IF(OR(COUNTRY_INFO!$T$9:$T$1000="T3 (ALB/MBD)",COUNTRY_INFO!$U$9:$U$1000="T3 (ALB/MBD)"), "T3 (ALB/MBD)", " ") ->  | J16: 0 | N16: 0
A17: =IF(COUNTRY_INFO!A17=0," ",COUNTRY_INFO!A17) -> Burkina Faso | B17: =IF(COUNTRY_INFO!B17=0," ",COUNTRY_INFO!B17) -> Cascades | C17: =IF(COUNTRY_INFO!C17=0," ",COUNTRY_INFO!C17) -> Sindou | D17: =IF(OR(COUNTRY_INFO!$T$9:$T$1000="T3 (ALB/MBD)",COUNTRY_INFO!$U$9:$U$1000="T3 (ALB/MBD)"), "T3 (ALB/MBD)", " ") ->  | J17: 0 | N17: 0
A18: =IF(COUNTRY_INFO!A18=0," ",COUNTRY_INFO!A18) -> Burkina Faso | B18: =IF(COUNTRY_INFO!B18=0," ",COUNTRY_INFO!B18) -> Centre | C18: =IF(COUNTRY_INFO!C18=0," ",COUNTRY_INFO!C18) -> Baskuy | D18: =IF(OR(COUNTRY_INFO!$T$9:$T$1000="T3 (ALB/MBD)",COUNTRY_INFO!$U$9:$U$1000="T3 (ALB/MBD)"), "T3 (ALB/MBD)", " ") ->  | J18: 0 | N18: 0
A19: =IF(COUNTRY_INFO!A19=0," ",COUNTRY_INFO!A19) -> Burkina Faso | B19: =IF(COUNTRY_INFO!B19=0," ",COUNTRY_INFO!B19) -> Centre | C19: =IF(COUNTRY_INFO!C19=0," ",COUNTRY_INFO!C19) -> Bogodogo | D19: =IF(OR(COUNTRY_INFO!$T$9:$T$1000="T3 (ALB/MBD)",COUNTRY_INFO!$U$9:$U$1000="T3 (ALB/MBD)"), "T3 (ALB/MBD)", " ") ->  | J19: 0 | N19: 0
A20: =IF(COUNTRY_INFO!A20=0," ",COUNTRY_INFO!A20) -> Burkina Faso | B20: =IF(COUNTRY_INFO!B20=0," ",COUNTRY_INFO!B20) -> Centre | C20: =IF(COUNTRY_INFO!C20=0," ",COUNTRY_INFO!C20) -> Boulmiougou | D20: =IF(OR(COUNTRY_INFO!$T$9:$T$1000="T3 (ALB/MBD)",COUNTRY_INFO!$U$9:$U$1000="T3 (ALB/MBD)"), "T3 (ALB/MBD)", " ") ->  | J20: 0 | N20: 0
A21: =IF(COUNTRY_INFO!A21=0," ",COUNTRY_INFO!A21) -> Burkina Faso | B21: =IF(COUNTRY_INFO!B21=0," ",COUNTRY_INFO!B21) -> Centre | C21: =IF(COUNTRY_INFO!C21=0," ",COUNTRY_INFO!C21) -> Nongre-Massom | D21: =IF(OR(COUNTRY_INFO!$T$9:$T$1000="T3 (ALB/MBD)",COUNTRY_INFO!$U$9:$U$1000="T3 (ALB/MBD)"), "T3 (ALB/MBD)", " ") ->  | J21: 0 | N21: 0
A22: =IF(COUNTRY_INFO!A22=0," ",COUNTRY_INFO!A22) -> Burkina Faso | B22: =IF(COUNTRY_INFO!B22=0," ",COUNTRY_INFO!B22) -> Centre | C22: =IF(COUNTRY_INFO!C22=0," ",COUNTRY_INFO!C22) -> Sig-Nonghin | D22: =IF(OR(COUNTRY_INFO!$T$9:$T$1000="T3 (ALB/MBD)",COUNTRY_INFO!$U$9:$U$1000="T3 (ALB/MBD)"), "T3 (ALB/MBD)", " ") ->  | J22: 0 | N22: 0
A23: =IF(COUNTRY_INFO!A23=0," ",COUNTRY_INFO!A23) -> Burkina Faso | B23: =IF(COUNTRY_INFO!B23=0," ",COUNTRY_INFO!B23) -> Centre-Est | C23: =IF(COUNTRY_INFO!C23=0," ",COUNTRY_INFO!C23) -> Bittou | D23: =IF(OR(COUNTRY_INFO!$T$9:$T$1000="T3 (ALB/MBD)",COUNTRY_INFO!$U$9:$U$1000="T3 (ALB/MBD)"), "T3 (ALB/MBD)", " ") ->  | J23: 0 | N23: 0
A24: =IF(COUNTRY_INFO!A24=0," ",COUNTRY_INFO!A24) -> Burkina Faso | B24: =IF(COUNTRY_INFO!B24=0," ",COUNTRY_INFO!B24) -> Centre-Est | C24: =IF(COUNTRY_INFO!C24=0," ",COUNTRY_INFO!C24) -> Garango | D24: =IF(OR(COUNTRY_INFO!$T$9:$T$1000="T3 (ALB/MBD)",COUNTRY_INFO!$U$9:$U$1000="T3 (ALB/MBD)"), "T3 (ALB/MBD)", " ") ->  | J24: 0 | N24: 0
A25: =IF(COUNTRY_INFO!A25=0," ",COUNTRY_INFO!A25) -> Burkina Faso | B25: =IF(COUNTRY_INFO!B25=0," ",COUNTRY_INFO!B25) -> Centre-Est | C25: =IF(COUNTRY_INFO!C25=0," ",COUNTRY_INFO!C25) -> Koupela | D25: =IF(OR(COUNTRY_INFO!$T$9:$T$1000="T3 (ALB/MBD)",COUNTRY_INFO!$U$9:$U$1000="T3 (ALB/MBD)"), "T3 (ALB/MBD)", " ") ->  | J25: 0 | N25: 0
A26: =IF(COUNTRY_INFO!A26=0," ",COUNTRY_INFO!A26) -> Burkina Faso | B26: =IF(COUNTRY_INFO!B26=0," ",COUNTRY_INFO!B26) -> Centre-Est | C26: =IF(COUNTRY_INFO!C26=0," ",COUNTRY_INFO!C26) -> Ouargaye | D26: =IF(OR(COUNTRY_INFO!$T$9:$T$1000="T3 (ALB/MBD)",COUNTRY_INFO!$U$9:$U$1000="T3 (ALB/MBD)"), "T3 (ALB/MBD)", " ") ->  | J26: 0 | N26: 0
A27: =IF(COUNTRY_INFO!A27=0," ",COUNTRY_INFO!A27) -> Burkina Faso | B27: =IF(COUNTRY_INFO!B27=0," ",COUNTRY_INFO!B27) -> Centre-Est | C27: =IF(COUNTRY_INFO!C27=0," ",COUNTRY_INFO!C27) -> Pouytenga | D27: =IF(OR(COUNTRY_INFO!$T$9:$T$1000="T3 (ALB/MBD)",COUNTRY_INFO!$U$9:$U$1000="T3 (ALB/MBD)"), "T3 (ALB/MBD)", " ") ->  | J27: 0 | N27: 0
A28: =IF(COUNTRY_INFO!A28=0," ",COUNTRY_INFO!A28) -> Burkina Faso | B28: =IF(COUNTRY_INFO!B28=0," ",COUNTRY_INFO!B28) -> Centre-Est | C28: =IF(COUNTRY_INFO!C28=0," ",COUNTRY_INFO!C28) -> Tenkodogo | D28: =IF(OR(COUNTRY_INFO!$T$9:$T$1000="T3 (ALB/MBD)",COUNTRY_INFO!$U$9:$U$1000="T3 (ALB/MBD)"), "T3 (ALB/MBD)", " ") ->  | J28: 0 | N28: 0
A29: =IF(COUNTRY_INFO!A29=0," ",COUNTRY_INFO!A29) -> Burkina Faso | B29: =IF(COUNTRY_INFO!B29=0," ",COUNTRY_INFO!B29) -> Centre-Est | C29: =IF(COUNTRY_INFO!C29=0," ",COUNTRY_INFO!C29) -> Zabré | D29: =IF(OR(COUNTRY_INFO!$T$9:$T$1000="T3 (ALB/MBD)",COUNTRY_INFO!$U$9:$U$1000="T3 (ALB/MBD)"), "T3 (ALB/MBD)", " ") ->  | J29: 0 | N29: 0
A30: =IF(COUNTRY_INFO!A30=0," ",COUNTRY_INFO!A30) -> Burkina Faso | B30: =IF(COUNTRY_INFO!B30=0," ",COUNTRY_INFO!B30) -> Centre-Nord | C30: =IF(COUNTRY_INFO!C30=0," ",COUNTRY_INFO!C30) -> Barsalogo | D30: =IF(OR(COUNTRY_INFO!$T$9:$T$1000="T3 (ALB/MBD)",COUNTRY_INFO!$U$9:$U$1000="T3 (ALB/MBD)"), "T3 (ALB/MBD)", " ") ->  | J30: 0 | N30: 0
A31: =IF(COUNTRY_INFO!A31=0," ",COUNTRY_INFO!A31) -> Burkina Faso | B31: =IF(COUNTRY_INFO!B31=0," ",COUNTRY_INFO!B31) -> Centre-Nord | C31: =IF(COUNTRY_INFO!C31=0," ",COUNTRY_INFO!C31) -> Boulsa | D31: =IF(OR(COUNTRY_INFO!$T$9:$T$1000="T3 (ALB/MBD)",COUNTRY_INFO!$U$9:$U$1000="T3 (ALB/MBD)"), "T3 (ALB/MBD)", " ") ->  | J31: 0 | N31: 0
A32: =IF(COUNTRY_INFO!A32=0," ",COUNTRY_INFO!A32) -> Burkina Faso | B32: =IF(COUNTRY_INFO!B32=0," ",COUNTRY_INFO!B32) -> Centre-Nord | C32: =IF(COUNTRY_INFO!C32=0," ",COUNTRY_INFO!C32) -> Boussouma | D32: =IF(OR(COUNTRY_INFO!$T$9:$T$1000="T3 (ALB/MBD)",COUNTRY_INFO!$U$9:$U$1000="T3 (ALB/MBD)"), "T3 (ALB/MBD)", " ") ->  | J32: 0 | N32: 0
A33: =IF(COUNTRY_INFO!A33=0," ",COUNTRY_INFO!A33) -> Burkina Faso | B33: =IF(COUNTRY_INFO!B33=0," ",COUNTRY_INFO!B33) -> Centre-Nord | C33: =IF(COUNTRY_INFO!C33=0," ",COUNTRY_INFO!C33) -> Kaya | D33: =IF(OR(COUNTRY_INFO!$T$9:$T$1000="T3 (ALB/MBD)",COUNTRY_INFO!$U$9:$U$1000="T3 (ALB/MBD)"), "T3 (ALB/MBD)", " ") ->  | J33: 0 | N33: 0
A34: =IF(COUNTRY_INFO!A34=0," ",COUNTRY_INFO!A34) -> Burkina Faso | B34: =IF(COUNTRY_INFO!B34=0," ",COUNTRY_INFO!B34) -> Centre-Nord | C34: =IF(COUNTRY_INFO!C34=0," ",COUNTRY_INFO!C34) -> Kongoussi | D34: =IF(OR(COUNTRY_INFO!$T$9:$T$1000="T3 (ALB/MBD)",COUNTRY_INFO!$U$9:$U$1000="T3 (ALB/MBD)"), "T3 (ALB/MBD)", " ") ->  | J34: 0 | N34: 0
A35: =IF(COUNTRY_INFO!A35=0," ",COUNTRY_INFO!A35) -> Burkina Faso | B35: =IF(COUNTRY_INFO!B35=0," ",COUNTRY_INFO!B35) -> Centre-Nord | C35: =IF(COUNTRY_INFO!C35=0," ",COUNTRY_INFO!C35) -> Tougouri | D35: =IF(OR(COUNTRY_INFO!$T$9:$T$1000="T3 (ALB/MBD)",COUNTRY_INFO!$U$9:$U$1000="T3 (ALB/MBD)"), "T3 (ALB/MBD)", " ") ->  | J35: 0 | N35: 0
A36: =IF(COUNTRY_INFO!A36=0," ",COUNTRY_INFO!A36) -> Burkina Faso | B36: =IF(COUNTRY_INFO!B36=0," ",COUNTRY_INFO!B36) -> Centre-Ouest | C36: =IF(COUNTRY_INFO!C36=0," ",COUNTRY_INFO!C36) -> Koudougou | D36: =IF(OR(COUNTRY_INFO!$T$9:$T$1000="T3 (ALB/MBD)",COUNTRY_INFO!$U$9:$U$1000="T3 (ALB/MBD)"), "T3 (ALB/MBD)", " ") ->  | J36: 0 | N36: 0
A37: =IF(COUNTRY_INFO!A37=0," ",COUNTRY_INFO!A37) -> Burkina Faso | B37: =IF(COUNTRY_INFO!B37=0," ",COUNTRY_INFO!B37) -> Centre-Ouest | C37: =IF(COUNTRY_INFO!C37=0," ",COUNTRY_INFO!C37) -> Léo | D37: =IF(OR(COUNTRY_INFO!$T$9:$T$1000="T3 (ALB/MBD)",COUNTRY_INFO!$U$9:$U$1000="T3 (ALB/MBD)"), "T3 (ALB/MBD)", " ") ->  | J37: 0 | N37: 0
A38: =IF(COUNTRY_INFO!A38=0," ",COUNTRY_INFO!A38) -> Burkina Faso | B38: =IF(COUNTRY_INFO!B38=0," ",COUNTRY_INFO!B38) -> Centre-Ouest | C38: =IF(COUNTRY_INFO!C38=0," ",COUNTRY_INFO!C38) -> Nanoro | D38: =IF(OR(COUNTRY_INFO!$T$9:$T$1000="T3 (ALB/MBD)",COUNTRY_INFO!$U$9:$U$1000="T3 (ALB/MBD)"), "T3 (ALB/MBD)", " ") ->  | J38: 0 | N38: 0
A39: =IF(COUNTRY_INFO!A39=0," ",COUNTRY_INFO!A39) -> Burkina Faso | B39: =IF(COUNTRY_INFO!B39=0," ",COUNTRY_INFO!B39) -> Centre-Ouest | C39: =IF(COUNTRY_INFO!C39=0," ",COUNTRY_INFO!C39) -> Réo | D39: =IF(OR(COUNTRY_INFO!$T$9:$T$1000="T3 (ALB/MBD)",COUNTRY_INFO!$U$9:$U$1000="T3 (ALB/MBD)"), "T3 (ALB/MBD)", " ") ->  | J39: 0 | N39: 0
A40: =IF(COUNTRY_INFO!A40=0," ",COUNTRY_INFO!A40) -> Burkina Faso | B40: =IF(COUNTRY_INFO!B40=0," ",COUNTRY_INFO!B40) -> Centre-Ouest | C40: =IF(COUNTRY_INFO!C40=0," ",COUNTRY_INFO!C40) -> Sabou | D40: =IF(OR(COUNTRY_INFO!$T$9:$T$1000="T3 (ALB/MBD)",COUNTRY_INFO!$U$9:$U$1000="T3 (ALB/MBD)"), "T3 (ALB/MBD)", " ") ->  | J40: 0 | N40: 0
A41: =IF(COUNTRY_INFO!A41=0," ",COUNTRY_INFO!A41) -> Burkina Faso | B41: =IF(COUNTRY_INFO!B41=0," ",COUNTRY_INFO!B41) -> Centre-Ouest | C41: =IF(COUNTRY_INFO!C41=0," ",COUNTRY_INFO!C41) -> Sapouy | D41: =IF(OR(COUNTRY_INFO!$T$9:$T$1000="T3 (ALB/MBD)",COUNTRY_INFO!$U$9:$U$1000="T3 (ALB/MBD)"), "T3 (ALB/MBD)", " ") ->  | J41: 0 | N41: 0
A42: =IF(COUNTRY_INFO!A42=0," ",COUNTRY_INFO!A42) -> Burkina Faso | B42: =IF(COUNTRY_INFO!B42=0," ",COUNTRY_INFO!B42) -> Centre-Ouest | C42: =IF(COUNTRY_INFO!C42=0," ",COUNTRY_INFO!C42) -> Tenado | D42: =IF(OR(COUNTRY_INFO!$T$9:$T$1000="T3 (ALB/MBD)",COUNTRY_INFO!$U$9:$U$1000="T3 (ALB/MBD)"), "T3 (ALB/MBD)", " ") ->  | J42: 0 | N42: 0
A43: =IF(COUNTRY_INFO!A43=0," ",COUNTRY_INFO!A43) -> Burkina Faso | B43: =IF(COUNTRY_INFO!B43=0," ",COUNTRY_INFO!B43) -> Centre-Sud | C43: =IF(COUNTRY_INFO!C43=0," ",COUNTRY_INFO!C43) -> Kombissiri | D43: =IF(OR(COUNTRY_INFO!$T$9:$T$1000="T3 (ALB/MBD)",COUNTRY_INFO!$U$9:$U$1000="T3 (ALB/MBD)"), "T3 (ALB/MBD)", " ") ->  | J43: 0 | N43: 0
A44: =IF(COUNTRY_INFO!A44=0," ",COUNTRY_INFO!A44) -> Burkina Faso | B44: =IF(COUNTRY_INFO!B44=0," ",COUNTRY_INFO!B44) -> Centre-Sud | C44: =IF(COUNTRY_INFO!C44=0," ",COUNTRY_INFO!C44) -> Manga | D44: =IF(OR(COUNTRY_INFO!$T$9:$T$1000="T3 (ALB/MBD)",COUNTRY_INFO!$U$9:$U$1000="T3 (ALB/MBD)"), "T3 (ALB/MBD)", " ") ->  | J44: 0 | N44: 0
A45: =IF(COUNTRY_INFO!A45=0," ",COUNTRY_INFO!A45) -> Burkina Faso | B45: =IF(COUNTRY_INFO!B45=0," ",COUNTRY_INFO!B45) -> Centre-Sud | C45: =IF(COUNTRY_INFO!C45=0," ",COUNTRY_INFO!C45) -> Pô | D45: =IF(OR(COUNTRY_INFO!$T$9:$T$1000="T3 (ALB/MBD)",COUNTRY_INFO!$U$9:$U$1000="T3 (ALB/MBD)"), "T3 (ALB/MBD)", " ") ->  | J45: 0 | N45: 0
A46: =IF(COUNTRY_INFO!A46=0," ",COUNTRY_INFO!A46) -> Burkina Faso | B46: =IF(COUNTRY_INFO!B46=0," ",COUNTRY_INFO!B46) -> Centre-Sud | C46: =IF(COUNTRY_INFO!C46=0," ",COUNTRY_INFO!C46) -> Saponé | D46: =IF(OR(COUNTRY_INFO!$T$9:$T$1000="T3 (ALB/MBD)",COUNTRY_INFO!$U$9:$U$1000="T3 (ALB/MBD)"), "T3 (ALB/MBD)", " ") ->  | J46: 0 | N46: 0
A47: =IF(COUNTRY_INFO!A47=0," ",COUNTRY_INFO!A47) -> Burkina Faso | B47: =IF(COUNTRY_INFO!B47=0," ",COUNTRY_INFO!B47) -> Est | C47: =IF(COUNTRY_INFO!C47=0," ",COUNTRY_INFO!C47) -> Bogandé | D47: =IF(OR(COUNTRY_INFO!$T$9:$T$1000="T3 (ALB/MBD)",COUNTRY_INFO!$U$9:$U$1000="T3 (ALB/MBD)"), "T3 (ALB/MBD)", " ") ->  | J47: 0 | N47: 0
A48: =IF(COUNTRY_INFO!A48=0," ",COUNTRY_INFO!A48) -> Burkina Faso | B48: =IF(COUNTRY_INFO!B48=0," ",COUNTRY_INFO!B48) -> Est | C48: =IF(COUNTRY_INFO!C48=0," ",COUNTRY_INFO!C48) -> Diapaga | D48: =IF(OR(COUNTRY_INFO!$T$9:$T$1000="T3 (ALB/MBD)",COUNTRY_INFO!$U$9:$U$1000="T3 (ALB/MBD)"), "T3 (ALB/MBD)", " ") ->  | J48: 0 | N48: 0
A49: =IF(COUNTRY_INFO!A49=0," ",COUNTRY_INFO!A49) -> Burkina Faso | B49: =IF(COUNTRY_INFO!B49=0," ",COUNTRY_INFO!B49) -> Est | C49: =IF(COUNTRY_INFO!C49=0," ",COUNTRY_INFO!C49) -> Fada N'gourma | D49: =IF(OR(COUNTRY_INFO!$T$9:$T$1000="T3 (ALB/MBD)",COUNTRY_INFO!$U$9:$U$1000="T3 (ALB/MBD)"), "T3 (ALB/MBD)", " ") ->  | J49: 0 | N49: 0
A50: =IF(COUNTRY_INFO!A50=0," ",COUNTRY_INFO!A50) -> Burkina Faso | B50: =IF(COUNTRY_INFO!B50=0," ",COUNTRY_INFO!B50) -> Est | C50: =IF(COUNTRY_INFO!C50=0," ",COUNTRY_INFO!C50) -> Gayeri | D50: =IF(OR(COUNTRY_INFO!$T$9:$T$1000="T3 (ALB/MBD)",COUNTRY_INFO!$U$9:$U$1000="T3 (ALB/MBD)"), "T3 (ALB/MBD)", " ") ->  | J50: 0 | N50: 0
A51: =IF(COUNTRY_INFO!A51=0," ",COUNTRY_INFO!A51) -> Burkina Faso | B51: =IF(COUNTRY_INFO!B51=0," ",COUNTRY_INFO!B51) -> Est | C51: =IF(COUNTRY_INFO!C51=0," ",COUNTRY_INFO!C51) -> Manni | D51: =IF(OR(COUNTRY_INFO!$T$9:$T$1000="T3 (ALB/MBD)",COUNTRY_INFO!$U$9:$U$1000="T3 (ALB/MBD)"), "T3 (ALB/MBD)", " ") ->  | J51: 0 | N51: 0
A52: =IF(COUNTRY_INFO!A52=0," ",COUNTRY_INFO!A52) -> Burkina Faso | B52: =IF(COUNTRY_INFO!B52=0," ",COUNTRY_INFO!B52) -> Est | C52: =IF(COUNTRY_INFO!C52=0," ",COUNTRY_INFO!C52) -> Pama | D52: =IF(OR(COUNTRY_INFO!$T$9:$T$1000="T3 (ALB/MBD)",COUNTRY_INFO!$U$9:$U$1000="T3 (ALB/MBD)"), "T3 (ALB/MBD)", " ") ->  | J52: 0 | N52: 0
A53: =IF(COUNTRY_INFO!A53=0," ",COUNTRY_INFO!A53) -> Burkina Faso | B53: =IF(COUNTRY_INFO!B53=0," ",COUNTRY_INFO!B53) -> Hauts-Bassins | C53: =IF(COUNTRY_INFO!C53=0," ",COUNTRY_INFO!C53) -> Dafra | D53: =IF(OR(COUNTRY_INFO!$T$9:$T$1000="T3 (ALB/MBD)",COUNTRY_INFO!$U$9:$U$1000="T3 (ALB/MBD)"), "T3 (ALB/MBD)", " ") ->  | J53: 0 | N53: 0
A54: =IF(COUNTRY_INFO!A54=0," ",COUNTRY_INFO!A54) -> Burkina Faso | B54: =IF(COUNTRY_INFO!B54=0," ",COUNTRY_INFO!B54) -> Hauts-Bassins | C54: =IF(COUNTRY_INFO!C54=0," ",COUNTRY_INFO!C54) -> Dandé | D54: =IF(OR(COUNTRY_INFO!$T$9:$T$1000="T3 (ALB/MBD)",COUNTRY_INFO!$U$9:$U$1000="T3 (ALB/MBD)"), "T3 (ALB/MBD)", " ") ->  | J54: 0 | N54: 0
A55: =IF(COUNTRY_INFO!A55=0," ",COUNTRY_INFO!A55) -> Burkina Faso | B55: =IF(COUNTRY_INFO!B55=0," ",COUNTRY_INFO!B55) -> Hauts-Bassins | C55: =IF(COUNTRY_INFO!C55=0," ",COUNTRY_INFO!C55) -> Dô | D55: =IF(OR(COUNTRY_INFO!$T$9:$T$1000="T3 (ALB/MBD)",COUNTRY_INFO!$U$9:$U$1000="T3 (ALB/MBD)"), "T3 (ALB/MBD)", " ") ->  | J55: 0 | N55: 0
A56: =IF(COUNTRY_INFO!A56=0," ",COUNTRY_INFO!A56) -> Burkina Faso | B56: =IF(COUNTRY_INFO!B56=0," ",COUNTRY_INFO!B56) -> Hauts-Bassins | C56: =IF(COUNTRY_INFO!C56=0," ",COUNTRY_INFO!C56) -> Houndé | D56: =IF(OR(COUNTRY_INFO!$T$9:$T$1000="T3 (ALB/MBD)",COUNTRY_INFO!$U$9:$U$1000="T3 (ALB/MBD)"), "T3 (ALB/MBD)", " ") ->  | J56: 0 | N56: 0
A57: =IF(COUNTRY_INFO!A57=0," ",COUNTRY_INFO!A57) -> Burkina Faso | B57: =IF(COUNTRY_INFO!B57=0," ",COUNTRY_INFO!B57) -> Hauts-Bassins | C57: =IF(COUNTRY_INFO!C57=0," ",COUNTRY_INFO!C57) -> Karangasso-Vigué | D57: =IF(OR(COUNTRY_INFO!$T$9:$T$1000="T3 (ALB/MBD)",COUNTRY_INFO!$U$9:$U$1000="T3 (ALB/MBD)"), "T3 (ALB/MBD)", " ") ->  | J57: 0 | N57: 0
A58: =IF(COUNTRY_INFO!A58=0," ",COUNTRY_INFO!A58) -> Burkina Faso | B58: =IF(COUNTRY_INFO!B58=0," ",COUNTRY_INFO!B58) -> Hauts-Bassins | C58: =IF(COUNTRY_INFO!C58=0," ",COUNTRY_INFO!C58) -> Lena | D58: =IF(OR(COUNTRY_INFO!$T$9:$T$1000="T3 (ALB/MBD)",COUNTRY_INFO!$U$9:$U$1000="T3 (ALB/MBD)"), "T3 (ALB/MBD)", " ") ->  | J58: 0 | N58: 0
A59: =IF(COUNTRY_INFO!A59=0," ",COUNTRY_INFO!A59) -> Burkina Faso | B59: =IF(COUNTRY_INFO!B59=0," ",COUNTRY_INFO!B59) -> Hauts-Bassins | C59: =IF(COUNTRY_INFO!C59=0," ",COUNTRY_INFO!C59) -> N'Dorola | D59: =IF(OR(COUNTRY_INFO!$T$9:$T$1000="T3 (ALB/MBD)",COUNTRY_INFO!$U$9:$U$1000="T3 (ALB/MBD)"), "T3 (ALB/MBD)", " ") ->  | J59: 0 | N59: 0
A60: =IF(COUNTRY_INFO!A60=0," ",COUNTRY_INFO!A60) -> Burkina Faso | B60: =IF(COUNTRY_INFO!B60=0," ",COUNTRY_INFO!B60) -> Hauts-Bassins | C60: =IF(COUNTRY_INFO!C60=0," ",COUNTRY_INFO!C60) -> Orodara | D60: =IF(OR(COUNTRY_INFO!$T$9:$T$1000="T3 (ALB/MBD)",COUNTRY_INFO!$U$9:$U$1000="T3 (ALB/MBD)"), "T3 (ALB/MBD)", " ") ->  | J60: 0 | N60: 0
A61: =IF(COUNTRY_INFO!A61=0," ",COUNTRY_INFO!A61) -> Burkina Faso | B61: =IF(COUNTRY_INFO!B61=0," ",COUNTRY_INFO!B61) -> Nord | C61: =IF(COUNTRY_INFO!C61=0," ",COUNTRY_INFO!C61) -> Gourcy | D61: =IF(OR(COUNTRY_INFO!$T$9:$T$1000="T3 (ALB/MBD)",COUNTRY_INFO!$U$9:$U$1000="T3 (ALB/MBD)"), "T3 (ALB/MBD)", " ") ->  | J61: 0 | N61: 0
A62: =IF(COUNTRY_INFO!A62=0," ",COUNTRY_INFO!A62) -> Burkina Faso | B62: =IF(COUNTRY_INFO!B62=0," ",COUNTRY_INFO!B62) -> Nord | C62: =IF(COUNTRY_INFO!C62=0," ",COUNTRY_INFO!C62) -> Ouahigouya | D62: =IF(OR(COUNTRY_INFO!$T$9:$T$1000="T3 (ALB/MBD)",COUNTRY_INFO!$U$9:$U$1000="T3 (ALB/MBD)"), "T3 (ALB/MBD)", " ") ->  | J62: 0 | N62: 0
A63: =IF(COUNTRY_INFO!A63=0," ",COUNTRY_INFO!A63) -> Burkina Faso | B63: =IF(COUNTRY_INFO!B63=0," ",COUNTRY_INFO!B63) -> Nord | C63: =IF(COUNTRY_INFO!C63=0," ",COUNTRY_INFO!C63) -> Seguenega | D63: =IF(OR(COUNTRY_INFO!$T$9:$T$1000="T3 (ALB/MBD)",COUNTRY_INFO!$U$9:$U$1000="T3 (ALB/MBD)"), "T3 (ALB/MBD)", " ") ->  | J63: 0 | N63: 0
A64: =IF(COUNTRY_INFO!A64=0," ",COUNTRY_INFO!A64) -> Burkina Faso | B64: =IF(COUNTRY_INFO!B64=0," ",COUNTRY_INFO!B64) -> Nord | C64: =IF(COUNTRY_INFO!C64=0," ",COUNTRY_INFO!C64) -> Thiou | D64: =IF(OR(COUNTRY_INFO!$T$9:$T$1000="T3 (ALB/MBD)",COUNTRY_INFO!$U$9:$U$1000="T3 (ALB/MBD)"), "T3 (ALB/MBD)", " ") ->  | J64: 0 | N64: 0
A65: =IF(COUNTRY_INFO!A65=0," ",COUNTRY_INFO!A65) -> Burkina Faso | B65: =IF(COUNTRY_INFO!B65=0," ",COUNTRY_INFO!B65) -> Nord | C65: =IF(COUNTRY_INFO!C65=0," ",COUNTRY_INFO!C65) -> Titao | D65: =IF(OR(COUNTRY_INFO!$T$9:$T$1000="T3 (ALB/MBD)",COUNTRY_INFO!$U$9:$U$1000="T3 (ALB/MBD)"), "T3 (ALB/MBD)", " ") ->  | J65: 0 | N65: 0
A66: =IF(COUNTRY_INFO!A66=0," ",COUNTRY_INFO!A66) -> Burkina Faso | B66: =IF(COUNTRY_INFO!B66=0," ",COUNTRY_INFO!B66) -> Nord | C66: =IF(COUNTRY_INFO!C66=0," ",COUNTRY_INFO!C66) -> Yako | D66: =IF(OR(COUNTRY_INFO!$T$9:$T$1000="T3 (ALB/MBD)",COUNTRY_INFO!$U$9:$U$1000="T3 (ALB/MBD)"), "T3 (ALB/MBD)", " ") ->  | J66: 0 | N66: 0
A67: =IF(COUNTRY_INFO!A67=0," ",COUNTRY_INFO!A67) -> Burkina Faso | B67: =IF(COUNTRY_INFO!B67=0," ",COUNTRY_INFO!B67) -> Plateau Central | C67: =IF(COUNTRY_INFO!C67=0," ",COUNTRY_INFO!C67) -> Boussé | D67: =IF(OR(COUNTRY_INFO!$T$9:$T$1000="T3 (ALB/MBD)",COUNTRY_INFO!$U$9:$U$1000="T3 (ALB/MBD)"), "T3 (ALB/MBD)", " ") ->  | J67: 0 | N67: 0
A68: =IF(COUNTRY_INFO!A68=0," ",COUNTRY_INFO!A68) -> Burkina Faso | B68: =IF(COUNTRY_INFO!B68=0," ",COUNTRY_INFO!B68) -> Plateau Central | C68: =IF(COUNTRY_INFO!C68=0," ",COUNTRY_INFO!C68) -> Ziniaré | D68: =IF(OR(COUNTRY_INFO!$T$9:$T$1000="T3 (ALB/MBD)",COUNTRY_INFO!$U$9:$U$1000="T3 (ALB/MBD)"), "T3 (ALB/MBD)", " ") ->  | J68: 0 | N68: 0
A69: =IF(COUNTRY_INFO!A69=0," ",COUNTRY_INFO!A69) -> Burkina Faso | B69: =IF(COUNTRY_INFO!B69=0," ",COUNTRY_INFO!B69) -> Plateau Central | C69: =IF(COUNTRY_INFO!C69=0," ",COUNTRY_INFO!C69) -> Zorgho | D69: =IF(OR(COUNTRY_INFO!$T$9:$T$1000="T3 (ALB/MBD)",COUNTRY_INFO!$U$9:$U$1000="T3 (ALB/MBD)"), "T3 (ALB/MBD)", " ") ->  | J69: 0 | N69: 0
A70: =IF(COUNTRY_INFO!A70=0," ",COUNTRY_INFO!A70) -> Burkina Faso | B70: =IF(COUNTRY_INFO!B70=0," ",COUNTRY_INFO!B70) -> Sahel | C70: =IF(COUNTRY_INFO!C70=0," ",COUNTRY_INFO!C70) -> Djibo | D70: =IF(OR(COUNTRY_INFO!$T$9:$T$1000="T3 (ALB/MBD)",COUNTRY_INFO!$U$9:$U$1000="T3 (ALB/MBD)"), "T3 (ALB/MBD)", " ") ->  | J70: 0 | N70: 0
A71: =IF(COUNTRY_INFO!A71=0," ",COUNTRY_INFO!A71) -> Burkina Faso | B71: =IF(COUNTRY_INFO!B71=0," ",COUNTRY_INFO!B71) -> Sahel | C71: =IF(COUNTRY_INFO!C71=0," ",COUNTRY_INFO!C71) -> Dori | D71: =IF(OR(COUNTRY_INFO!$T$9:$T$1000="T3 (ALB/MBD)",COUNTRY_INFO!$U$9:$U$1000="T3 (ALB/MBD)"), "T3 (ALB/MBD)", " ") ->  | J71: 0 | N71: 0
A72: =IF(COUNTRY_INFO!A72=0," ",COUNTRY_INFO!A72) -> Burkina Faso | B72: =IF(COUNTRY_INFO!B72=0," ",COUNTRY_INFO!B72) -> Sahel | C72: =IF(COUNTRY_INFO!C72=0," ",COUNTRY_INFO!C72) -> Gorom-Gorom | D72: =IF(OR(COUNTRY_INFO!$T$9:$T$1000="T3 (ALB/MBD)",COUNTRY_INFO!$U$9:$U$1000="T3 (ALB/MBD)"), "T3 (ALB/MBD)", " ") ->  | J72: 0 | N72: 0
A73: =IF(COUNTRY_INFO!A73=0," ",COUNTRY_INFO!A73) -> Burkina Faso | B73: =IF(COUNTRY_INFO!B73=0," ",COUNTRY_INFO!B73) -> Sahel | C73: =IF(COUNTRY_INFO!C73=0," ",COUNTRY_INFO!C73) -> Sebba | D73: =IF(OR(COUNTRY_INFO!$T$9:$T$1000="T3 (ALB/MBD)",COUNTRY_INFO!$U$9:$U$1000="T3 (ALB/MBD)"), "T3 (ALB/MBD)", " ") ->  | J73: 0 | N73: 0
A74: =IF(COUNTRY_INFO!A74=0," ",COUNTRY_INFO!A74) -> Burkina Faso | B74: =IF(COUNTRY_INFO!B74=0," ",COUNTRY_INFO!B74) -> Sud-Ouest | C74: =IF(COUNTRY_INFO!C74=0," ",COUNTRY_INFO!C74) -> Batié | D74: =IF(OR(COUNTRY_INFO!$T$9:$T$1000="T3 (ALB/MBD)",COUNTRY_INFO!$U$9:$U$1000="T3 (ALB/MBD)"), "T3 (ALB/MBD)", " ") ->  | J74: =SUM(G74:I74) -> 0 | N74: =SUM(K74:M74) -> 0 | O74: =IF(G74<>0, IF(K74/G74*100=0, "-", K74/G74*100), " ") ->  | P74: =IF(H74<>0, IF(L74/H74*100=0, "-", L74/H74*100), " ") ->  | Q74: =IF(I74<>0, IF(M74/I74*100=0, "-", M74/I74*100), " ") ->  | R74: =IF(J74<>0, IF(N74/J74*100=0, "-", N74/J74*100), " ") -> 
A75: =IF(COUNTRY_INFO!A75=0," ",COUNTRY_INFO!A75) -> Burkina Faso | B75: =IF(COUNTRY_INFO!B75=0," ",COUNTRY_INFO!B75) -> Sud-Ouest | C75: =IF(COUNTRY_INFO!C75=0," ",COUNTRY_INFO!C75) -> Dano | D75: =IF(OR(COUNTRY_INFO!$T$9:$T$1000="T3 (ALB/MBD)",COUNTRY_INFO!$U$9:$U$1000="T3 (ALB/MBD)"), "T3 (ALB/MBD)", " ") ->  | J75: 0 | N75: 0
A76: =IF(COUNTRY_INFO!A76=0," ",COUNTRY_INFO!A76) -> Burkina Faso | B76: =IF(COUNTRY_INFO!B76=0," ",COUNTRY_INFO!B76) -> Sud-Ouest | C76: =IF(COUNTRY_INFO!C76=0," ",COUNTRY_INFO!C76) -> Diébougou | D76: =IF(OR(COUNTRY_INFO!$T$9:$T$1000="T3 (ALB/MBD)",COUNTRY_INFO!$U$9:$U$1000="T3 (ALB/MBD)"), "T3 (ALB/MBD)", " ") ->  | J76: 0 | N76: 0
A77: =IF(COUNTRY_INFO!A77=0," ",COUNTRY_INFO!A77) -> Burkina Faso | B77: =IF(COUNTRY_INFO!B77=0," ",COUNTRY_INFO!B77) -> Sud-Ouest | C77: =IF(COUNTRY_INFO!C77=0," ",COUNTRY_INFO!C77) -> Gaoua | D77: =IF(OR(COUNTRY_INFO!$T$9:$T$1000="T3 (ALB/MBD)",COUNTRY_INFO!$U$9:$U$1000="T3 (ALB/MBD)"), "T3 (ALB/MBD)", " ") ->  | J77: 0 | N77: 0
A78: =IF(COUNTRY_INFO!A78=0," ",COUNTRY_INFO!A78) -> Burkina Faso | B78: =IF(COUNTRY_INFO!B78=0," ",COUNTRY_INFO!B78) -> Sud-Ouest | C78: =IF(COUNTRY_INFO!C78=0," ",COUNTRY_INFO!C78) -> Kampti | D78: =IF(OR(COUNTRY_INFO!$T$9:$T$1000="T3 (ALB/MBD)",COUNTRY_INFO!$U$9:$U$1000="T3 (ALB/MBD)"), "T3 (ALB/MBD)", " ") ->  | J78: 0 | N78: 0

Sheet T3_R2
A1: T 3 - Albendazole (ALB) or Mebendazole (MBD) - Round 2
A2: Administrative structure, population requiring PC by age group, population treated by age group and coverage
A4: TOTAL | G4: =SUM(G$9:G$1000) -> 0 | H4: 0 | I4: 0 | J4: 0 | K4: 0 | L4: 0 | M4: 0 | N4: 0 | O4: =IF(G4<>0, IF(K4/G4*100=0, "-", K4/G4*100), " ") ->  | P4: =IF(H4<>0, IF(L4/H4*100=0, "-", L4/H4*100), " ") ->  | Q4: =IF(I4<>0, IF(M4/I4*100=0, "-", M4/I4*100), " ") ->  | R4: =IF(J4<>0, IF(N4/J4*100=0, "-", N4/J4*100), " ") -> 
D6: PC implemented | E6: Medicine | F6: Date | G6: Population targeted for T3 | K6: Population treated | O6: Programme coverage (%)
A7: Country | B7: Province/State | C7: District | G7: PreSAC | H7: SAC | I7: Adults | J7: Total | K7: PreSAC | L7: SAC | M7: Adults | N7: Total | O7: PreSAC | P7: SAC | Q7: Adults | R7: Total
A9: =IF(COUNTRY_INFO!A9=0," ",COUNTRY_INFO!A9) -> Burkina Faso | B9: =IF(COUNTRY_INFO!B9=0," ",COUNTRY_INFO!B9) -> Boucle du Mouhoun | C9: =IF(COUNTRY_INFO!C9=0," ",COUNTRY_INFO!C9) -> Boromo | D9: =IF(AND(COUNTRY_INFO!$T$9:$T$1000="T3 (ALB/MBD)",COUNTRY_INFO!$U$9:$U$1000="T3 (ALB/MBD)"), "T3 (ALB/MBD)", " ") ->  | J9: =SUM(G9:I9) -> 0 | N9: =SUM(K9:M9) -> 0 | O9: =IF(G9<>0, IF(K9/G9*100=0, "-", K9/G9*100), " ") -> 
A10: =IF(COUNTRY_INFO!A10=0," ",COUNTRY_INFO!A10) -> Burkina Faso | B10: =IF(COUNTRY_INFO!B10=0," ",COUNTRY_INFO!B10) -> Boucle du Mouhoun | C10: =IF(COUNTRY_INFO!C10=0," ",COUNTRY_INFO!C10) -> Dédougou | D10: =IF(AND(COUNTRY_INFO!$T$9:$T$1000="T3 (ALB/MBD)",COUNTRY_INFO!$U$9:$U$1000="T3 (ALB/MBD)"), "T3 (ALB/MBD)", " ") ->  | J10: =SUM(G10:I10) -> 0 | N10: =SUM(K10:M10) -> 0 | O10: =IF(G10<>0, IF(K10/G10*100=0, "-", K10/G10*100), " ") ->  | P10: =IF(H10<>0, IF(L10/H10*100=0, "-", L10/H10*100), " ") ->  | Q10: =IF(I10<>0, IF(M10/I10*100=0, "-", M10/I10*100), " ") ->  | R10: =IF(J10<>0, IF(N10/J10*100=0, "-", N10/J10*100), " ") -> 
A11: =IF(COUNTRY_INFO!A11=0," ",COUNTRY_INFO!A11) -> Burkina Faso | B11: =IF(COUNTRY_INFO!B11=0," ",COUNTRY_INFO!B11) -> Boucle du Mouhoun | C11: =IF(COUNTRY_INFO!C11=0," ",COUNTRY_INFO!C11) -> Nouna | D11: =IF(AND(COUNTRY_INFO!$T$9:$T$1000="T3 (ALB/MBD)",COUNTRY_INFO!$U$9:$U$1000="T3 (ALB/MBD)"), "T3 (ALB/MBD)", " ") ->  | J11: 0 | N11: 0
A12: =IF(COUNTRY_INFO!A12=0," ",COUNTRY_INFO!A12) -> Burkina Faso | B12: =IF(COUNTRY_INFO!B12=0," ",COUNTRY_INFO!B12) -> Boucle du Mouhoun | C12: =IF(COUNTRY_INFO!C12=0," ",COUNTRY_INFO!C12) -> Solenzo | D12: =IF(AND(COUNTRY_INFO!$T$9:$T$1000="T3 (ALB/MBD)",COUNTRY_INFO!$U$9:$U$1000="T3 (ALB/MBD)"), "T3 (ALB/MBD)", " ") ->  | J12: 0 | N12: 0
A13: =IF(COUNTRY_INFO!A13=0," ",COUNTRY_INFO!A13) -> Burkina Faso | B13: =IF(COUNTRY_INFO!B13=0," ",COUNTRY_INFO!B13) -> Boucle du Mouhoun | C13: =IF(COUNTRY_INFO!C13=0," ",COUNTRY_INFO!C13) -> Toma | D13: =IF(AND(COUNTRY_INFO!$T$9:$T$1000="T3 (ALB/MBD)",COUNTRY_INFO!$U$9:$U$1000="T3 (ALB/MBD)"), "T3 (ALB/MBD)", " ") ->  | J13: 0 | N13: 0
A14: =IF(COUNTRY_INFO!A14=0," ",COUNTRY_INFO!A14) -> Burkina Faso | B14: =IF(COUNTRY_INFO!B14=0," ",COUNTRY_INFO!B14) -> Boucle du Mouhoun | C14: =IF(COUNTRY_INFO!C14=0," ",COUNTRY_INFO!C14) -> Tougan | D14: =IF(AND(COUNTRY_INFO!$T$9:$T$1000="T3 (ALB/MBD)",COUNTRY_INFO!$U$9:$U$1000="T3 (ALB/MBD)"), "T3 (ALB/MBD)", " ") ->  | J14: 0 | N14: 0
A15: =IF(COUNTRY_INFO!A15=0," ",COUNTRY_INFO!A15) -> Burkina Faso | B15: =IF(COUNTRY_INFO!B15=0," ",COUNTRY_INFO!B15) -> Cascades | C15: =IF(COUNTRY_INFO!C15=0," ",COUNTRY_INFO!C15) -> Banfora | D15: =IF(AND(COUNTRY_INFO!$T$9:$T$1000="T3 (ALB/MBD)",COUNTRY_INFO!$U$9:$U$1000="T3 (ALB/MBD)"), "T3 (ALB/MBD)", " ") ->  | J15: 0 | N15: 0
A16: =IF(COUNTRY_INFO!A16=0," ",COUNTRY_INFO!A16) -> Burkina Faso | B16: =IF(COUNTRY_INFO!B16=0," ",COUNTRY_INFO!B16) -> Cascades | C16: =IF(COUNTRY_INFO!C16=0," ",COUNTRY_INFO!C16) -> Mangodara | D16: =IF(AND(COUNTRY_INFO!$T$9:$T$1000="T3 (ALB/MBD)",COUNTRY_INFO!$U$9:$U$1000="T3 (ALB/MBD)"), "T3 (ALB/MBD)", " ") ->  | J16: 0 | N16: 0
A17: =IF(COUNTRY_INFO!A17=0," ",COUNTRY_INFO!A17) -> Burkina Faso | B17: =IF(COUNTRY_INFO!B17=0," ",COUNTRY_INFO!B17) -> Cascades | C17: =IF(COUNTRY_INFO!C17=0," ",COUNTRY_INFO!C17) -> Sindou | D17: =IF(AND(COUNTRY_INFO!$T$9:$T$1000="T3 (ALB/MBD)",COUNTRY_INFO!$U$9:$U$1000="T3 (ALB/MBD)"), "T3 (ALB/MBD)", " ") ->  | J17: 0 | N17: 0
A18: =IF(COUNTRY_INFO!A18=0," ",COUNTRY_INFO!A18) -> Burkina Faso | B18: =IF(COUNTRY_INFO!B18=0," ",COUNTRY_INFO!B18) -> Centre | C18: =IF(COUNTRY_INFO!C18=0," ",COUNTRY_INFO!C18) -> Baskuy | D18: =IF(AND(COUNTRY_INFO!$T$9:$T$1000="T3 (ALB/MBD)",COUNTRY_INFO!$U$9:$U$1000="T3 (ALB/MBD)"), "T3 (ALB/MBD)", " ") ->  | J18: 0 | N18: 0
A19: =IF(COUNTRY_INFO!A19=0," ",COUNTRY_INFO!A19) -> Burkina Faso | B19: =IF(COUNTRY_INFO!B19=0," ",COUNTRY_INFO!B19) -> Centre | C19: =IF(COUNTRY_INFO!C19=0," ",COUNTRY_INFO!C19) -> Bogodogo | D19: =IF(AND(COUNTRY_INFO!$T$9:$T$1000="T3 (ALB/MBD)",COUNTRY_INFO!$U$9:$U$1000="T3 (ALB/MBD)"), "T3 (ALB/MBD)", " ") ->  | J19: 0 | N19: 0
A20: =IF(COUNTRY_INFO!A20=0," ",COUNTRY_INFO!A20) -> Burkina Faso | B20: =IF(COUNTRY_INFO!B20=0," ",COUNTRY_INFO!B20) -> Centre | C20: =IF(COUNTRY_INFO!C20=0," ",COUNTRY_INFO!C20) -> Boulmiougou | D20: =IF(AND(COUNTRY_INFO!$T$9:$T$1000="T3 (ALB/MBD)",COUNTRY_INFO!$U$9:$U$1000="T3 (ALB/MBD)"), "T3 (ALB/MBD)", " ") ->  | J20: 0 | N20: 0
A21: =IF(COUNTRY_INFO!A21=0," ",COUNTRY_INFO!A21) -> Burkina Faso | B21: =IF(COUNTRY_INFO!B21=0," ",COUNTRY_INFO!B21) -> Centre | C21: =IF(COUNTRY_INFO!C21=0," ",COUNTRY_INFO!C21) -> Nongre-Massom | D21: =IF(AND(COUNTRY_INFO!$T$9:$T$1000="T3 (ALB/MBD)",COUNTRY_INFO!$U$9:$U$1000="T3 (ALB/MBD)"), "T3 (ALB/MBD)", " ") ->  | J21: 0 | N21: 0
A22: =IF(COUNTRY_INFO!A22=0," ",COUNTRY_INFO!A22) -> Burkina Faso | B22: =IF(COUNTRY_INFO!B22=0," ",COUNTRY_INFO!B22) -> Centre | C22: =IF(COUNTRY_INFO!C22=0," ",COUNTRY_INFO!C22) -> Sig-Nonghin | D22: =IF(AND(COUNTRY_INFO!$T$9:$T$1000="T3 (ALB/MBD)",COUNTRY_INFO!$U$9:$U$1000="T3 (ALB/MBD)"), "T3 (ALB/MBD)", " ") ->  | J22: 0 | N22: 0
A23: =IF(COUNTRY_INFO!A23=0," ",COUNTRY_INFO!A23) -> Burkina Faso | B23: =IF(COUNTRY_INFO!B23=0," ",COUNTRY_INFO!B23) -> Centre-Est | C23: =IF(COUNTRY_INFO!C23=0," ",COUNTRY_INFO!C23) -> Bittou | D23: =IF(AND(COUNTRY_INFO!$T$9:$T$1000="T3 (ALB/MBD)",COUNTRY_INFO!$U$9:$U$1000="T3 (ALB/MBD)"), "T3 (ALB/MBD)", " ") ->  | J23: 0 | N23: 0
A24: =IF(COUNTRY_INFO!A24=0," ",COUNTRY_INFO!A24) -> Burkina Faso | B24: =IF(COUNTRY_INFO!B24=0," ",COUNTRY_INFO!B24) -> Centre-Est | C24: =IF(COUNTRY_INFO!C24=0," ",COUNTRY_INFO!C24) -> Garango | D24: =IF(AND(COUNTRY_INFO!$T$9:$T$1000="T3 (ALB/MBD)",COUNTRY_INFO!$U$9:$U$1000="T3 (ALB/MBD)"), "T3 (ALB/MBD)", " ") ->  | J24: 0 | N24: 0
A25: =IF(COUNTRY_INFO!A25=0," ",COUNTRY_INFO!A25) -> Burkina Faso | B25: =IF(COUNTRY_INFO!B25=0," ",COUNTRY_INFO!B25) -> Centre-Est | C25: =IF(COUNTRY_INFO!C25=0," ",COUNTRY_INFO!C25) -> Koupela | D25: =IF(AND(COUNTRY_INFO!$T$9:$T$1000="T3 (ALB/MBD)",COUNTRY_INFO!$U$9:$U$1000="T3 (ALB/MBD)"), "T3 (ALB/MBD)", " ") ->  | J25: 0 | N25: 0
A26: =IF(COUNTRY_INFO!A26=0," ",COUNTRY_INFO!A26) -> Burkina Faso | B26: =IF(COUNTRY_INFO!B26=0," ",COUNTRY_INFO!B26) -> Centre-Est | C26: =IF(COUNTRY_INFO!C26=0," ",COUNTRY_INFO!C26) -> Ouargaye | D26: =IF(AND(COUNTRY_INFO!$T$9:$T$1000="T3 (ALB/MBD)",COUNTRY_INFO!$U$9:$U$1000="T3 (ALB/MBD)"), "T3 (ALB/MBD)", " ") ->  | J26: 0 | N26: 0
A27: =IF(COUNTRY_INFO!A27=0," ",COUNTRY_INFO!A27) -> Burkina Faso | B27: =IF(COUNTRY_INFO!B27=0," ",COUNTRY_INFO!B27) -> Centre-Est | C27: =IF(COUNTRY_INFO!C27=0," ",COUNTRY_INFO!C27) -> Pouytenga | D27: =IF(AND(COUNTRY_INFO!$T$9:$T$1000="T3 (ALB/MBD)",COUNTRY_INFO!$U$9:$U$1000="T3 (ALB/MBD)"), "T3 (ALB/MBD)", " ") ->  | J27: 0 | N27: 0
A28: =IF(COUNTRY_INFO!A28=0," ",COUNTRY_INFO!A28) -> Burkina Faso | B28: =IF(COUNTRY_INFO!B28=0," ",COUNTRY_INFO!B28) -> Centre-Est | C28: =IF(COUNTRY_INFO!C28=0," ",COUNTRY_INFO!C28) -> Tenkodogo | D28: =IF(AND(COUNTRY_INFO!$T$9:$T$1000="T3 (ALB/MBD)",COUNTRY_INFO!$U$9:$U$1000="T3 (ALB/MBD)"), "T3 (ALB/MBD)", " ") ->  | J28: 0 | N28: 0
A29: =IF(COUNTRY_INFO!A29=0," ",COUNTRY_INFO!A29) -> Burkina Faso | B29: =IF(COUNTRY_INFO!B29=0," ",COUNTRY_INFO!B29) -> Centre-Est | C29: =IF(COUNTRY_INFO!C29=0," ",COUNTRY_INFO!C29) -> Zabré | D29: =IF(AND(COUNTRY_INFO!$T$9:$T$1000="T3 (ALB/MBD)",COUNTRY_INFO!$U$9:$U$1000="T3 (ALB/MBD)"), "T3 (ALB/MBD)", " ") ->  | J29: 0 | N29: 0
A30: =IF(COUNTRY_INFO!A30=0," ",COUNTRY_INFO!A30) -> Burkina Faso | B30: =IF(COUNTRY_INFO!B30=0," ",COUNTRY_INFO!B30) -> Centre-Nord | C30: =IF(COUNTRY_INFO!C30=0," ",COUNTRY_INFO!C30) -> Barsalogo | D30: =IF(AND(COUNTRY_INFO!$T$9:$T$1000="T3 (ALB/MBD)",COUNTRY_INFO!$U$9:$U$1000="T3 (ALB/MBD)"), "T3 (ALB/MBD)", " ") ->  | J30: 0 | N30: 0
A31: =IF(COUNTRY_INFO!A31=0," ",COUNTRY_INFO!A31) -> Burkina Faso | B31: =IF(COUNTRY_INFO!B31=0," ",COUNTRY_INFO!B31) -> Centre-Nord | C31: =IF(COUNTRY_INFO!C31=0," ",COUNTRY_INFO!C31) -> Boulsa | D31: =IF(AND(COUNTRY_INFO!$T$9:$T$1000="T3 (ALB/MBD)",COUNTRY_INFO!$U$9:$U$1000="T3 (ALB/MBD)"), "T3 (ALB/MBD)", " ") ->  | J31: 0 | N31: 0
A32: =IF(COUNTRY_INFO!A32=0," ",COUNTRY_INFO!A32) -> Burkina Faso | B32: =IF(COUNTRY_INFO!B32=0," ",COUNTRY_INFO!B32) -> Centre-Nord | C32: =IF(COUNTRY_INFO!C32=0," ",COUNTRY_INFO!C32) -> Boussouma | D32: =IF(AND(COUNTRY_INFO!$T$9:$T$1000="T3 (ALB/MBD)",COUNTRY_INFO!$U$9:$U$1000="T3 (ALB/MBD)"), "T3 (ALB/MBD)", " ") ->  | J32: 0 | N32: 0
A33: =IF(COUNTRY_INFO!A33=0," ",COUNTRY_INFO!A33) -> Burkina Faso | B33: =IF(COUNTRY_INFO!B33=0," ",COUNTRY_INFO!B33) -> Centre-Nord | C33: =IF(COUNTRY_INFO!C33=0," ",COUNTRY_INFO!C33) -> Kaya | D33: =IF(AND(COUNTRY_INFO!$T$9:$T$1000="T3 (ALB/MBD)",COUNTRY_INFO!$U$9:$U$1000="T3 (ALB/MBD)"), "T3 (ALB/MBD)", " ") ->  | J33: 0 | N33: 0
A34: =IF(COUNTRY_INFO!A34=0," ",COUNTRY_INFO!A34) -> Burkina Faso | B34: =IF(COUNTRY_INFO!B34=0," ",COUNTRY_INFO!B34) -> Centre-Nord | C34: =IF(COUNTRY_INFO!C34=0," ",COUNTRY_INFO!C34) -> Kongoussi | D34: =IF(AND(COUNTRY_INFO!$T$9:$T$1000="T3 (ALB/MBD)",COUNTRY_INFO!$U$9:$U$1000="T3 (ALB/MBD)"), "T3 (ALB/MBD)", " ") ->  | J34: 0 | N34: 0
A35: =IF(COUNTRY_INFO!A35=0," ",COUNTRY_INFO!A35) -> Burkina Faso | B35: =IF(COUNTRY_INFO!B35=0," ",COUNTRY_INFO!B35) -> Centre-Nord | C35: =IF(COUNTRY_INFO!C35=0," ",COUNTRY_INFO!C35) -> Tougouri | D35: =IF(AND(COUNTRY_INFO!$T$9:$T$1000="T3 (ALB/MBD)",COUNTRY_INFO!$U$9:$U$1000="T3 (ALB/MBD)"), "T3 (ALB/MBD)", " ") ->  | J35: 0 | N35: 0
A36: =IF(COUNTRY_INFO!A36=0," ",COUNTRY_INFO!A36) -> Burkina Faso | B36: =IF(COUNTRY_INFO!B36=0," ",COUNTRY_INFO!B36) -> Centre-Ouest | C36: =IF(COUNTRY_INFO!C36=0," ",COUNTRY_INFO!C36) -> Koudougou | D36: =IF(AND(COUNTRY_INFO!$T$9:$T$1000="T3 (ALB/MBD)",COUNTRY_INFO!$U$9:$U$1000="T3 (ALB/MBD)"), "T3 (ALB/MBD)", " ") ->  | J36: 0 | N36: 0
A37: =IF(COUNTRY_INFO!A37=0," ",COUNTRY_INFO!A37) -> Burkina Faso | B37: =IF(COUNTRY_INFO!B37=0," ",COUNTRY_INFO!B37) -> Centre-Ouest | C37: =IF(COUNTRY_INFO!C37=0," ",COUNTRY_INFO!C37) -> Léo | D37: =IF(AND(COUNTRY_INFO!$T$9:$T$1000="T3 (ALB/MBD)",COUNTRY_INFO!$U$9:$U$1000="T3 (ALB/MBD)"), "T3 (ALB/MBD)", " ") ->  | J37: 0 | N37: 0
A38: =IF(COUNTRY_INFO!A38=0," ",COUNTRY_INFO!A38) -> Burkina Faso | B38: =IF(COUNTRY_INFO!B38=0," ",COUNTRY_INFO!B38) -> Centre-Ouest | C38: =IF(COUNTRY_INFO!C38=0," ",COUNTRY_INFO!C38) -> Nanoro | D38: =IF(AND(COUNTRY_INFO!$T$9:$T$1000="T3 (ALB/MBD)",COUNTRY_INFO!$U$9:$U$1000="T3 (ALB/MBD)"), "T3 (ALB/MBD)", " ") ->  | J38: 0 | N38: 0
A39: =IF(COUNTRY_INFO!A39=0," ",COUNTRY_INFO!A39) -> Burkina Faso | B39: =IF(COUNTRY_INFO!B39=0," ",COUNTRY_INFO!B39) -> Centre-Ouest | C39: =IF(COUNTRY_INFO!C39=0," ",COUNTRY_INFO!C39) -> Réo | D39: =IF(AND(COUNTRY_INFO!$T$9:$T$1000="T3 (ALB/MBD)",COUNTRY_INFO!$U$9:$U$1000="T3 (ALB/MBD)"), "T3 (ALB/MBD)", " ") ->  | J39: 0 | N39: 0
A40: =IF(COUNTRY_INFO!A40=0," ",COUNTRY_INFO!A40) -> Burkina Faso | B40: =IF(COUNTRY_INFO!B40=0," ",COUNTRY_INFO!B40) -> Centre-Ouest | C40: =IF(COUNTRY_INFO!C40=0," ",COUNTRY_INFO!C40) -> Sabou | D40: =IF(AND(COUNTRY_INFO!$T$9:$T$1000="T3 (ALB/MBD)",COUNTRY_INFO!$U$9:$U$1000="T3 (ALB/MBD)"), "T3 (ALB/MBD)", " ") ->  | J40: 0 | N40: 0
A41: =IF(COUNTRY_INFO!A41=0," ",COUNTRY_INFO!A41) -> Burkina Faso | B41: =IF(COUNTRY_INFO!B41=0," ",COUNTRY_INFO!B41) -> Centre-Ouest | C41: =IF(COUNTRY_INFO!C41=0," ",COUNTRY_INFO!C41) -> Sapouy | D41: =IF(AND(COUNTRY_INFO!$T$9:$T$1000="T3 (ALB/MBD)",COUNTRY_INFO!$U$9:$U$1000="T3 (ALB/MBD)"), "T3 (ALB/MBD)", " ") ->  | J41: 0 | N41: 0
A42: =IF(COUNTRY_INFO!A42=0," ",COUNTRY_INFO!A42) -> Burkina Faso | B42: =IF(COUNTRY_INFO!B42=0," ",COUNTRY_INFO!B42) -> Centre-Ouest | C42: =IF(COUNTRY_INFO!C42=0," ",COUNTRY_INFO!C42) -> Tenado | D42: =IF(AND(COUNTRY_INFO!$T$9:$T$1000="T3 (ALB/MBD)",COUNTRY_INFO!$U$9:$U$1000="T3 (ALB/MBD)"), "T3 (ALB/MBD)", " ") ->  | J42: 0 | N42: 0
A43: =IF(COUNTRY_INFO!A43=0," ",COUNTRY_INFO!A43) -> Burkina Faso | B43: =IF(COUNTRY_INFO!B43=0," ",COUNTRY_INFO!B43) -> Centre-Sud | C43: =IF(COUNTRY_INFO!C43=0," ",COUNTRY_INFO!C43) -> Kombissiri | D43: =IF(AND(COUNTRY_INFO!$T$9:$T$1000="T3 (ALB/MBD)",COUNTRY_INFO!$U$9:$U$1000="T3 (ALB/MBD)"), "T3 (ALB/MBD)", " ") ->  | J43: 0 | N43: 0
A44: =IF(COUNTRY_INFO!A44=0," ",COUNTRY_INFO!A44) -> Burkina Faso | B44: =IF(COUNTRY_INFO!B44=0," ",COUNTRY_INFO!B44) -> Centre-Sud | C44: =IF(COUNTRY_INFO!C44=0," ",COUNTRY_INFO!C44) -> Manga | D44: =IF(AND(COUNTRY_INFO!$T$9:$T$1000="T3 (ALB/MBD)",COUNTRY_INFO!$U$9:$U$1000="T3 (ALB/MBD)"), "T3 (ALB/MBD)", " ") ->  | J44: 0 | N44: 0
A45: =IF(COUNTRY_INFO!A45=0," ",COUNTRY_INFO!A45) -> Burkina Faso | B45: =IF(COUNTRY_INFO!B45=0," ",COUNTRY_INFO!B45) -> Centre-Sud | C45: =IF(COUNTRY_INFO!C45=0," ",COUNTRY_INFO!C45) -> Pô | D45: =IF(AND(COUNTRY_INFO!$T$9:$T$1000="T3 (ALB/MBD)",COUNTRY_INFO!$U$9:$U$1000="T3 (ALB/MBD)"), "T3 (ALB/MBD)", " ") ->  | J45: 0 | N45: 0
A46: =IF(COUNTRY_INFO!A46=0," ",COUNTRY_INFO!A46) -> Burkina Faso | B46: =IF(COUNTRY_INFO!B46=0," ",COUNTRY_INFO!B46) -> Centre-Sud | C46: =IF(COUNTRY_INFO!C46=0," ",COUNTRY_INFO!C46) -> Saponé | D46: =IF(AND(COUNTRY_INFO!$T$9:$T$1000="T3 (ALB/MBD)",COUNTRY_INFO!$U$9:$U$1000="T3 (ALB/MBD)"), "T3 (ALB/MBD)", " ") ->  | J46: 0 | N46: 0
A47: =IF(COUNTRY_INFO!A47=0," ",COUNTRY_INFO!A47) -> Burkina Faso | B47: =IF(COUNTRY_INFO!B47=0," ",COUNTRY_INFO!B47) -> Est | C47: =IF(COUNTRY_INFO!C47=0," ",COUNTRY_INFO!C47) -> Bogandé | D47: =IF(AND(COUNTRY_INFO!$T$9:$T$1000="T3 (ALB/MBD)",COUNTRY_INFO!$U$9:$U$1000="T3 (ALB/MBD)"), "T3 (ALB/MBD)", " ") ->  | J47: 0 | N47: 0
A48: =IF(COUNTRY_INFO!A48=0," ",COUNTRY_INFO!A48) -> Burkina Faso | B48: =IF(COUNTRY_INFO!B48=0," ",COUNTRY_INFO!B48) -> Est | C48: =IF(COUNTRY_INFO!C48=0," ",COUNTRY_INFO!C48) -> Diapaga | D48: =IF(AND(COUNTRY_INFO!$T$9:$T$1000="T3 (ALB/MBD)",COUNTRY_INFO!$U$9:$U$1000="T3 (ALB/MBD)"), "T3 (ALB/MBD)", " ") ->  | J48: 0 | N48: 0
A49: =IF(COUNTRY_INFO!A49=0," ",COUNTRY_INFO!A49) -> Burkina Faso | B49: =IF(COUNTRY_INFO!B49=0," ",COUNTRY_INFO!B49) -> Est | C49: =IF(COUNTRY_INFO!C49=0," ",COUNTRY_INFO!C49) -> Fada N'gourma | D49: =IF(AND(COUNTRY_INFO!$T$9:$T$1000="T3 (ALB/MBD)",COUNTRY_INFO!$U$9:$U$1000="T3 (ALB/MBD)"), "T3 (ALB/MBD)", " ") ->  | J49: 0 | N49: 0
A50: =IF(COUNTRY_INFO!A50=0," ",COUNTRY_INFO!A50) -> Burkina Faso | B50: =IF(COUNTRY_INFO!B50=0," ",COUNTRY_INFO!B50) -> Est | C50: =IF(COUNTRY_INFO!C50=0," ",COUNTRY_INFO!C50) -> Gayeri | D50: =IF(AND(COUNTRY_INFO!$T$9:$T$1000="T3 (ALB/MBD)",COUNTRY_INFO!$U$9:$U$1000="T3 (ALB/MBD)"), "T3 (ALB/MBD)", " ") ->  | J50: 0 | N50: 0
A51: =IF(COUNTRY_INFO!A51=0," ",COUNTRY_INFO!A51) -> Burkina Faso | B51: =IF(COUNTRY_INFO!B51=0," ",COUNTRY_INFO!B51) -> Est | C51: =IF(COUNTRY_INFO!C51=0," ",COUNTRY_INFO!C51) -> Manni | D51: =IF(AND(COUNTRY_INFO!$T$9:$T$1000="T3 (ALB/MBD)",COUNTRY_INFO!$U$9:$U$1000="T3 (ALB/MBD)"), "T3 (ALB/MBD)", " ") ->  | J51: 0 | N51: 0
A52: =IF(COUNTRY_INFO!A52=0," ",COUNTRY_INFO!A52) -> Burkina Faso | B52: =IF(COUNTRY_INFO!B52=0," ",COUNTRY_INFO!B52) -> Est | C52: =IF(COUNTRY_INFO!C52=0," ",COUNTRY_INFO!C52) -> Pama | D52: =IF(AND(COUNTRY_INFO!$T$9:$T$1000="T3 (ALB/MBD)",COUNTRY_INFO!$U$9:$U$1000="T3 (ALB/MBD)"), "T3 (ALB/MBD)", " ") ->  | J52: 0 | N52: 0
A53: =IF(COUNTRY_INFO!A53=0," ",COUNTRY_INFO!A53) -> Burkina Faso | B53: =IF(COUNTRY_INFO!B53=0," ",COUNTRY_INFO!B53) -> Hauts-Bassins | C53: =IF(COUNTRY_INFO!C53=0," ",COUNTRY_INFO!C53) -> Dafra | D53: =IF(AND(COUNTRY_INFO!$T$9:$T$1000="T3 (ALB/MBD)",COUNTRY_INFO!$U$9:$U$1000="T3 (ALB/MBD)"), "T3 (ALB/MBD)", " ") ->  | J53: 0 | N53: 0
A54: =IF(COUNTRY_INFO!A54=0," ",COUNTRY_INFO!A54) -> Burkina Faso | B54: =IF(COUNTRY_INFO!B54=0," ",COUNTRY_INFO!B54) -> Hauts-Bassins | C54: =IF(COUNTRY_INFO!C54=0," ",COUNTRY_INFO!C54) -> Dandé | D54: =IF(AND(COUNTRY_INFO!$T$9:$T$1000="T3 (ALB/MBD)",COUNTRY_INFO!$U$9:$U$1000="T3 (ALB/MBD)"), "T3 (ALB/MBD)", " ") ->  | J54: 0 | N54: 0
A55: =IF(COUNTRY_INFO!A55=0," ",COUNTRY_INFO!A55) -> Burkina Faso | B55: =IF(COUNTRY_INFO!B55=0," ",COUNTRY_INFO!B55) -> Hauts-Bassins | C55: =IF(COUNTRY_INFO!C55=0," ",COUNTRY_INFO!C55) -> Dô | D55: =IF(AND(COUNTRY_INFO!$T$9:$T$1000="T3 (ALB/MBD)",COUNTRY_INFO!$U$9:$U$1000="T3 (ALB/MBD)"), "T3 (ALB/MBD)", " ") ->  | J55: 0 | N55: 0
A56: =IF(COUNTRY_INFO!A56=0," ",COUNTRY_INFO!A56) -> Burkina Faso | B56: =IF(COUNTRY_INFO!B56=0," ",COUNTRY_INFO!B56) -> Hauts-Bassins | C56: =IF(COUNTRY_INFO!C56=0," ",COUNTRY_INFO!C56) -> Houndé | D56: =IF(AND(COUNTRY_INFO!$T$9:$T$1000="T3 (ALB/MBD)",COUNTRY_INFO!$U$9:$U$1000="T3 (ALB/MBD)"), "T3 (ALB/MBD)", " ") ->  | J56: 0 | N56: 0
A57: =IF(COUNTRY_INFO!A57=0," ",COUNTRY_INFO!A57) -> Burkina Faso | B57: =IF(COUNTRY_INFO!B57=0," ",COUNTRY_INFO!B57) -> Hauts-Bassins | C57: =IF(COUNTRY_INFO!C57=0," ",COUNTRY_INFO!C57) -> Karangasso-Vigué | D57: =IF(AND(COUNTRY_INFO!$T$9:$T$1000="T3 (ALB/MBD)",COUNTRY_INFO!$U$9:$U$1000="T3 (ALB/MBD)"), "T3 (ALB/MBD)", " ") ->  | J57: 0 | N57: 0
A58: =IF(COUNTRY_INFO!A58=0," ",COUNTRY_INFO!A58) -> Burkina Faso | B58: =IF(COUNTRY_INFO!B58=0," ",COUNTRY_INFO!B58) -> Hauts-Bassins | C58: =IF(COUNTRY_INFO!C58=0," ",COUNTRY_INFO!C58) -> Lena | D58: =IF(AND(COUNTRY_INFO!$T$9:$T$1000="T3 (ALB/MBD)",COUNTRY_INFO!$U$9:$U$1000="T3 (ALB/MBD)"), "T3 (ALB/MBD)", " ") ->  | J58: 0 | N58: 0
A59: =IF(COUNTRY_INFO!A59=0," ",COUNTRY_INFO!A59) -> Burkina Faso | B59: =IF(COUNTRY_INFO!B59=0," ",COUNTRY_INFO!B59) -> Hauts-Bassins | C59: =IF(COUNTRY_INFO!C59=0," ",COUNTRY_INFO!C59) -> N'Dorola | D59: =IF(AND(COUNTRY_INFO!$T$9:$T$1000="T3 (ALB/MBD)",COUNTRY_INFO!$U$9:$U$1000="T3 (ALB/MBD)"), "T3 (ALB/MBD)", " ") ->  | J59: 0 | N59: 0
A60: =IF(COUNTRY_INFO!A60=0," ",COUNTRY_INFO!A60) -> Burkina Faso | B60: =IF(COUNTRY_INFO!B60=0," ",COUNTRY_INFO!B60) -> Hauts-Bassins | C60: =IF(COUNTRY_INFO!C60=0," ",COUNTRY_INFO!C60) -> Orodara | D60: =IF(AND(COUNTRY_INFO!$T$9:$T$1000="T3 (ALB/MBD)",COUNTRY_INFO!$U$9:$U$1000="T3 (ALB/MBD)"), "T3 (ALB/MBD)", " ") ->  | J60: 0 | N60: 0
A61: =IF(COUNTRY_INFO!A61=0," ",COUNTRY_INFO!A61) -> Burkina Faso | B61: =IF(COUNTRY_INFO!B61=0," ",COUNTRY_INFO!B61) -> Nord | C61: =IF(COUNTRY_INFO!C61=0," ",COUNTRY_INFO!C61) -> Gourcy | D61: =IF(AND(COUNTRY_INFO!$T$9:$T$1000="T3 (ALB/MBD)",COUNTRY_INFO!$U$9:$U$1000="T3 (ALB/MBD)"), "T3 (ALB/MBD)", " ") ->  | J61: 0 | N61: 0
A62: =IF(COUNTRY_INFO!A62=0," ",COUNTRY_INFO!A62) -> Burkina Faso | B62: =IF(COUNTRY_INFO!B62=0," ",COUNTRY_INFO!B62) -> Nord | C62: =IF(COUNTRY_INFO!C62=0," ",COUNTRY_INFO!C62) -> Ouahigouya | D62: =IF(AND(COUNTRY_INFO!$T$9:$T$1000="T3 (ALB/MBD)",COUNTRY_INFO!$U$9:$U$1000="T3 (ALB/MBD)"), "T3 (ALB/MBD)", " ") ->  | J62: 0 | N62: 0
A63: =IF(COUNTRY_INFO!A63=0," ",COUNTRY_INFO!A63) -> Burkina Faso | B63: =IF(COUNTRY_INFO!B63=0," ",COUNTRY_INFO!B63) -> Nord | C63: =IF(COUNTRY_INFO!C63=0," ",COUNTRY_INFO!C63) -> Seguenega | D63: =IF(AND(COUNTRY_INFO!$T$9:$T$1000="T3 (ALB/MBD)",COUNTRY_INFO!$U$9:$U$1000="T3 (ALB/MBD)"), "T3 (ALB/MBD)", " ") ->  | J63: 0 | N63: 0
A64: =IF(COUNTRY_INFO!A64=0," ",COUNTRY_INFO!A64) -> Burkina Faso | B64: =IF(COUNTRY_INFO!B64=0," ",COUNTRY_INFO!B64) -> Nord | C64: =IF(COUNTRY_INFO!C64=0," ",COUNTRY_INFO!C64) -> Thiou | D64: =IF(AND(COUNTRY_INFO!$T$9:$T$1000="T3 (ALB/MBD)",COUNTRY_INFO!$U$9:$U$1000="T3 (ALB/MBD)"), "T3 (ALB/MBD)", " ") ->  | J64: 0 | N64: 0
A65: =IF(COUNTRY_INFO!A65=0," ",COUNTRY_INFO!A65) -> Burkina Faso | B65: =IF(COUNTRY_INFO!B65=0," ",COUNTRY_INFO!B65) -> Nord | C65: =IF(COUNTRY_INFO!C65=0," ",COUNTRY_INFO!C65) -> Titao | D65: =IF(AND(COUNTRY_INFO!$T$9:$T$1000="T3 (ALB/MBD)",COUNTRY_INFO!$U$9:$U$1000="T3 (ALB/MBD)"), "T3 (ALB/MBD)", " ") ->  | J65: 0 | N65: 0
A66: =IF(COUNTRY_INFO!A66=0," ",COUNTRY_INFO!A66) -> Burkina Faso | B66: =IF(COUNTRY_INFO!B66=0," ",COUNTRY_INFO!B66) -> Nord | C66: =IF(COUNTRY_INFO!C66=0," ",COUNTRY_INFO!C66) -> Yako | D66: =IF(AND(COUNTRY_INFO!$T$9:$T$1000="T3 (ALB/MBD)",COUNTRY_INFO!$U$9:$U$1000="T3 (ALB/MBD)"), "T3 (ALB/MBD)", " ") ->  | J66: 0 | N66: 0
A67: =IF(COUNTRY_INFO!A67=0," ",COUNTRY_INFO!A67) -> Burkina Faso | B67: =IF(COUNTRY_INFO!B67=0," ",COUNTRY_INFO!B67) -> Plateau Central | C67: =IF(COUNTRY_INFO!C67=0," ",COUNTRY_INFO!C67) -> Boussé | D67: =IF(AND(COUNTRY_INFO!$T$9:$T$1000="T3 (ALB/MBD)",COUNTRY_INFO!$U$9:$U$1000="T3 (ALB/MBD)"), "T3 (ALB/MBD)", " ") ->  | J67: 0 | N67: 0
A68: =IF(COUNTRY_INFO!A68=0," ",COUNTRY_INFO!A68) -> Burkina Faso | B68: =IF(COUNTRY_INFO!B68=0," ",COUNTRY_INFO!B68) -> Plateau Central | C68: =IF(COUNTRY_INFO!C68=0," ",COUNTRY_INFO!C68) -> Ziniaré | D68: =IF(AND(COUNTRY_INFO!$T$9:$T$1000="T3 (ALB/MBD)",COUNTRY_INFO!$U$9:$U$1000="T3 (ALB/MBD)"), "T3 (ALB/MBD)", " ") ->  | J68: 0 | N68: 0
A69: =IF(COUNTRY_INFO!A69=0," ",COUNTRY_INFO!A69) -> Burkina Faso | B69: =IF(COUNTRY_INFO!B69=0," ",COUNTRY_INFO!B69) -> Plateau Central | C69: =IF(COUNTRY_INFO!C69=0," ",COUNTRY_INFO!C69) -> Zorgho | D69: =IF(AND(COUNTRY_INFO!$T$9:$T$1000="T3 (ALB/MBD)",COUNTRY_INFO!$U$9:$U$1000="T3 (ALB/MBD)"), "T3 (ALB/MBD)", " ") ->  | J69: 0 | N69: 0
A70: =IF(COUNTRY_INFO!A70=0," ",COUNTRY_INFO!A70) -> Burkina Faso | B70: =IF(COUNTRY_INFO!B70=0," ",COUNTRY_INFO!B70) -> Sahel | C70: =IF(COUNTRY_INFO!C70=0," ",COUNTRY_INFO!C70) -> Djibo | D70: =IF(AND(COUNTRY_INFO!$T$9:$T$1000="T3 (ALB/MBD)",COUNTRY_INFO!$U$9:$U$1000="T3 (ALB/MBD)"), "T3 (ALB/MBD)", " ") ->  | J70: 0 | N70: 0
A71: =IF(COUNTRY_INFO!A71=0," ",COUNTRY_INFO!A71) -> Burkina Faso | B71: =IF(COUNTRY_INFO!B71=0," ",COUNTRY_INFO!B71) -> Sahel | C71: =IF(COUNTRY_INFO!C71=0," ",COUNTRY_INFO!C71) -> Dori | D71: =IF(AND(COUNTRY_INFO!$T$9:$T$1000="T3 (ALB/MBD)",COUNTRY_INFO!$U$9:$U$1000="T3 (ALB/MBD)"), "T3 (ALB/MBD)", " ") ->  | J71: 0 | N71: 0
A72: =IF(COUNTRY_INFO!A72=0," ",COUNTRY_INFO!A72) -> Burkina Faso | B72: =IF(COUNTRY_INFO!B72=0," ",COUNTRY_INFO!B72) -> Sahel | C72: =IF(COUNTRY_INFO!C72=0," ",COUNTRY_INFO!C72) -> Gorom-Gorom | D72: =IF(AND(COUNTRY_INFO!$T$9:$T$1000="T3 (ALB/MBD)",COUNTRY_INFO!$U$9:$U$1000="T3 (ALB/MBD)"), "T3 (ALB/MBD)", " ") ->  | J72: 0 | N72: 0
A73: =IF(COUNTRY_INFO!A73=0," ",COUNTRY_INFO!A73) -> Burkina Faso | B73: =IF(COUNTRY_INFO!B73=0," ",COUNTRY_INFO!B73) -> Sahel | C73: =IF(COUNTRY_INFO!C73=0," ",COUNTRY_INFO!C73) -> Sebba | D73: =IF(AND(COUNTRY_INFO!$T$9:$T$1000="T3 (ALB/MBD)",COUNTRY_INFO!$U$9:$U$1000="T3 (ALB/MBD)"), "T3 (ALB/MBD)", " ") ->  | J73: 0 | N73: 0
A74: =IF(COUNTRY_INFO!A74=0," ",COUNTRY_INFO!A74) -> Burkina Faso | B74: =IF(COUNTRY_INFO!B74=0," ",COUNTRY_INFO!B74) -> Sud-Ouest | C74: =IF(COUNTRY_INFO!C74=0," ",COUNTRY_INFO!C74) -> Batié | D74: =IF(AND(COUNTRY_INFO!$T$9:$T$1000="T3 (ALB/MBD)",COUNTRY_INFO!$U$9:$U$1000="T3 (ALB/MBD)"), "T3 (ALB/MBD)", " ") ->  | J74: =SUM(G74:I74) -> 0 | N74: =SUM(K74:M74) -> 0 | O74: =IF(G74<>0, IF(K74/G74*100=0, "-", K74/G74*100), " ") ->  | P74: =IF(H74<>0, IF(L74/H74*100=0, "-", L74/H74*100), " ") ->  | Q74: =IF(I74<>0, IF(M74/I74*100=0, "-", M74/I74*100), " ") ->  | R74: =IF(J74<>0, IF(N74/J74*100=0, "-", N74/J74*100), " ") -> 
A75: =IF(COUNTRY_INFO!A75=0," ",COUNTRY_INFO!A75) -> Burkina Faso | B75: =IF(COUNTRY_INFO!B75=0," ",COUNTRY_INFO!B75) -> Sud-Ouest | C75: =IF(COUNTRY_INFO!C75=0," ",COUNTRY_INFO!C75) -> Dano | D75: =IF(AND(COUNTRY_INFO!$T$9:$T$1000="T3 (ALB/MBD)",COUNTRY_INFO!$U$9:$U$1000="T3 (ALB/MBD)"), "T3 (ALB/MBD)", " ") ->  | J75: 0 | N75: 0
A76: =IF(COUNTRY_INFO!A76=0," ",COUNTRY_INFO!A76) -> Burkina Faso | B76: =IF(COUNTRY_INFO!B76=0," ",COUNTRY_INFO!B76) -> Sud-Ouest | C76: =IF(COUNTRY_INFO!C76=0," ",COUNTRY_INFO!C76) -> Diébougou | D76: =IF(AND(COUNTRY_INFO!$T$9:$T$1000="T3 (ALB/MBD)",COUNTRY_INFO!$U$9:$U$1000="T3 (ALB/MBD)"), "T3 (ALB/MBD)", " ") ->  | J76: 0 | N76: 0
A77: =IF(COUNTRY_INFO!A77=0," ",COUNTRY_INFO!A77) -> Burkina Faso | B77: =IF(COUNTRY_INFO!B77=0," ",COUNTRY_INFO!B77) -> Sud-Ouest | C77: =IF(COUNTRY_INFO!C77=0," ",COUNTRY_INFO!C77) -> Gaoua | D77: =IF(AND(COUNTRY_INFO!$T$9:$T$1000="T3 (ALB/MBD)",COUNTRY_INFO!$U$9:$U$1000="T3 (ALB/MBD)"), "T3 (ALB/MBD)", " ") ->  | J77: 0 | N77: 0
A78: =IF(COUNTRY_INFO!A78=0," ",COUNTRY_INFO!A78) -> Burkina Faso | B78: =IF(COUNTRY_INFO!B78=0," ",COUNTRY_INFO!B78) -> Sud-Ouest | C78: =IF(COUNTRY_INFO!C78=0," ",COUNTRY_INFO!C78) -> Kampti | D78: =IF(AND(COUNTRY_INFO!$T$9:$T$1000="T3 (ALB/MBD)",COUNTRY_INFO!$U$9:$U$1000="T3 (ALB/MBD)"), "T3 (ALB/MBD)", " ") ->  | J78: 0 | N78: 0

Sheet DISTRICT
A1: Number of individuals treated
A2: Administrative structure, population treated by age group and gender | N2: =SUMIF(N9:N1000,">0",G9:G1000) -> 590754
A4: TOTAL | D4: =SUM(D$9:D$1000) -> 8582194 | E4: =SUM(E$9:E$1000) -> 0 | F4: =SUM(F$9:F$1000) -> 0 | G4: =SUM(G$9:G$1000) -> 5485410 | H4: =SUM(H$9:H$1000) -> 5485410 | I4: =IF(D4>0, IF(H4/D4*100<>0, H4/D4*100, "-"),0) -> 63.91617342 | J4: =SUM(J$9:J$1000) -> 255594 | K4: =SUM(K$9:K$1000) -> 0 | L4: =SUM(L$9:L$1000) -> 0 | M4: =SUM(M$9:M$1000) -> 5531150 | N4: =SUM(N$9:N$1000) -> 242786 | O4: =IF(J4>0, IF(N4/J4*100<>0, N4/J4*100, "-"),0) -> 94.98892775 | P4: =SUM(P$9:P$1000) -> 0 | Q4: =SUM(Q$9:Q$1000) -> 0 | R4: =SUM(R$9:R$1000) -> 0 | S4: =SUM(S$9:S$1000) -> 10664723 | T4: =SUM(T$9:T$1000) -> 0 | V4: 0 | X4: =SUM(X$9:X$1000) -> 0 | Y4: =IF(P4>0, IF(X4/P4*100<>0, X4/P4*100, "-"),0) -> 0 | Z4: =SUM(Z$9:Z$1000) -> 5300072.4 | AA4: 0 | AB4: 0 | AC4: 8889883 | AD4: 2567037.5 | AF4: 1173381.6 | AH4: 3740419.1 | AI4: =IF(Z4>0, IF(AH4/Z4*100<>0, AH4/Z4*100, "-"),0) -> 70.57298123
D6: Population requiring PC for LF | E6: Population treated for lymphatic filariasis | J6: Population requiring PC for ONCHO | K6: Population treated for onchocerciasis | P6: Population requiring PC for STH | Q6: Population treated for STH | Z6: Population requiring PC for SCH | AA6: Population treated for schistosomiasis | AP6: =SUM(AP9:AP1000) -> 323716.0096 | AQ6: 1243880.911 | AR6: 4051524.801 | AS6: 5611883.36 | AT6: =SUM(AT9:AT1000) -> 11231005.08 | AU6: =COUNTIF(AU9:AU1000,"Y") -> 59 | AV6: =SUM(AV9:AV1000) -> 0 | AW6: 5275313 | AX6: 5571812 | AY6: =SUM(AY9:AY1000) -> 10847125 | AZ6: 0 | BA6: 3479388.5 | BB6: 3937447.4 | BC6: 7416835.9 | BD6: =IF(AT6<>0,BC6/AT6,0) -> 0.6603893281
A7: Country | B7: Province/State | C7: District | E7: Male | F7: Female | G7: Total treated | H7: Total in need treated | I7: (%) | K7: Male | L7: Female | M7: Total treated | N7: Total in need treated | O7: (%) | Q7: Male | R7: Female | S7: Total treated | T7: PreSAC in need treated | U7: PreSAC (%) | V7: SAC in need treated | W7: SAC (%) | X7: Total in need treated | Y7: (%) | AA7: Male | AB7: Female | AC7: Total treated | AD7: SAC in need treated | AE7: SAC (%) | AF7: Adults in need treated | AG7: Adults (%) | AH7: Total in need treated | AI7: (%) | AK7: LF | AL7: ONCHO | AM7: STH | AN7: SCH-SAC | AO7: SCH_Adults | AP7: <1 | AQ7: PreSAC | AR7: SAC | AS7: Adults | AT7: Total | AU7: Dis | AV7: PreSAC | AW7: SAC | AX7: Adults | AY7: Total | AZ7: PreSAC | BA7: SAC | BB7: Adults | BC7: Total | BD7: Coverage
A9: =IF(COUNTRY_INFO!A9=0," ",COUNTRY_INFO!A9) -> Burkina Faso | B9: =IF(COUNTRY_INFO!B9=0," ",COUNTRY_INFO!B9) -> Boucle du Mouhoun | C9: =IF(COUNTRY_INFO!C9=0," ",COUNTRY_INFO!C9) -> Boromo | D9: =COUNTRY_INFO!L9 -> 280481 | G9: =MAX('MDA1'!M9,'MDA2'!M9) -> 227927 | H9: =IF(AND(COUNTRY_INFO!H9>0,COUNTRY_INFO!H9<4),IF(D9>MAX('MDA1'!M9,'MDA2'!M9),MAX('MDA1'!M9,'MDA2'!M9),D9),0) -> 227927 | I9: =IF(AND(COUNTRY_INFO!H9>0,COUNTRY_INFO!H9<4), IF(G9/D9*100<>0, IF(G9/D9*100>100,100,G9/D9*100), "-"),0) -> 81.26290194 | J9: =COUNTRY_INFO!M9 -> 0 | M9: =MAX('MDA1'!M9,MAX('MDA3'!I9,'MDA3'!L9)+MAX('MDA3'!J9,'MDA3'!M9)) -> 227927 | N9: =IF(AND(COUNTRY_INFO!I9>0,COUNTRY_INFO!I9<4),IF(J9>MAX('MDA1'!M9,MAX('MDA3'!I9,'MDA3'!L9)+MAX('MDA3'!J9,'MDA3'!M9)),MAX('MDA1'!M9,MAX('MDA3'!I9,'MDA3'!L9)+MAX('MDA3'!J9,'MDA3'!M9)),J9),0) -> 0 | O9: =IF(AND(COUNTRY_INFO!I9>0,COUNTRY_INFO!I9<4), IF(M9/J9*100<>0, IF(M9/J9*100>100,100,M9/J9*100), "-"),0) -> 0 | P9: =COUNTRY_INFO!N9 -> 0 | S9: =SUM(MAX('MDA2'!J9, 'T1'!L9, MAX(T3_R1!K9, T3_R2!K9)), MAX('MDA1'!K9, 'MDA2'!K9, 'T1'!M9, MAX(T3_R1!L9, T3_R2!L9)), MAX('MDA1'!L9, 'MDA2'!L9, 'T1'!N9, MAX(T3_R1!M9, T3_R2!M9))) -> 227927 | T9: =IF(AND(COUNTRY_INFO!J9>1,COUNTRY_INFO!J9<4),IF(COUNTRY_INFO!E9>MAX('MDA2'!J9,'T1'!L9,MAX(T3_R1!K9,T3_R2!K9)),MAX('MDA2'!J9,'T1'!L9,MAX(T3_R1!K9,T3_R2!K9)),COUNTRY_INFO!E9),0) -> 0 | U9: =IF(AND(COUNTRY_INFO!J9>1,COUNTRY_INFO!J9<4), IF(T9/COUNTRY_INFO!E9*100<>0, IF(T9/COUNTRY_INFO!E9*100>100,100,T9/COUNTRY_INFO!E9*100), "-"),0) -> 0 | V9: =IF(AND(COUNTRY_INFO!J9>1,COUNTRY_INFO!J9<4),IF(COUNTRY_INFO!F9>MAX('MDA1'!K9,'MDA2'!K9,'T1'!M9,MAX(T3_R1!L9,T3_R2!L9)),MAX('MDA1'!K9,'MDA2'!K9,'T1'!M9,MAX(T3_R1!L9,T3_R2!L9)),COUNTRY_INFO!F9),0) -> 0 | W9: =IF(AND(COUNTRY_INFO!J9>1,COUNTRY_INFO!J9<4), IF(V9/COUNTRY_INFO!F9*100<>0, IF(V9/COUNTRY_INFO!F9*100>100,100,V9/COUNTRY_INFO!F9*100), "-"),0) -> 0 | X9: =SUM(T9,V9) -> 0 | Y9: =IF(AND(COUNTRY_INFO!J9>1,COUNTRY_INFO!J9<4), IF(S9/P9*100<>0, IF(X9/P9*100>100,100,X9/P9*100), "-"),0) -> 0 | Z9: =COUNTRY_INFO!O9 -> 70710.9 | AC9: =MAX(SUM('T1'!L9:'T1'!N9),SUM('T2'!J9:'T2'!L9)) -> 219418 | AD9: =IF(COUNTRY_INFO!K9=1,IF(COUNTRY_INFO!F9*0.33>MAX('T1'!M9,'T2'!K9),MAX('T1'!M9,'T2'!K9),COUNTRY_INFO!F9*0.33),IF(COUNTRY_INFO!K9=2,IF(COUNTRY_INFO!F9*0.5>MAX('T1'!M9,'T2'!K9),MAX('T1'!M9,'T2'!K9),COUNTRY_INFO!F9*0.5),IF(COUNTRY_INFO!K9=3,IF(COUNTRY_INFO!F9>MAX('T1'!M9,'T2'!K9),MAX('T1'!M9,'T2'!K9),COUNTRY_INFO!F9),0))) -> 42071.5 | AE9: =IF(AND(COUNTRY_INFO!K9>0,COUNTRY_INFO!K9<4),IF(Z9>0,IF(COUNTRY_INFO!K9=1, AD9/(COUNTRY_INFO!F9*0.33)*100, IF(COUNTRY_INFO!K9=2, AD9/(COUNTRY_INFO!F9*0.5)*100, IF(COUNTRY_INFO!K9=3, AD9/COUNTRY_INFO!F9*100))),"-"),0) -> 100 | AF9: =IF(COUNTRY_INFO!K9=2,IF(COUNTRY_INFO!G9*0.2>MAX('T1'!N9,'T2'!L9),MAX('T1'!N9,'T2'!L9),COUNTRY_INFO!G9*0.2),IF(COUNTRY_INFO!K9=3,IF(COUNTRY_INFO!G9>MAX('T1'!N9,'T2'!L9),MAX('T1'!N9,'T2'!L9),COUNTRY_INFO!G9),0)) -> 28639.4 | AG9: =IF(AND(COUNTRY_INFO!K9>0,COUNTRY_INFO!K9<4),IF(Z9>0,IF(COUNTRY_INFO!K9=1, 0, IF(COUNTRY_INFO!K9=2, AF9/(COUNTRY_INFO!G9*0.2)*100, IF(COUNTRY_INFO!K9=3, AF9/COUNTRY_INFO!G9*100))),"-"),0) -> 100 | AH9: =SUM(AD9,AF9) -> 70710.9 | AI9: =IF(AND(COUNTRY_INFO!K9>0,COUNTRY_INFO!K9<4), IF(AC9/Z9*100<>0, IF(AH9/Z9*100>100,100,AH9/Z9*100), "-"),0) -> 100 | AK9: =IF(AND(D9<>0, D9<>"Unknown",D9<>"Stopped",D9<>"Not required"),D9/COUNTRY_INFO!D9, 0) -> 1 | AL9: =IF(AND(J9<>0,J9<>"Unknown",J9<>"Stopped",J9<>"Not required"),J9/COUNTRY_INFO!D9, 0) -> 0 | AM9: =IF(AND(P9<>0,P9<>"Unknown",P9<>"Not required"),P9/(COUNTRY_INFO!E9+COUNTRY_INFO!F9), 0) -> 0 | AN9: =IF(AND(Z9<>0,Z9<>"Unknown",Z9<>"Not required"),IF(COUNTRY_INFO!K9=1,1,IF(COUNTRY_INFO!K9=2,0.5*COUNTRY_INFO!F9/(0.5*COUNTRY_INFO!F9+0.2*COUNTRY_INFO!G9),IF(COUNTRY_INFO!K9=3,COUNTRY_INFO!F9/(COUNTRY_INFO!F9+COUNTRY_INFO!G9)))),0) -> 0.5949789919 | AO9: =IF(AND(Z9<>0,Z9<>"Unknown",Z9<>"Not required"),IF(COUNTRY_INFO!K9=1,0,IF(COUNTRY_INFO!K9=2,0.2*COUNTRY_INFO!G9/(0.5*COUNTRY_INFO!F9+0.2*COUNTRY_INFO!G9),IF(COUNTRY_INFO!K9=3,COUNTRY_INFO!G9/(COUNTRY_INFO!F9+COUNTRY_INFO!G9)))),0) -> 0.4050210081 | AP9: =MAX(COUNTRY_INFO!D9*AK9*PROFILE!$G$7,COUNTRY_INFO!D9*AL9*PROFILE!$G$7) -> 10507.91588 | AQ9: =MAX(COUNTRY_INFO!D9*AK9*PROFILE!$G$8,COUNTRY_INFO!D9*AL9*PROFILE!$G$8,COUNTRY_INFO!D9*AM9*PROFILE!$G$8) -> 40376.73637 | AR9: =MAX(COUNTRY_INFO!D9*AK9*PROFILE!$G$9,COUNTRY_INFO!D9*AL9*PROFILE!$G$9,COUNTRY_INFO!D9*AM9*PROFILE!$G$9,IF(AND(DISTRICT!Z9<>"Unknown",Z9<>"Not required"),COUNTRY_INFO!O9*DISTRICT!AN9,0)) -> 81922.63002 | AS9: =MAX(COUNTRY_INFO!D9*AK9*PROFILE!$G$10,COUNTRY_INFO!D9*AL9*PROFILE!$G$10,IF(AND(DISTRICT!Z9<>"Unknown",Z9<>"Not required"),COUNTRY_INFO!O9*DISTRICT!AO9,0)) -> 147673.7177 | AT9: =SUM(AP9:AS9) -> 280481 | AU9: =IF(COUNTIFS(AK9:AN9,">0")=0,0, IF(COUNTIFS(AK9:AN9,">0")<=IF(AND(OR(D9>=0,D9="Not required",D9="Unknown",D9="Stopped"),D9>0,H9>0),1,0)+IF(AND(OR(J9>=0,J9="Not required",J9="Unknown",J9="Stopped"),J9>0,N9>0),1,0)+IF(AND(OR(P9>=0,P9="Not required",P9="Unknown"),P9>0,X9>0),1,0)+IF(AND(OR(Z9>=0,Z9="Not required",Z9="Unknown"),Z9>0,AH9>0),1,0),"Y",0)) -> Y | AV9: =MAX('MDA2'!J9,'T1'!L9,'T2'!J9,T3_R1!K9,T3_R2!K9) -> 0 | AW9: =MAX('MDA1'!K9,'MDA2'!K9,'MDA3'!I9,'MDA3'!L9,'T1'!M9,'T2'!K9,T3_R1!L9,T3_R2!L9) -> 88079 | AX9: =MAX('MDA1'!L9,'MDA2'!L9,'MDA3'!J9,'MDA3'!M9,'T1'!N9,'T2'!L9,T3_R1!M9,T3_R2!M9) -> 142453 | AY9: =SUM(AV9:AX9) -> 230532 | AZ9: =MAX('MDA2'!J9,T9) -> 0 | BA9: =MAX('MDA1'!K9,'MDA2'!K9,'MDA3'!I9,'MDA3'!L9,V9,AD9) -> 85474 | BB9: =MAX('MDA1'!L9,'MDA2'!L9,'MDA3'!J9,'MDA3'!M9,AF9) -> 142453 | BC9: =IF(AT9<SUM(AZ9:BB9), AT9,SUM(AZ9:BB9)) -> 227927 | BD9: =IF(AT9<>0,BC9/AT9*100,0) -> 81.26290194
A10: =IF(COUNTRY_INFO!A10=0," ",COUNTRY_INFO!A10) -> Burkina Faso | B10: =IF(COUNTRY_INFO!B10=0," ",COUNTRY_INFO!B10) -> Boucle du Mouhoun | C10: =IF(COUNTRY_INFO!C10=0," ",COUNTRY_INFO!C10) -> Dédougou | D10: =COUNTRY_INFO!L10 -> 390047 | G10: =MAX('MDA1'!M10,'MDA2'!M10) -> 286270 | H10: =IF(AND(COUNTRY_INFO!H10>0,COUNTRY_INFO!H10<4),IF(D10>MAX('MDA1'!M10,'MDA2'!M10),MAX('MDA1'!M10,'MDA2'!M10),D10),0) -> 286270 | I10: =IF(AND(COUNTRY_INFO!H10>0,COUNTRY_INFO!H10<4), IF(G10/D10*100<>0, IF(G10/D10*100>100,100,G10/D10*100), "-"),0) -> 73.39371922 | J10: =COUNTRY_INFO!M10 -> 0 | M10: =MAX('MDA1'!M10,MAX('MDA3'!I10,'MDA3'!L10)+MAX('MDA3'!J10,'MDA3'!M10)) -> 286270 | N10: =IF(AND(COUNTRY_INFO!I10>0,COUNTRY_INFO!I10<4),IF(J10>MAX('MDA1'!M10,MAX('MDA3'!I10,'MDA3'!L10)+MAX('MDA3'!J10,'MDA3'!M10)),MAX('MDA1'!M10,MAX('MDA3'!I10,'MDA3'!L10)+MAX('MDA3'!J10,'MDA3'!M10)),J10),0) -> 0 | O10: =IF(AND(COUNTRY_INFO!I10>0,COUNTRY_INFO!I10<4), IF(M10/J10*100<>0, IF(M10/J10*100>100,100,M10/J10*100), "-"),0) -> 0 | P10: =COUNTRY_INFO!N10 -> 0 | S10: =SUM(MAX('MDA2'!J10, 'T1'!L10, MAX(T3_R1!K10, T3_R2!K10)), MAX('MDA1'!K10, 'MDA2'!K10, 'T1'!M10, MAX(T3_R1!L10, T3_R2!L10)), MAX('MDA1'!L10, 'MDA2'!L10, 'T1'!N10, MAX(T3_R1!M10, T3_R2!M10))) -> 286270 | T10: =IF(AND(COUNTRY_INFO!J10>1,COUNTRY_INFO!J10<4),IF(COUNTRY_INFO!E10>MAX('MDA2'!J10,'T1'!L10,MAX(T3_R1!K10,T3_R2!K10)),MAX('MDA2'!J10,'T1'!L10,MAX(T3_R1!K10,T3_R2!K10)),COUNTRY_INFO!E10),0) -> 0 | U10: =IF(AND(COUNTRY_INFO!J10>1,COUNTRY_INFO!J10<4), IF(T10/COUNTRY_INFO!E10*100<>0, IF(T10/COUNTRY_INFO!E10*100>100,100,T10/COUNTRY_INFO!E10*100), "-"),0) -> 0 | V10: =IF(AND(COUNTRY_INFO!J10>1,COUNTRY_INFO!J10<4),IF(COUNTRY_INFO!F10>MAX('MDA1'!K10,'MDA2'!K10,'T1'!M10,MAX(T3_R1!L10,T3_R2!L10)),MAX('MDA1'!K10,'MDA2'!K10,'T1'!M10,MAX(T3_R1!L10,T3_R2!L10)),COUNTRY_INFO!F10),0) -> 0 | W10: =IF(AND(COUNTRY_INFO!J10>1,COUNTRY_INFO!J10<4), IF(V10/COUNTRY_INFO!F10*100<>0, IF(V10/COUNTRY_INFO!F10*100>100,100,V10/COUNTRY_INFO!F10*100), "-"),0) -> 0 | X10: =SUM(T10,V10) -> 0 | Y10: =IF(AND(COUNTRY_INFO!J10>1,COUNTRY_INFO!J10<4), IF(S10/P10*100<>0, IF(X10/P10*100>100,100,X10/P10*100), "-"),0) -> 0 | Z10: =COUNTRY_INFO!O10 -> 98331 | AC10: =MAX(SUM('T1'!L10:'T1'!N10),SUM('T2'!J10:'T2'!L10)) -> 265471 | AD10: =IF(COUNTRY_INFO!K10=1,IF(COUNTRY_INFO!F10*0.33>MAX('T1'!M10,'T2'!K10),MAX('T1'!M10,'T2'!K10),COUNTRY_INFO!F10*0.33),IF(COUNTRY_INFO!K10=2,IF(COUNTRY_INFO!F10*0.5>MAX('T1'!M10,'T2'!K10),MAX('T1'!M10,'T2'!K10),COUNTRY_INFO!F10*0.5),IF(COUNTRY_INFO!K10=3,IF(COUNTRY_INFO!F10>MAX('T1'!M10,'T2'!K10),MAX('T1'!M10,'T2'!K10),COUNTRY_INFO!F10),0))) -> 58502 | AE10: =IF(AND(COUNTRY_INFO!K10>0,COUNTRY_INFO!K10<4),IF(Z10>0,IF(COUNTRY_INFO!K10=1, AD10/(COUNTRY_INFO!F10*0.33)*100, IF(COUNTRY_INFO!K10=2, AD10/(COUNTRY_INFO!F10*0.5)*100, IF(COUNTRY_INFO!K10=3, AD10/COUNTRY_INFO!F10*100))),"-"),0) -> 100 | AF10: =IF(COUNTRY_INFO!K10=2,IF(COUNTRY_INFO!G10*0.2>MAX('T1'!N10,'T2'!L10),MAX('T1'!N10,'T2'!L10),COUNTRY_INFO!G10*0.2),IF(COUNTRY_INFO!K10=3,IF(COUNTRY_INFO!G10>MAX('T1'!N10,'T2'!L10),MAX('T1'!N10,'T2'!L10),COUNTRY_INFO!G10),0)) -> 39829 | AG10: =IF(AND(COUNTRY_INFO!K10>0,COUNTRY_INFO!K10<4),IF(Z10>0,IF(COUNTRY_INFO!K10=1, 0, IF(COUNTRY_INFO!K10=2, AF10/(COUNTRY_INFO!G10*0.2)*100, IF(COUNTRY_INFO!K10=3, AF10/COUNTRY_INFO!G10*100))),"-"),0) -> 100 | AH10: =SUM(AD10,AF10) -> 98331 | AI10: =IF(AND(COUNTRY_INFO!K10>0,COUNTRY_INFO!K10<4), IF(AC10/Z10*100<>0, IF(AH10/Z10*100>100,100,AH10/Z10*100), "-"),0) -> 100 | AK10: =IF(AND(D10<>0, D10<>"Unknown",D10<>"Stopped",D10<>"Not required"),D10/COUNTRY_INFO!D10, 0) -> 1 | AL10: =IF(AND(J10<>0,J10<>"Unknown",J10<>"Stopped",J10<>"Not required"),J10/COUNTRY_INFO!D10, 0) -> 0 | AM10: =IF(AND(P10<>0,P10<>"Unknown",P10<>"Not required"),P10/(COUNTRY_INFO!E10+COUNTRY_INFO!F10), 0) -> 0 | AN10: =IF(AND(Z10<>0,Z10<>"Unknown",Z10<>"Not required"),IF(COUNTRY_INFO!K10=1,1,IF(COUNTRY_INFO!K10=2,0.5*COUNTRY_INFO!F10/(0.5*COUNTRY_INFO!F10+0.2*COUNTRY_INFO!G10),IF(COUNTRY_INFO!K10=3,COUNTRY_INFO!F10/(COUNTRY_INFO!F10+COUNTRY_INFO!G10)))),0) -> 0.5949497107 | AO10: =IF(AND(Z10<>0,Z10<>"Unknown",Z10<>"Not required"),IF(COUNTRY_INFO!K10=1,0,IF(COUNTRY_INFO!K10=2,0.2*COUNTRY_INFO!G10/(0.5*COUNTRY_INFO!F10+0.2*COUNTRY_INFO!G10),IF(COUNTRY_INFO!K10=3,COUNTRY_INFO!G10/(COUNTRY_INFO!F10+COUNTRY_INFO!G10)))),0) -> 0.4050502893 | AP10: =MAX(COUNTRY_INFO!D10*AK10*PROFILE!$G$7,COUNTRY_INFO!D10*AL10*PROFILE!$G$7) -> 14612.68701 | AQ10: =MAX(COUNTRY_INFO!D10*AK10*PROFILE!$G$8,COUNTRY_INFO!D10*AL10*PROFILE!$G$8,COUNTRY_INFO!D10*AM10*PROFILE!$G$8) -> 56149.34662 | AR10: =MAX(COUNTRY_INFO!D10*AK10*PROFILE!$G$9,COUNTRY_INFO!D10*AL10*PROFILE!$G$9,COUNTRY_INFO!D10*AM10*PROFILE!$G$9,IF(AND(DISTRICT!Z10<>"Unknown",Z10<>"Not required"),COUNTRY_INFO!O10*DISTRICT!AN10,0)) -> 113924.5656 | AS10: =MAX(COUNTRY_INFO!D10*AK10*PROFILE!$G$10,COUNTRY_INFO!D10*AL10*PROFILE!$G$10,IF(AND(DISTRICT!Z10<>"Unknown",Z10<>"Not required"),COUNTRY_INFO!O10*DISTRICT!AO10,0)) -> 205360.4008 | AT10: =SUM(AP10:AS10) -> 390047 | AU10: Y | AV10: =MAX('MDA2'!J10,'T1'!L10,'T2'!J10,T3_R1!K10,T3_R2!K10) -> 0 | AW10: =MAX('MDA1'!K10,'MDA2'!K10,'MDA3'!I10,'MDA3'!L10,'T1'!M10,'T2'!K10,T3_R1!L10,T3_R2!L10) -> 116486 | AX10: =MAX('MDA1'!L10,'MDA2'!L10,'MDA3'!J10,'MDA3'!M10,'T1'!N10,'T2'!L10,T3_R1!M10,T3_R2!M10) -> 194235 | AY10: =SUM(AV10:AX10) -> 310721 | AZ10: =MAX('MDA2'!J10,T10) -> 0 | BA10: =MAX('MDA1'!K10,'MDA2'!K10,'MDA3'!I10,'MDA3'!L10,V10,AD10) -> 92035 | BB10: =MAX('MDA1'!L10,'MDA2'!L10,'MDA3'!J10,'MDA3'!M10,AF10) -> 194235 | BC10: 286270 | BD10: 73.39371922
A11: =IF(COUNTRY_INFO!A11=0," ",COUNTRY_INFO!A11) -> Burkina Faso | B11: =IF(COUNTRY_INFO!B11=0," ",COUNTRY_INFO!B11) -> Boucle du Mouhoun | C11: =IF(COUNTRY_INFO!C11=0," ",COUNTRY_INFO!C11) -> Nouna | D11: =COUNTRY_INFO!L11 -> Stopped | G11: =MAX('MDA1'!M11,'MDA2'!M11) -> 0 | H11: =IF(AND(COUNTRY_INFO!H11>0,COUNTRY_INFO!H11<4),IF(D11>MAX('MDA1'!M11,'MDA2'!M11),MAX('MDA1'!M11,'MDA2'!M11),D11),0) -> 0 | I11: =IF(AND(COUNTRY_INFO!H11>0,COUNTRY_INFO!H11<4), IF(G11/D11*100<>0, IF(G11/D11*100>100,100,G11/D11*100), "-"),0) -> 0 | J11: =COUNTRY_INFO!M11 -> 0 | M11: =MAX('MDA1'!M11,MAX('MDA3'!I11,'MDA3'!L11)+MAX('MDA3'!J11,'MDA3'!M11)) -> 0 | N11: =IF(AND(COUNTRY_INFO!I11>0,COUNTRY_INFO!I11<4),IF(J11>MAX('MDA1'!M11,MAX('MDA3'!I11,'MDA3'!L11)+MAX('MDA3'!J11,'MDA3'!M11)),MAX('MDA1'!M11,MAX('MDA3'!I11,'MDA3'!L11)+MAX('MDA3'!J11,'MDA3'!M11)),J11),0) -> 0 | O11: =IF(AND(COUNTRY_INFO!I11>0,COUNTRY_INFO!I11<4), IF(M11/J11*100<>0, IF(M11/J11*100>100,100,M11/J11*100), "-"),0) -> 0 | P11: =COUNTRY_INFO!N11 -> 0 | S11: =SUM(MAX('MDA2'!J11, 'T1'!L11, MAX(T3_R1!K11, T3_R2!K11)), MAX('MDA1'!K11, 'MDA2'!K11, 'T1'!M11, MAX(T3_R1!L11, T3_R2!L11)), MAX('MDA1'!L11, 'MDA2'!L11, 'T1'!N11, MAX(T3_R1!M11, T3_R2!M11))) -> 275904 | T11: =IF(AND(COUNTRY_INFO!J11>1,COUNTRY_INFO!J11<4),IF(COUNTRY_INFO!E11>MAX('MDA2'!J11,'T1'!L11,MAX(T3_R1!K11,T3_R2!K11)),MAX('MDA2'!J11,'T1'!L11,MAX(T3_R1!K11,T3_R2!K11)),COUNTRY_INFO!E11),0) -> 0 | U11: =IF(AND(COUNTRY_INFO!J11>1,COUNTRY_INFO!J11<4), IF(T11/COUNTRY_INFO!E11*100<>0, IF(T11/COUNTRY_INFO!E11*100>100,100,T11/COUNTRY_INFO!E11*100), "-"),0) -> 0 | V11: =IF(AND(COUNTRY_INFO!J11>1,COUNTRY_INFO!J11<4),IF(COUNTRY_INFO!F11>MAX('MDA1'!K11,'MDA2'!K11,'T1'!M11,MAX(T3_R1!L11,T3_R2!L11)),MAX('MDA1'!K11,'MDA2'!K11,'T1'!M11,MAX(T3_R1!L11,T3_R2!L11)),COUNTRY_INFO!F11),0) -> 0 | W11: =IF(AND(COUNTRY_INFO!J11>1,COUNTRY_INFO!J11<4), IF(V11/COUNTRY_INFO!F11*100<>0, IF(V11/COUNTRY_INFO!F11*100>100,100,V11/COUNTRY_INFO!F11*100), "-"),0) -> 0 | X11: 0 | Y11: =IF(AND(COUNTRY_INFO!J11>1,COUNTRY_INFO!J11<4), IF(S11/P11*100<>0, IF(X11/P11*100>100,100,X11/P11*100), "-"),0) -> 0 | Z11: =COUNTRY_INFO!O11 -> 90428.9 | AC11: =MAX(SUM('T1'!L11:'T1'!N11),SUM('T2'!J11:'T2'!L11)) -> 275904 | AD11: =IF(COUNTRY_INFO!K11=1,IF(COUNTRY_INFO!F11*0.33>MAX('T1'!M11,'T2'!K11),MAX('T1'!M11,'T2'!K11),COUNTRY_INFO!F11*0.33),IF(COUNTRY_INFO!K11=2,IF(COUNTRY_INFO!F11*0.5>MAX('T1'!M11,'T2'!K11),MAX('T1'!M11,'T2'!K11),COUNTRY_INFO!F11*0.5),IF(COUNTRY_INFO!K11=3,IF(COUNTRY_INFO!F11>MAX('T1'!M11,'T2'!K11),MAX('T1'!M11,'T2'!K11),COUNTRY_INFO!F11),0))) -> 53802.5 | AE11: =IF(AND(COUNTRY_INFO!K11>0,COUNTRY_INFO!K11<4),IF(Z11>0,IF(COUNTRY_INFO!K11=1, AD11/(COUNTRY_INFO!F11*0.33)*100, IF(COUNTRY_INFO!K11=2, AD11/(COUNTRY_INFO!F11*0.5)*100, IF(COUNTRY_INFO!K11=3, AD11/COUNTRY_INFO!F11*100))),"-"),0) -> 100 | AF11: =IF(COUNTRY_INFO!K11=2,IF(COUNTRY_INFO!G11*0.2>MAX('T1'!N11,'T2'!L11),MAX('T1'!N11,'T2'!L11),COUNTRY_INFO!G11*0.2),IF(COUNTRY_INFO!K11=3,IF(COUNTRY_INFO!G11>MAX('T1'!N11,'T2'!L11),MAX('T1'!N11,'T2'!L11),COUNTRY_INFO!G11),0)) -> 36626.4 | AG11: =IF(AND(COUNTRY_INFO!K11>0,COUNTRY_INFO!K11<4),IF(Z11>0,IF(COUNTRY_INFO!K11=1, 0, IF(COUNTRY_INFO!K11=2, AF11/(COUNTRY_INFO!G11*0.2)*100, IF(COUNTRY_INFO!K11=3, AF11/COUNTRY_INFO!G11*100))),"-"),0) -> 100 | AH11: 90428.9 | AI11: =IF(AND(COUNTRY_INFO!K11>0,COUNTRY_INFO!K11<4), IF(AC11/Z11*100<>0, IF(AH11/Z11*100>100,100,AH11/Z11*100), "-"),0) -> 100 | AK11: =IF(AND(D11<>0, D11<>"Unknown",D11<>"Stopped",D11<>"Not required"),D11/COUNTRY_INFO!D11, 0) -> 0 | AL11: =IF(AND(J11<>0,J11<>"Unknown",J11<>"Stopped",J11<>"Not required"),J11/COUNTRY_INFO!D11, 0) -> 0 | AM11: =IF(AND(P11<>0,P11<>"Unknown",P11<>"Not required"),P11/(COUNTRY_INFO!E11+COUNTRY_INFO!F11), 0) -> 0 | AN11: =IF(AND(Z11<>0,Z11<>"Unknown",Z11<>"Not required"),IF(COUNTRY_INFO!K11=1,1,IF(COUNTRY_INFO!K11=2,0.5*COUNTRY_INFO!F11/(0.5*COUNTRY_INFO!F11+0.2*COUNTRY_INFO!G11),IF(COUNTRY_INFO!K11=3,COUNTRY_INFO!F11/(COUNTRY_INFO!F11+COUNTRY_INFO!G11)))),0) -> 0.5949701921 | AO11: =IF(AND(Z11<>0,Z11<>"Unknown",Z11<>"Not required"),IF(COUNTRY_INFO!K11=1,0,IF(COUNTRY_INFO!K11=2,0.2*COUNTRY_INFO!G11/(0.5*COUNTRY_INFO!F11+0.2*COUNTRY_INFO!G11),IF(COUNTRY_INFO!K11=3,COUNTRY_INFO!G11/(COUNTRY_INFO!F11+COUNTRY_INFO!G11)))),0) -> 0.4050298079 | AP11: =MAX(COUNTRY_INFO!D11*AK11*PROFILE!$G$7,COUNTRY_INFO!D11*AL11*PROFILE!$G$7) -> 0 | AQ11: =MAX(COUNTRY_INFO!D11*AK11*PROFILE!$G$8,COUNTRY_INFO!D11*AL11*PROFILE!$G$8,COUNTRY_INFO!D11*AM11*PROFILE!$G$8) -> 0 | AR11: =MAX(COUNTRY_INFO!D11*AK11*PROFILE!$G$9,COUNTRY_INFO!D11*AL11*PROFILE!$G$9,COUNTRY_INFO!D11*AM11*PROFILE!$G$9,IF(AND(DISTRICT!Z11<>"Unknown",Z11<>"Not required"),COUNTRY_INFO!O11*DISTRICT!AN11,0)) -> 53802.5 | AS11: =MAX(COUNTRY_INFO!D11*AK11*PROFILE!$G$10,COUNTRY_INFO!D11*AL11*PROFILE!$G$10,IF(AND(DISTRICT!Z11<>"Unknown",Z11<>"Not required"),COUNTRY_INFO!O11*DISTRICT!AO11,0)) -> 36626.4 | AT11: 90428.9 | AU11: Y | AV11: =MAX('MDA2'!J11,'T1'!L11,'T2'!J11,T3_R1!K11,T3_R2!K11) -> 0 | AW11: =MAX('MDA1'!K11,'MDA2'!K11,'MDA3'!I11,'MDA3'!L11,'T1'!M11,'T2'!K11,T3_R1!L11,T3_R2!L11) -> 108018 | AX11: =MAX('MDA1'!L11,'MDA2'!L11,'MDA3'!J11,'MDA3'!M11,'T1'!N11,'T2'!L11,T3_R1!M11,T3_R2!M11) -> 167886 | AY11: 275904 | AZ11: =MAX('MDA2'!J11,T11) -> 0 | BA11: =MAX('MDA1'!K11,'MDA2'!K11,'MDA3'!I11,'MDA3'!L11,V11,AD11) -> 53802.5 | BB11: =MAX('MDA1'!L11,'MDA2'!L11,'MDA3'!J11,'MDA3'!M11,AF11) -> 36626.4 | BC11: 90428.9 | BD11: 100
A12: =IF(COUNTRY_INFO!A12=0," ",COUNTRY_INFO!A12) -> Burkina Faso | B12: =IF(COUNTRY_INFO!B12=0," ",COUNTRY_INFO!B12) -> Boucle du Mouhoun | C12: =IF(COUNTRY_INFO!C12=0," ",COUNTRY_INFO!C12) -> Solenzo | D12: =COUNTRY_INFO!L12 -> Stopped | G12: =MAX('MDA1'!M12,'MDA2'!M12) -> 0 | H12: =IF(AND(COUNTRY_INFO!H12>0,COUNTRY_INFO!H12<4),IF(D12>MAX('MDA1'!M12,'MDA2'!M12),MAX('MDA1'!M12,'MDA2'!M12),D12),0) -> 0 | I12: =IF(AND(COUNTRY_INFO!H12>0,COUNTRY_INFO!H12<4), IF(G12/D12*100<>0, IF(G12/D12*100>100,100,G12/D12*100), "-"),0) -> 0 | J12: =COUNTRY_INFO!M12 -> 0 | M12: =MAX('MDA1'!M12,MAX('MDA3'!I12,'MDA3'!L12)+MAX('MDA3'!J12,'MDA3'!M12)) -> 0 | N12: =IF(AND(COUNTRY_INFO!I12>0,COUNTRY_INFO!I12<4),IF(J12>MAX('MDA1'!M12,MAX('MDA3'!I12,'MDA3'!L12)+MAX('MDA3'!J12,'MDA3'!M12)),MAX('MDA1'!M12,MAX('MDA3'!I12,'MDA3'!L12)+MAX('MDA3'!J12,'MDA3'!M12)),J12),0) -> 0 | O12: =IF(AND(COUNTRY_INFO!I12>0,COUNTRY_INFO!I12<4), IF(M12/J12*100<>0, IF(M12/J12*100>100,100,M12/J12*100), "-"),0) -> 0 | P12: =COUNTRY_INFO!N12 -> 0 | S12: =SUM(MAX('MDA2'!J12, 'T1'!L12, MAX(T3_R1!K12, T3_R2!K12)), MAX('MDA1'!K12, 'MDA2'!K12, 'T1'!M12, MAX(T3_R1!L12, T3_R2!L12)), MAX('MDA1'!L12, 'MDA2'!L12, 'T1'!N12, MAX(T3_R1!M12, T3_R2!M12))) -> 264507 | T12: =IF(AND(COUNTRY_INFO!J12>1,COUNTRY_INFO!J12<4),IF(COUNTRY_INFO!E12>MAX('MDA2'!J12,'T1'!L12,MAX(T3_R1!K12,T3_R2!K12)),MAX('MDA2'!J12,'T1'!L12,MAX(T3_R1!K12,T3_R2!K12)),COUNTRY_INFO!E12),0) -> 0 | U12: =IF(AND(COUNTRY_INFO!J12>1,COUNTRY_INFO!J12<4), IF(T12/COUNTRY_INFO!E12*100<>0, IF(T12/COUNTRY_INFO!E12*100>100,100,T12/COUNTRY_INFO!E12*100), "-"),0) -> 0 | V12: =IF(AND(COUNTRY_INFO!J12>1,COUNTRY_INFO!J12<4),IF(COUNTRY_INFO!F12>MAX('MDA1'!K12,'MDA2'!K12,'T1'!M12,MAX(T3_R1!L12,T3_R2!L12)),MAX('MDA1'!K12,'MDA2'!K12,'T1'!M12,MAX(T3_R1!L12,T3_R2!L12)),COUNTRY_INFO!F12),0) -> 0 | W12: =IF(AND(COUNTRY_INFO!J12>1,COUNTRY_INFO!J12<4), IF(V12/COUNTRY_INFO!F12*100<>0, IF(V12/COUNTRY_INFO!F12*100>100,100,V12/COUNTRY_INFO!F12*100), "-"),0) -> 0 | X12: 0 | Y12: =IF(AND(COUNTRY_INFO!J12>1,COUNTRY_INFO!J12<4), IF(S12/P12*100<>0, IF(X12/P12*100>100,100,X12/P12*100), "-"),0) -> 0 | Z12: =COUNTRY_INFO!O12 -> 88732.9 | AC12: =MAX(SUM('T1'!L12:'T1'!N12),SUM('T2'!J12:'T2'!L12)) -> 264507 | AD12: =IF(COUNTRY_INFO!K12=1,IF(COUNTRY_INFO!F12*0.33>MAX('T1'!M12,'T2'!K12),MAX('T1'!M12,'T2'!K12),COUNTRY_INFO!F12*0.33),IF(COUNTRY_INFO!K12=2,IF(COUNTRY_INFO!F12*0.5>MAX('T1'!M12,'T2'!K12),MAX('T1'!M12,'T2'!K12),COUNTRY_INFO!F12*0.5),IF(COUNTRY_INFO!K12=3,IF(COUNTRY_INFO!F12>MAX('T1'!M12,'T2'!K12),MAX('T1'!M12,'T2'!K12),COUNTRY_INFO!F12),0))) -> 52792.5 | AE12: =IF(AND(COUNTRY_INFO!K12>0,COUNTRY_INFO!K12<4),IF(Z12>0,IF(COUNTRY_INFO!K12=1, AD12/(COUNTRY_INFO!F12*0.33)*100, IF(COUNTRY_INFO!K12=2, AD12/(COUNTRY_INFO!F12*0.5)*100, IF(COUNTRY_INFO!K12=3, AD12/COUNTRY_INFO!F12*100))),"-"),0) -> 100 | AF12: =IF(COUNTRY_INFO!K12=2,IF(COUNTRY_INFO!G12*0.2>MAX('T1'!N12,'T2'!L12),MAX('T1'!N12,'T2'!L12),COUNTRY_INFO!G12*0.2),IF(COUNTRY_INFO!K12=3,IF(COUNTRY_INFO!G12>MAX('T1'!N12,'T2'!L12),MAX('T1'!N12,'T2'!L12),COUNTRY_INFO!G12),0)) -> 35940.4 | AG12: =IF(AND(COUNTRY_INFO!K12>0,COUNTRY_INFO!K12<4),IF(Z12>0,IF(COUNTRY_INFO!K12=1, 0, IF(COUNTRY_INFO!K12=2, AF12/(COUNTRY_INFO!G12*0.2)*100, IF(COUNTRY_INFO!K12=3, AF12/COUNTRY_INFO!G12*100))),"-"),0) -> 100 | AH12: 88732.9 | AI12: =IF(AND(COUNTRY_INFO!K12>0,COUNTRY_INFO!K12<4), IF(AC12/Z12*100<>0, IF(AH12/Z12*100>100,100,AH12/Z12*100), "-"),0) -> 100 | AK12: =IF(AND(D12<>0, D12<>"Unknown",D12<>"Stopped",D12<>"Not required"),D12/COUNTRY_INFO!D12, 0) -> 0 | AL12: =IF(AND(J12<>0,J12<>"Unknown",J12<>"Stopped",J12<>"Not required"),J12/COUNTRY_INFO!D12, 0) -> 0 | AM12: =IF(AND(P12<>0,P12<>"Unknown",P12<>"Not required"),P12/(COUNTRY_INFO!E12+COUNTRY_INFO!F12), 0) -> 0 | AN12: =IF(AND(Z12<>0,Z12<>"Unknown",Z12<>"Not required"),IF(COUNTRY_INFO!K12=1,1,IF(COUNTRY_INFO!K12=2,0.5*COUNTRY_INFO!F12/(0.5*COUNTRY_INFO!F12+0.2*COUNTRY_INFO!G12),IF(COUNTRY_INFO!K12=3,COUNTRY_INFO!F12/(COUNTRY_INFO!F12+COUNTRY_INFO!G12)))),0) -> 0.5949597049 | AO12: =IF(AND(Z12<>0,Z12<>"Unknown",Z12<>"Not required"),IF(COUNTRY_INFO!K12=1,0,IF(COUNTRY_INFO!K12=2,0.2*COUNTRY_INFO!G12/(0.5*COUNTRY_INFO!F12+0.2*COUNTRY_INFO!G12),IF(COUNTRY_INFO!K12=3,COUNTRY_INFO!G12/(COUNTRY_INFO!F12+COUNTRY_INFO!G12)))),0) -> 0.4050402951 | AP12: =MAX(COUNTRY_INFO!D12*AK12*PROFILE!$G$7,COUNTRY_INFO!D12*AL12*PROFILE!$G$7) -> 0 | AQ12: =MAX(COUNTRY_INFO!D12*AK12*PROFILE!$G$8,COUNTRY_INFO!D12*AL12*PROFILE!$G$8,COUNTRY_INFO!D12*AM12*PROFILE!$G$8) -> 0 | AR12: =MAX(COUNTRY_INFO!D12*AK12*PROFILE!$G$9,COUNTRY_INFO!D12*AL12*PROFILE!$G$9,COUNTRY_INFO!D12*AM12*PROFILE!$G$9,IF(AND(DISTRICT!Z12<>"Unknown",Z12<>"Not required"),COUNTRY_INFO!O12*DISTRICT!AN12,0)) -> 52792.5 | AS12: =MAX(COUNTRY_INFO!D12*AK12*PROFILE!$G$10,COUNTRY_INFO!D12*AL12*PROFILE!$G$10,IF(AND(DISTRICT!Z12<>"Unknown",Z12<>"Not required"),COUNTRY_INFO!O12*DISTRICT!AO12,0)) -> 35940.4 | AT12: 88732.9 | AU12: Y | AV12: =MAX('MDA2'!J12,'T1'!L12,'T2'!J12,T3_R1!K12,T3_R2!K12) -> 0 | AW12: =MAX('MDA1'!K12,'MDA2'!K12,'MDA3'!I12,'MDA3'!L12,'T1'!M12,'T2'!K12,T3_R1!L12,T3_R2!L12) -> 103648 | AX12: =MAX('MDA1'!L12,'MDA2'!L12,'MDA3'!J12,'MDA3'!M12,'T1'!N12,'T2'!L12,T3_R1!M12,T3_R2!M12) -> 160859 | AY12: 264507 | AZ12: =MAX('MDA2'!J12,T12) -> 0 | BA12: =MAX('MDA1'!K12,'MDA2'!K12,'MDA3'!I12,'MDA3'!L12,V12,AD12) -> 52792.5 | BB12: =MAX('MDA1'!L12,'MDA2'!L12,'MDA3'!J12,'MDA3'!M12,AF12) -> 35940.4 | BC12: 88732.9 | BD12: 100
A13: =IF(COUNTRY_INFO!A13=0," ",COUNTRY_INFO!A13) -> Burkina Faso | B13: =IF(COUNTRY_INFO!B13=0," ",COUNTRY_INFO!B13) -> Boucle du Mouhoun | C13: =IF(COUNTRY_INFO!C13=0," ",COUNTRY_INFO!C13) -> Toma | D13: =COUNTRY_INFO!L13 -> Stopped | G13: =MAX('MDA1'!M13,'MDA2'!M13) -> 0 | H13: =IF(AND(COUNTRY_INFO!H13>0,COUNTRY_INFO!H13<4),IF(D13>MAX('MDA1'!M13,'MDA2'!M13),MAX('MDA1'!M13,'MDA2'!M13),D13),0) -> 0 | I13: =IF(AND(COUNTRY_INFO!H13>0,COUNTRY_INFO!H13<4), IF(G13/D13*100<>0, IF(G13/D13*100>100,100,G13/D13*100), "-"),0) -> 0 | J13: =COUNTRY_INFO!M13 -> 0 | M13: =MAX('MDA1'!M13,MAX('MDA3'!I13,'MDA3'!L13)+MAX('MDA3'!J13,'MDA3'!M13)) -> 0 | N13: =IF(AND(COUNTRY_INFO!I13>0,COUNTRY_INFO!I13<4),IF(J13>MAX('MDA1'!M13,MAX('MDA3'!I13,'MDA3'!L13)+MAX('MDA3'!J13,'MDA3'!M13)),MAX('MDA1'!M13,MAX('MDA3'!I13,'MDA3'!L13)+MAX('MDA3'!J13,'MDA3'!M13)),J13),0) -> 0 | O13: =IF(AND(COUNTRY_INFO!I13>0,COUNTRY_INFO!I13<4), IF(M13/J13*100<>0, IF(M13/J13*100>100,100,M13/J13*100), "-"),0) -> 0 | P13: =COUNTRY_INFO!N13 -> 0 | S13: =SUM(MAX('MDA2'!J13, 'T1'!L13, MAX(T3_R1!K13, T3_R2!K13)), MAX('MDA1'!K13, 'MDA2'!K13, 'T1'!M13, MAX(T3_R1!L13, T3_R2!L13)), MAX('MDA1'!L13, 'MDA2'!L13, 'T1'!N13, MAX(T3_R1!M13, T3_R2!M13))) -> 167647 | T13: =IF(AND(COUNTRY_INFO!J13>1,COUNTRY_INFO!J13<4),IF(COUNTRY_INFO!E13>MAX('MDA2'!J13,'T1'!L13,MAX(T3_R1!K13,T3_R2!K13)),MAX('MDA2'!J13,'T1'!L13,MAX(T3_R1!K13,T3_R2!K13)),COUNTRY_INFO!E13),0) -> 0 | U13: =IF(AND(COUNTRY_INFO!J13>1,COUNTRY_INFO!J13<4), IF(T13/COUNTRY_INFO!E13*100<>0, IF(T13/COUNTRY_INFO!E13*100>100,100,T13/COUNTRY_INFO!E13*100), "-"),0) -> 0 | V13: =IF(AND(COUNTRY_INFO!J13>1,COUNTRY_INFO!J13<4),IF(COUNTRY_INFO!F13>MAX('MDA1'!K13,'MDA2'!K13,'T1'!M13,MAX(T3_R1!L13,T3_R2!L13)),MAX('MDA1'!K13,'MDA2'!K13,'T1'!M13,MAX(T3_R1!L13,T3_R2!L13)),COUNTRY_INFO!F13),0) -> 0 | W13: =IF(AND(COUNTRY_INFO!J13>1,COUNTRY_INFO!J13<4), IF(V13/COUNTRY_INFO!F13*100<>0, IF(V13/COUNTRY_INFO!F13*100>100,100,V13/COUNTRY_INFO!F13*100), "-"),0) -> 0 | X13: 0 | Y13: =IF(AND(COUNTRY_INFO!J13>1,COUNTRY_INFO!J13<4), IF(S13/P13*100<>0, IF(X13/P13*100>100,100,X13/P13*100), "-"),0) -> 0 | Z13: =COUNTRY_INFO!O13 -> 52893.3 | AC13: =MAX(SUM('T1'!L13:'T1'!N13),SUM('T2'!J13:'T2'!L13)) -> 167647 | AD13: =IF(COUNTRY_INFO!K13=1,IF(COUNTRY_INFO!F13*0.33>MAX('T1'!M13,'T2'!K13),MAX('T1'!M13,'T2'!K13),COUNTRY_INFO!F13*0.33),IF(COUNTRY_INFO!K13=2,IF(COUNTRY_INFO!F13*0.5>MAX('T1'!M13,'T2'!K13),MAX('T1'!M13,'T2'!K13),COUNTRY_INFO!F13*0.5),IF(COUNTRY_INFO!K13=3,IF(COUNTRY_INFO!F13>MAX('T1'!M13,'T2'!K13),MAX('T1'!M13,'T2'!K13),COUNTRY_INFO!F13),0))) -> 31469.5 | AE13: =IF(AND(COUNTRY_INFO!K13>0,COUNTRY_INFO!K13<4),IF(Z13>0,IF(COUNTRY_INFO!K13=1, AD13/(COUNTRY_INFO!F13*0.33)*100, IF(COUNTRY_INFO!K13=2, AD13/(COUNTRY_INFO!F13*0.5)*100, IF(COUNTRY_INFO!K13=3, AD13/COUNTRY_INFO!F13*100))),"-"),0) -> 100 | AF13: =IF(COUNTRY_INFO!K13=2,IF(COUNTRY_INFO!G13*0.2>MAX('T1'!N13,'T2'!L13),MAX('T1'!N13,'T2'!L13),COUNTRY_INFO!G13*0.2),IF(COUNTRY_INFO!K13=3,IF(COUNTRY_INFO!G13>MAX('T1'!N13,'T2'!L13),MAX('T1'!N13,'T2'!L13),COUNTRY_INFO!G13),0)) -> 21423.8 | AG13: =IF(AND(COUNTRY_INFO!K13>0,COUNTRY_INFO!K13<4),IF(Z13>0,IF(COUNTRY_INFO!K13=1, 0, IF(COUNTRY_INFO!K13=2, AF13/(COUNTRY_INFO!G13*0.2)*100, IF(COUNTRY_INFO!K13=3, AF13/COUNTRY_INFO!G13*100))),"-"),0) -> 100 | AH13: 52893.3 | AI13: =IF(AND(COUNTRY_INFO!K13>0,COUNTRY_INFO!K13<4), IF(AC13/Z13*100<>0, IF(AH13/Z13*100>100,100,AH13/Z13*100), "-"),0) -> 100 | AK13: =IF(AND(D13<>0, D13<>"Unknown",D13<>"Stopped",D13<>"Not required"),D13/COUNTRY_INFO!D13, 0) -> 0 | AL13: =IF(AND(J13<>0,J13<>"Unknown",J13<>"Stopped",J13<>"Not required"),J13/COUNTRY_INFO!D13, 0) -> 0 | AM13: =IF(AND(P13<>0,P13<>"Unknown",P13<>"Not required"),P13/(COUNTRY_INFO!E13+COUNTRY_INFO!F13), 0) -> 0 | AN13: =IF(AND(Z13<>0,Z13<>"Unknown",Z13<>"Not required"),IF(COUNTRY_INFO!K13=1,1,IF(COUNTRY_INFO!K13=2,0.5*COUNTRY_INFO!F13/(0.5*COUNTRY_INFO!F13+0.2*COUNTRY_INFO!G13),IF(COUNTRY_INFO!K13=3,COUNTRY_INFO!F13/(COUNTRY_INFO!F13+COUNTRY_INFO!G13)))),0) -> 0.5949619328 | AO13: =IF(AND(Z13<>0,Z13<>"Unknown",Z13<>"Not required"),IF(COUNTRY_INFO!K13=1,0,IF(COUNTRY_INFO!K13=2,0.2*COUNTRY_INFO!G13/(0.5*COUNTRY_INFO!F13+0.2*COUNTRY_INFO!G13),IF(COUNTRY_INFO!K13=3,COUNTRY_INFO!G13/(COUNTRY_INFO!F13+COUNTRY_INFO!G13)))),0) -> 0.4050380672 | AP13: =MAX(COUNTRY_INFO!D13*AK13*PROFILE!$G$7,COUNTRY_INFO!D13*AL13*PROFILE!$G$7) -> 0 | AQ13: =MAX(COUNTRY_INFO!D13*AK13*PROFILE!$G$8,COUNTRY_INFO!D13*AL13*PROFILE!$G$8,COUNTRY_INFO!D13*AM13*PROFILE!$G$8) -> 0 | AR13: =MAX(COUNTRY_INFO!D13*AK13*PROFILE!$G$9,COUNTRY_INFO!D13*AL13*PROFILE!$G$9,COUNTRY_INFO!D13*AM13*PROFILE!$G$9,IF(AND(DISTRICT!Z13<>"Unknown",Z13<>"Not required"),COUNTRY_INFO!O13*DISTRICT!AN13,0)) -> 31469.5 | AS13: =MAX(COUNTRY_INFO!D13*AK13*PROFILE!$G$10,COUNTRY_INFO!D13*AL13*PROFILE!$G$10,IF(AND(DISTRICT!Z13<>"Unknown",Z13<>"Not required"),COUNTRY_INFO!O13*DISTRICT!AO13,0)) -> 21423.8 | AT13: 52893.3 | AU13: Y | AV13: =MAX('MDA2'!J13,'T1'!L13,'T2'!J13,T3_R1!K13,T3_R2!K13) -> 0 | AW13: =MAX('MDA1'!K13,'MDA2'!K13,'MDA3'!I13,'MDA3'!L13,'T1'!M13,'T2'!K13,T3_R1!L13,T3_R2!L13) -> 63790 | AX13: =MAX('MDA1'!L13,'MDA2'!L13,'MDA3'!J13,'MDA3'!M13,'T1'!N13,'T2'!L13,T3_R1!M13,T3_R2!M13) -> 103857 | AY13: 167647 | AZ13: =MAX('MDA2'!J13,T13) -> 0 | BA13: =MAX('MDA1'!K13,'MDA2'!K13,'MDA3'!I13,'MDA3'!L13,V13,AD13) -> 31469.5 | BB13: =MAX('MDA1'!L13,'MDA2'!L13,'MDA3'!J13,'MDA3'!M13,AF13) -> 21423.8 | BC13: 52893.3 | BD13: 100
A14: =IF(COUNTRY_INFO!A14=0," ",COUNTRY_INFO!A14) -> Burkina Faso | B14: =IF(COUNTRY_INFO!B14=0," ",COUNTRY_INFO!B14) -> Boucle du Mouhoun | C14: =IF(COUNTRY_INFO!C14=0," ",COUNTRY_INFO!C14) -> Tougan | D14: =COUNTRY_INFO!L14 -> Stopped | G14: =MAX('MDA1'!M14,'MDA2'!M14) -> 0 | H14: =IF(AND(COUNTRY_INFO!H14>0,COUNTRY_INFO!H14<4),IF(D14>MAX('MDA1'!M14,'MDA2'!M14),MAX('MDA1'!M14,'MDA2'!M14),D14),0) -> 0 | I14: =IF(AND(COUNTRY_INFO!H14>0,COUNTRY_INFO!H14<4), IF(G14/D14*100<>0, IF(G14/D14*100>100,100,G14/D14*100), "-"),0) -> 0 | J14: =COUNTRY_INFO!M14 -> 0 | M14: =MAX('MDA1'!M14,MAX('MDA3'!I14,'MDA3'!L14)+MAX('MDA3'!J14,'MDA3'!M14)) -> 0 | N14: =IF(AND(COUNTRY_INFO!I14>0,COUNTRY_INFO!I14<4),IF(J14>MAX('MDA1'!M14,MAX('MDA3'!I14,'MDA3'!L14)+MAX('MDA3'!J14,'MDA3'!M14)),MAX('MDA1'!M14,MAX('MDA3'!I14,'MDA3'!L14)+MAX('MDA3'!J14,'MDA3'!M14)),J14),0) -> 0 | O14: =IF(AND(COUNTRY_INFO!I14>0,COUNTRY_INFO!I14<4), IF(M14/J14*100<>0, IF(M14/J14*100>100,100,M14/J14*100), "-"),0) -> 0 | P14: =COUNTRY_INFO!N14 -> 0 | S14: =SUM(MAX('MDA2'!J14, 'T1'!L14, MAX(T3_R1!K14, T3_R2!K14)), MAX('MDA1'!K14, 'MDA2'!K14, 'T1'!M14, MAX(T3_R1!L14, T3_R2!L14)), MAX('MDA1'!L14, 'MDA2'!L14, 'T1'!N14, MAX(T3_R1!M14, T3_R2!M14))) -> 204121 | T14: =IF(AND(COUNTRY_INFO!J14>1,COUNTRY_INFO!J14<4),IF(COUNTRY_INFO!E14>MAX('MDA2'!J14,'T1'!L14,MAX(T3_R1!K14,T3_R2!K14)),MAX('MDA2'!J14,'T1'!L14,MAX(T3_R1!K14,T3_R2!K14)),COUNTRY_INFO!E14),0) -> 0 | U14: =IF(AND(COUNTRY_INFO!J14>1,COUNTRY_INFO!J14<4), IF(T14/COUNTRY_INFO!E14*100<>0, IF(T14/COUNTRY_INFO!E14*100>100,100,T14/COUNTRY_INFO!E14*100), "-"),0) -> 0 | V14: =IF(AND(COUNTRY_INFO!J14>1,COUNTRY_INFO!J14<4),IF(COUNTRY_INFO!F14>MAX('MDA1'!K14,'MDA2'!K14,'T1'!M14,MAX(T3_R1!L14,T3_R2!L14)),MAX('MDA1'!K14,'MDA2'!K14,'T1'!M14,MAX(T3_R1!L14,T3_R2!L14)),COUNTRY_INFO!F14),0) -> 0 | W14: =IF(AND(COUNTRY_INFO!J14>1,COUNTRY_INFO!J14<4), IF(V14/COUNTRY_INFO!F14*100<>0, IF(V14/COUNTRY_INFO!F14*100>100,100,V14/COUNTRY_INFO!F14*100), "-"),0) -> 0 | X14: 0 | Y14: =IF(AND(COUNTRY_INFO!J14>1,COUNTRY_INFO!J14<4), IF(S14/P14*100<>0, IF(X14/P14*100>100,100,X14/P14*100), "-"),0) -> 0 | Z14: =COUNTRY_INFO!O14 -> 70714 | AC14: =MAX(SUM('T1'!L14:'T1'!N14),SUM('T2'!J14:'T2'!L14)) -> 204121 | AD14: =IF(COUNTRY_INFO!K14=1,IF(COUNTRY_INFO!F14*0.33>MAX('T1'!M14,'T2'!K14),MAX('T1'!M14,'T2'!K14),COUNTRY_INFO!F14*0.33),IF(COUNTRY_INFO!K14=2,IF(COUNTRY_INFO!F14*0.5>MAX('T1'!M14,'T2'!K14),MAX('T1'!M14,'T2'!K14),COUNTRY_INFO!F14*0.5),IF(COUNTRY_INFO!K14=3,IF(COUNTRY_INFO!F14>MAX('T1'!M14,'T2'!K14),MAX('T1'!M14,'T2'!K14),COUNTRY_INFO!F14),0))) -> 42073 | AE14: =IF(AND(COUNTRY_INFO!K14>0,COUNTRY_INFO!K14<4),IF(Z14>0,IF(COUNTRY_INFO!K14=1, AD14/(COUNTRY_INFO!F14*0.33)*100, IF(COUNTRY_INFO!K14=2, AD14/(COUNTRY_INFO!F14*0.5)*100, IF(COUNTRY_INFO!K14=3, AD14/COUNTRY_INFO!F14*100))),"-"),0) -> 100 | AF14: =IF(COUNTRY_INFO!K14=2,IF(COUNTRY_INFO!G14*0.2>MAX('T1'!N14,'T2'!L14),MAX('T1'!N14,'T2'!L14),COUNTRY_INFO!G14*0.2),IF(COUNTRY_INFO!K14=3,IF(COUNTRY_INFO!G14>MAX('T1'!N14,'T2'!L14),MAX('T1'!N14,'T2'!L14),COUNTRY_INFO!G14),0)) -> 28641 | AG14: =IF(AND(COUNTRY_INFO!K14>0,COUNTRY_INFO!K14<4),IF(Z14>0,IF(COUNTRY_INFO!K14=1, 0, IF(COUNTRY_INFO!K14=2, AF14/(COUNTRY_INFO!G14*0.2)*100, IF(COUNTRY_INFO!K14=3, AF14/COUNTRY_INFO!G14*100))),"-"),0) -> 100 | AH14: 70714 | AI14: =IF(AND(COUNTRY_INFO!K14>0,COUNTRY_INFO!K14<4), IF(AC14/Z14*100<>0, IF(AH14/Z14*100>100,100,AH14/Z14*100), "-"),0) -> 100 | AK14: =IF(AND(D14<>0, D14<>"Unknown",D14<>"Stopped",D14<>"Not required"),D14/COUNTRY_INFO!D14, 0) -> 0 | AL14: =IF(AND(J14<>0,J14<>"Unknown",J14<>"Stopped",J14<>"Not required"),J14/COUNTRY_INFO!D14, 0) -> 0 | AM14: =IF(AND(P14<>0,P14<>"Unknown",P14<>"Not required"),P14/(COUNTRY_INFO!E14+COUNTRY_INFO!F14), 0) -> 0 | AN14: =IF(AND(Z14<>0,Z14<>"Unknown",Z14<>"Not required"),IF(COUNTRY_INFO!K14=1,1,IF(COUNTRY_INFO!K14=2,0.5*COUNTRY_INFO!F14/(0.5*COUNTRY_INFO!F14+0.2*COUNTRY_INFO!G14),IF(COUNTRY_INFO!K14=3,COUNTRY_INFO!F14/(COUNTRY_INFO!F14+COUNTRY_INFO!G14)))),0) -> 0.5949741211 | AO14: =IF(AND(Z14<>0,Z14<>"Unknown",Z14<>"Not required"),IF(COUNTRY_INFO!K14=1,0,IF(COUNTRY_INFO!K14=2,0.2*COUNTRY_INFO!G14/(0.5*COUNTRY_INFO!F14+0.2*COUNTRY_INFO!G14),IF(COUNTRY_INFO!K14=3,COUNTRY_INFO!G14/(COUNTRY_INFO!F14+COUNTRY_INFO!G14)))),0) -> 0.4050258789 | AP14: =MAX(COUNTRY_INFO!D14*AK14*PROFILE!$G$7,COUNTRY_INFO!D14*AL14*PROFILE!$G$7) -> 0 | AQ14: =MAX(COUNTRY_INFO!D14*AK14*PROFILE!$G$8,COUNTRY_INFO!D14*AL14*PROFILE!$G$8,COUNTRY_INFO!D14*AM14*PROFILE!$G$8) -> 0 | AR14: =MAX(COUNTRY_INFO!D14*AK14*PROFILE!$G$9,COUNTRY_INFO!D14*AL14*PROFILE!$G$9,COUNTRY_INFO!D14*AM14*PROFILE!$G$9,IF(AND(DISTRICT!Z14<>"Unknown",Z14<>"Not required"),COUNTRY_INFO!O14*DISTRICT!AN14,0)) -> 42073 | AS14: =MAX(COUNTRY_INFO!D14*AK14*PROFILE!$G$10,COUNTRY_INFO!D14*AL14*PROFILE!$G$10,IF(AND(DISTRICT!Z14<>"Unknown",Z14<>"Not required"),COUNTRY_INFO!O14*DISTRICT!AO14,0)) -> 28641 | AT14: 70714 | AU14: Y | AV14: =MAX('MDA2'!J14,'T1'!L14,'T2'!J14,T3_R1!K14,T3_R2!K14) -> 0 | AW14: =MAX('MDA1'!K14,'MDA2'!K14,'MDA3'!I14,'MDA3'!L14,'T1'!M14,'T2'!K14,T3_R1!L14,T3_R2!L14) -> 85031 | AX14: =MAX('MDA1'!L14,'MDA2'!L14,'MDA3'!J14,'MDA3'!M14,'T1'!N14,'T2'!L14,T3_R1!M14,T3_R2!M14) -> 119090 | AY14: 204121 | AZ14: =MAX('MDA2'!J14,T14) -> 0 | BA14: =MAX('MDA1'!K14,'MDA2'!K14,'MDA3'!I14,'MDA3'!L14,V14,AD14) -> 42073 | BB14: =MAX('MDA1'!L14,'MDA2'!L14,'MDA3'!J14,'MDA3'!M14,AF14) -> 28641 | BC14: 70714 | BD14: 100
A15: =IF(COUNTRY_INFO!A15=0," ",COUNTRY_INFO!A15) -> Burkina Faso | B15: =IF(COUNTRY_INFO!B15=0," ",COUNTRY_INFO!B15) -> Cascades | C15: =IF(COUNTRY_INFO!C15=0," ",COUNTRY_INFO!C15) -> Banfora | D15: =COUNTRY_INFO!L15 -> Stopped | G15: =MAX('MDA1'!M15,'MDA2'!M15) -> 0 | H15: =IF(AND(COUNTRY_INFO!H15>0,COUNTRY_INFO!H15<4),IF(D15>MAX('MDA1'!M15,'MDA2'!M15),MAX('MDA1'!M15,'MDA2'!M15),D15),0) -> 0 | I15: =IF(AND(COUNTRY_INFO!H15>0,COUNTRY_INFO!H15<4), IF(G15/D15*100<>0, IF(G15/D15*100>100,100,G15/D15*100), "-"),0) -> 0 | J15: =COUNTRY_INFO!M15 -> 51078 | M15: =MAX('MDA1'!M15,MAX('MDA3'!I15,'MDA3'!L15)+MAX('MDA3'!J15,'MDA3'!M15)) -> 39828 | N15: =IF(AND(COUNTRY_INFO!I15>0,COUNTRY_INFO!I15<4),IF(J15>MAX('MDA1'!M15,MAX('MDA3'!I15,'MDA3'!L15)+MAX('MDA3'!J15,'MDA3'!M15)),MAX('MDA1'!M15,MAX('MDA3'!I15,'MDA3'!L15)+MAX('MDA3'!J15,'MDA3'!M15)),J15),0) -> 39828 | O15: =IF(AND(COUNTRY_INFO!I15>0,COUNTRY_INFO!I15<4), IF(M15/J15*100<>0, IF(M15/J15*100>100,100,M15/J15*100), "-"),0) -> 77.97486198 | P15: =COUNTRY_INFO!N15 -> 0 | S15: =SUM(MAX('MDA2'!J15, 'T1'!L15, MAX(T3_R1!K15, T3_R2!K15)), MAX('MDA1'!K15, 'MDA2'!K15, 'T1'!M15, MAX(T3_R1!L15, T3_R2!L15)), MAX('MDA1'!L15, 'MDA2'!L15, 'T1'!N15, MAX(T3_R1!M15, T3_R2!M15))) -> 106926 | T15: =IF(AND(COUNTRY_INFO!J15>1,COUNTRY_INFO!J15<4),IF(COUNTRY_INFO!E15>MAX('MDA2'!J15,'T1'!L15,MAX(T3_R1!K15,T3_R2!K15)),MAX('MDA2'!J15,'T1'!L15,MAX(T3_R1!K15,T3_R2!K15)),COUNTRY_INFO!E15),0) -> 0 | U15: =IF(AND(COUNTRY_INFO!J15>1,COUNTRY_INFO!J15<4), IF(T15/COUNTRY_INFO!E15*100<>0, IF(T15/COUNTRY_INFO!E15*100>100,100,T15/COUNTRY_INFO!E15*100), "-"),0) -> 0 | V15: =IF(AND(COUNTRY_INFO!J15>1,COUNTRY_INFO!J15<4),IF(COUNTRY_INFO!F15>MAX('MDA1'!K15,'MDA2'!K15,'T1'!M15,MAX(T3_R1!L15,T3_R2!L15)),MAX('MDA1'!K15,'MDA2'!K15,'T1'!M15,MAX(T3_R1!L15,T3_R2!L15)),COUNTRY_INFO!F15),0) -> 0 | W15: =IF(AND(COUNTRY_INFO!J15>1,COUNTRY_INFO!J15<4), IF(V15/COUNTRY_INFO!F15*100<>0, IF(V15/COUNTRY_INFO!F15*100>100,100,V15/COUNTRY_INFO!F15*100), "-"),0) -> 0 | X15: 0 | Y15: =IF(AND(COUNTRY_INFO!J15>1,COUNTRY_INFO!J15<4), IF(S15/P15*100<>0, IF(X15/P15*100>100,100,X15/P15*100), "-"),0) -> 0 | Z15: =COUNTRY_INFO!O15 -> 95956.9 | AC15: =MAX(SUM('T1'!L15:'T1'!N15),SUM('T2'!J15:'T2'!L15)) -> 106926 | AD15: =IF(COUNTRY_INFO!K15=1,IF(COUNTRY_INFO!F15*0.33>MAX('T1'!M15,'T2'!K15),MAX('T1'!M15,'T2'!K15),COUNTRY_INFO!F15*0.33),IF(COUNTRY_INFO!K15=2,IF(COUNTRY_INFO!F15*0.5>MAX('T1'!M15,'T2'!K15),MAX('T1'!M15,'T2'!K15),COUNTRY_INFO!F15*0.5),IF(COUNTRY_INFO!K15=3,IF(COUNTRY_INFO!F15>MAX('T1'!M15,'T2'!K15),MAX('T1'!M15,'T2'!K15),COUNTRY_INFO!F15),0))) -> 54934.5 | AE15: =IF(AND(COUNTRY_INFO!K15>0,COUNTRY_INFO!K15<4),IF(Z15>0,IF(COUNTRY_INFO!K15=1, AD15/(COUNTRY_INFO!F15*0.33)*100, IF(COUNTRY_INFO!K15=2, AD15/(COUNTRY_INFO!F15*0.5)*100, IF(COUNTRY_INFO!K15=3, AD15/COUNTRY_INFO!F15*100))),"-"),0) -> 100 | AF15: =IF(COUNTRY_INFO!K15=2,IF(COUNTRY_INFO!G15*0.2>MAX('T1'!N15,'T2'!L15),MAX('T1'!N15,'T2'!L15),COUNTRY_INFO!G15*0.2),IF(COUNTRY_INFO!K15=3,IF(COUNTRY_INFO!G15>MAX('T1'!N15,'T2'!L15),MAX('T1'!N15,'T2'!L15),COUNTRY_INFO!G15),0)) -> 0 | AG15: =IF(AND(COUNTRY_INFO!K15>0,COUNTRY_INFO!K15<4),IF(Z15>0,IF(COUNTRY_INFO!K15=1, 0, IF(COUNTRY_INFO!K15=2, AF15/(COUNTRY_INFO!G15*0.2)*100, IF(COUNTRY_INFO!K15=3, AF15/COUNTRY_INFO!G15*100))),"-"),0) -> 0 | AH15: 54934.5 | AI15: =IF(AND(COUNTRY_INFO!K15>0,COUNTRY_INFO!K15<4), IF(AC15/Z15*100<>0, IF(AH15/Z15*100>100,100,AH15/Z15*100), "-"),0) -> 57.24913998 | AK15: =IF(AND(D15<>0, D15<>"Unknown",D15<>"Stopped",D15<>"Not required"),D15/COUNTRY_INFO!D15, 0) -> 0 | AL15: =IF(AND(J15<>0,J15<>"Unknown",J15<>"Stopped",J15<>"Not required"),J15/COUNTRY_INFO!D15, 0) -> 0.1350487416 | AM15: =IF(AND(P15<>0,P15<>"Unknown",P15<>"Not required"),P15/(COUNTRY_INFO!E15+COUNTRY_INFO!F15), 0) -> 0 | AN15: =IF(AND(Z15<>0,Z15<>"Unknown",Z15<>"Not required"),IF(COUNTRY_INFO!K15=1,1,IF(COUNTRY_INFO!K15=2,0.5*COUNTRY_INFO!F15/(0.5*COUNTRY_INFO!F15+0.2*COUNTRY_INFO!G15),IF(COUNTRY_INFO!K15=3,COUNTRY_INFO!F15/(COUNTRY_INFO!F15+COUNTRY_INFO!G15)))),0) -> 0.5724913998 | AO15: =IF(AND(Z15<>0,Z15<>"Unknown",Z15<>"Not required"),IF(COUNTRY_INFO!K15=1,0,IF(COUNTRY_INFO!K15=2,0.2*COUNTRY_INFO!G15/(0.5*COUNTRY_INFO!F15+0.2*COUNTRY_INFO!G15),IF(COUNTRY_INFO!K15=3,COUNTRY_INFO!G15/(COUNTRY_INFO!F15+COUNTRY_INFO!G15)))),0) -> 0.4275086002 | AP15: =MAX(COUNTRY_INFO!D15*AK15*PROFILE!$G$7,COUNTRY_INFO!D15*AL15*PROFILE!$G$7) -> 1913.581766 | AQ15: =MAX(COUNTRY_INFO!D15*AK15*PROFILE!$G$8,COUNTRY_INFO!D15*AL15*PROFILE!$G$8,COUNTRY_INFO!D15*AM15*PROFILE!$G$8) -> 7352.95061 | AR15: =MAX(COUNTRY_INFO!D15*AK15*PROFILE!$G$9,COUNTRY_INFO!D15*AL15*PROFILE!$G$9,COUNTRY_INFO!D15*AM15*PROFILE!$G$9,IF(AND(DISTRICT!Z15<>"Unknown",Z15<>"Not required"),COUNTRY_INFO!O15*DISTRICT!AN15,0)) -> 54934.5 | AS15: =MAX(COUNTRY_INFO!D15*AK15*PROFILE!$G$10,COUNTRY_INFO!D15*AL15*PROFILE!$G$10,IF(AND(DISTRICT!Z15<>"Unknown",Z15<>"Not required"),COUNTRY_INFO!O15*DISTRICT!AO15,0)) -> 41022.4 | AT15: 105223.4324 | AU15: Y | AV15: =MAX('MDA2'!J15,'T1'!L15,'T2'!J15,T3_R1!K15,T3_R2!K15) -> 0 | AW15: =MAX('MDA1'!K15,'MDA2'!K15,'MDA3'!I15,'MDA3'!L15,'T1'!M15,'T2'!K15,T3_R1!L15,T3_R2!L15) -> 106926 | AX15: =MAX('MDA1'!L15,'MDA2'!L15,'MDA3'!J15,'MDA3'!M15,'T1'!N15,'T2'!L15,T3_R1!M15,T3_R2!M15) -> 23915 | AY15: 130841 | AZ15: =MAX('MDA2'!J15,T15) -> 0 | BA15: =MAX('MDA1'!K15,'MDA2'!K15,'MDA3'!I15,'MDA3'!L15,V15,AD15) -> 54934.5 | BB15: =MAX('MDA1'!L15,'MDA2'!L15,'MDA3'!J15,'MDA3'!M15,AF15) -> 23915 | BC15: 78849.5 | BD15: 74.93530502
A16: =IF(COUNTRY_INFO!A16=0," ",COUNTRY_INFO!A16) -> Burkina Faso | B16: =IF(COUNTRY_INFO!B16=0," ",COUNTRY_INFO!B16) -> Cascades | C16: =IF(COUNTRY_INFO!C16=0," ",COUNTRY_INFO!C16) -> Mangodara | D16: =COUNTRY_INFO!L16 -> Stopped | G16: =MAX('MDA1'!M16,'MDA2'!M16) -> 0 | H16: =IF(AND(COUNTRY_INFO!H16>0,COUNTRY_INFO!H16<4),IF(D16>MAX('MDA1'!M16,'MDA2'!M16),MAX('MDA1'!M16,'MDA2'!M16),D16),0) -> 0 | I16: =IF(AND(COUNTRY_INFO!H16>0,COUNTRY_INFO!H16<4), IF(G16/D16*100<>0, IF(G16/D16*100>100,100,G16/D16*100), "-"),0) -> 0 | J16: =COUNTRY_INFO!M16 -> 7470 | M16: =MAX('MDA1'!M16,MAX('MDA3'!I16,'MDA3'!L16)+MAX('MDA3'!J16,'MDA3'!M16)) -> 5912 | N16: =IF(AND(COUNTRY_INFO!I16>0,COUNTRY_INFO!I16<4),IF(J16>MAX('MDA1'!M16,MAX('MDA3'!I16,'MDA3'!L16)+MAX('MDA3'!J16,'MDA3'!M16)),MAX('MDA1'!M16,MAX('MDA3'!I16,'MDA3'!L16)+MAX('MDA3'!J16,'MDA3'!M16)),J16),0) -> 5912 | O16: =IF(AND(COUNTRY_INFO!I16>0,COUNTRY_INFO!I16<4), IF(M16/J16*100<>0, IF(M16/J16*100>100,100,M16/J16*100), "-"),0) -> 79.14323963 | P16: =COUNTRY_INFO!N16 -> 0 | S16: =SUM(MAX('MDA2'!J16, 'T1'!L16, MAX(T3_R1!K16, T3_R2!K16)), MAX('MDA1'!K16, 'MDA2'!K16, 'T1'!M16, MAX(T3_R1!L16, T3_R2!L16)), MAX('MDA1'!L16, 'MDA2'!L16, 'T1'!N16, MAX(T3_R1!M16, T3_R2!M16))) -> 70710 | T16: =IF(AND(COUNTRY_INFO!J16>1,COUNTRY_INFO!J16<4),IF(COUNTRY_INFO!E16>MAX('MDA2'!J16,'T1'!L16,MAX(T3_R1!K16,T3_R2!K16)),MAX('MDA2'!J16,'T1'!L16,MAX(T3_R1!K16,T3_R2!K16)),COUNTRY_INFO!E16),0) -> 0 | U16: =IF(AND(COUNTRY_INFO!J16>1,COUNTRY_INFO!J16<4), IF(T16/COUNTRY_INFO!E16*100<>0, IF(T16/COUNTRY_INFO!E16*100>100,100,T16/COUNTRY_INFO!E16*100), "-"),0) -> 0 | V16: =IF(AND(COUNTRY_INFO!J16>1,COUNTRY_INFO!J16<4),IF(COUNTRY_INFO!F16>MAX('MDA1'!K16,'MDA2'!K16,'T1'!M16,MAX(T3_R1!L16,T3_R2!L16)),MAX('MDA1'!K16,'MDA2'!K16,'T1'!M16,MAX(T3_R1!L16,T3_R2!L16)),COUNTRY_INFO!F16),0) -> 0 | W16: =IF(AND(COUNTRY_INFO!J16>1,COUNTRY_INFO!J16<4), IF(V16/COUNTRY_INFO!F16*100<>0, IF(V16/COUNTRY_INFO!F16*100>100,100,V16/COUNTRY_INFO!F16*100), "-"),0) -> 0 | X16: 0 | Y16: =IF(AND(COUNTRY_INFO!J16>1,COUNTRY_INFO!J16<4), IF(S16/P16*100<>0, IF(X16/P16*100>100,100,X16/P16*100), "-"),0) -> 0 | Z16: =COUNTRY_INFO!O16 -> 56145.1 | AC16: =MAX(SUM('T1'!L16:'T1'!N16),SUM('T2'!J16:'T2'!L16)) -> 70710 | AD16: =IF(COUNTRY_INFO!K16=1,IF(COUNTRY_INFO!F16*0.33>MAX('T1'!M16,'T2'!K16),MAX('T1'!M16,'T2'!K16),COUNTRY_INFO!F16*0.33),IF(COUNTRY_INFO!K16=2,IF(COUNTRY_INFO!F16*0.5>MAX('T1'!M16,'T2'!K16),MAX('T1'!M16,'T2'!K16),COUNTRY_INFO!F16*0.5),IF(COUNTRY_INFO!K16=3,IF(COUNTRY_INFO!F16>MAX('T1'!M16,'T2'!K16),MAX('T1'!M16,'T2'!K16),COUNTRY_INFO!F16),0))) -> 33915.5 | AE16: =IF(AND(COUNTRY_INFO!K16>0,COUNTRY_INFO!K16<4),IF(Z16>0,IF(COUNTRY_INFO!K16=1, AD16/(COUNTRY_INFO!F16*0.33)*100, IF(COUNTRY_INFO!K16=2, AD16/(COUNTRY_INFO!F16*0.5)*100, IF(COUNTRY_INFO!K16=3, AD16/COUNTRY_INFO!F16*100))),"-"),0) -> 100 | AF16: =IF(COUNTRY_INFO!K16=2,IF(COUNTRY_INFO!G16*0.2>MAX('T1'!N16,'T2'!L16),MAX('T1'!N16,'T2'!L16),COUNTRY_INFO!G16*0.2),IF(COUNTRY_INFO!K16=3,IF(COUNTRY_INFO!G16>MAX('T1'!N16,'T2'!L16),MAX('T1'!N16,'T2'!L16),COUNTRY_INFO!G16),0)) -> 0 | AG16: =IF(AND(COUNTRY_INFO!K16>0,COUNTRY_INFO!K16<4),IF(Z16>0,IF(COUNTRY_INFO!K16=1, 0, IF(COUNTRY_INFO!K16=2, AF16/(COUNTRY_INFO!G16*0.2)*100, IF(COUNTRY_INFO!K16=3, AF16/COUNTRY_INFO!G16*100))),"-"),0) -> 0 | AH16: 33915.5 | AI16: =IF(AND(COUNTRY_INFO!K16>0,COUNTRY_INFO!K16<4), IF(AC16/Z16*100<>0, IF(AH16/Z16*100>100,100,AH16/Z16*100), "-"),0) -> 60.40687433 | AK16: =IF(AND(D16<>0, D16<>"Unknown",D16<>"Stopped",D16<>"Not required"),D16/COUNTRY_INFO!D16, 0) -> 0 | AL16: =IF(AND(J16<>0,J16<>"Unknown",J16<>"Stopped",J16<>"Not required"),J16/COUNTRY_INFO!D16, 0) -> 0.03365789699 | AM16: =IF(AND(P16<>0,P16<>"Unknown",P16<>"Not required"),P16/(COUNTRY_INFO!E16+COUNTRY_INFO!F16), 0) -> 0 | AN16: =IF(AND(Z16<>0,Z16<>"Unknown",Z16<>"Not required"),IF(COUNTRY_INFO!K16=1,1,IF(COUNTRY_INFO!K16=2,0.5*COUNTRY_INFO!F16/(0.5*COUNTRY_INFO!F16+0.2*COUNTRY_INFO!G16),IF(COUNTRY_INFO!K16=3,COUNTRY_INFO!F16/(COUNTRY_INFO!F16+COUNTRY_INFO!G16)))),0) -> 0.6040687433 | AO16: =IF(AND(Z16<>0,Z16<>"Unknown",Z16<>"Not required"),IF(COUNTRY_INFO!K16=1,0,IF(COUNTRY_INFO!K16=2,0.2*COUNTRY_INFO!G16/(0.5*COUNTRY_INFO!F16+0.2*COUNTRY_INFO!G16),IF(COUNTRY_INFO!K16=3,COUNTRY_INFO!G16/(COUNTRY_INFO!F16+COUNTRY_INFO!G16)))),0) -> 0.3959312567 | AP16: =MAX(COUNTRY_INFO!D16*AK16*PROFILE!$G$7,COUNTRY_INFO!D16*AL16*PROFILE!$G$7) -> 279.8554328 | AQ16: =MAX(COUNTRY_INFO!D16*AK16*PROFILE!$G$8,COUNTRY_INFO!D16*AL16*PROFILE!$G$8,COUNTRY_INFO!D16*AM16*PROFILE!$G$8) -> 1075.346354 | AR16: =MAX(COUNTRY_INFO!D16*AK16*PROFILE!$G$9,COUNTRY_INFO!D16*AL16*PROFILE!$G$9,COUNTRY_INFO!D16*AM16*PROFILE!$G$9,IF(AND(DISTRICT!Z16<>"Unknown",Z16<>"Not required"),COUNTRY_INFO!O16*DISTRICT!AN16,0)) -> 33915.5 | AS16: =MAX(COUNTRY_INFO!D16*AK16*PROFILE!$G$10,COUNTRY_INFO!D16*AL16*PROFILE!$G$10,IF(AND(DISTRICT!Z16<>"Unknown",Z16<>"Not required"),COUNTRY_INFO!O16*DISTRICT!AO16,0)) -> 22229.6 | AT16: 57500.30179 | AU16: Y | AV16: =MAX('MDA2'!J16,'T1'!L16,'T2'!J16,T3_R1!K16,T3_R2!K16) -> 0 | AW16: =MAX('MDA1'!K16,'MDA2'!K16,'MDA3'!I16,'MDA3'!L16,'T1'!M16,'T2'!K16,T3_R1!L16,T3_R2!L16) -> 70710 | AX16: =MAX('MDA1'!L16,'MDA2'!L16,'MDA3'!J16,'MDA3'!M16,'T1'!N16,'T2'!L16,T3_R1!M16,T3_R2!M16) -> 3443 | AY16: 74153 | AZ16: =MAX('MDA2'!J16,T16) -> 0 | BA16: =MAX('MDA1'!K16,'MDA2'!K16,'MDA3'!I16,'MDA3'!L16,V16,AD16) -> 33915.5 | BB16: =MAX('MDA1'!L16,'MDA2'!L16,'MDA3'!J16,'MDA3'!M16,AF16) -> 3443 | BC16: 37358.5 | BD16: 64.97096335
A17: =IF(COUNTRY_INFO!A17=0," ",COUNTRY_INFO!A17) -> Burkina Faso | B17: =IF(COUNTRY_INFO!B17=0," ",COUNTRY_INFO!B17) -> Cascades | C17: =IF(COUNTRY_INFO!C17=0," ",COUNTRY_INFO!C17) -> Sindou | D17: =COUNTRY_INFO!L17 -> Stopped | G17: =MAX('MDA1'!M17,'MDA2'!M17) -> 0 | H17: =IF(AND(COUNTRY_INFO!H17>0,COUNTRY_INFO!H17<4),IF(D17>MAX('MDA1'!M17,'MDA2'!M17),MAX('MDA1'!M17,'MDA2'!M17),D17),0) -> 0 | I17: =IF(AND(COUNTRY_INFO!H17>0,COUNTRY_INFO!H17<4), IF(G17/D17*100<>0, IF(G17/D17*100>100,100,G17/D17*100), "-"),0) -> 0 | J17: =COUNTRY_INFO!M17 -> 0 | M17: =MAX('MDA1'!M17,MAX('MDA3'!I17,'MDA3'!L17)+MAX('MDA3'!J17,'MDA3'!M17)) -> 0 | N17: =IF(AND(COUNTRY_INFO!I17>0,COUNTRY_INFO!I17<4),IF(J17>MAX('MDA1'!M17,MAX('MDA3'!I17,'MDA3'!L17)+MAX('MDA3'!J17,'MDA3'!M17)),MAX('MDA1'!M17,MAX('MDA3'!I17,'MDA3'!L17)+MAX('MDA3'!J17,'MDA3'!M17)),J17),0) -> 0 | O17: =IF(AND(COUNTRY_INFO!I17>0,COUNTRY_INFO!I17<4), IF(M17/J17*100<>0, IF(M17/J17*100>100,100,M17/J17*100), "-"),0) -> 0 | P17: =COUNTRY_INFO!N17 -> 0 | S17: =SUM(MAX('MDA2'!J17, 'T1'!L17, MAX(T3_R1!K17, T3_R2!K17)), MAX('MDA1'!K17, 'MDA2'!K17, 'T1'!M17, MAX(T3_R1!L17, T3_R2!L17)), MAX('MDA1'!L17, 'MDA2'!L17, 'T1'!N17, MAX(T3_R1!M17, T3_R2!M17))) -> 48967 | T17: =IF(AND(COUNTRY_INFO!J17>1,COUNTRY_INFO!J17<4),IF(COUNTRY_INFO!E17>MAX('MDA2'!J17,'T1'!L17,MAX(T3_R1!K17,T3_R2!K17)),MAX('MDA2'!J17,'T1'!L17,MAX(T3_R1!K17,T3_R2!K17)),COUNTRY_INFO!E17),0) -> 0 | U17: =IF(AND(COUNTRY_INFO!J17>1,COUNTRY_INFO!J17<4), IF(T17/COUNTRY_INFO!E17*100<>0, IF(T17/COUNTRY_INFO!E17*100>100,100,T17/COUNTRY_INFO!E17*100), "-"),0) -> 0 | V17: =IF(AND(COUNTRY_INFO!J17>1,COUNTRY_INFO!J17<4),IF(COUNTRY_INFO!F17>MAX('MDA1'!K17,'MDA2'!K17,'T1'!M17,MAX(T3_R1!L17,T3_R2!L17)),MAX('MDA1'!K17,'MDA2'!K17,'T1'!M17,MAX(T3_R1!L17,T3_R2!L17)),COUNTRY_INFO!F17),0) -> 0 | W17: =IF(AND(COUNTRY_INFO!J17>1,COUNTRY_INFO!J17<4), IF(V17/COUNTRY_INFO!F17*100<>0, IF(V17/COUNTRY_INFO!F17*100>100,100,V17/COUNTRY_INFO!F17*100), "-"),0) -> 0 | X17: 0 | Y17: =IF(AND(COUNTRY_INFO!J17>1,COUNTRY_INFO!J17<4), IF(S17/P17*100<>0, IF(X17/P17*100>100,100,X17/P17*100), "-"),0) -> 0 | Z17: =COUNTRY_INFO!O17 -> 42167.2 | AC17: =MAX(SUM('T1'!L17:'T1'!N17),SUM('T2'!J17:'T2'!L17)) -> 48967 | AD17: =IF(COUNTRY_INFO!K17=1,IF(COUNTRY_INFO!F17*0.33>MAX('T1'!M17,'T2'!K17),MAX('T1'!M17,'T2'!K17),COUNTRY_INFO!F17*0.33),IF(COUNTRY_INFO!K17=2,IF(COUNTRY_INFO!F17*0.5>MAX('T1'!M17,'T2'!K17),MAX('T1'!M17,'T2'!K17),COUNTRY_INFO!F17*0.5),IF(COUNTRY_INFO!K17=3,IF(COUNTRY_INFO!F17>MAX('T1'!M17,'T2'!K17),MAX('T1'!M17,'T2'!K17),COUNTRY_INFO!F17),0))) -> 24631 | AE17: =IF(AND(COUNTRY_INFO!K17>0,COUNTRY_INFO!K17<4),IF(Z17>0,IF(COUNTRY_INFO!K17=1, AD17/(COUNTRY_INFO!F17*0.33)*100, IF(COUNTRY_INFO!K17=2, AD17/(COUNTRY_INFO!F17*0.5)*100, IF(COUNTRY_INFO!K17=3, AD17/COUNTRY_INFO!F17*100))),"-"),0) -> 100 | AF17: =IF(COUNTRY_INFO!K17=2,IF(COUNTRY_INFO!G17*0.2>MAX('T1'!N17,'T2'!L17),MAX('T1'!N17,'T2'!L17),COUNTRY_INFO!G17*0.2),IF(COUNTRY_INFO!K17=3,IF(COUNTRY_INFO!G17>MAX('T1'!N17,'T2'!L17),MAX('T1'!N17,'T2'!L17),COUNTRY_INFO!G17),0)) -> 0 | AG17: =IF(AND(COUNTRY_INFO!K17>0,COUNTRY_INFO!K17<4),IF(Z17>0,IF(COUNTRY_INFO!K17=1, 0, IF(COUNTRY_INFO!K17=2, AF17/(COUNTRY_INFO!G17*0.2)*100, IF(COUNTRY_INFO!K17=3, AF17/COUNTRY_INFO!G17*100))),"-"),0) -> 0 | AH17: 24631 | AI17: =IF(AND(COUNTRY_INFO!K17>0,COUNTRY_INFO!K17<4), IF(AC17/Z17*100<>0, IF(AH17/Z17*100>100,100,AH17/Z17*100), "-"),0) -> 58.41269992 | AK17: =IF(AND(D17<>0, D17<>"Unknown",D17<>"Stopped",D17<>"Not required"),D17/COUNTRY_INFO!D17, 0) -> 0 | AL17: =IF(AND(J17<>0,J17<>"Unknown",J17<>"Stopped",J17<>"Not required"),J17/COUNTRY_INFO!D17, 0) -> 0 | AM17: =IF(AND(P17<>0,P17<>"Unknown",P17<>"Not required"),P17/(COUNTRY_INFO!E17+COUNTRY_INFO!F17), 0) -> 0 | AN17: =IF(AND(Z17<>0,Z17<>"Unknown",Z17<>"Not required"),IF(COUNTRY_INFO!K17=1,1,IF(COUNTRY_INFO!K17=2,0.5*COUNTRY_INFO!F17/(0.5*COUNTRY_INFO!F17+0.2*COUNTRY_INFO!G17),IF(COUNTRY_INFO!K17=3,COUNTRY_INFO!F17/(COUNTRY_INFO!F17+COUNTRY_INFO!G17)))),0) -> 0.5841269992 | AO17: =IF(AND(Z17<>0,Z17<>"Unknown",Z17<>"Not required"),IF(COUNTRY_INFO!K17=1,0,IF(COUNTRY_INFO!K17=2,0.2*COUNTRY_INFO!G17/(0.5*COUNTRY_INFO!F17+0.2*COUNTRY_INFO!G17),IF(COUNTRY_INFO!K17=3,COUNTRY_INFO!G17/(COUNTRY_INFO!F17+COUNTRY_INFO!G17)))),0) -> 0.4158730008 | AP17: =MAX(COUNTRY_INFO!D17*AK17*PROFILE!$G$7,COUNTRY_INFO!D17*AL17*PROFILE!$G$7) -> 0 | AQ17: =MAX(COUNTRY_INFO!D17*AK17*PROFILE!$G$8,COUNTRY_INFO!D17*AL17*PROFILE!$G$8,COUNTRY_INFO!D17*AM17*PROFILE!$G$8) -> 0 | AR17: =MAX(COUNTRY_INFO!D17*AK17*PROFILE!$G$9,COUNTRY_INFO!D17*AL17*PROFILE!$G$9,COUNTRY_INFO!D17*AM17*PROFILE!$G$9,IF(AND(DISTRICT!Z17<>"Unknown",Z17<>"Not required"),COUNTRY_INFO!O17*DISTRICT!AN17,0)) -> 24631 | AS17: =MAX(COUNTRY_INFO!D17*AK17*PROFILE!$G$10,COUNTRY_INFO!D17*AL17*PROFILE!$G$10,IF(AND(DISTRICT!Z17<>"Unknown",Z17<>"Not required"),COUNTRY_INFO!O17*DISTRICT!AO17,0)) -> 17536.2 | AT17: 42167.2 | AU17: Y | AV17: =MAX('MDA2'!J17,'T1'!L17,'T2'!J17,T3_R1!K17,T3_R2!K17) -> 0 | AW17: =MAX('MDA1'!K17,'MDA2'!K17,'MDA3'!I17,'MDA3'!L17,'T1'!M17,'T2'!K17,T3_R1!L17,T3_R2!L17) -> 48967 | AX17: =MAX('MDA1'!L17,'MDA2'!L17,'MDA3'!J17,'MDA3'!M17,'T1'!N17,'T2'!L17,T3_R1!M17,T3_R2!M17) -> 0 | AY17: 48967 | AZ17: =MAX('MDA2'!J17,T17) -> 0 | BA17: =MAX('MDA1'!K17,'MDA2'!K17,'MDA3'!I17,'MDA3'!L17,V17,AD17) -> 24631 | BB17: =MAX('MDA1'!L17,'MDA2'!L17,'MDA3'!J17,'MDA3'!M17,AF17) -> 0 | BC17: 24631 | BD17: 58.41269992
A18: =IF(COUNTRY_INFO!A18=0," ",COUNTRY_INFO!A18) -> Burkina Faso | B18: =IF(COUNTRY_INFO!B18=0," ",COUNTRY_INFO!B18) -> Centre | C18: =IF(COUNTRY_INFO!C18=0," ",COUNTRY_INFO!C18) -> Baskuy | D18: =COUNTRY_INFO!L18 -> Stopped | G18: =MAX('MDA1'!M18,'MDA2'!M18) -> 0 | H18: =IF(AND(COUNTRY_INFO!H18>0,COUNTRY_INFO!H18<4),IF(D18>MAX('MDA1'!M18,'MDA2'!M18),MAX('MDA1'!M18,'MDA2'!M18),D18),0) -> 0 | I18: =IF(AND(COUNTRY_INFO!H18>0,COUNTRY_INFO!H18<4), IF(G18/D18*100<>0, IF(G18/D18*100>100,100,G18/D18*100), "-"),0) -> 0 | J18: =COUNTRY_INFO!M18 -> 0 | M18: =MAX('MDA1'!M18,MAX('MDA3'!I18,'MDA3'!L18)+MAX('MDA3'!J18,'MDA3'!M18)) -> 0 | N18: =IF(AND(COUNTRY_INFO!I18>0,COUNTRY_INFO!I18<4),IF(J18>MAX('MDA1'!M18,MAX('MDA3'!I18,'MDA3'!L18)+MAX('MDA3'!J18,'MDA3'!M18)),MAX('MDA1'!M18,MAX('MDA3'!I18,'MDA3'!L18)+MAX('MDA3'!J18,'MDA3'!M18)),J18),0) -> 0 | O18: =IF(AND(COUNTRY_INFO!I18>0,COUNTRY_INFO!I18<4), IF(M18/J18*100<>0, IF(M18/J18*100>100,100,M18/J18*100), "-"),0) -> 0 | P18: =COUNTRY_INFO!N18 -> 0 | S18: =SUM(MAX('MDA2'!J18, 'T1'!L18, MAX(T3_R1!K18, T3_R2!K18)), MAX('MDA1'!K18, 'MDA2'!K18, 'T1'!M18, MAX(T3_R1!L18, T3_R2!L18)), MAX('MDA1'!L18, 'MDA2'!L18, 'T1'!N18, MAX(T3_R1!M18, T3_R2!M18))) -> 58512 | T18: =IF(AND(COUNTRY_INFO!J18>1,COUNTRY_INFO!J18<4),IF(COUNTRY_INFO!E18>MAX('MDA2'!J18,'T1'!L18,MAX(T3_R1!K18,T3_R2!K18)),MAX('MDA2'!J18,'T1'!L18,MAX(T3_R1!K18,T3_R2!K18)),COUNTRY_INFO!E18),0) -> 0 | U18: =IF(AND(COUNTRY_INFO!J18>1,COUNTRY_INFO!J18<4), IF(T18/COUNTRY_INFO!E18*100<>0, IF(T18/COUNTRY_INFO!E18*100>100,100,T18/COUNTRY_INFO!E18*100), "-"),0) -> 0 | V18: =IF(AND(COUNTRY_INFO!J18>1,COUNTRY_INFO!J18<4),IF(COUNTRY_INFO!F18>MAX('MDA1'!K18,'MDA2'!K18,'T1'!M18,MAX(T3_R1!L18,T3_R2!L18)),MAX('MDA1'!K18,'MDA2'!K18,'T1'!M18,MAX(T3_R1!L18,T3_R2!L18)),COUNTRY_INFO!F18),0) -> 0 | W18: =IF(AND(COUNTRY_INFO!J18>1,COUNTRY_INFO!J18<4), IF(V18/COUNTRY_INFO!F18*100<>0, IF(V18/COUNTRY_INFO!F18*100>100,100,V18/COUNTRY_INFO!F18*100), "-"),0) -> 0 | X18: 0 | Y18: =IF(AND(COUNTRY_INFO!J18>1,COUNTRY_INFO!J18<4), IF(S18/P18*100<>0, IF(X18/P18*100>100,100,X18/P18*100), "-"),0) -> 0 | Z18: =COUNTRY_INFO!O18 -> 71169.9 | AC18: =MAX(SUM('T1'!L18:'T1'!N18),SUM('T2'!J18:'T2'!L18)) -> 58512 | AD18: =IF(COUNTRY_INFO!K18=1,IF(COUNTRY_INFO!F18*0.33>MAX('T1'!M18,'T2'!K18),MAX('T1'!M18,'T2'!K18),COUNTRY_INFO!F18*0.33),IF(COUNTRY_INFO!K18=2,IF(COUNTRY_INFO!F18*0.5>MAX('T1'!M18,'T2'!K18),MAX('T1'!M18,'T2'!K18),COUNTRY_INFO!F18*0.5),IF(COUNTRY_INFO!K18=3,IF(COUNTRY_INFO!F18>MAX('T1'!M18,'T2'!K18),MAX('T1'!M18,'T2'!K18),COUNTRY_INFO!F18),0))) -> 29705.5 | AE18: =IF(AND(COUNTRY_INFO!K18>0,COUNTRY_INFO!K18<4),IF(Z18>0,IF(COUNTRY_INFO!K18=1, AD18/(COUNTRY_INFO!F18*0.33)*100, IF(COUNTRY_INFO!K18=2, AD18/(COUNTRY_INFO!F18*0.5)*100, IF(COUNTRY_INFO!K18=3, AD18/COUNTRY_INFO!F18*100))),"-"),0) -> 100 | AF18: =IF(COUNTRY_INFO!K18=2,IF(COUNTRY_INFO!G18*0.2>MAX('T1'!N18,'T2'!L18),MAX('T1'!N18,'T2'!L18),COUNTRY_INFO!G18*0.2),IF(COUNTRY_INFO!K18=3,IF(COUNTRY_INFO!G18>MAX('T1'!N18,'T2'!L18),MAX('T1'!N18,'T2'!L18),COUNTRY_INFO!G18),0)) -> 0 | AG18: =IF(AND(COUNTRY_INFO!K18>0,COUNTRY_INFO!K18<4),IF(Z18>0,IF(COUNTRY_INFO!K18=1, 0, IF(COUNTRY_INFO!K18=2, AF18/(COUNTRY_INFO!G18*0.2)*100, IF(COUNTRY_INFO!K18=3, AF18/COUNTRY_INFO!G18*100))),"-"),0) -> 0 | AH18: 29705.5 | AI18: =IF(AND(COUNTRY_INFO!K18>0,COUNTRY_INFO!K18<4), IF(AC18/Z18*100<>0, IF(AH18/Z18*100>100,100,AH18/Z18*100), "-"),0) -> 41.73885308 | AK18: =IF(AND(D18<>0, D18<>"Unknown",D18<>"Stopped",D18<>"Not required"),D18/COUNTRY_INFO!D18, 0) -> 0 | AL18: =IF(AND(J18<>0,J18<>"Unknown",J18<>"Stopped",J18<>"Not required"),J18/COUNTRY_INFO!D18, 0) -> 0 | AM18: =IF(AND(P18<>0,P18<>"Unknown",P18<>"Not required"),P18/(COUNTRY_INFO!E18+COUNTRY_INFO!F18), 0) -> 0 | AN18: =IF(AND(Z18<>0,Z18<>"Unknown",Z18<>"Not required"),IF(COUNTRY_INFO!K18=1,1,IF(COUNTRY_INFO!K18=2,0.5*COUNTRY_INFO!F18/(0.5*COUNTRY_INFO!F18+0.2*COUNTRY_INFO!G18),IF(COUNTRY_INFO!K18=3,COUNTRY_INFO!F18/(COUNTRY_INFO!F18+COUNTRY_INFO!G18)))),0) -> 0.4173885308 | AO18: =IF(AND(Z18<>0,Z18<>"Unknown",Z18<>"Not required"),IF(COUNTRY_INFO!K18=1,0,IF(COUNTRY_INFO!K18=2,0.2*COUNTRY_INFO!G18/(0.5*COUNTRY_INFO!F18+0.2*COUNTRY_INFO!G18),IF(COUNTRY_INFO!K18=3,COUNTRY_INFO!G18/(COUNTRY_INFO!F18+COUNTRY_INFO!G18)))),0) -> 0.5826114692 | AP18: =MAX(COUNTRY_INFO!D18*AK18*PROFILE!$G$7,COUNTRY_INFO!D18*AL18*PROFILE!$G$7) -> 0 | AQ18: =MAX(COUNTRY_INFO!D18*AK18*PROFILE!$G$8,COUNTRY_INFO!D18*AL18*PROFILE!$G$8,COUNTRY_INFO!D18*AM18*PROFILE!$G$8) -> 0 | AR18: =MAX(COUNTRY_INFO!D18*AK18*PROFILE!$G$9,COUNTRY_INFO!D18*AL18*PROFILE!$G$9,COUNTRY_INFO!D18*AM18*PROFILE!$G$9,IF(AND(DISTRICT!Z18<>"Unknown",Z18<>"Not required"),COUNTRY_INFO!O18*DISTRICT!AN18,0)) -> 29705.5 | AS18: =MAX(COUNTRY_INFO!D18*AK18*PROFILE!$G$10,COUNTRY_INFO!D18*AL18*PROFILE!$G$10,IF(AND(DISTRICT!Z18<>"Unknown",Z18<>"Not required"),COUNTRY_INFO!O18*DISTRICT!AO18,0)) -> 41464.4 | AT18: 71169.9 | AU18: Y | AV18: =MAX('MDA2'!J18,'T1'!L18,'T2'!J18,T3_R1!K18,T3_R2!K18) -> 0 | AW18: =MAX('MDA1'!K18,'MDA2'!K18,'MDA3'!I18,'MDA3'!L18,'T1'!M18,'T2'!K18,T3_R1!L18,T3_R2!L18) -> 58512 | AX18: =MAX('MDA1'!L18,'MDA2'!L18,'MDA3'!J18,'MDA3'!M18,'T1'!N18,'T2'!L18,T3_R1!M18,T3_R2!M18) -> 0 | AY18: 58512 | AZ18: =MAX('MDA2'!J18,T18) -> 0 | BA18: =MAX('MDA1'!K18,'MDA2'!K18,'MDA3'!I18,'MDA3'!L18,V18,AD18) -> 29705.5 | BB18: =MAX('MDA1'!L18,'MDA2'!L18,'MDA3'!J18,'MDA3'!M18,AF18) -> 0 | BC18: 29705.5 | BD18: 41.73885308
